Workbook

Sheet BD operarios
A1: Cedula | B1: Nombre | C1: Cargo | D1: Fecha Ingreso | E1: Fecha Retiro | F1: Aux. Transporte | G1: Segundo Cargo | H1: Liquidado | I1: Revisad
A2: 7252561 | B2: Acevedo Julio Cesar | C2: OBRERO AGRICOLA | D2: 2016-04-01 | E2: N | F2: NO | G2: OBRERO AGRICOLA | H2: NO | I2: ok
A3: 900697835 | B3: Agroservir S.A.S | C3: CONTRATISTA | E3: N | F3: NO | G3: CONTRATISTA | H3: NO | I3: ok
A4: 1096184716 | B4: Aguilar Luis Fernando | C4: OBRERO AGRICOLA | D4: 2016-04-21 | E4: N | F4: SI | G4: OBRERO AGRICOLA | H4: NO | I4: ok
A5: 1056768940 | B5: Alvarez Campiño John Fredy | C5: OBRERO AGRICOLA | D5: 2016-04-01 | E5: N | F5: NO | G5: OBRERO AGRICOLA | H5: NO | I5: ok
A6: 1056771444 | B6: Amaya Oscar Felipe | C6: OBRERO AGRICOLA | D6: 2016-04-14 | E6: N | F6: NO | G6: OBRERO AGRICOLA | H6: NO | I6: ok
A7: 1121865476 | B7: Ardila Barboza Anderson Joaquin | C7: OBRERO AGRICOLA | D7: 2016-04-14 | E7: N | F7: NO | G7: OBRERO AGRICOLA | H7: NO | I7: ok
A8: 17688621 | B8: Arroyo Laverde Cristobal | C8: OBRERO AGRICOLA | D8: 2016-04-01 | E8: N | F8: NO | G8: OBRERO AGRICOLA | H8: NO | I8: ok
A9: 7246973 | B9: Bejarano Moises | C9: OBRERO AGRICOLA | D9: 2016-04-01 | E9: N | F9: NO | G9: OBRERO AGRICOLA | H9: NO | I9: ok
A10: 46646570 | B10: Beltran Castañeda Luz Miryan | C10: OBRERO AGRICOLA | D10: 2016-04-01 | E10: N | F10: SI | G10: OBRERO AGRICOLA | H10: NO | I10: ok
A11: 2991143 | B11: Bernal Ayala Orlando | C11: OBRERO AGRICOLA | D11: 2016-06-11 | E11: N | F11: NO | G11: OBRERO AGRICOLA | H11: NO | I11: ok
A12: 98503801 | B12: Betancourt Torres Hermes Didelio | C12: OBRERO AGRICOLA | D12: 2016-04-01 | E12: N | F12: NO | G12: OBRERO AGRICOLA | H12: NO | I12: ok
A13: 10174746 | B13: Betancur Luis Alfonso | C13: OBRERO AGRICOLA | D13: 2016-04-01 | E13: N | F13: SI | G13: OBRERO AGRICOLA | H13: NO | I13: ok
A14: 1039694172 | B14: Calderon Perez Jeider Orley | C14: OBRERO AGRICOLA | D14: 2016-02-10 | E14: 2016-11-04 | F14: NO | G14: OBRERO AGRICOLA | H14: NO | I14: ok
A15: 1099546606 | B15: Cañas Becerra Patricia | C15: OBRERO AGRICOLA | D15: 2016-02-02 | E15: N | F15: SI | G15: OBRERO AGRICOLA | H15: NO | I15: ok
A16: 10555246 | B16: Cañas Upegui Alfonso De Jesus | C16: OBRERO AGRICOLA | D16: 2016-04-07 | E16: N | F16: NO | G16: OBRERO AGRICOLA | H16: NO | I16: ok
A17: 6635201 | B17: Cardenas Hortua Jose Manuel | C17: OBRERO AGRICOLA | D17: 2016-04-01 | E17: N | F17: NO | G17: OBRERO AGRICOLA | H17: NO | I17: ok
A18: 24716669 | B18: Cardona Arango Mariela | C18: OBRERO AGRICOLA | D18: 2016-04-01 | E18: N | F18: SI | G18: OBRERO AGRICOLA | H18: NO | I18: ok
A19: 1036133595 | B19: Carmona Jerez Jhon Edinson | C19: OBRERO AGRICOLA | D19: 2016-04-21 | E19: N | F19: SI | G19: OBRERO AGRICOLA | H19: NO | I19: ok
A20: 7249393 | B20: Carmona Tamayo Jorge Ivan | C20: ALAMBRADOR | D20: 2016-04-18 | E20: N | F20: SI | G20: ALAMBRADOR | H20: NO | I20: ok
A21: 46647755 | B21: Castrillon Otalvaro Luz Arelis | C21: OBRERO AGRICOLA | D21: 2016-04-01 | E21: N | F21: NO | G21: OBRERO AGRICOLA | H21: NO | I21: ok
A22: 10169936 | B22: Castro Tibaduiza Alonso | C22: AYUDANTE DE MOTOSIERRA | D22: 2016-02-01 | E22: N | F22: SI | G22: AYUDANTE DE MOTOSIERRA | H22: NO | I22: ok
A23: 1039701854 | B23: Chamorro Zambrano Jesus Arley | C23: OBRERO AGRICOLA | D23: 2016-06-16 | E23: N | F23: NO | G23: OBRERO AGRICOLA | H23: NO | I23: ok
A24: 1036134320 | B24: Chamorro Zambrano Jesus Edinson | C24: OBRERO AGRICOLA | D24: 2016-06-16 | E24: N | F24: NO | G24: OBRERO AGRICOLA | H24: NO | I24: ok
A25: 1007202711 | B25: Contreras Giraldo Yessica Andrea | C25: OBRERO AGRICOLA | D25: 2016-04-01 | E25: N | F25: NO | G25: OBRERO AGRICOLA | H25: NO | I25: ok
A26: 82361240 | B26: Copete Mosquera Juan Jose | C26: OBRERO AGRICOLA | D26: 2016-04-25 | E26: N | F26: NO | G26: OBRERO AGRICOLA | H26: NO | I26: ok
A27: 10178963 | B27: Correa Acero Wilfredo | C27: OBRERO AGRICOLA | D27: 2016-04-01 | E27: N | F27: NO | G27: OBRERO AGRICOLA | H27: NO | I27: ok
A28: 1054565903 | B28: Cortinez Sanchez Edwin Andres | C28: AYUDANTE DE OBRA | D28: 2016-04-07 | E28: 2016-11-01 | F28: NO | G28: AYUDANTE DE OBRA | H28: NO | I28: ok
A29: 1056768964 | B29: Diosa Huber De Jesus | C29: OBRERO AGRICOLA | D29: 2016-05-19 | E29: N | F29: NO | G29: OBRERO AGRICOLA | H29: NO | I29: ok
A30: 1099545443 | B30: Duran Contreras Daniel De Jesus | C30: ALAMBRADOR | D30: 2016-04-01 | E30: N | F30: SI | G30: ALAMBRADOR | H30: NO | I30: ok
A31: 70516204 | B31: Echeverri Estrada Luis Fernando | C31: OBRERO AGRICOLA | D31: 2016-06-09 | E31: N | F31: NO | G31: OBRERO AGRICOLA | H31: NO | I31: ok
A32: 1056782651 | B32: Epe Mera Cristian David | C32: OBRERO AGRICOLA | D32: 2016-04-01 | E32: N | F32: SI | G32: OBRERO AGRICOLA | H32: NO | I32: ok
A33: 11805533 | B33: Escobar Cordoba Nelson | C33: AYUDANTE DE MOTOSIERRA | D33: 2016-02-01 | E33: N | F33: NO | G33: AYUDANTE DE MOTOSIERRA | H33: NO | I33: ok
A34: 1039682648 | B34: Fandiño Torres Jhon Jaider | C34: AYUDANTE DE MOTOSIERRA | D34: 2016-04-01 | E34: N | F34: SI | G34: AYUDANTE DE MOTOSIERRA | H34: NO | I34: ok
A35: 1115942125 | B35: Fierro Rubiano Delmo Antonio | C35: SERVICIOS GENERALES | D35: 2016-04-01 | E35: N | F35: SI | G35: SERVICIOS GENERALES | H35: NO | I35: ok
A36: 71763649 | B36: Florez Penagos Jesus Antonio | C36: OBRERO AGRICOLA | D36: 2016-04-01 | E36: N | F36: NO | G36: OBRERO AGRICOLA | H36: NO | I36: ok
A37: 1054543445 | B37: Fonseca Martinez Johanna Andrea | C37: OBRERO AGRICOLA | D37: 2015-10-29 | E37: N | F37: NO | G37: OBRERO AGRICOLA | H37: NO | I37: ok
A38: 77143508 | B38: Fragozo Rico Juan | C38: ALAMBRADOR | D38: 2016-04-01 | E38: N | F38: SI | G38: ALAMBRADOR | H38: NO | I38: ok
A39: 16114081 | B39: Franco Diaz Guillermo Antonio | C39: OBRERO AGRICOLA | D39: 2016-04-01 | E39: N | F39: NO | G39: OBRERO AGRICOLA | H39: NO | I39: ok
A40: 91134637 | B40: Gaitan Vastos Jose Antonio | C40: OBRERO AGRICOLA | D40: 2016-04-01 | E40: N | F40: NO | G40: OBRERO AGRICOLA | H40: NO | I40: ok
A41: 71979914 | B41: Galvis Carmona Gildardo Antonio | C41: MOTOSIERRISTA | D41: 2016-02-01 | E41: N | F41: SI | G41: MOTOSIERRISTA | H41: NO | I41: ok
A42: 1054550362 | B42: Garcia Delgado Angel David | C42: OBRERO AGRICOLA | D42: 2016-04-01 | E42: N | F42: NO | G42: OBRERO AGRICOLA | H42: NO | I42: ok
A43: 1036130302 | B43: Garcia Giraldo David Humberto | C43: OBRERO AGRICOLA | D43: 2016-04-07 | E43: N | F43: NO | G43: OBRERO AGRICOLA | H43: NO | I43: ok
A44: 1056771676 | B44: Garcia Ramirez Luz Omaira | C44: OBRERO AGRICOLA | D44: 2016-06-09 | E44: N | F44: NO | G44: OBRERO AGRICOLA | H44: NO | I44: ok
A45: 71180688 | B45: Garcia Sanchez Luis Anibal | C45: OBRERO AGRICOLA | D45: 2016-04-01 | E45: N | F45: NO | G45: OBRERO AGRICOLA | H45: NO | I45: ok
A46: 1054538339 | B46: Gaviria Maldonado Camilo Andres | C46: OBRERO AGRICOLA | D46: 2016-06-09 | E46: N | F46: SI | G46: OBRERO AGRICOLA | H46: NO | I46: ok
A47: 1001443513 | B47: Gil Quintero Yesica Fernanda | C47: OBRERO AGRICOLA | D47: 2016-05-27 | E47: N | F47: SI | G47: OBRERO AGRICOLA | H47: NO | I47: ok
A48: 1039702579 | B48: Gil Tobon Lili Manuela | C48: OBRERO AGRICOLA | D48: 2016-04-01 | E48: N | F48: NO | G48: OBRERO AGRICOLA | H48: NO | I48: ok
A49: 1036132025 | B49: Giraldo Perez Yohana | C49: OBRERO AGRICOLA | D49: 2016-04-14 | E49: N | F49: NO | G49: OBRERO AGRICOLA | H49: NO | I49: ok
A50: 70754153 | B50: Gomez Manchego Robinson Jose | C50: OBRERO AGRICOLA | D50: 2016-06-09 | E50: N | F50: NO | G50: OBRERO AGRICOLA | H50: NO | I50: ok
A51: 1099547572 | B51: Gomez Medina Robinson | C51: VIGILANTE | D51: 2016-01-15 | E51: N | F51: SI | G51: VIGILANTE | H51: NO | I51: ok
A52: 70194229 | B52: Gonzalez Munera Gabriel Jaime | C52: AYUDANTE DE OBRA | D52: 2016-04-21 | E52: N | F52: SI | G52: AYUDANTE DE OBRA | H52: NO | I52: ok
A53: 1099552914 | B53: Guerrero Quiroga Duvan | C53: OBRERO AGRICOLA | D53: 2016-04-01 | E53: N | F53: NO | G53: OBRERO AGRICOLA | H53: NO | I53: ok
A54: 1001844453 | B54: Gutierrez Jimenez Jose Ferney | C54: OBRERO AGRICOLA | D54: 2016-06-09 | E54: N | F54: SI | G54: OBRERO AGRICOLA | H54: NO | I54: ok
A55: 1005363676 | B55: Gutierrez Quinchia Diego Andres | C55: MOTOSIERRISTA | D55: 2016-04-01 | E55: N | F55: SI | G55: MOTOSIERRISTA | H55: NO | I55: ok
A56: 1001443441 | B56: Henao Castrillón Deicy Milena | C56: OBRERO AGRICOLA | D56: 2016-04-01 | E56: N | F56: MITAD | G56: OBRERO AGRICOLA | H56: NO | I56: ok
A57: 63255134 | B57: Herrera Marin Ilda Fatima | C57: OBRERO AGRICOLA | D57: 2016-02-01 | E57: N | F57: SI | G57: OBRERO AGRICOLA | H57: NO | I57: ok
A58: 11052363 | B58: Herrera Rodriguez Jimy Rafael | C58: OBRERO AGRICOLA | D58: 2016-04-01 | E58: N | F58: SI | G58: OBRERO AGRICOLA | H58: NO | I58: ok
A59: 70413126 | B59: Hurtado Hinestroza Rolando Antonio | C59: OBRERO AGRICOLA | D59: 2016-04-01 | E59: N | F59: NO | G59: OBRERO AGRICOLA | H59: NO | I59: ok
A60: 1056771892 | B60: Lloreda Machado Oscar Alexander | C60: OBRERO AGRICOLA | D60: 2016-04-14 | E60: N | F60: NO | G60: OBRERO AGRICOLA | H60: NO | I60: ok
A61: 1102119182 | B61: Lobo Florez Jose Francisco | C61: OBRERO AGRICOLA | D61: 2016-02-02 | E61: N | F61: SI | G61: OBRERO AGRICOLA | H61: NO | I61: ok
A62: 1099547562 | B62: Lopez Herrera Victor Alfonso | C62: OBRERO AGRICOLA | D62: 2016-04-01 | E62: 2016-11-03 | F62: NO | G62: OBRERO AGRICOLA | H62: NO | I62: ok
A63: 7254310 | B63: Mahecha Bonilla Faver Fabian | C63: OBRERO AGRICOLA | D63: 2016-04-08 | E63: N | F63: NO | G63: OBRERO AGRICOLA | H63: NO | I63: ok
A64: 1056780632 | B64: Manrique Quintero Juan Camilo | C64: OBRERO AGRICOLA | D64: 2016-05-23 | E64: 2016-11-18 | F64: SI | G64: OBRERO AGRICOLA | H64: NO | I64: ok
A65: 7245612 | B65: Mejia Hincapie Jose Farid | C65: OBRERO AGRICOLA | D65: 2016-04-01 | E65: N | F65: NO | G65: OBRERO AGRICOLA | H65: NO | I65: ok
A66: 3133217 | B66: Mejia Juan Sebastian | C66: OBRERO AGRICOLA | D66: 2016-06-16 | E66: N | F66: NO | G66: OBRERO AGRICOLA | H66: NO | I66: ok
A67: 739760 | B67: Mejia Ocampo Jaime De Jesus | C67: ALAMBRADOR | D67: 2016-04-01 | E67: N | F67: SI | G67: ALAMBRADOR | H67: NO | I67: ok
A68: 37555116 | B68: Meza Leon Claudia Patricia | C68: OBRERO AGRICOLA | D68: 2016-02-02 | E68: N | F68: NO | G68: OBRERO AGRICOLA | H68: NO | I68: ok
A69: 7251095 | B69: Monsalve Cardenas Octavio | C69: OBRERO AGRICOLA | D69: 2016-04-07 | E69: N | F69: NO | G69: OBRERO AGRICOLA | H69: NO | I69: ok
A70: 1124990428 | B70: Montoya Ospina Jair Andres | C70: OBRERO AGRICOLA | D70: 2016-04-18 | E70: 2016-11-04 | F70: NO | G70: OBRERO AGRICOLA | H70: NO | I70: ok
A71: 71798908 | B71: Morales Moreno Humberto | C71: OBRERO AGRICOLA | D71: 2016-04-01 | E71: N | F71: SI | G71: OBRERO AGRICOLA | H71: NO | I71: ok
A72: 1056785800 | B72: Mosquera Cardozo Eller Isaac | C72: OBRERO AGRICOLA | D72: 2016-04-20 | E72: N | F72: NO | G72: OBRERO AGRICOLA | H72: NO | I72: ok
A73: 82360309 | B73: Mosquera Copete Jose Octavio | C73: OBRERO AGRICOLA | D73: 2016-04-25 | E73: N | F73: NO | G73: OBRERO AGRICOLA | H73: NO | I73: ok
A74: 7246425 | B74: Mosquera Mosquera Cruz Emiro | C74: OBRERO AGRICOLA | D74: 2016-04-14 | E74: N | F74: NO | G74: OBRERO AGRICOLA | H74: NO | I74: ok
A75: 82362995 | B75: Mosquera Mosquera Ivan | C75: OBRERO AGRICOLA | D75: 2016-05-04 | E75: N | F75: NO | G75: OBRERO AGRICOLA | H75: NO | I75: ok
A76: 82260188 | B76: Mosquera Mosquera Jose Gilberto | C76: OBRERO AGRICOLA | D76: 2016-04-01 | E76: N | F76: NO | G76: OBRERO AGRICOLA | H76: NO | I76: ok
A77: 7248249 | B77: Mosquera Murillo Jorge Eliecer | C77: OBRERO AGRICOLA | D77: 2016-04-14 | E77: N | F77: NO | G77: OBRERO AGRICOLA | H77: NO | I77: ok
A78: 1054547449 | B78: Mosquera Renteria Johan | C78: TRACTORISTA | D78: 2016-01-13 | E78: N | F78: SI | G78: TRACTORISTA | H78: NO | I78: ok
A79: 7247627 | B79: Mosquera Sanchez Jose Moises | C79: OBRERO AGRICOLA | D79: 2016-04-14 | E79: N | F79: NO | G79: OBRERO AGRICOLA | H79: NO | I79: ok
A80: 1099552850 | B80: Muñoz Estrada Diego Javier | C80: OBRERO AGRICOLA | D80: 2016-04-01 | E80: N | F80: NO | G80: OBRERO AGRICOLA | H80: NO | I80: ok
A81: 1056780747 | B81: Muñoz Estrada Wilmer Daniel | C81: OBRERO AGRICOLA | D81: 2016-04-01 | E81: N | F81: NO | G81: OBRERO AGRICOLA | H81: NO | I81: ok
A82: 7132933 | B82: Muñoz Martinez Gonzalo | C82: OBRERO AGRICOLA | D82: 2016-04-01 | E82: N | F82: NO | G82: OBRERO AGRICOLA | H82: NO | I82: ok
A83: 1039694478 | B83: Muñoz Rivera Jhon Harold | C83: VIGILANTE | D83: 2016-04-01 | E83: N | F83: SI | G83: VIGILANTE | H83: NO | I83: ok
A84: 86069670 | B84: Murillo Blandon Jose Gilberto | C84: OBRERO AGRICOLA | D84: 2016-04-14 | E84: N | F84: NO | G84: OBRERO AGRICOLA | H84: NO | I84: ok
A85: 1216718170 | B85: Osorio Fandiño Cristian Alexander | C85: OBRERO AGRICOLA | D85: 2016-04-01 | E85: N | F85: MITAD | G85: OBRERO AGRICOLA | H85: NO | I85: ok
A86: 71452035 | B86: Osorio Garcia Arcenio De Jesus | C86: OBRERO AGRICOLA | D86: 2016-06-16 | E86: N | F86: NO | G86: OBRERO AGRICOLA | H86: NO | I86: ok
A87: 46648776 | B87: Ospitia Bejarano Isaura | C87: OBRERO AGRICOLA | D87: 2016-04-01 | E87: N | F87: MITAD | G87: OBRERO AGRICOLA | H87: NO | I87: ok
A88: 11064666 | B88: Pacheco Zambrano Doday | C88: OBRERO AGRICOLA | D88: 2016-04-14 | E88: N | F88: SI | G88: OBRERO AGRICOLA | H88: NO | I88: ok
A89: 16015366 | B89: Padilla Robayo Oscar Francisco | C89: VIGILANTE | D89: 2016-06-16 | E89: N | F89: SI | G89: VIGILANTE | H89: NO | I89: ok
A90: 1056771104 | B90: Palacios Quintero Esdras | C90: OBRERO AGRICOLA | D90: 2016-04-01 | E90: N | F90: NO | G90: OBRERO AGRICOLA | H90: NO | I90: ok
A91: 1056769541 | B91: Patiño Aguinaga Dairon Nay | C91: OBRERO AGRICOLA | D91: 2016-04-14 | E91: N | F91: NO | G91: OBRERO AGRICOLA | H91: NO | I91: ok
A92: 1054564180 | B92: Pavas Salazar Wilmer Alexander | C92: OBRERO AGRICOLA | D92: 2016-04-01 | E92: N | F92: NO | G92: OBRERO AGRICOLA | H92: NO | I92: ok
A93: 7252364 | B93: Payan Gaviria Laccides | C93: OBRERO AGRICOLA | D93: 2016-05-12 | E93: N | F93: SI | G93: OBRERO AGRICOLA | H93: NO | I93: ok
A94: 1039684467 | B94: Perea Benitez Albin Antonio | C94: OBRERO AGRICOLA | D94: 2016-04-25 | E94: N | F94: NO | G94: OBRERO AGRICOLA | H94: NO | I94: ok
A95: 1007061248 | B95: Perea Mosquera Juan Pastor | C95: OBRERO AGRICOLA | D95: 2016-04-25 | E95: N | F95: NO | G95: OBRERO AGRICOLA | H95: NO | I95: ok
A96: 19690208 | B96: Perez Villa Ariel | C96: OBRERO AGRICOLA | D96: 2016-04-01 | E96: N | F96: SI | G96: OBRERO AGRICOLA | H96: NO | I96: ok
A97: 30390223 | B97: Polanco Garcia Yoly | C97: OBRERO AGRICOLA | D97: 2016-04-01 | E97: N | F97: NO | G97: OBRERO AGRICOLA | H97: NO | I97: ok
A98: 1063363394 | B98: Polo Mendoza Reinaldo Jose | C98: OBRERO AGRICOLA | D98: 2016-04-21 | E98: N | F98: NO | G98: OBRERO AGRICOLA | H98: NO | I98: ok
A99: 10179380 | B99: Pulido Leon Daniel | C99: MAESTRO DE OBRA | D99: 2016-04-01 | E99: N | F99: SI | G99: MAESTRO DE OBRA | H99: NO | I99: ok
A100: 7252221 | B100: Pulido Leon Elias | C100: OBRERO AGRICOLA | D100: 2016-04-01 | E100: N | F100: NO | G100: OBRERO AGRICOLA | H100: NO | I100: ok
A101: 1054568129 | B101: Quevedo Gomez Jonatan Bonifacio | C101: OBRERO AGRICOLA | D101: 2016-06-16 | E101: N | F101: NO | G101: OBRERO AGRICOLA | H101: NO | I101: ok
A102: 46646507 | B102: Quintero Gallego Maria De Jesus | C102: OBRERO AGRICOLA | D102: 2016-04-01 | E102: N | F102: NO | G102: OBRERO AGRICOLA | H102: NO | I102: ok
A103: 1036220365 | B103: Quintero Ocampo Miladis | C103: OBRERO AGRICOLA | D103: 2016-02-02 | E103: N | F103: SI | G103: OBRERO AGRICOLA | H103: NO | I103: ok
A104: 1056784134 | B104: Ramirez Henao Marlon Edilson | C104: OBRERO AGRICOLA | D104: 2016-04-06 | E104: N | F104: SI | G104: OBRERO AGRICOLA | H104: NO | I104: ok
A105: 24652476 | B105: Rangel Mahecha Ana Johana | C105: VIGILANTE | D105: 2016-06-02 | E105: N | F105: SI | G105: VIGILANTE | H105: NO | I105: ok
A106: 1054549800 | B106: Rendon Alarcón Jhon Edinson | C106: OBRERO AGRICOLA | D106: 2016-04-01 | E106: N | F106: MITAD | G106: OBRERO AGRICOLA | H106: NO | I106: ok
A107: 1036131248 | B107: Reyes Caro Javier Humberto | C107: OBRERO AGRICOLA | D107: 2016-06-16 | E107: N | F107: NO | G107: OBRERO AGRICOLA | H107: NO | I107: ok
A108: 1054560495 | B108: Rico Cabezas Elianis Marcela | C108: OBRERO AGRICOLA | D108: 2016-02-02 | E108: N | F108: NO | G108: OBRERO AGRICOLA | H108: NO | I108: ok
A109: 1036132701 | B109: Robles Pareja Edgar Stiven | C109: OBRERO AGRICOLA | D109: 2016-04-25 | E109: N | F109: NO | G109: OBRERO AGRICOLA | H109: NO | I109: ok
A110: 80152878 | B110: Rocha Castro Gener Arturo | C110: OBRERO AGRICOLA | D110: 2016-04-06 | E110: N | F110: SI | G110: OBRERO AGRICOLA | H110: NO | I110: ok
A111: 91218444 | B111: Rodriguez Orozco Jesus | C111: OBRERO AGRICOLA | D111: 2016-04-01 | E111: N | F111: NO | G111: OBRERO AGRICOLA | H111: NO | I111: ok
A112: 1073323990 | B112: Rojas Parra Andres Guillermo | C112: OBRERO AGRICOLA | D112: 2016-06-09 | E112: 2016-11-04 | F112: NO | G112: OBRERO AGRICOLA | H112: NO | I112: ok
A113: 16193033 | B113: Rondon Suarez Rigoberto | C113: OBRERO AGRICOLA | D113: 2016-04-01 | E113: N | F113: SI | G113: OBRERO AGRICOLA | H113: NO | I113: ok
A114: 1038385101 | B114: Saldarriaga Nieto Juan Gabriel | C114: OBRERO AGRICOLA | D114: 2016-04-01 | E114: N | F114: SI | G114: OBRERO AGRICOLA | H114: NO | I114: ok
A115: 7246500 | B115: Sanchez Benitez Gonzalo | C115: OBRERO AGRICOLA | D115: 2016-05-04 | E115: N | F115: NO | G115: OBRERO AGRICOLA | H115: NO | I115: ok
A116: 71185308 | B116: Tamayo Acevedo Luis Algidio | C116: AYUDANTE DE OBRA | D116: 2015-12-01 | E116: N | F116: SI | G116: VIGILANTE | H116: NO | I116: ok
A117: 16161306 | B117: Triana Castaño Jorge Eliecer | C117: OBRERO AGRICOLA | D117: 2016-04-01 | E117: N | F117: NO | G117: OBRERO AGRICOLA | H117: NO | I117: ok
A118: 1073321958 | B118: Uribe Quintero Yonatan | C118: AYUDANTE DE OBRA | D118: 2015-09-04 | E118: N | F118: NO | G118: AYUDANTE DE OBRA | H118: NO | I118: ok
A119: 7251490 | B119: Valbuena Buitrago Luis Eduardo | C119: OBRERO AGRICOLA | D119: 2016-04-01 | E119: N | F119: NO | G119: OBRERO AGRICOLA | H119: NO | I119: ok
A120: 1073324296 | B120: Velasquez Morales Jaider Joanny | C120: OBRERO AGRICOLA | D120: 2016-04-01 | E120: N | F120: NO | G120: OBRERO AGRICOLA | H120: NO | I120: ok
A121: 43701700 | B121: Velasquez Morales Janet | C121: OBRERO AGRICOLA | D121: 2016-02-05 | E121: N | F121: NO | G121: OBRERO AGRICOLA | H121: NO | I121: ok
A122: 39721701 | B122: Virguez Castro Maria Graciela | C122: OBRERO AGRICOLA | D122: 2016-04-01 | E122: N | F122: NO | G122: OBRERO AGRICOLA | H122: NO | I122: ok
A123: 1036130640 | B123: Zapata Luis Alberto | C123: OBRERO AGRICOLA | D123: 2016-05-19 | E123: N | F123: SI | G123: OBRERO AGRICOLA | H123: NO | I123: ok
A124: 1054566235 | B124: Zea Arango Faber Andres | C124: OBRERO AGRICOLA | D124: 2016-04-07 | E124: N | F124: NO | G124: OBRERO AGRICOLA | H124: NO | I124: ok
A125: 98504780 | B125: Zuluaga Rojas Wilquin Dario | C125: OBRERO AGRICOLA | D125: 2016-06-16 | E125: N | F125: NO | G125: OBRERO AGRICOLA | H125: NO | I125: ok
A126: 3392763 | B126: Melo Angarita Heiber Adolfo | C126: OBRERO AGRICOLA | D126: 2016-06-23 | E126: N | F126: SI | G126: OBRERO AGRICOLA | H126: NO | I126: ok
A127: 98484511 | B127: Osorio Garcia Leonardo De Jesus | C127: OBRERO AGRICOLA | D127: 2016-06-23 | E127: N | F127: NO | G127: OBRERO AGRICOLA | H127: NO | I127: ok
A128: 7253695 | B128: Rios Echeverry Jhon Jairo | C128: OBRERO AGRICOLA | D128: 2016-06-23 | E128: N | F128: SI | G128: OBRERO AGRICOLA | H128: NO | I128: ok
A129: 1103672148 | B129: Echavarria Perez Jhonatan Alexander | C129: OBRERO AGRICOLA | D129: 2016-06-23 | E129: N | F129: NO | G129: OBRERO AGRICOLA | H129: NO | I129: ok
A130: 1054539769 | B130: Padilla Robayo Edwin Fernando | C130: OBRERO AGRICOLA | D130: 2016-06-23 | E130: N | F130: NO | G130: OBRERO AGRICOLA | H130: NO | I130: ok
A131: 1002690992 | B131: Vargas Giraldo Jhon Andres | C131: OBRERO AGRICOLA | D131: 2016-06-23 | E131: N | F131: NO | G131: OBRERO AGRICOLA | H131: NO | I131: ok
A132: 73015505 | B132: Castillo Martinez Fraycel | C132: OBRERO AGRICOLA | D132: 2016-06-23 | E132: N | F132: NO | G132: OBRERO AGRICOLA | H132: NO | I132: ok
A133: 79669905 | B133: Linares Triviño Miguel Antonio | C133: OBRERO AGRICOLA | D133: 2016-06-23 | E133: N | F133: SI | G133: OBRERO AGRICOLA | H133: NO | I133: ok
A134: 63254756 | B134: Quevedo Sulviana Fabiola | C134: OBRERO AGRICOLA | D134: 2016-06-24 | E134: N | F134: NO | G134: OBRERO AGRICOLA | H134: NO | I134: ok
A135: 59682204 | B135: Beltran Castañeda Mercedes | C135: OBRERO AGRICOLA | D135: 2016-06-27 | E135: N | F135: MITAD | G135: OBRERO AGRICOLA | H135: NO | I135: ok
A136: 1056776423 | B136: Garcia Agudelo Jessica Yinela | C136: OBRERO AGRICOLA | D136: 2016-06-27 | E136: N | F136: NO | G136: OBRERO AGRICOLA | H136: NO | I136: ok
A137: 46645694 | B137: Giraldo Jimenez Liceth | C137: OBRERO AGRICOLA | D137: 2016-06-27 | E137: N | F137: NO | G137: OBRERO AGRICOLA | H137: NO | I137: ok
A138: 1036838011 | B138: Quintero Arango Norberto De Jesus | C138: OBRERO AGRICOLA | D138: 2016-07-01 | E138: N | F138: NO | G138: OBRERO AGRICOLA | H138: NO | I138: ok
A139: 10168016 | B139: Valencia Rios Teodulo | C139: OBRERO AGRICOLA | D139: 2016-07-01 | E139: N | F139: NO | G139: OBRERO AGRICOLA | H139: NO | I139: ok
A140: 1099544281 | B140: Vargas Correa Victor Alfonso | C140: AYUDANTE DE OBRA | D140: 2016-07-01 | E140: 2016-11-15 | F140: SI | G140: AYUDANTE DE OBRA | H140: NO | I140: ok
A141: 1007723293 | B141: Mejia Martinez Daniel Fernando | C141: OBRERO AGRICOLA | D141: 2016-07-07 | E141: N | F141: NO | G141: OBRERO AGRICOLA | H141: NO | I141: ok
A142: 79762211 | B142: Martinez Jaramillo Jose Silverio | C142: OBRERO AGRICOLA | D142: 2016-07-07 | E142: N | F142: MITAD | G142: OBRERO AGRICOLA | H142: NO | I142: ok
A143: 7246941 | B143: Valencia Jose Hermel | C143: OBRERO AGRICOLA | D143: 2016-07-07 | E143: N | F143: NO | G143: OBRERO AGRICOLA | H143: NO | I143: ok
A144: 98504497 | B144: Ballesteros Joya Leonardo | C144: OBRERO AGRICOLA | D144: 2016-07-07 | E144: N | F144: SI | G144: OBRERO AGRICOLA | H144: NO | I144: ok
A145: 91134881 | B145: Simanca Gonzalez John Jairo | C145: OBRERO AGRICOLA | D145: 2016-07-07 | E145: N | F145: SI | G145: OBRERO AGRICOLA | H145: NO | I145: ok
A146: 91136357 | B146: Guerrero Patiño Joaquin Emilio | C146: OBRERO AGRICOLA | D146: 2016-07-07 | E146: N | F146: NO | G146: OBRERO AGRICOLA | H146: NO | I146: ok
A147: 1036133418 | B147: Soto Guerra Cristhian Alexis | C147: OBRERO AGRICOLA | D147: 2016-07-07 | E147: N | F147: NO | G147: OBRERO AGRICOLA | H147: NO | I147: ok
A148: 7251502 | B148: Gil Guerra Juan Crisostomo | C148: ALAMBRADOR | D148: 2016-07-07 | E148: N | F148: SI | G148: ALAMBRADOR | H148: NO | I148: ok
A149: 1054562580 | B149: Londoño Rabe Juan David | C149: OBRERO AGRICOLA | D149: 2016-07-07 | E149: N | F149: SI | G149: OBRERO AGRICOLA | H149: NO | I149: ok
A150: 1056773332 | B150: Murillo Arango Jose Joani | C150: OBRERO AGRICOLA | D150: 2016-07-07 | E150: N | F150: NO | G150: OBRERO AGRICOLA | H150: NO | I150: ok
A151: 14326939 | B151: Gamboa Cardenas Omar Luvin | C151: OBRERO AGRICOLA | D151: 2016-07-07 | E151: N | F151: NO | G151: OBRERO AGRICOLA | H151: NO | I151: ok
A152: 10201472 | B152: Hernandez Ramon Antonio | C152: ALAMBRADOR | D152: 2016-07-07 | E152: N | F152: SI | G152: ALAMBRADOR | H152: NO | I152: ok
A153: 1099550513 | B153: Franco Diaz Jhon fredy | C153: OBRERO AGRICOLA | D153: 2016-07-15 | E153: N | F153: NO | G153: OBRERO AGRICOLA | H153: NO | I153: ok
A154: 79829910 | B154: Murcia Velasquez Luis Hedinson | C154: OBRERO AGRICOLA | D154: 2016-08-01 | E154: N | F154: NO | G154: OBRERO AGRICOLA | H154: NO | I154: ok
A155: 1036663963 | B155: Galvis Betancur Herlenson Antonio | C155: VIGILANTE | D155: 2016-08-01 | E155: N | F155: SI | G155: VIGILANTE | H155: NO | I155: ok
A156: 1110494501 | B156: Castro Mendieta Jeisson Fabian | C156: OBRERO AGRICOLA | D156: 2016-08-19 | E156: N | F156: NO | G156: OBRERO AGRICOLA | H156: NO | I156: ok
A157: 1056772819 | B157: Montoya Velez Cristian Camilo | C157: OBRERO AGRICOLA | D157: 2016-08-22 | E157: N | F157: MITAD | G157: OBRERO AGRICOLA | H157: NO | I157: ok
A158: 1079233161 | B158: Ospina Giraldo Angie Liceth | C158: OBRERO AGRICOLA | D158: 2016-08-22 | E158: N | F158: NO | G158: OBRERO AGRICOLA | H158: NO | I158: ok
A159: 1056781886 | B159: Calderon Gallego James Yail | C159: OBRERO AGRICOLA | D159: 2016-08-22 | E159: N | F159: NO | G159: OBRERO AGRICOLA | H159: NO | I159: ok
A160: 20830891 | B160: Cardona Franco Maria Carlina | C160: OBRERO AGRICOLA | D160: 2016-08-22 | E160: N | F160: SI | G160: OBRERO AGRICOLA | H160: NO | I160: ok
A161: 1056776173 | B161: Calderon Gallego Mauricio | C161: OBRERO AGRICOLA | D161: 2016-08-22 | E161: N | F161: NO | G161: OBRERO AGRICOLA | H161: NO | I161: ok
A162: 25112772 | B162: Quintero Muñoz Yamile | C162: SERVICIOS GENERALES | D162: 2016-04-06 | E162: N | F162: SI | G162: SERVICIOS GENERALES | H162: NO | I162: ok
A163: 1102839634 | B163: Hurtado Barrera Kevin Andres | C163: INGENIERO AGRICOLA | D163: 2016-06-08 | E163: N | F163: NO | G163: INGENIERO AGRICOLA | H163: NO | I163: ok
A164: 1051357673 | B164: Valencia Ortega Jhon Albert | C164: OPERADOR DE EXCAVADORA | D164: 2016-08-12 | E164: N | F164: SI | G164: OPERADOR DE EXCAVADORA | H164: NO | I164: ok
A165: 71937267 | B165: Velasquez Olaya Carlos Mario | C165: AYUDANTE DE EXCAVADORA | D165: 2016-08-12 | E165: N | F165: NO | G165: AYUDANTE DE EXCAVADORA | H165: NO | I165: ok
A166: 10163620 | B166: Garcia Fabio | C166: TRACTORISTA | D166: 2016-09-01 | E166: N | F166: SI | G166: TRACTORISTA | H166: NO | I166: ok
A167: 7250427 | B167: Culman Bonilla Hugo | C167: TRACTORISTA | D167: 2016-09-01 | E167: N | F167: SI | G167: TRACTORISTA | H167: NO | I167: ok
A168: 3524636 | B168: Torres Arismendi Orlando de Jesús | C168: OBRERO AGRICOLA | D168: 2016-09-05 | E168: N | F168: NO | G168: OBRERO AGRICOLA | H168: NO | I168: ok
A169: 16015713 | B169: Garcia Lozano Edinson | C169: OBRERO AGRICOLA | D169: 2016-09-05 | E169: N | F169: SI | G169: OBRERO AGRICOLA | H169: NO | I169: ok
A170: 1001444964 | B170: Muriel Palacio Andres Yamid | C170: OBRERO AGRICOLA | D170: 2016-09-05 | E170: N | F170: NO | G170: OBRERO AGRICOLA | H170: NO | I170: ok
A171: 42152982 | B171: Sanchez Castrillon Beyanit | C171: OBRERO AGRICOLA | D171: 2016-09-05 | E171: N | F171: SI | G171: OBRERO AGRICOLA | H171: NO | I171: ok
A172: 46645547 | B172: Suarez Quinchia Marta Cecilia | C172: OBRERO AGRICOLA | D172: 2016-09-05 | E172: N | F172: NO | G172: OBRERO AGRICOLA | H172: NO | I172: ok
A173: 63255135 | B173: Jaramillo Vargas Ana Isabel | C173: OBRERO AGRICOLA | D173: 2016-09-05 | E173: N | F173: SI | G173: OBRERO AGRICOLA | H173: NO | I173: ok
A174: 30342194 | B174: Garcia Berenice | C174: OBRERO AGRICOLA | D174: 2016-09-05 | E174: N | F174: SI | G174: OBRERO AGRICOLA | H174: NO | I174: ok
A175: 22009473 | B175: Quintero Ocampo Faysuri | C175: OBRERO AGRICOLA | D175: 2016-09-05 | E175: N | F175: SI | G175: OBRERO AGRICOLA | H175: NO | I175: ok
A176: 7245006 | B176: Rayo Palma Jose Elkin | C176: TRACTORISTA | D176: 2016-09-19 | E176: N | F176: SI | G176: TRACTORISTA | H176: NO | I176: ok
A177: 10177962 | B177: Arredondo Acosta Javier Alonso | C177: TRACTORISTA | D177: 2016-09-19 | E177: N | F177: SI | G177: TRACTORISTA | H177: NO | I177: ok
A178: 98466954 | B178: Alvarez Maldonado Jorge Eliecer | C178: MAESTRO DE OBRA | D178: 2016-09-19 | E178: N | F178: SI | G178: MAESTRO DE OBRA | H178: NO | I178: ok
A179: 11770172 | B179: Huragama Ochoa Luis Francisco | C179: OBRERO AGRICOLA | D179: 2016-09-21 | E179: N | F179: NO | G179: OBRERO AGRICOLA | H179: NO | I179: ok
A180: 1007570804 | B180: Guzman Penagos Marlon De Jesus | C180: OBRERO AGRICOLA | D180: 2016-09-23 | E180: N | F180: NO | G180: OBRERO AGRICOLA | H180: NO | I180: ok
A181: 98470530 | B181: Gutierrez Zea Jaime Alonso | C181: OBRERO AGRICOLA | D181: 2016-09-23 | E181: N | F181: NO | G181: OBRERO AGRICOLA | H181: NO | I181: ok
A182: 1039682059 | B182: Lujan Moreles William | C182: OBRERO AGRICOLA | D182: 2016-09-23 | E182: N | F182: NO | G182: OBRERO AGRICOLA | H182: NO | I182: ok
A183: 10182443 | B183: Charres Herrera Luis Enrique | C183: OBRERO AGRICOLA | D183: 2016-09-23 | E183: 2016-11-11 | F183: NO | G183: OBRERO AGRICOLA | H183: NO | I183: ok
A184: 7254896 | B184: Giraldo Agudelo Esteban | C184: OBRERO AGRICOLA | D184: 2016-09-23 | E184: N | F184: NO | G184: OBRERO AGRICOLA | H184: NO | I184: ok
A185: 15364953 | B185: Serna Parra Manuel Tiberio | C185: OBRERO AGRICOLA | D185: 2016-09-23 | E185: N | F185: NO | G185: OBRERO AGRICOLA | H185: NO | I185: ok
A186: 1056785098 | B186: Calderon Gallego Adolfo | C186: OBRERO AGRICOLA | D186: 2016-09-23 | E186: 2016-11-16 | F186: NO | G186: OBRERO AGRICOLA | H186: NO | I186: ok
A187: 10178904 | B187: Serna German De Jesus | C187: OBRERO AGRICOLA | D187: 2016-09-24 | E187: N | F187: NO | G187: OBRERO AGRICOLA | H187: NO | I187: ok
A188: 1002319285 | B188: Mendez Castillo Yeison Javier | C188: OBRERO AGRICOLA | D188: 2016-09-24 | E188: N | F188: NO | G188: OBRERO AGRICOLA | H188: NO | I188: ok
A189: 1007492731 | B189: Perez Gallego Luis Fernando | C189: TRACTORISTA | D189: 2016-10-01 | E189: N | F189: SI | G189: TRACTORISTA | H189: NO | I189: ok
A190: 1073326473 | B190: Tapias Tangarife Jaime Andres | C190: TRACTORISTA | D190: 2016-10-01 | E190: N | F190: SI | G190: TRACTORISTA | H190: NO | I190: ok
A191: 91134633 | B191: Giraldo Quintero Luis Eduardo | C191: MOTOSIERRISTA | D191: 2016-10-01 | E191: N | F191: SI | G191: MOTOSIERRISTA | H191: NO | I191: ok
A192: 78726613 | B192: Conde Paternina Osvaldo Jose | C192: OBRERO AGRICOLA | D192: 2016-10-01 | E192: N | F192: NO | G192: OBRERO AGRICOLA | H192: NO | I192: ok
A193: 1054559142 | B193: Molina Lopez Fabian Stiven | C193: OBRERO AGRICOLA | D193: 2016-10-01 | E193: N | F193: NO | G193: OBRERO AGRICOLA | H193: NO | I193: ok
A194: 4380941 | B194: Martinez Oquendo Hector Jaime | C194: OBRERO AGRICOLA | D194: 2016-10-06 | E194: N | F194: NO | G194: OBRERO AGRICOLA | H194: NO | I194: ok
A195: 1099550748 | B195: Roriguez Romero Luis Carlos | C195: TRACTORISTA | D195: 2016-10-11 | E195: N | F195: SI | G195: TRACTORISTA | H195: NO | I195: ok
A196: 1073326319 | B196: Rodriguez Romero wilson | C196: TRACTORISTA | D196: 2016-10-11 | E196: N | F196: SI | G196: TRACTORISTA | H196: NO | I196: ok
A197: 1017218659 | B197: Henao Tamayo Javier Andres | C197: CONDUCTOR | D197: 2016-10-12 | E197: N | F197: SI | G197: CONDUCTOR | H197: NO | I197: ok
A198: 1099554288 | B198: Vargas Correa Andres Felipe | C198: OBRERO AGRICOLA | D198: 2016-10-24 | E198: N | F198: NO | G198: OBRERO AGRICOLA | H198: NO | I198: ok
A199: 4572255 | B199: Perez Cifuentes Jaime Antonio | C199: OBRERO AGRICOLA | D199: 2016-10-24 | E199: 2016-11-03 | F199: NO | G199: OBRERO AGRICOLA | H199: NO | I199: ok
A200: 1054564411 | B200: Pavas Salazar Angel Norbey | C200: OBRERO AGRICOLA | D200: 2016-11-08 | E200: 2016-11-09 | F200: NO | G200: OBRERO AGRICOLA | H200: NO | I200: ok
... 54 more rows

Sheet Nomina ObreroAgricola
A1: Supervisor | B1: Dia Nombre | C1: Fecha | D1: Día | E1: Mes | F1: Año | G1: Cédula | H1: Nombre | I1: Cargo | J1: Lote -CC | K1: Sub - lote | L1: Labor Cod | M1: Labor Nomb | N1: Unidad de pago | O1: Tarifa | P1: Cantidad Labor | Q1: Cantidad Jornal | R1: Asistencia | S1: Subtotal | T1: Verificación | V1: Diligenciar la fecha a digitar:
A2: Murillo John Ferney | B2: 2016-11-01 | C2: 2016-11-01 | D2: =IF(ISBLANK(C2),"",DAY(C2)) -> 1 | E2: =IF(ISBLANK(C2),"",MONTH(C2)) -> 11 | F2: =IF(ISBLANK(C2),"",YEAR(C2)) -> 2016 | G2: 70413126 | H2: =IFERROR(VLOOKUP('Nomina ObreroAgricola'!G2,'BD operarios '!$A$2:$C$18018,2,FALSE), "") -> Hurtado Hinestroza Rolando Antonio | I2: =IFERROR(VLOOKUP('Nomina ObreroAgricola'!G2,'BD operarios '!$A$2:$C$18018,3,FALSE),"") -> OBRERO AGRICOLA | J2: M11 | L2: 317 | M2: =IFERROR(VLOOKUP('Nomina ObreroAgricola'!L2,AdministracionListas!$D$1:$E$148,2,FALSE), "") -> Siembra cacao vega con ahoyadora 15 cm X 40 cm | N2: =IFERROR(VLOOKUP('Nomina ObreroAgricola'!L2,AdministracionListas!$D$1:$F$148,3,FALSE), "") -> Pla | O2: =IFERROR(VLOOKUP('Nomina ObreroAgricola'!L2,AdministracionListas!$D$1:$G$148,4,FALSE), "") -> 300 | P2: 147 | Q2: 0.74 | R2: 1 | S2: =IFERROR(IF(N2="jor",O2*Q2,O2*P2),"") -> 44100 | T2: =IFERROR(IF(VLOOKUP(J2&L2&I2,'Catalogo de Labores '!L:L,1,FALSE) = "",FALSE,"PERSONA CON LABOR PERMITIDA"), "PERSONA CON LABOR NO PERMITIDA") -> PERSONA CON LABOR PERMITIDA | U2: =IF(AND(OR(N2<>"Jor",N2<>"jor"),Q2="",ISNUMBER(L2)),"Falta jornal",IF(AND(OR(N2="Jor",N2="jor"),P2="",L2<>906,L2<>401,L2<>960,L2<>990,L2<>980,L2<>970,L2<>950,L2<>118,L2<>119),"Falta labor"," ")) ->  | V2: Fecha a digitar | W2: 2016-11-30
A3: Murillo John Ferney | B3: 2016-11-01 | C3: 2016-11-01 | D3: 1 | E3: 11 | F3: 2016 | G3: 16114081 | H3: =IFERROR(VLOOKUP('Nomina ObreroAgricola'!G3,'BD operarios '!$A$2:$C$18018,2,FALSE), "") -> Franco Diaz Guillermo Antonio | I3: =IFERROR(VLOOKUP('Nomina ObreroAgricola'!G3,'BD operarios '!$A$2:$C$18018,3,FALSE),"") -> OBRERO AGRICOLA | J3: M11 | L3: 317 | M3: =IFERROR(VLOOKUP('Nomina ObreroAgricola'!L3,AdministracionListas!$D$1:$E$148,2,FALSE), "") -> Siembra cacao vega con ahoyadora 15 cm X 40 cm | N3: =IFERROR(VLOOKUP('Nomina ObreroAgricola'!L3,AdministracionListas!$D$1:$F$148,3,FALSE), "") -> Pla | O3: =IFERROR(VLOOKUP('Nomina ObreroAgricola'!L3,AdministracionListas!$D$1:$G$148,4,FALSE), "") -> 300 | P3: 147 | Q3: 0.74 | R3: 1 | S3: 44100 | T3: =IFERROR(IF(VLOOKUP(J3&L3&I3,'Catalogo de Labores '!L:L,1,FALSE) = "",FALSE,"PERSONA CON LABOR PERMITIDA"), "PERSONA CON LABOR NO PERMITIDA") -> PERSONA CON LABOR PERMITIDA | V3: Dia a digitar | W3: =+W2 -> 2016-11-30
A4: Murillo John Ferney | B4: 2016-11-01 | C4: 2016-11-01 | D4: 1 | E4: 11 | F4: 2016 | G4: 7245612 | H4: =IFERROR(VLOOKUP('Nomina ObreroAgricola'!G4,'BD operarios '!$A$2:$C$18018,2,FALSE), "") -> Mejia Hincapie Jose Farid | I4: =IFERROR(VLOOKUP('Nomina ObreroAgricola'!G4,'BD operarios '!$A$2:$C$18018,3,FALSE),"") -> OBRERO AGRICOLA | J4: M11 | L4: 317 | M4: =IFERROR(VLOOKUP('Nomina ObreroAgricola'!L4,AdministracionListas!$D$1:$E$148,2,FALSE), "") -> Siembra cacao vega con ahoyadora 15 cm X 40 cm | N4: =IFERROR(VLOOKUP('Nomina ObreroAgricola'!L4,AdministracionListas!$D$1:$F$148,3,FALSE), "") -> Pla | O4: =IFERROR(VLOOKUP('Nomina ObreroAgricola'!L4,AdministracionListas!$D$1:$G$148,4,FALSE), "") -> 300 | P4: 147 | Q4: 0.74 | R4: 1 | S4: 44100 | T4: =IFERROR(IF(VLOOKUP(J4&L4&I4,'Catalogo de Labores '!L:L,1,FALSE) = "",FALSE,"PERSONA CON LABOR PERMITIDA"), "PERSONA CON LABOR NO PERMITIDA") -> PERSONA CON LABOR PERMITIDA
A5: Murillo John Ferney | B5: 2016-11-01 | C5: 2016-11-01 | D5: 1 | E5: 11 | F5: 2016 | G5: 11064666 | H5: =IFERROR(VLOOKUP('Nomina ObreroAgricola'!G5,'BD operarios '!$A$2:$C$18018,2,FALSE), "") -> Pacheco Zambrano Doday | I5: =IFERROR(VLOOKUP('Nomina ObreroAgricola'!G5,'BD operarios '!$A$2:$C$18018,3,FALSE),"") -> OBRERO AGRICOLA | J5: M11 | L5: 317 | M5: =IFERROR(VLOOKUP('Nomina ObreroAgricola'!L5,AdministracionListas!$D$1:$E$148,2,FALSE), "") -> Siembra cacao vega con ahoyadora 15 cm X 40 cm | N5: =IFERROR(VLOOKUP('Nomina ObreroAgricola'!L5,AdministracionListas!$D$1:$F$148,3,FALSE), "") -> Pla | O5: =IFERROR(VLOOKUP('Nomina ObreroAgricola'!L5,AdministracionListas!$D$1:$G$148,4,FALSE), "") -> 300 | P5: 147 | Q5: 0.74 | R5: 1 | S5: 44100 | T5: =IFERROR(IF(VLOOKUP(J5&L5&I5,'Catalogo de Labores '!L:L,1,FALSE) = "",FALSE,"PERSONA CON LABOR PERMITIDA"), "PERSONA CON LABOR NO PERMITIDA") -> PERSONA CON LABOR PERMITIDA
A6: Murillo John Ferney | B6: 2016-11-01 | C6: 2016-11-01 | D6: 1 | E6: 11 | F6: 2016 | G6: 7252364 | H6: =IFERROR(VLOOKUP('Nomina ObreroAgricola'!G6,'BD operarios '!$A$2:$C$18018,2,FALSE), "") -> Payan Gaviria Laccides | I6: =IFERROR(VLOOKUP('Nomina ObreroAgricola'!G6,'BD operarios '!$A$2:$C$18018,3,FALSE),"") -> OBRERO AGRICOLA | J6: M11 | L6: 317 | M6: =IFERROR(VLOOKUP('Nomina ObreroAgricola'!L6,AdministracionListas!$D$1:$E$148,2,FALSE), "") -> Siembra cacao vega con ahoyadora 15 cm X 40 cm | N6: =IFERROR(VLOOKUP('Nomina ObreroAgricola'!L6,AdministracionListas!$D$1:$F$148,3,FALSE), "") -> Pla | O6: =IFERROR(VLOOKUP('Nomina ObreroAgricola'!L6,AdministracionListas!$D$1:$G$148,4,FALSE), "") -> 300 | P6: 147 | Q6: 0.74 | R6: 1 | S6: 44100 | T6: =IFERROR(IF(VLOOKUP(J6&L6&I6,'Catalogo de Labores '!L:L,1,FALSE) = "",FALSE,"PERSONA CON LABOR PERMITIDA"), "PERSONA CON LABOR NO PERMITIDA") -> PERSONA CON LABOR PERMITIDA
A7: Murillo John Ferney | B7: 2016-11-01 | C7: 2016-11-01 | D7: 1 | E7: 11 | F7: 2016 | G7: 98504497 | H7: =IFERROR(VLOOKUP('Nomina ObreroAgricola'!G7,'BD operarios '!$A$2:$C$18018,2,FALSE), "") -> Ballesteros Joya Leonardo | I7: =IFERROR(VLOOKUP('Nomina ObreroAgricola'!G7,'BD operarios '!$A$2:$C$18018,3,FALSE),"") -> OBRERO AGRICOLA | J7: M11 | L7: 317 | M7: =IFERROR(VLOOKUP('Nomina ObreroAgricola'!L7,AdministracionListas!$D$1:$E$148,2,FALSE), "") -> Siembra cacao vega con ahoyadora 15 cm X 40 cm | N7: =IFERROR(VLOOKUP('Nomina ObreroAgricola'!L7,AdministracionListas!$D$1:$F$148,3,FALSE), "") -> Pla | O7: =IFERROR(VLOOKUP('Nomina ObreroAgricola'!L7,AdministracionListas!$D$1:$G$148,4,FALSE), "") -> 300 | P7: 147 | Q7: 0.74 | R7: 1 | S7: 44100 | T7: =IFERROR(IF(VLOOKUP(J7&L7&I7,'Catalogo de Labores '!L:L,1,FALSE) = "",FALSE,"PERSONA CON LABOR PERMITIDA"), "PERSONA CON LABOR NO PERMITIDA") -> PERSONA CON LABOR PERMITIDA
A8: Murillo John Ferney | B8: 2016-11-01 | C8: 2016-11-01 | D8: 1 | E8: 11 | F8: 2016 | G8: 1056771104 | H8: =IFERROR(VLOOKUP('Nomina ObreroAgricola'!G8,'BD operarios '!$A$2:$C$18018,2,FALSE), "") -> Palacios Quintero Esdras | I8: =IFERROR(VLOOKUP('Nomina ObreroAgricola'!G8,'BD operarios '!$A$2:$C$18018,3,FALSE),"") -> OBRERO AGRICOLA | J8: M11 | L8: 317 | M8: =IFERROR(VLOOKUP('Nomina ObreroAgricola'!L8,AdministracionListas!$D$1:$E$148,2,FALSE), "") -> Siembra cacao vega con ahoyadora 15 cm X 40 cm | N8: =IFERROR(VLOOKUP('Nomina ObreroAgricola'!L8,AdministracionListas!$D$1:$F$148,3,FALSE), "") -> Pla | O8: =IFERROR(VLOOKUP('Nomina ObreroAgricola'!L8,AdministracionListas!$D$1:$G$148,4,FALSE), "") -> 300 | P8: 147 | Q8: 0.74 | R8: 1 | S8: 44100 | T8: =IFERROR(IF(VLOOKUP(J8&L8&I8,'Catalogo de Labores '!L:L,1,FALSE) = "",FALSE,"PERSONA CON LABOR PERMITIDA"), "PERSONA CON LABOR NO PERMITIDA") -> PERSONA CON LABOR PERMITIDA
A9: Murillo John Ferney | B9: 2016-11-01 | C9: 2016-11-01 | D9: 1 | E9: 11 | F9: 2016 | G9: 98503801 | H9: =IFERROR(VLOOKUP('Nomina ObreroAgricola'!G9,'BD operarios '!$A$2:$C$18018,2,FALSE), "") -> Betancourt Torres Hermes Didelio | I9: =IFERROR(VLOOKUP('Nomina ObreroAgricola'!G9,'BD operarios '!$A$2:$C$18018,3,FALSE),"") -> OBRERO AGRICOLA | J9: M11 | L9: 317 | M9: =IFERROR(VLOOKUP('Nomina ObreroAgricola'!L9,AdministracionListas!$D$1:$E$148,2,FALSE), "") -> Siembra cacao vega con ahoyadora 15 cm X 40 cm | N9: =IFERROR(VLOOKUP('Nomina ObreroAgricola'!L9,AdministracionListas!$D$1:$F$148,3,FALSE), "") -> Pla | O9: =IFERROR(VLOOKUP('Nomina ObreroAgricola'!L9,AdministracionListas!$D$1:$G$148,4,FALSE), "") -> 300 | P9: 147 | Q9: 0.74 | R9: 1 | S9: 44100 | T9: =IFERROR(IF(VLOOKUP(J9&L9&I9,'Catalogo de Labores '!L:L,1,FALSE) = "",FALSE,"PERSONA CON LABOR PERMITIDA"), "PERSONA CON LABOR NO PERMITIDA") -> PERSONA CON LABOR PERMITIDA
A10: Murillo John Ferney | B10: 2016-11-01 | C10: 2016-11-01 | D10: 1 | E10: 11 | F10: 2016 | G10: 1056771444 | H10: =IFERROR(VLOOKUP('Nomina ObreroAgricola'!G10,'BD operarios '!$A$2:$C$18018,2,FALSE), "") -> Amaya Oscar Felipe | I10: =IFERROR(VLOOKUP('Nomina ObreroAgricola'!G10,'BD operarios '!$A$2:$C$18018,3,FALSE),"") -> OBRERO AGRICOLA | J10: M11 | L10: 317 | M10: =IFERROR(VLOOKUP('Nomina ObreroAgricola'!L10,AdministracionListas!$D$1:$E$148,2,FALSE), "") -> Siembra cacao vega con ahoyadora 15 cm X 40 cm | N10: =IFERROR(VLOOKUP('Nomina ObreroAgricola'!L10,AdministracionListas!$D$1:$F$148,3,FALSE), "") -> Pla | O10: =IFERROR(VLOOKUP('Nomina ObreroAgricola'!L10,AdministracionListas!$D$1:$G$148,4,FALSE), "") -> 300 | P10: 147 | Q10: 0.74 | R10: 1 | S10: 44100 | T10: =IFERROR(IF(VLOOKUP(J10&L10&I10,'Catalogo de Labores '!L:L,1,FALSE) = "",FALSE,"PERSONA CON LABOR PERMITIDA"), "PERSONA CON LABOR NO PERMITIDA") -> PERSONA CON LABOR PERMITIDA
A11: Murillo John Ferney | B11: 2016-11-01 | C11: 2016-11-01 | D11: 1 | E11: 11 | F11: 2016 | G11: 14326939 | H11: =IFERROR(VLOOKUP('Nomina ObreroAgricola'!G11,'BD operarios '!$A$2:$C$18018,2,FALSE), "") -> Gamboa Cardenas Omar Luvin | I11: =IFERROR(VLOOKUP('Nomina ObreroAgricola'!G11,'BD operarios '!$A$2:$C$18018,3,FALSE),"") -> OBRERO AGRICOLA | J11: M11 | L11: 950 | M11: =IFERROR(VLOOKUP('Nomina ObreroAgricola'!L11,AdministracionListas!$D$1:$E$148,2,FALSE), "") -> Licencia Remunerada | N11: =IFERROR(VLOOKUP('Nomina ObreroAgricola'!L11,AdministracionListas!$D$1:$F$148,3,FALSE), "") -> jor | O11: =IFERROR(VLOOKUP('Nomina ObreroAgricola'!L11,AdministracionListas!$D$1:$G$148,4,FALSE), "") -> 29439 | P11: 1 | Q11: 0 | R11: 0 | S11: 0 | T11: =IFERROR(IF(VLOOKUP(J11&L11&I11,'Catalogo de Labores '!L:L,1,FALSE) = "",FALSE,"PERSONA CON LABOR PERMITIDA"), "PERSONA CON LABOR NO PERMITIDA") -> PERSONA CON LABOR PERMITIDA
A12: Murillo John Ferney | B12: 2016-11-01 | C12: 2016-11-01 | D12: 1 | E12: 11 | F12: 2016 | G12: 1103672148 | H12: =IFERROR(VLOOKUP('Nomina ObreroAgricola'!G12,'BD operarios '!$A$2:$C$18018,2,FALSE), "") -> Echavarria Perez Jhonatan Alexander | I12: =IFERROR(VLOOKUP('Nomina ObreroAgricola'!G12,'BD operarios '!$A$2:$C$18018,3,FALSE),"") -> OBRERO AGRICOLA | J12: M11 | L12: 317 | M12: =IFERROR(VLOOKUP('Nomina ObreroAgricola'!L12,AdministracionListas!$D$1:$E$148,2,FALSE), "") -> Siembra cacao vega con ahoyadora 15 cm X 40 cm | N12: =IFERROR(VLOOKUP('Nomina ObreroAgricola'!L12,AdministracionListas!$D$1:$F$148,3,FALSE), "") -> Pla | O12: =IFERROR(VLOOKUP('Nomina ObreroAgricola'!L12,AdministracionListas!$D$1:$G$148,4,FALSE), "") -> 300 | P12: 147 | Q12: 0.74 | R12: 1 | S12: 44100 | T12: =IFERROR(IF(VLOOKUP(J12&L12&I12,'Catalogo de Labores '!L:L,1,FALSE) = "",FALSE,"PERSONA CON LABOR PERMITIDA"), "PERSONA CON LABOR NO PERMITIDA") -> PERSONA CON LABOR PERMITIDA
A13: Murillo John Ferney | B13: 2016-11-01 | C13: 2016-11-01 | D13: 1 | E13: 11 | F13: 2016 | G13: 11770172 | H13: =IFERROR(VLOOKUP('Nomina ObreroAgricola'!G13,'BD operarios '!$A$2:$C$18018,2,FALSE), "") -> Huragama Ochoa Luis Francisco | I13: =IFERROR(VLOOKUP('Nomina ObreroAgricola'!G13,'BD operarios '!$A$2:$C$18018,3,FALSE),"") -> OBRERO AGRICOLA | J13: M11 | L13: 317 | M13: =IFERROR(VLOOKUP('Nomina ObreroAgricola'!L13,AdministracionListas!$D$1:$E$148,2,FALSE), "") -> Siembra cacao vega con ahoyadora 15 cm X 40 cm | N13: =IFERROR(VLOOKUP('Nomina ObreroAgricola'!L13,AdministracionListas!$D$1:$F$148,3,FALSE), "") -> Pla | O13: =IFERROR(VLOOKUP('Nomina ObreroAgricola'!L13,AdministracionListas!$D$1:$G$148,4,FALSE), "") -> 300 | P13: 147 | Q13: 0.74 | R13: 1 | S13: 44100 | T13: =IFERROR(IF(VLOOKUP(J13&L13&I13,'Catalogo de Labores '!L:L,1,FALSE) = "",FALSE,"PERSONA CON LABOR PERMITIDA"), "PERSONA CON LABOR NO PERMITIDA") -> PERSONA CON LABOR PERMITIDA
A14: Murillo John Ferney | B14: 2016-11-01 | C14: 2016-11-01 | D14: 1 | E14: 11 | F14: 2016 | G14: 70413126 | H14: =IFERROR(VLOOKUP('Nomina ObreroAgricola'!G14,'BD operarios '!$A$2:$C$18018,2,FALSE), "") -> Hurtado Hinestroza Rolando Antonio | I14: =IFERROR(VLOOKUP('Nomina ObreroAgricola'!G14,'BD operarios '!$A$2:$C$18018,3,FALSE),"") -> OBRERO AGRICOLA | J14: M11 | L14: 307 | M14: =IFERROR(VLOOKUP('Nomina ObreroAgricola'!L14,AdministracionListas!$D$1:$E$148,2,FALSE), "") -> Resiembra Cacao al Jornal | N14: =IFERROR(VLOOKUP('Nomina ObreroAgricola'!L14,AdministracionListas!$D$1:$F$148,3,FALSE), "") -> jor | O14: =IFERROR(VLOOKUP('Nomina ObreroAgricola'!L14,AdministracionListas!$D$1:$G$148,4,FALSE), "") -> 29439 | P14: 50 | Q14: 0.68 | R14: 1 | S14: 20018.52 | T14: =IFERROR(IF(VLOOKUP(J14&L14&I14,'Catalogo de Labores '!L:L,1,FALSE) = "",FALSE,"PERSONA CON LABOR PERMITIDA"), "PERSONA CON LABOR NO PERMITIDA") -> PERSONA CON LABOR PERMITIDA
A15: Murillo John Ferney | B15: 2016-11-01 | C15: 2016-11-01 | D15: 1 | E15: 11 | F15: 2016 | G15: 16114081 | H15: =IFERROR(VLOOKUP('Nomina ObreroAgricola'!G15,'BD operarios '!$A$2:$C$18018,2,FALSE), "") -> Franco Diaz Guillermo Antonio | I15: =IFERROR(VLOOKUP('Nomina ObreroAgricola'!G15,'BD operarios '!$A$2:$C$18018,3,FALSE),"") -> OBRERO AGRICOLA | J15: M11 | L15: 307 | M15: =IFERROR(VLOOKUP('Nomina ObreroAgricola'!L15,AdministracionListas!$D$1:$E$148,2,FALSE), "") -> Resiembra Cacao al Jornal | N15: =IFERROR(VLOOKUP('Nomina ObreroAgricola'!L15,AdministracionListas!$D$1:$F$148,3,FALSE), "") -> jor | O15: =IFERROR(VLOOKUP('Nomina ObreroAgricola'!L15,AdministracionListas!$D$1:$G$148,4,FALSE), "") -> 29439 | P15: 50 | Q15: 0.68 | R15: 1 | S15: 20018.52 | T15: =IFERROR(IF(VLOOKUP(J15&L15&I15,'Catalogo de Labores '!L:L,1,FALSE) = "",FALSE,"PERSONA CON LABOR PERMITIDA"), "PERSONA CON LABOR NO PERMITIDA") -> PERSONA CON LABOR PERMITIDA
A16: Murillo John Ferney | B16: 2016-11-01 | C16: 2016-11-01 | D16: 1 | E16: 11 | F16: 2016 | G16: 7245612 | H16: =IFERROR(VLOOKUP('Nomina ObreroAgricola'!G16,'BD operarios '!$A$2:$C$18018,2,FALSE), "") -> Mejia Hincapie Jose Farid | I16: =IFERROR(VLOOKUP('Nomina ObreroAgricola'!G16,'BD operarios '!$A$2:$C$18018,3,FALSE),"") -> OBRERO AGRICOLA | J16: M11 | L16: 307 | M16: =IFERROR(VLOOKUP('Nomina ObreroAgricola'!L16,AdministracionListas!$D$1:$E$148,2,FALSE), "") -> Resiembra Cacao al Jornal | N16: =IFERROR(VLOOKUP('Nomina ObreroAgricola'!L16,AdministracionListas!$D$1:$F$148,3,FALSE), "") -> jor | O16: =IFERROR(VLOOKUP('Nomina ObreroAgricola'!L16,AdministracionListas!$D$1:$G$148,4,FALSE), "") -> 29439 | P16: 50 | Q16: 0.68 | R16: 1 | S16: 20018.52 | T16: =IFERROR(IF(VLOOKUP(J16&L16&I16,'Catalogo de Labores '!L:L,1,FALSE) = "",FALSE,"PERSONA CON LABOR PERMITIDA"), "PERSONA CON LABOR NO PERMITIDA") -> PERSONA CON LABOR PERMITIDA
A17: Murillo John Ferney | B17: 2016-11-01 | C17: 2016-11-01 | D17: 1 | E17: 11 | F17: 2016 | G17: 11064666 | H17: =IFERROR(VLOOKUP('Nomina ObreroAgricola'!G17,'BD operarios '!$A$2:$C$18018,2,FALSE), "") -> Pacheco Zambrano Doday | I17: =IFERROR(VLOOKUP('Nomina ObreroAgricola'!G17,'BD operarios '!$A$2:$C$18018,3,FALSE),"") -> OBRERO AGRICOLA | J17: M11 | L17: 307 | M17: =IFERROR(VLOOKUP('Nomina ObreroAgricola'!L17,AdministracionListas!$D$1:$E$148,2,FALSE), "") -> Resiembra Cacao al Jornal | N17: =IFERROR(VLOOKUP('Nomina ObreroAgricola'!L17,AdministracionListas!$D$1:$F$148,3,FALSE), "") -> jor | O17: =IFERROR(VLOOKUP('Nomina ObreroAgricola'!L17,AdministracionListas!$D$1:$G$148,4,FALSE), "") -> 29439 | P17: 50 | Q17: 0.68 | R17: 1 | S17: 20018.52 | T17: =IFERROR(IF(VLOOKUP(J17&L17&I17,'Catalogo de Labores '!L:L,1,FALSE) = "",FALSE,"PERSONA CON LABOR PERMITIDA"), "PERSONA CON LABOR NO PERMITIDA") -> PERSONA CON LABOR PERMITIDA
A18: Murillo John Ferney | B18: 2016-11-01 | C18: 2016-11-01 | D18: 1 | E18: 11 | F18: 2016 | G18: 7252364 | H18: =IFERROR(VLOOKUP('Nomina ObreroAgricola'!G18,'BD operarios '!$A$2:$C$18018,2,FALSE), "") -> Payan Gaviria Laccides | I18: =IFERROR(VLOOKUP('Nomina ObreroAgricola'!G18,'BD operarios '!$A$2:$C$18018,3,FALSE),"") -> OBRERO AGRICOLA | J18: M11 | L18: 307 | M18: =IFERROR(VLOOKUP('Nomina ObreroAgricola'!L18,AdministracionListas!$D$1:$E$148,2,FALSE), "") -> Resiembra Cacao al Jornal | N18: =IFERROR(VLOOKUP('Nomina ObreroAgricola'!L18,AdministracionListas!$D$1:$F$148,3,FALSE), "") -> jor | O18: =IFERROR(VLOOKUP('Nomina ObreroAgricola'!L18,AdministracionListas!$D$1:$G$148,4,FALSE), "") -> 29439 | P18: 50 | Q18: 0.68 | R18: 1 | S18: 20018.52 | T18: =IFERROR(IF(VLOOKUP(J18&L18&I18,'Catalogo de Labores '!L:L,1,FALSE) = "",FALSE,"PERSONA CON LABOR PERMITIDA"), "PERSONA CON LABOR NO PERMITIDA") -> PERSONA CON LABOR PERMITIDA
A19: Murillo John Ferney | B19: 2016-11-01 | C19: 2016-11-01 | D19: 1 | E19: 11 | F19: 2016 | G19: 98504497 | H19: =IFERROR(VLOOKUP('Nomina ObreroAgricola'!G19,'BD operarios '!$A$2:$C$18018,2,FALSE), "") -> Ballesteros Joya Leonardo | I19: =IFERROR(VLOOKUP('Nomina ObreroAgricola'!G19,'BD operarios '!$A$2:$C$18018,3,FALSE),"") -> OBRERO AGRICOLA | J19: M11 | L19: 307 | M19: =IFERROR(VLOOKUP('Nomina ObreroAgricola'!L19,AdministracionListas!$D$1:$E$148,2,FALSE), "") -> Resiembra Cacao al Jornal | N19: =IFERROR(VLOOKUP('Nomina ObreroAgricola'!L19,AdministracionListas!$D$1:$F$148,3,FALSE), "") -> jor | O19: =IFERROR(VLOOKUP('Nomina ObreroAgricola'!L19,AdministracionListas!$D$1:$G$148,4,FALSE), "") -> 29439 | P19: 50 | Q19: 0.68 | R19: 1 | S19: 20018.52 | T19: =IFERROR(IF(VLOOKUP(J19&L19&I19,'Catalogo de Labores '!L:L,1,FALSE) = "",FALSE,"PERSONA CON LABOR PERMITIDA"), "PERSONA CON LABOR NO PERMITIDA") -> PERSONA CON LABOR PERMITIDA
A20: Murillo John Ferney | B20: 2016-11-01 | C20: 2016-11-01 | D20: 1 | E20: 11 | F20: 2016 | G20: 1056771104 | H20: =IFERROR(VLOOKUP('Nomina ObreroAgricola'!G20,'BD operarios '!$A$2:$C$18018,2,FALSE), "") -> Palacios Quintero Esdras | I20: =IFERROR(VLOOKUP('Nomina ObreroAgricola'!G20,'BD operarios '!$A$2:$C$18018,3,FALSE),"") -> OBRERO AGRICOLA | J20: M11 | L20: 307 | M20: =IFERROR(VLOOKUP('Nomina ObreroAgricola'!L20,AdministracionListas!$D$1:$E$148,2,FALSE), "") -> Resiembra Cacao al Jornal | N20: =IFERROR(VLOOKUP('Nomina ObreroAgricola'!L20,AdministracionListas!$D$1:$F$148,3,FALSE), "") -> jor | O20: =IFERROR(VLOOKUP('Nomina ObreroAgricola'!L20,AdministracionListas!$D$1:$G$148,4,FALSE), "") -> 29439 | P20: 50 | Q20: 0.68 | R20: 1 | S20: 20018.52 | T20: =IFERROR(IF(VLOOKUP(J20&L20&I20,'Catalogo de Labores '!L:L,1,FALSE) = "",FALSE,"PERSONA CON LABOR PERMITIDA"), "PERSONA CON LABOR NO PERMITIDA") -> PERSONA CON LABOR PERMITIDA
A21: Murillo John Ferney | B21: 2016-11-01 | C21: 2016-11-01 | D21: 1 | E21: 11 | F21: 2016 | G21: 98503801 | H21: =IFERROR(VLOOKUP('Nomina ObreroAgricola'!G21,'BD operarios '!$A$2:$C$18018,2,FALSE), "") -> Betancourt Torres Hermes Didelio | I21: =IFERROR(VLOOKUP('Nomina ObreroAgricola'!G21,'BD operarios '!$A$2:$C$18018,3,FALSE),"") -> OBRERO AGRICOLA | J21: M11 | L21: 307 | M21: =IFERROR(VLOOKUP('Nomina ObreroAgricola'!L21,AdministracionListas!$D$1:$E$148,2,FALSE), "") -> Resiembra Cacao al Jornal | N21: =IFERROR(VLOOKUP('Nomina ObreroAgricola'!L21,AdministracionListas!$D$1:$F$148,3,FALSE), "") -> jor | O21: =IFERROR(VLOOKUP('Nomina ObreroAgricola'!L21,AdministracionListas!$D$1:$G$148,4,FALSE), "") -> 29439 | P21: 50 | Q21: 0.68 | R21: 1 | S21: 20018.52 | T21: =IFERROR(IF(VLOOKUP(J21&L21&I21,'Catalogo de Labores '!L:L,1,FALSE) = "",FALSE,"PERSONA CON LABOR PERMITIDA"), "PERSONA CON LABOR NO PERMITIDA") -> PERSONA CON LABOR PERMITIDA
A22: Murillo John Ferney | B22: 2016-11-01 | C22: 2016-11-01 | D22: 1 | E22: 11 | F22: 2016 | G22: 1056771444 | H22: =IFERROR(VLOOKUP('Nomina ObreroAgricola'!G22,'BD operarios '!$A$2:$C$18018,2,FALSE), "") -> Amaya Oscar Felipe | I22: =IFERROR(VLOOKUP('Nomina ObreroAgricola'!G22,'BD operarios '!$A$2:$C$18018,3,FALSE),"") -> OBRERO AGRICOLA | J22: M11 | L22: 307 | M22: =IFERROR(VLOOKUP('Nomina ObreroAgricola'!L22,AdministracionListas!$D$1:$E$148,2,FALSE), "") -> Resiembra Cacao al Jornal | N22: =IFERROR(VLOOKUP('Nomina ObreroAgricola'!L22,AdministracionListas!$D$1:$F$148,3,FALSE), "") -> jor | O22: =IFERROR(VLOOKUP('Nomina ObreroAgricola'!L22,AdministracionListas!$D$1:$G$148,4,FALSE), "") -> 29439 | P22: 50 | Q22: 0.68 | R22: 1 | S22: 20018.52 | T22: =IFERROR(IF(VLOOKUP(J22&L22&I22,'Catalogo de Labores '!L:L,1,FALSE) = "",FALSE,"PERSONA CON LABOR PERMITIDA"), "PERSONA CON LABOR NO PERMITIDA") -> PERSONA CON LABOR PERMITIDA
A23: Murillo John Ferney | B23: 2016-11-01 | C23: 2016-11-01 | D23: 1 | E23: 11 | F23: 2016 | G23: 1103672148 | H23: =IFERROR(VLOOKUP('Nomina ObreroAgricola'!G23,'BD operarios '!$A$2:$C$18018,2,FALSE), "") -> Echavarria Perez Jhonatan Alexander | I23: =IFERROR(VLOOKUP('Nomina ObreroAgricola'!G23,'BD operarios '!$A$2:$C$18018,3,FALSE),"") -> OBRERO AGRICOLA | J23: M11 | L23: 307 | M23: =IFERROR(VLOOKUP('Nomina ObreroAgricola'!L23,AdministracionListas!$D$1:$E$148,2,FALSE), "") -> Resiembra Cacao al Jornal | N23: =IFERROR(VLOOKUP('Nomina ObreroAgricola'!L23,AdministracionListas!$D$1:$F$148,3,FALSE), "") -> jor | O23: =IFERROR(VLOOKUP('Nomina ObreroAgricola'!L23,AdministracionListas!$D$1:$G$148,4,FALSE), "") -> 29439 | P23: 50 | Q23: 0.68 | R23: 1 | S23: 20018.52 | T23: =IFERROR(IF(VLOOKUP(J23&L23&I23,'Catalogo de Labores '!L:L,1,FALSE) = "",FALSE,"PERSONA CON LABOR PERMITIDA"), "PERSONA CON LABOR NO PERMITIDA") -> PERSONA CON LABOR PERMITIDA
A24: Murillo John Ferney | B24: 2016-11-01 | C24: 2016-11-01 | D24: 1 | E24: 11 | F24: 2016 | G24: 11770172 | H24: =IFERROR(VLOOKUP('Nomina ObreroAgricola'!G24,'BD operarios '!$A$2:$C$18018,2,FALSE), "") -> Huragama Ochoa Luis Francisco | I24: =IFERROR(VLOOKUP('Nomina ObreroAgricola'!G24,'BD operarios '!$A$2:$C$18018,3,FALSE),"") -> OBRERO AGRICOLA | J24: M11 | L24: 307 | M24: =IFERROR(VLOOKUP('Nomina ObreroAgricola'!L24,AdministracionListas!$D$1:$E$148,2,FALSE), "") -> Resiembra Cacao al Jornal | N24: =IFERROR(VLOOKUP('Nomina ObreroAgricola'!L24,AdministracionListas!$D$1:$F$148,3,FALSE), "") -> jor | O24: =IFERROR(VLOOKUP('Nomina ObreroAgricola'!L24,AdministracionListas!$D$1:$G$148,4,FALSE), "") -> 29439 | P24: 50 | Q24: 0.68 | R24: 1 | S24: 20018.52 | T24: =IFERROR(IF(VLOOKUP(J24&L24&I24,'Catalogo de Labores '!L:L,1,FALSE) = "",FALSE,"PERSONA CON LABOR PERMITIDA"), "PERSONA CON LABOR NO PERMITIDA") -> PERSONA CON LABOR PERMITIDA
A25: Gil Arango Jesus Arley | B25: 2016-11-01 | C25: 2016-11-01 | D25: 1 | E25: 11 | F25: 2016 | G25: 900697835 | H25: =IFERROR(VLOOKUP('Nomina ObreroAgricola'!G25,'BD operarios '!$A$2:$C$18018,2,FALSE), "") -> Agroservir S.A.S | I25: =IFERROR(VLOOKUP('Nomina ObreroAgricola'!G25,'BD operarios '!$A$2:$C$18018,3,FALSE),"") -> CONTRATISTA | J25: M11 | L25: 317 | M25: =IFERROR(VLOOKUP('Nomina ObreroAgricola'!L25,AdministracionListas!$D$1:$E$148,2,FALSE), "") -> Siembra cacao vega con ahoyadora 15 cm X 40 cm | N25: =IFERROR(VLOOKUP('Nomina ObreroAgricola'!L25,AdministracionListas!$D$1:$F$148,3,FALSE), "") -> Pla | O25: =IFERROR(VLOOKUP('Nomina ObreroAgricola'!L25,AdministracionListas!$D$1:$G$148,4,FALSE), "") -> 300 | P25: 1098 | Q25: 3.24 | R25: 1 | S25: 329400 | T25: =IFERROR(IF(VLOOKUP(J25&L25&I25,'Catalogo de Labores '!L:L,1,FALSE) = "",FALSE,"PERSONA CON LABOR PERMITIDA"), "PERSONA CON LABOR NO PERMITIDA") -> PERSONA CON LABOR PERMITIDA
A26: Gil Arango Jesus Arley | B26: 2016-11-01 | C26: 2016-11-01 | D26: 1 | E26: 11 | F26: 2016 | G26: 900697835 | H26: =IFERROR(VLOOKUP('Nomina ObreroAgricola'!G26,'BD operarios '!$A$2:$C$18018,2,FALSE), "") -> Agroservir S.A.S | I26: =IFERROR(VLOOKUP('Nomina ObreroAgricola'!G26,'BD operarios '!$A$2:$C$18018,3,FALSE),"") -> CONTRATISTA | J26: M11 | L26: 307 | M26: =IFERROR(VLOOKUP('Nomina ObreroAgricola'!L26,AdministracionListas!$D$1:$E$148,2,FALSE), "") -> Resiembra Cacao al Jornal | N26: =IFERROR(VLOOKUP('Nomina ObreroAgricola'!L26,AdministracionListas!$D$1:$F$148,3,FALSE), "") -> jor | O26: =IFERROR(VLOOKUP('Nomina ObreroAgricola'!L26,AdministracionListas!$D$1:$G$148,4,FALSE), "") -> 29439 | P26: 906 | Q26: 2.76 | R26: 1 | S26: 81251.64 | T26: =IFERROR(IF(VLOOKUP(J26&L26&I26,'Catalogo de Labores '!L:L,1,FALSE) = "",FALSE,"PERSONA CON LABOR PERMITIDA"), "PERSONA CON LABOR NO PERMITIDA") -> PERSONA CON LABOR PERMITIDA
A27: Vargas Serna Flor Norela | B27: 2016-11-01 | C27: 2016-11-01 | D27: 1 | E27: 11 | F27: 2016 | G27: 7246973 | H27: =IFERROR(VLOOKUP('Nomina ObreroAgricola'!G27,'BD operarios '!$A$2:$C$18018,2,FALSE), "") -> Bejarano Moises | I27: =IFERROR(VLOOKUP('Nomina ObreroAgricola'!G27,'BD operarios '!$A$2:$C$18018,3,FALSE),"") -> OBRERO AGRICOLA | J27: M11 | L27: 317 | M27: =IFERROR(VLOOKUP('Nomina ObreroAgricola'!L27,AdministracionListas!$D$1:$E$148,2,FALSE), "") -> Siembra cacao vega con ahoyadora 15 cm X 40 cm | N27: =IFERROR(VLOOKUP('Nomina ObreroAgricola'!L27,AdministracionListas!$D$1:$F$148,3,FALSE), "") -> Pla | O27: =IFERROR(VLOOKUP('Nomina ObreroAgricola'!L27,AdministracionListas!$D$1:$G$148,4,FALSE), "") -> 300 | P27: 133 | Q27: 0.84 | R27: 1 | S27: 39900 | T27: =IFERROR(IF(VLOOKUP(J27&L27&I27,'Catalogo de Labores '!L:L,1,FALSE) = "",FALSE,"PERSONA CON LABOR PERMITIDA"), "PERSONA CON LABOR NO PERMITIDA") -> PERSONA CON LABOR PERMITIDA
A28: Vargas Serna Flor Norela | B28: 2016-11-01 | C28: 2016-11-01 | D28: 1 | E28: 11 | F28: 2016 | G28: 1096184716 | H28: =IFERROR(VLOOKUP('Nomina ObreroAgricola'!G28,'BD operarios '!$A$2:$C$18018,2,FALSE), "") -> Aguilar Luis Fernando | I28: =IFERROR(VLOOKUP('Nomina ObreroAgricola'!G28,'BD operarios '!$A$2:$C$18018,3,FALSE),"") -> OBRERO AGRICOLA | J28: M11 | L28: 317 | M28: =IFERROR(VLOOKUP('Nomina ObreroAgricola'!L28,AdministracionListas!$D$1:$E$148,2,FALSE), "") -> Siembra cacao vega con ahoyadora 15 cm X 40 cm | N28: =IFERROR(VLOOKUP('Nomina ObreroAgricola'!L28,AdministracionListas!$D$1:$F$148,3,FALSE), "") -> Pla | O28: =IFERROR(VLOOKUP('Nomina ObreroAgricola'!L28,AdministracionListas!$D$1:$G$148,4,FALSE), "") -> 300 | P28: 133 | R28: 1 | S28: 39900 | T28: =IFERROR(IF(VLOOKUP(J28&L28&I28,'Catalogo de Labores '!L:L,1,FALSE) = "",FALSE,"PERSONA CON LABOR PERMITIDA"), "PERSONA CON LABOR NO PERMITIDA") -> PERSONA CON LABOR PERMITIDA | U28: Falta jornal
A29: Vargas Serna Flor Norela | B29: 2016-11-01 | C29: 2016-11-01 | D29: 1 | E29: 11 | F29: 2016 | G29: 17688621 | H29: =IFERROR(VLOOKUP('Nomina ObreroAgricola'!G29,'BD operarios '!$A$2:$C$18018,2,FALSE), "") -> Arroyo Laverde Cristobal | I29: =IFERROR(VLOOKUP('Nomina ObreroAgricola'!G29,'BD operarios '!$A$2:$C$18018,3,FALSE),"") -> OBRERO AGRICOLA | J29: M11 | L29: 990 | M29: =IFERROR(VLOOKUP('Nomina ObreroAgricola'!L29,AdministracionListas!$D$1:$E$148,2,FALSE), "") -> Falta Injustificada | N29: =IFERROR(VLOOKUP('Nomina ObreroAgricola'!L29,AdministracionListas!$D$1:$F$148,3,FALSE), "") -> jor | O29: =IFERROR(VLOOKUP('Nomina ObreroAgricola'!L29,AdministracionListas!$D$1:$G$148,4,FALSE), "") -> 0 | P29: 1 | Q29: 0 | R29: 0 | S29: 0 | T29: =IFERROR(IF(VLOOKUP(J29&L29&I29,'Catalogo de Labores '!L:L,1,FALSE) = "",FALSE,"PERSONA CON LABOR PERMITIDA"), "PERSONA CON LABOR NO PERMITIDA") -> PERSONA CON LABOR PERMITIDA
A30: Vargas Serna Flor Norela | B30: 2016-11-01 | C30: 2016-11-01 | D30: 1 | E30: 11 | F30: 2016 | G30: 1099547562 | H30: =IFERROR(VLOOKUP('Nomina ObreroAgricola'!G30,'BD operarios '!$A$2:$C$18018,2,FALSE), "") -> Lopez Herrera Victor Alfonso | I30: =IFERROR(VLOOKUP('Nomina ObreroAgricola'!G30,'BD operarios '!$A$2:$C$18018,3,FALSE),"") -> OBRERO AGRICOLA | J30: M11 | L30: 317 | M30: =IFERROR(VLOOKUP('Nomina ObreroAgricola'!L30,AdministracionListas!$D$1:$E$148,2,FALSE), "") -> Siembra cacao vega con ahoyadora 15 cm X 40 cm | N30: =IFERROR(VLOOKUP('Nomina ObreroAgricola'!L30,AdministracionListas!$D$1:$F$148,3,FALSE), "") -> Pla | O30: =IFERROR(VLOOKUP('Nomina ObreroAgricola'!L30,AdministracionListas!$D$1:$G$148,4,FALSE), "") -> 300 | P30: 132 | Q30: 0.84 | R30: 1 | S30: 39600 | T30: =IFERROR(IF(VLOOKUP(J30&L30&I30,'Catalogo de Labores '!L:L,1,FALSE) = "",FALSE,"PERSONA CON LABOR PERMITIDA"), "PERSONA CON LABOR NO PERMITIDA") -> PERSONA CON LABOR PERMITIDA
A31: Vargas Serna Flor Norela | B31: 2016-11-01 | C31: 2016-11-01 | D31: 1 | E31: 11 | F31: 2016 | G31: 1054566235 | H31: =IFERROR(VLOOKUP('Nomina ObreroAgricola'!G31,'BD operarios '!$A$2:$C$18018,2,FALSE), "") -> Zea Arango Faber Andres | I31: =IFERROR(VLOOKUP('Nomina ObreroAgricola'!G31,'BD operarios '!$A$2:$C$18018,3,FALSE),"") -> OBRERO AGRICOLA | J31: M11 | L31: 980 | M31: =IFERROR(VLOOKUP('Nomina ObreroAgricola'!L31,AdministracionListas!$D$1:$E$148,2,FALSE), "") -> Licencia ARL | N31: =IFERROR(VLOOKUP('Nomina ObreroAgricola'!L31,AdministracionListas!$D$1:$F$148,3,FALSE), "") -> jor | O31: =IFERROR(VLOOKUP('Nomina ObreroAgricola'!L31,AdministracionListas!$D$1:$G$148,4,FALSE), "") -> 29439 | P31: 1 | Q31: 0 | R31: 0 | S31: 0 | T31: =IFERROR(IF(VLOOKUP(J31&L31&I31,'Catalogo de Labores '!L:L,1,FALSE) = "",FALSE,"PERSONA CON LABOR PERMITIDA"), "PERSONA CON LABOR NO PERMITIDA") -> PERSONA CON LABOR PERMITIDA
A32: Vargas Serna Flor Norela | B32: 2016-11-01 | C32: 2016-11-01 | D32: 1 | E32: 11 | F32: 2016 | G32: 1002319285 | H32: =IFERROR(VLOOKUP('Nomina ObreroAgricola'!G32,'BD operarios '!$A$2:$C$18018,2,FALSE), "") -> Mendez Castillo Yeison Javier | I32: =IFERROR(VLOOKUP('Nomina ObreroAgricola'!G32,'BD operarios '!$A$2:$C$18018,3,FALSE),"") -> OBRERO AGRICOLA | J32: M11 | L32: 317 | M32: =IFERROR(VLOOKUP('Nomina ObreroAgricola'!L32,AdministracionListas!$D$1:$E$148,2,FALSE), "") -> Siembra cacao vega con ahoyadora 15 cm X 40 cm | N32: =IFERROR(VLOOKUP('Nomina ObreroAgricola'!L32,AdministracionListas!$D$1:$F$148,3,FALSE), "") -> Pla | O32: =IFERROR(VLOOKUP('Nomina ObreroAgricola'!L32,AdministracionListas!$D$1:$G$148,4,FALSE), "") -> 300 | P32: 133 | Q32: 0.84 | R32: 1 | S32: 39900 | T32: =IFERROR(IF(VLOOKUP(J32&L32&I32,'Catalogo de Labores '!L:L,1,FALSE) = "",FALSE,"PERSONA CON LABOR PERMITIDA"), "PERSONA CON LABOR NO PERMITIDA") -> PERSONA CON LABOR PERMITIDA
A33: Vargas Serna Flor Norela | B33: 2016-11-01 | C33: 2016-11-01 | D33: 1 | E33: 11 | F33: 2016 | G33: 1124990428 | H33: =IFERROR(VLOOKUP('Nomina ObreroAgricola'!G33,'BD operarios '!$A$2:$C$18018,2,FALSE), "") -> Montoya Ospina Jair Andres | I33: =IFERROR(VLOOKUP('Nomina ObreroAgricola'!G33,'BD operarios '!$A$2:$C$18018,3,FALSE),"") -> OBRERO AGRICOLA | J33: M11 | L33: 990 | M33: =IFERROR(VLOOKUP('Nomina ObreroAgricola'!L33,AdministracionListas!$D$1:$E$148,2,FALSE), "") -> Falta Injustificada | N33: =IFERROR(VLOOKUP('Nomina ObreroAgricola'!L33,AdministracionListas!$D$1:$F$148,3,FALSE), "") -> jor | O33: =IFERROR(VLOOKUP('Nomina ObreroAgricola'!L33,AdministracionListas!$D$1:$G$148,4,FALSE), "") -> 0 | P33: 1 | Q33: 0 | R33: 0 | S33: 0 | T33: =IFERROR(IF(VLOOKUP(J33&L33&I33,'Catalogo de Labores '!L:L,1,FALSE) = "",FALSE,"PERSONA CON LABOR PERMITIDA"), "PERSONA CON LABOR NO PERMITIDA") -> PERSONA CON LABOR PERMITIDA
A34: Vargas Serna Flor Norela | B34: 2016-11-01 | C34: 2016-11-01 | D34: 1 | E34: 11 | F34: 2016 | G34: 7246973 | H34: =IFERROR(VLOOKUP('Nomina ObreroAgricola'!G34,'BD operarios '!$A$2:$C$18018,2,FALSE), "") -> Bejarano Moises | I34: =IFERROR(VLOOKUP('Nomina ObreroAgricola'!G34,'BD operarios '!$A$2:$C$18018,3,FALSE),"") -> OBRERO AGRICOLA | J34: M11 | L34: 307 | M34: =IFERROR(VLOOKUP('Nomina ObreroAgricola'!L34,AdministracionListas!$D$1:$E$148,2,FALSE), "") -> Resiembra Cacao al Jornal | N34: =IFERROR(VLOOKUP('Nomina ObreroAgricola'!L34,AdministracionListas!$D$1:$F$148,3,FALSE), "") -> jor | O34: =IFERROR(VLOOKUP('Nomina ObreroAgricola'!L34,AdministracionListas!$D$1:$G$148,4,FALSE), "") -> 29439 | P34: 25 | Q34: 0.34 | R34: 1 | S34: 10009.26 | T34: =IFERROR(IF(VLOOKUP(J34&L34&I34,'Catalogo de Labores '!L:L,1,FALSE) = "",FALSE,"PERSONA CON LABOR PERMITIDA"), "PERSONA CON LABOR NO PERMITIDA") -> PERSONA CON LABOR PERMITIDA
A35: Vargas Serna Flor Norela | B35: 2016-11-01 | C35: 2016-11-01 | D35: 1 | E35: 11 | F35: 2016 | G35: 1096184716 | H35: =IFERROR(VLOOKUP('Nomina ObreroAgricola'!G35,'BD operarios '!$A$2:$C$18018,2,FALSE), "") -> Aguilar Luis Fernando | I35: =IFERROR(VLOOKUP('Nomina ObreroAgricola'!G35,'BD operarios '!$A$2:$C$18018,3,FALSE),"") -> OBRERO AGRICOLA | J35: M11 | L35: 307 | M35: =IFERROR(VLOOKUP('Nomina ObreroAgricola'!L35,AdministracionListas!$D$1:$E$148,2,FALSE), "") -> Resiembra Cacao al Jornal | N35: =IFERROR(VLOOKUP('Nomina ObreroAgricola'!L35,AdministracionListas!$D$1:$F$148,3,FALSE), "") -> jor | O35: =IFERROR(VLOOKUP('Nomina ObreroAgricola'!L35,AdministracionListas!$D$1:$G$148,4,FALSE), "") -> 29439 | P35: 25 | Q35: 0.34 | R35: 1 | S35: 10009.26 | T35: =IFERROR(IF(VLOOKUP(J35&L35&I35,'Catalogo de Labores '!L:L,1,FALSE) = "",FALSE,"PERSONA CON LABOR PERMITIDA"), "PERSONA CON LABOR NO PERMITIDA") -> PERSONA CON LABOR PERMITIDA
A36: Vargas Serna Flor Norela | B36: 2016-11-01 | C36: 2016-11-01 | D36: 1 | E36: 11 | F36: 2016 | G36: 1099547562 | H36: =IFERROR(VLOOKUP('Nomina ObreroAgricola'!G36,'BD operarios '!$A$2:$C$18018,2,FALSE), "") -> Lopez Herrera Victor Alfonso | I36: =IFERROR(VLOOKUP('Nomina ObreroAgricola'!G36,'BD operarios '!$A$2:$C$18018,3,FALSE),"") -> OBRERO AGRICOLA | J36: M11 | L36: 307 | M36: =IFERROR(VLOOKUP('Nomina ObreroAgricola'!L36,AdministracionListas!$D$1:$E$148,2,FALSE), "") -> Resiembra Cacao al Jornal | N36: =IFERROR(VLOOKUP('Nomina ObreroAgricola'!L36,AdministracionListas!$D$1:$F$148,3,FALSE), "") -> jor | O36: =IFERROR(VLOOKUP('Nomina ObreroAgricola'!L36,AdministracionListas!$D$1:$G$148,4,FALSE), "") -> 29439 | P36: 25 | Q36: 0.34 | R36: 1 | S36: 10009.26 | T36: =IFERROR(IF(VLOOKUP(J36&L36&I36,'Catalogo de Labores '!L:L,1,FALSE) = "",FALSE,"PERSONA CON LABOR PERMITIDA"), "PERSONA CON LABOR NO PERMITIDA") -> PERSONA CON LABOR PERMITIDA
A37: Vargas Serna Flor Norela | B37: 2016-11-01 | C37: 2016-11-01 | D37: 1 | E37: 11 | F37: 2016 | G37: 1002319285 | H37: =IFERROR(VLOOKUP('Nomina ObreroAgricola'!G37,'BD operarios '!$A$2:$C$18018,2,FALSE), "") -> Mendez Castillo Yeison Javier | I37: =IFERROR(VLOOKUP('Nomina ObreroAgricola'!G37,'BD operarios '!$A$2:$C$18018,3,FALSE),"") -> OBRERO AGRICOLA | J37: M11 | L37: 307 | M37: =IFERROR(VLOOKUP('Nomina ObreroAgricola'!L37,AdministracionListas!$D$1:$E$148,2,FALSE), "") -> Resiembra Cacao al Jornal | N37: =IFERROR(VLOOKUP('Nomina ObreroAgricola'!L37,AdministracionListas!$D$1:$F$148,3,FALSE), "") -> jor | O37: =IFERROR(VLOOKUP('Nomina ObreroAgricola'!L37,AdministracionListas!$D$1:$G$148,4,FALSE), "") -> 29439 | P37: 25 | Q37: 0.34 | R37: 1 | S37: 10009.26 | T37: =IFERROR(IF(VLOOKUP(J37&L37&I37,'Catalogo de Labores '!L:L,1,FALSE) = "",FALSE,"PERSONA CON LABOR PERMITIDA"), "PERSONA CON LABOR NO PERMITIDA") -> PERSONA CON LABOR PERMITIDA
A38: Jurado Forero Raumir | B38: 2016-11-01 | C38: 2016-11-01 | D38: 1 | E38: 11 | F38: 2016 | G38: 7252561 | H38: =IFERROR(VLOOKUP('Nomina ObreroAgricola'!G38,'BD operarios '!$A$2:$C$18018,2,FALSE), "") -> Acevedo Julio Cesar | I38: =IFERROR(VLOOKUP('Nomina ObreroAgricola'!G38,'BD operarios '!$A$2:$C$18018,3,FALSE),"") -> OBRERO AGRICOLA | J38: M11 | L38: 317 | M38: =IFERROR(VLOOKUP('Nomina ObreroAgricola'!L38,AdministracionListas!$D$1:$E$148,2,FALSE), "") -> Siembra cacao vega con ahoyadora 15 cm X 40 cm | N38: =IFERROR(VLOOKUP('Nomina ObreroAgricola'!L38,AdministracionListas!$D$1:$F$148,3,FALSE), "") -> Pla | O38: =IFERROR(VLOOKUP('Nomina ObreroAgricola'!L38,AdministracionListas!$D$1:$G$148,4,FALSE), "") -> 300 | P38: 89 | Q38: 0.49 | R38: 1 | S38: 26700 | T38: =IFERROR(IF(VLOOKUP(J38&L38&I38,'Catalogo de Labores '!L:L,1,FALSE) = "",FALSE,"PERSONA CON LABOR PERMITIDA"), "PERSONA CON LABOR NO PERMITIDA") -> PERSONA CON LABOR PERMITIDA
A39: Jurado Forero Raumir | B39: 2016-11-01 | C39: 2016-11-01 | D39: 1 | E39: 11 | F39: 2016 | G39: 1056769541 | H39: =IFERROR(VLOOKUP('Nomina ObreroAgricola'!G39,'BD operarios '!$A$2:$C$18018,2,FALSE), "") -> Patiño Aguinaga Dairon Nay | I39: =IFERROR(VLOOKUP('Nomina ObreroAgricola'!G39,'BD operarios '!$A$2:$C$18018,3,FALSE),"") -> OBRERO AGRICOLA | J39: M11 | L39: 990 | M39: =IFERROR(VLOOKUP('Nomina ObreroAgricola'!L39,AdministracionListas!$D$1:$E$148,2,FALSE), "") -> Falta Injustificada | N39: =IFERROR(VLOOKUP('Nomina ObreroAgricola'!L39,AdministracionListas!$D$1:$F$148,3,FALSE), "") -> jor | O39: =IFERROR(VLOOKUP('Nomina ObreroAgricola'!L39,AdministracionListas!$D$1:$G$148,4,FALSE), "") -> 0 | P39: 1 | Q39: 0 | R39: 0 | S39: 0 | T39: =IFERROR(IF(VLOOKUP(J39&L39&I39,'Catalogo de Labores '!L:L,1,FALSE) = "",FALSE,"PERSONA CON LABOR PERMITIDA"), "PERSONA CON LABOR NO PERMITIDA") -> PERSONA CON LABOR PERMITIDA
A40: Jurado Forero Raumir | B40: 2016-11-01 | C40: 2016-11-01 | D40: 1 | E40: 11 | F40: 2016 | G40: 71180688 | H40: =IFERROR(VLOOKUP('Nomina ObreroAgricola'!G40,'BD operarios '!$A$2:$C$18018,2,FALSE), "") -> Garcia Sanchez Luis Anibal | I40: =IFERROR(VLOOKUP('Nomina ObreroAgricola'!G40,'BD operarios '!$A$2:$C$18018,3,FALSE),"") -> OBRERO AGRICOLA | J40: M11 | L40: 317 | M40: =IFERROR(VLOOKUP('Nomina ObreroAgricola'!L40,AdministracionListas!$D$1:$E$148,2,FALSE), "") -> Siembra cacao vega con ahoyadora 15 cm X 40 cm | N40: =IFERROR(VLOOKUP('Nomina ObreroAgricola'!L40,AdministracionListas!$D$1:$F$148,3,FALSE), "") -> Pla | O40: =IFERROR(VLOOKUP('Nomina ObreroAgricola'!L40,AdministracionListas!$D$1:$G$148,4,FALSE), "") -> 300 | P40: 89 | Q40: 0.49 | R40: 1 | S40: 26700 | T40: =IFERROR(IF(VLOOKUP(J40&L40&I40,'Catalogo de Labores '!L:L,1,FALSE) = "",FALSE,"PERSONA CON LABOR PERMITIDA"), "PERSONA CON LABOR NO PERMITIDA") -> PERSONA CON LABOR PERMITIDA
A41: Jurado Forero Raumir | B41: 2016-11-01 | C41: 2016-11-01 | D41: 1 | E41: 11 | F41: 2016 | G41: 86069670 | H41: =IFERROR(VLOOKUP('Nomina ObreroAgricola'!G41,'BD operarios '!$A$2:$C$18018,2,FALSE), "") -> Murillo Blandon Jose Gilberto | I41: =IFERROR(VLOOKUP('Nomina ObreroAgricola'!G41,'BD operarios '!$A$2:$C$18018,3,FALSE),"") -> OBRERO AGRICOLA | J41: M11 | L41: 317 | M41: =IFERROR(VLOOKUP('Nomina ObreroAgricola'!L41,AdministracionListas!$D$1:$E$148,2,FALSE), "") -> Siembra cacao vega con ahoyadora 15 cm X 40 cm | N41: =IFERROR(VLOOKUP('Nomina ObreroAgricola'!L41,AdministracionListas!$D$1:$F$148,3,FALSE), "") -> Pla | O41: =IFERROR(VLOOKUP('Nomina ObreroAgricola'!L41,AdministracionListas!$D$1:$G$148,4,FALSE), "") -> 300 | P41: 89 | Q41: 0.49 | R41: 1 | S41: 26700 | T41: =IFERROR(IF(VLOOKUP(J41&L41&I41,'Catalogo de Labores '!L:L,1,FALSE) = "",FALSE,"PERSONA CON LABOR PERMITIDA"), "PERSONA CON LABOR NO PERMITIDA") -> PERSONA CON LABOR PERMITIDA
A42: Jurado Forero Raumir | B42: 2016-11-01 | C42: 2016-11-01 | D42: 1 | E42: 11 | F42: 2016 | G42: 1036133595 | H42: =IFERROR(VLOOKUP('Nomina ObreroAgricola'!G42,'BD operarios '!$A$2:$C$18018,2,FALSE), "") -> Carmona Jerez Jhon Edinson | I42: =IFERROR(VLOOKUP('Nomina ObreroAgricola'!G42,'BD operarios '!$A$2:$C$18018,3,FALSE),"") -> OBRERO AGRICOLA | J42: M11 | L42: 317 | M42: =IFERROR(VLOOKUP('Nomina ObreroAgricola'!L42,AdministracionListas!$D$1:$E$148,2,FALSE), "") -> Siembra cacao vega con ahoyadora 15 cm X 40 cm | N42: =IFERROR(VLOOKUP('Nomina ObreroAgricola'!L42,AdministracionListas!$D$1:$F$148,3,FALSE), "") -> Pla | O42: =IFERROR(VLOOKUP('Nomina ObreroAgricola'!L42,AdministracionListas!$D$1:$G$148,4,FALSE), "") -> 300 | P42: 89 | Q42: 0.49 | R42: 1 | S42: 26700 | T42: =IFERROR(IF(VLOOKUP(J42&L42&I42,'Catalogo de Labores '!L:L,1,FALSE) = "",FALSE,"PERSONA CON LABOR PERMITIDA"), "PERSONA CON LABOR NO PERMITIDA") -> PERSONA CON LABOR PERMITIDA
A43: Jurado Forero Raumir | B43: 2016-11-01 | C43: 2016-11-01 | D43: 1 | E43: 11 | F43: 2016 | G43: 1056768964 | H43: =IFERROR(VLOOKUP('Nomina ObreroAgricola'!G43,'BD operarios '!$A$2:$C$18018,2,FALSE), "") -> Diosa Huber De Jesus | I43: =IFERROR(VLOOKUP('Nomina ObreroAgricola'!G43,'BD operarios '!$A$2:$C$18018,3,FALSE),"") -> OBRERO AGRICOLA | J43: M11 | L43: 317 | M43: =IFERROR(VLOOKUP('Nomina ObreroAgricola'!L43,AdministracionListas!$D$1:$E$148,2,FALSE), "") -> Siembra cacao vega con ahoyadora 15 cm X 40 cm | N43: =IFERROR(VLOOKUP('Nomina ObreroAgricola'!L43,AdministracionListas!$D$1:$F$148,3,FALSE), "") -> Pla | O43: =IFERROR(VLOOKUP('Nomina ObreroAgricola'!L43,AdministracionListas!$D$1:$G$148,4,FALSE), "") -> 300 | P43: 89 | Q43: 0.49 | R43: 1 | S43: 26700 | T43: =IFERROR(IF(VLOOKUP(J43&L43&I43,'Catalogo de Labores '!L:L,1,FALSE) = "",FALSE,"PERSONA CON LABOR PERMITIDA"), "PERSONA CON LABOR NO PERMITIDA") -> PERSONA CON LABOR PERMITIDA
A44: Jurado Forero Raumir | B44: 2016-11-01 | C44: 2016-11-01 | D44: 1 | E44: 11 | F44: 2016 | G44: 1036130640 | H44: =IFERROR(VLOOKUP('Nomina ObreroAgricola'!G44,'BD operarios '!$A$2:$C$18018,2,FALSE), "") -> Zapata Luis Alberto | I44: =IFERROR(VLOOKUP('Nomina ObreroAgricola'!G44,'BD operarios '!$A$2:$C$18018,3,FALSE),"") -> OBRERO AGRICOLA | J44: M11 | L44: 317 | M44: =IFERROR(VLOOKUP('Nomina ObreroAgricola'!L44,AdministracionListas!$D$1:$E$148,2,FALSE), "") -> Siembra cacao vega con ahoyadora 15 cm X 40 cm | N44: =IFERROR(VLOOKUP('Nomina ObreroAgricola'!L44,AdministracionListas!$D$1:$F$148,3,FALSE), "") -> Pla | O44: =IFERROR(VLOOKUP('Nomina ObreroAgricola'!L44,AdministracionListas!$D$1:$G$148,4,FALSE), "") -> 300 | P44: 89 | Q44: 0.49 | R44: 1 | S44: 26700 | T44: =IFERROR(IF(VLOOKUP(J44&L44&I44,'Catalogo de Labores '!L:L,1,FALSE) = "",FALSE,"PERSONA CON LABOR PERMITIDA"), "PERSONA CON LABOR NO PERMITIDA") -> PERSONA CON LABOR PERMITIDA
A45: Jurado Forero Raumir | B45: 2016-11-01 | C45: 2016-11-01 | D45: 1 | E45: 11 | F45: 2016 | G45: 1036131248 | H45: =IFERROR(VLOOKUP('Nomina ObreroAgricola'!G45,'BD operarios '!$A$2:$C$18018,2,FALSE), "") -> Reyes Caro Javier Humberto | I45: =IFERROR(VLOOKUP('Nomina ObreroAgricola'!G45,'BD operarios '!$A$2:$C$18018,3,FALSE),"") -> OBRERO AGRICOLA | J45: M11 | L45: 990 | M45: =IFERROR(VLOOKUP('Nomina ObreroAgricola'!L45,AdministracionListas!$D$1:$E$148,2,FALSE), "") -> Falta Injustificada | N45: =IFERROR(VLOOKUP('Nomina ObreroAgricola'!L45,AdministracionListas!$D$1:$F$148,3,FALSE), "") -> jor | O45: =IFERROR(VLOOKUP('Nomina ObreroAgricola'!L45,AdministracionListas!$D$1:$G$148,4,FALSE), "") -> 0 | P45: 1 | Q45: 0 | R45: 0 | S45: 0 | T45: =IFERROR(IF(VLOOKUP(J45&L45&I45,'Catalogo de Labores '!L:L,1,FALSE) = "",FALSE,"PERSONA CON LABOR PERMITIDA"), "PERSONA CON LABOR NO PERMITIDA") -> PERSONA CON LABOR PERMITIDA
A46: Jurado Forero Raumir | B46: 2016-11-01 | C46: 2016-11-01 | D46: 1 | E46: 11 | F46: 2016 | G46: 3133217 | H46: =IFERROR(VLOOKUP('Nomina ObreroAgricola'!G46,'BD operarios '!$A$2:$C$18018,2,FALSE), "") -> Mejia Juan Sebastian | I46: =IFERROR(VLOOKUP('Nomina ObreroAgricola'!G46,'BD operarios '!$A$2:$C$18018,3,FALSE),"") -> OBRERO AGRICOLA | J46: M11 | L46: 317 | M46: =IFERROR(VLOOKUP('Nomina ObreroAgricola'!L46,AdministracionListas!$D$1:$E$148,2,FALSE), "") -> Siembra cacao vega con ahoyadora 15 cm X 40 cm | N46: =IFERROR(VLOOKUP('Nomina ObreroAgricola'!L46,AdministracionListas!$D$1:$F$148,3,FALSE), "") -> Pla | O46: =IFERROR(VLOOKUP('Nomina ObreroAgricola'!L46,AdministracionListas!$D$1:$G$148,4,FALSE), "") -> 300 | P46: 89 | Q46: 0.49 | R46: 1 | S46: 26700 | T46: =IFERROR(IF(VLOOKUP(J46&L46&I46,'Catalogo de Labores '!L:L,1,FALSE) = "",FALSE,"PERSONA CON LABOR PERMITIDA"), "PERSONA CON LABOR NO PERMITIDA") -> PERSONA CON LABOR PERMITIDA
A47: Jurado Forero Raumir | B47: 2016-11-01 | C47: 2016-11-01 | D47: 1 | E47: 11 | F47: 2016 | G47: 80152878 | H47: =IFERROR(VLOOKUP('Nomina ObreroAgricola'!G47,'BD operarios '!$A$2:$C$18018,2,FALSE), "") -> Rocha Castro Gener Arturo | I47: =IFERROR(VLOOKUP('Nomina ObreroAgricola'!G47,'BD operarios '!$A$2:$C$18018,3,FALSE),"") -> OBRERO AGRICOLA | J47: M11 | L47: 317 | M47: =IFERROR(VLOOKUP('Nomina ObreroAgricola'!L47,AdministracionListas!$D$1:$E$148,2,FALSE), "") -> Siembra cacao vega con ahoyadora 15 cm X 40 cm | N47: =IFERROR(VLOOKUP('Nomina ObreroAgricola'!L47,AdministracionListas!$D$1:$F$148,3,FALSE), "") -> Pla | O47: =IFERROR(VLOOKUP('Nomina ObreroAgricola'!L47,AdministracionListas!$D$1:$G$148,4,FALSE), "") -> 300 | P47: 90 | Q47: 0.49 | R47: 1 | S47: 27000 | T47: =IFERROR(IF(VLOOKUP(J47&L47&I47,'Catalogo de Labores '!L:L,1,FALSE) = "",FALSE,"PERSONA CON LABOR PERMITIDA"), "PERSONA CON LABOR NO PERMITIDA") -> PERSONA CON LABOR PERMITIDA
A48: Jurado Forero Raumir | B48: 2016-11-01 | C48: 2016-11-01 | D48: 1 | E48: 11 | F48: 2016 | G48: 1056780747 | H48: =IFERROR(VLOOKUP('Nomina ObreroAgricola'!G48,'BD operarios '!$A$2:$C$18018,2,FALSE), "") -> Muñoz Estrada Wilmer Daniel | I48: =IFERROR(VLOOKUP('Nomina ObreroAgricola'!G48,'BD operarios '!$A$2:$C$18018,3,FALSE),"") -> OBRERO AGRICOLA | J48: M11 | L48: 317 | M48: =IFERROR(VLOOKUP('Nomina ObreroAgricola'!L48,AdministracionListas!$D$1:$E$148,2,FALSE), "") -> Siembra cacao vega con ahoyadora 15 cm X 40 cm | N48: =IFERROR(VLOOKUP('Nomina ObreroAgricola'!L48,AdministracionListas!$D$1:$F$148,3,FALSE), "") -> Pla | O48: =IFERROR(VLOOKUP('Nomina ObreroAgricola'!L48,AdministracionListas!$D$1:$G$148,4,FALSE), "") -> 300 | P48: 90 | Q48: 0.49 | R48: 1 | S48: 27000 | T48: =IFERROR(IF(VLOOKUP(J48&L48&I48,'Catalogo de Labores '!L:L,1,FALSE) = "",FALSE,"PERSONA CON LABOR PERMITIDA"), "PERSONA CON LABOR NO PERMITIDA") -> PERSONA CON LABOR PERMITIDA
A49: Jurado Forero Raumir | B49: 2016-11-01 | C49: 2016-11-01 | D49: 1 | E49: 11 | F49: 2016 | G49: 1063363394 | H49: =IFERROR(VLOOKUP('Nomina ObreroAgricola'!G49,'BD operarios '!$A$2:$C$18018,2,FALSE), "") -> Polo Mendoza Reinaldo Jose | I49: =IFERROR(VLOOKUP('Nomina ObreroAgricola'!G49,'BD operarios '!$A$2:$C$18018,3,FALSE),"") -> OBRERO AGRICOLA | J49: M11 | L49: 317 | M49: =IFERROR(VLOOKUP('Nomina ObreroAgricola'!L49,AdministracionListas!$D$1:$E$148,2,FALSE), "") -> Siembra cacao vega con ahoyadora 15 cm X 40 cm | N49: =IFERROR(VLOOKUP('Nomina ObreroAgricola'!L49,AdministracionListas!$D$1:$F$148,3,FALSE), "") -> Pla | O49: =IFERROR(VLOOKUP('Nomina ObreroAgricola'!L49,AdministracionListas!$D$1:$G$148,4,FALSE), "") -> 300 | P49: 91 | Q49: 0.49 | R49: 1 | S49: 27300 | T49: =IFERROR(IF(VLOOKUP(J49&L49&I49,'Catalogo de Labores '!L:L,1,FALSE) = "",FALSE,"PERSONA CON LABOR PERMITIDA"), "PERSONA CON LABOR NO PERMITIDA") -> PERSONA CON LABOR PERMITIDA
A50: Jurado Forero Raumir | B50: 2016-11-01 | C50: 2016-11-01 | D50: 1 | E50: 11 | F50: 2016 | G50: 7252561 | H50: =IFERROR(VLOOKUP('Nomina ObreroAgricola'!G50,'BD operarios '!$A$2:$C$18018,2,FALSE), "") -> Acevedo Julio Cesar | I50: =IFERROR(VLOOKUP('Nomina ObreroAgricola'!G50,'BD operarios '!$A$2:$C$18018,3,FALSE),"") -> OBRERO AGRICOLA | J50: M11 | L50: 307 | M50: =IFERROR(VLOOKUP('Nomina ObreroAgricola'!L50,AdministracionListas!$D$1:$E$148,2,FALSE), "") -> Resiembra Cacao al Jornal | N50: =IFERROR(VLOOKUP('Nomina ObreroAgricola'!L50,AdministracionListas!$D$1:$F$148,3,FALSE), "") -> jor | O50: =IFERROR(VLOOKUP('Nomina ObreroAgricola'!L50,AdministracionListas!$D$1:$G$148,4,FALSE), "") -> 29439 | P50: 11 | Q50: 0.36 | R50: 1 | S50: 10598.04 | T50: =IFERROR(IF(VLOOKUP(J50&L50&I50,'Catalogo de Labores '!L:L,1,FALSE) = "",FALSE,"PERSONA CON LABOR PERMITIDA"), "PERSONA CON LABOR NO PERMITIDA") -> PERSONA CON LABOR PERMITIDA
A51: Jurado Forero Raumir | B51: 2016-11-01 | C51: 2016-11-01 | D51: 1 | E51: 11 | F51: 2016 | G51: 71180688 | H51: =IFERROR(VLOOKUP('Nomina ObreroAgricola'!G51,'BD operarios '!$A$2:$C$18018,2,FALSE), "") -> Garcia Sanchez Luis Anibal | I51: =IFERROR(VLOOKUP('Nomina ObreroAgricola'!G51,'BD operarios '!$A$2:$C$18018,3,FALSE),"") -> OBRERO AGRICOLA | J51: M11 | L51: 307 | M51: =IFERROR(VLOOKUP('Nomina ObreroAgricola'!L51,AdministracionListas!$D$1:$E$148,2,FALSE), "") -> Resiembra Cacao al Jornal | N51: =IFERROR(VLOOKUP('Nomina ObreroAgricola'!L51,AdministracionListas!$D$1:$F$148,3,FALSE), "") -> jor | O51: =IFERROR(VLOOKUP('Nomina ObreroAgricola'!L51,AdministracionListas!$D$1:$G$148,4,FALSE), "") -> 29439 | P51: 11 | Q51: 0.36 | R51: 1 | S51: 10598.04 | T51: =IFERROR(IF(VLOOKUP(J51&L51&I51,'Catalogo de Labores '!L:L,1,FALSE) = "",FALSE,"PERSONA CON LABOR PERMITIDA"), "PERSONA CON LABOR NO PERMITIDA") -> PERSONA CON LABOR PERMITIDA
A52: Jurado Forero Raumir | B52: 2016-11-01 | C52: 2016-11-01 | D52: 1 | E52: 11 | F52: 2016 | G52: 86069670 | H52: =IFERROR(VLOOKUP('Nomina ObreroAgricola'!G52,'BD operarios '!$A$2:$C$18018,2,FALSE), "") -> Murillo Blandon Jose Gilberto | I52: =IFERROR(VLOOKUP('Nomina ObreroAgricola'!G52,'BD operarios '!$A$2:$C$18018,3,FALSE),"") -> OBRERO AGRICOLA | J52: M11 | L52: 307 | M52: =IFERROR(VLOOKUP('Nomina ObreroAgricola'!L52,AdministracionListas!$D$1:$E$148,2,FALSE), "") -> Resiembra Cacao al Jornal | N52: =IFERROR(VLOOKUP('Nomina ObreroAgricola'!L52,AdministracionListas!$D$1:$F$148,3,FALSE), "") -> jor | O52: =IFERROR(VLOOKUP('Nomina ObreroAgricola'!L52,AdministracionListas!$D$1:$G$148,4,FALSE), "") -> 29439 | P52: 11 | Q52: 0.36 | R52: 1 | S52: 10598.04 | T52: =IFERROR(IF(VLOOKUP(J52&L52&I52,'Catalogo de Labores '!L:L,1,FALSE) = "",FALSE,"PERSONA CON LABOR PERMITIDA"), "PERSONA CON LABOR NO PERMITIDA") -> PERSONA CON LABOR PERMITIDA
A53: Jurado Forero Raumir | B53: 2016-11-01 | C53: 2016-11-01 | D53: 1 | E53: 11 | F53: 2016 | G53: 1036133595 | H53: =IFERROR(VLOOKUP('Nomina ObreroAgricola'!G53,'BD operarios '!$A$2:$C$18018,2,FALSE), "") -> Carmona Jerez Jhon Edinson | I53: =IFERROR(VLOOKUP('Nomina ObreroAgricola'!G53,'BD operarios '!$A$2:$C$18018,3,FALSE),"") -> OBRERO AGRICOLA | J53: M11 | L53: 307 | M53: =IFERROR(VLOOKUP('Nomina ObreroAgricola'!L53,AdministracionListas!$D$1:$E$148,2,FALSE), "") -> Resiembra Cacao al Jornal | N53: =IFERROR(VLOOKUP('Nomina ObreroAgricola'!L53,AdministracionListas!$D$1:$F$148,3,FALSE), "") -> jor | O53: =IFERROR(VLOOKUP('Nomina ObreroAgricola'!L53,AdministracionListas!$D$1:$G$148,4,FALSE), "") -> 29439 | P53: 12 | Q53: 0.36 | R53: 1 | S53: 10598.04 | T53: =IFERROR(IF(VLOOKUP(J53&L53&I53,'Catalogo de Labores '!L:L,1,FALSE) = "",FALSE,"PERSONA CON LABOR PERMITIDA"), "PERSONA CON LABOR NO PERMITIDA") -> PERSONA CON LABOR PERMITIDA
A54: Jurado Forero Raumir | B54: 2016-11-01 | C54: 2016-11-01 | D54: 1 | E54: 11 | F54: 2016 | G54: 1056768964 | H54: =IFERROR(VLOOKUP('Nomina ObreroAgricola'!G54,'BD operarios '!$A$2:$C$18018,2,FALSE), "") -> Diosa Huber De Jesus | I54: =IFERROR(VLOOKUP('Nomina ObreroAgricola'!G54,'BD operarios '!$A$2:$C$18018,3,FALSE),"") -> OBRERO AGRICOLA | J54: M11 | L54: 307 | M54: =IFERROR(VLOOKUP('Nomina ObreroAgricola'!L54,AdministracionListas!$D$1:$E$148,2,FALSE), "") -> Resiembra Cacao al Jornal | N54: =IFERROR(VLOOKUP('Nomina ObreroAgricola'!L54,AdministracionListas!$D$1:$F$148,3,FALSE), "") -> jor | O54: =IFERROR(VLOOKUP('Nomina ObreroAgricola'!L54,AdministracionListas!$D$1:$G$148,4,FALSE), "") -> 29439 | P54: 12 | Q54: 0.36 | R54: 1 | S54: 10598.04 | T54: =IFERROR(IF(VLOOKUP(J54&L54&I54,'Catalogo de Labores '!L:L,1,FALSE) = "",FALSE,"PERSONA CON LABOR PERMITIDA"), "PERSONA CON LABOR NO PERMITIDA") -> PERSONA CON LABOR PERMITIDA
A55: Jurado Forero Raumir | B55: 2016-11-01 | C55: 2016-11-01 | D55: 1 | E55: 11 | F55: 2016 | G55: 1036130640 | H55: =IFERROR(VLOOKUP('Nomina ObreroAgricola'!G55,'BD operarios '!$A$2:$C$18018,2,FALSE), "") -> Zapata Luis Alberto | I55: =IFERROR(VLOOKUP('Nomina ObreroAgricola'!G55,'BD operarios '!$A$2:$C$18018,3,FALSE),"") -> OBRERO AGRICOLA | J55: M11 | L55: 307 | M55: =IFERROR(VLOOKUP('Nomina ObreroAgricola'!L55,AdministracionListas!$D$1:$E$148,2,FALSE), "") -> Resiembra Cacao al Jornal | N55: =IFERROR(VLOOKUP('Nomina ObreroAgricola'!L55,AdministracionListas!$D$1:$F$148,3,FALSE), "") -> jor | O55: =IFERROR(VLOOKUP('Nomina ObreroAgricola'!L55,AdministracionListas!$D$1:$G$148,4,FALSE), "") -> 29439 | P55: 12 | Q55: 0.36 | R55: 1 | S55: 10598.04 | T55: =IFERROR(IF(VLOOKUP(J55&L55&I55,'Catalogo de Labores '!L:L,1,FALSE) = "",FALSE,"PERSONA CON LABOR PERMITIDA"), "PERSONA CON LABOR NO PERMITIDA") -> PERSONA CON LABOR PERMITIDA
A56: Jurado Forero Raumir | B56: 2016-11-01 | C56: 2016-11-01 | D56: 1 | E56: 11 | F56: 2016 | G56: 3133217 | H56: =IFERROR(VLOOKUP('Nomina ObreroAgricola'!G56,'BD operarios '!$A$2:$C$18018,2,FALSE), "") -> Mejia Juan Sebastian | I56: =IFERROR(VLOOKUP('Nomina ObreroAgricola'!G56,'BD operarios '!$A$2:$C$18018,3,FALSE),"") -> OBRERO AGRICOLA | J56: M11 | L56: 307 | M56: =IFERROR(VLOOKUP('Nomina ObreroAgricola'!L56,AdministracionListas!$D$1:$E$148,2,FALSE), "") -> Resiembra Cacao al Jornal | N56: =IFERROR(VLOOKUP('Nomina ObreroAgricola'!L56,AdministracionListas!$D$1:$F$148,3,FALSE), "") -> jor | O56: =IFERROR(VLOOKUP('Nomina ObreroAgricola'!L56,AdministracionListas!$D$1:$G$148,4,FALSE), "") -> 29439 | P56: 12 | Q56: 0.36 | R56: 1 | S56: 10598.04 | T56: =IFERROR(IF(VLOOKUP(J56&L56&I56,'Catalogo de Labores '!L:L,1,FALSE) = "",FALSE,"PERSONA CON LABOR PERMITIDA"), "PERSONA CON LABOR NO PERMITIDA") -> PERSONA CON LABOR PERMITIDA
A57: Jurado Forero Raumir | B57: 2016-11-01 | C57: 2016-11-01 | D57: 1 | E57: 11 | F57: 2016 | G57: 80152878 | H57: =IFERROR(VLOOKUP('Nomina ObreroAgricola'!G57,'BD operarios '!$A$2:$C$18018,2,FALSE), "") -> Rocha Castro Gener Arturo | I57: =IFERROR(VLOOKUP('Nomina ObreroAgricola'!G57,'BD operarios '!$A$2:$C$18018,3,FALSE),"") -> OBRERO AGRICOLA | J57: M11 | L57: 307 | M57: =IFERROR(VLOOKUP('Nomina ObreroAgricola'!L57,AdministracionListas!$D$1:$E$148,2,FALSE), "") -> Resiembra Cacao al Jornal | N57: =IFERROR(VLOOKUP('Nomina ObreroAgricola'!L57,AdministracionListas!$D$1:$F$148,3,FALSE), "") -> jor | O57: =IFERROR(VLOOKUP('Nomina ObreroAgricola'!L57,AdministracionListas!$D$1:$G$148,4,FALSE), "") -> 29439 | P57: 12 | Q57: 0.36 | R57: 1 | S57: 10598.04 | T57: =IFERROR(IF(VLOOKUP(J57&L57&I57,'Catalogo de Labores '!L:L,1,FALSE) = "",FALSE,"PERSONA CON LABOR PERMITIDA"), "PERSONA CON LABOR NO PERMITIDA") -> PERSONA CON LABOR PERMITIDA
A58: Jurado Forero Raumir | B58: 2016-11-01 | C58: 2016-11-01 | D58: 1 | E58: 11 | F58: 2016 | G58: 1056780747 | H58: =IFERROR(VLOOKUP('Nomina ObreroAgricola'!G58,'BD operarios '!$A$2:$C$18018,2,FALSE), "") -> Muñoz Estrada Wilmer Daniel | I58: =IFERROR(VLOOKUP('Nomina ObreroAgricola'!G58,'BD operarios '!$A$2:$C$18018,3,FALSE),"") -> OBRERO AGRICOLA | J58: M11 | L58: 307 | M58: =IFERROR(VLOOKUP('Nomina ObreroAgricola'!L58,AdministracionListas!$D$1:$E$148,2,FALSE), "") -> Resiembra Cacao al Jornal | N58: =IFERROR(VLOOKUP('Nomina ObreroAgricola'!L58,AdministracionListas!$D$1:$F$148,3,FALSE), "") -> jor | O58: =IFERROR(VLOOKUP('Nomina ObreroAgricola'!L58,AdministracionListas!$D$1:$G$148,4,FALSE), "") -> 29439 | P58: 12 | Q58: 0.36 | R58: 1 | S58: 10598.04 | T58: =IFERROR(IF(VLOOKUP(J58&L58&I58,'Catalogo de Labores '!L:L,1,FALSE) = "",FALSE,"PERSONA CON LABOR PERMITIDA"), "PERSONA CON LABOR NO PERMITIDA") -> PERSONA CON LABOR PERMITIDA
A59: Jurado Forero Raumir | B59: 2016-11-01 | C59: 2016-11-01 | D59: 1 | E59: 11 | F59: 2016 | G59: 1063363394 | H59: =IFERROR(VLOOKUP('Nomina ObreroAgricola'!G59,'BD operarios '!$A$2:$C$18018,2,FALSE), "") -> Polo Mendoza Reinaldo Jose | I59: =IFERROR(VLOOKUP('Nomina ObreroAgricola'!G59,'BD operarios '!$A$2:$C$18018,3,FALSE),"") -> OBRERO AGRICOLA | J59: M11 | L59: 307 | M59: =IFERROR(VLOOKUP('Nomina ObreroAgricola'!L59,AdministracionListas!$D$1:$E$148,2,FALSE), "") -> Resiembra Cacao al Jornal | N59: =IFERROR(VLOOKUP('Nomina ObreroAgricola'!L59,AdministracionListas!$D$1:$F$148,3,FALSE), "") -> jor | O59: =IFERROR(VLOOKUP('Nomina ObreroAgricola'!L59,AdministracionListas!$D$1:$G$148,4,FALSE), "") -> 29439 | P59: 12 | Q59: 0.36 | R59: 1 | S59: 10598.04 | T59: =IFERROR(IF(VLOOKUP(J59&L59&I59,'Catalogo de Labores '!L:L,1,FALSE) = "",FALSE,"PERSONA CON LABOR PERMITIDA"), "PERSONA CON LABOR NO PERMITIDA") -> PERSONA CON LABOR PERMITIDA
A60: Jurado Forero Raumir | B60: 2016-11-01 | C60: 2016-11-01 | D60: 1 | E60: 11 | F60: 2016 | G60: 7252561 | H60: =IFERROR(VLOOKUP('Nomina ObreroAgricola'!G60,'BD operarios '!$A$2:$C$18018,2,FALSE), "") -> Acevedo Julio Cesar | I60: =IFERROR(VLOOKUP('Nomina ObreroAgricola'!G60,'BD operarios '!$A$2:$C$18018,3,FALSE),"") -> OBRERO AGRICOLA | J60: M10 | L60: 317 | M60: =IFERROR(VLOOKUP('Nomina ObreroAgricola'!L60,AdministracionListas!$D$1:$E$148,2,FALSE), "") -> Siembra cacao vega con ahoyadora 15 cm X 40 cm | N60: =IFERROR(VLOOKUP('Nomina ObreroAgricola'!L60,AdministracionListas!$D$1:$F$148,3,FALSE), "") -> Pla | O60: =IFERROR(VLOOKUP('Nomina ObreroAgricola'!L60,AdministracionListas!$D$1:$G$148,4,FALSE), "") -> 300 | P60: 55 | Q60: 0.3 | R60: 1 | S60: 16500 | T60: =IFERROR(IF(VLOOKUP(J60&L60&I60,'Catalogo de Labores '!L:L,1,FALSE) = "",FALSE,"PERSONA CON LABOR PERMITIDA"), "PERSONA CON LABOR NO PERMITIDA") -> PERSONA CON LABOR PERMITIDA
A61: Jurado Forero Raumir | B61: 2016-11-01 | C61: 2016-11-01 | D61: 1 | E61: 11 | F61: 2016 | G61: 71180688 | H61: =IFERROR(VLOOKUP('Nomina ObreroAgricola'!G61,'BD operarios '!$A$2:$C$18018,2,FALSE), "") -> Garcia Sanchez Luis Anibal | I61: =IFERROR(VLOOKUP('Nomina ObreroAgricola'!G61,'BD operarios '!$A$2:$C$18018,3,FALSE),"") -> OBRERO AGRICOLA | J61: M10 | L61: 317 | M61: =IFERROR(VLOOKUP('Nomina ObreroAgricola'!L61,AdministracionListas!$D$1:$E$148,2,FALSE), "") -> Siembra cacao vega con ahoyadora 15 cm X 40 cm | N61: =IFERROR(VLOOKUP('Nomina ObreroAgricola'!L61,AdministracionListas!$D$1:$F$148,3,FALSE), "") -> Pla | O61: =IFERROR(VLOOKUP('Nomina ObreroAgricola'!L61,AdministracionListas!$D$1:$G$148,4,FALSE), "") -> 300 | P61: 55 | Q61: 0.3 | R61: 1 | S61: 16500 | T61: =IFERROR(IF(VLOOKUP(J61&L61&I61,'Catalogo de Labores '!L:L,1,FALSE) = "",FALSE,"PERSONA CON LABOR PERMITIDA"), "PERSONA CON LABOR NO PERMITIDA") -> PERSONA CON LABOR PERMITIDA
A62: Jurado Forero Raumir | B62: 2016-11-01 | C62: 2016-11-01 | D62: 1 | E62: 11 | F62: 2016 | G62: 86069670 | H62: =IFERROR(VLOOKUP('Nomina ObreroAgricola'!G62,'BD operarios '!$A$2:$C$18018,2,FALSE), "") -> Murillo Blandon Jose Gilberto | I62: =IFERROR(VLOOKUP('Nomina ObreroAgricola'!G62,'BD operarios '!$A$2:$C$18018,3,FALSE),"") -> OBRERO AGRICOLA | J62: M10 | L62: 317 | M62: =IFERROR(VLOOKUP('Nomina ObreroAgricola'!L62,AdministracionListas!$D$1:$E$148,2,FALSE), "") -> Siembra cacao vega con ahoyadora 15 cm X 40 cm | N62: =IFERROR(VLOOKUP('Nomina ObreroAgricola'!L62,AdministracionListas!$D$1:$F$148,3,FALSE), "") -> Pla | O62: =IFERROR(VLOOKUP('Nomina ObreroAgricola'!L62,AdministracionListas!$D$1:$G$148,4,FALSE), "") -> 300 | P62: 55 | Q62: 0.3 | R62: 1 | S62: 16500 | T62: =IFERROR(IF(VLOOKUP(J62&L62&I62,'Catalogo de Labores '!L:L,1,FALSE) = "",FALSE,"PERSONA CON LABOR PERMITIDA"), "PERSONA CON LABOR NO PERMITIDA") -> PERSONA CON LABOR PERMITIDA
A63: Jurado Forero Raumir | B63: 2016-11-01 | C63: 2016-11-01 | D63: 1 | E63: 11 | F63: 2016 | G63: 1036133595 | H63: =IFERROR(VLOOKUP('Nomina ObreroAgricola'!G63,'BD operarios '!$A$2:$C$18018,2,FALSE), "") -> Carmona Jerez Jhon Edinson | I63: =IFERROR(VLOOKUP('Nomina ObreroAgricola'!G63,'BD operarios '!$A$2:$C$18018,3,FALSE),"") -> OBRERO AGRICOLA | J63: M10 | L63: 317 | M63: =IFERROR(VLOOKUP('Nomina ObreroAgricola'!L63,AdministracionListas!$D$1:$E$148,2,FALSE), "") -> Siembra cacao vega con ahoyadora 15 cm X 40 cm | N63: =IFERROR(VLOOKUP('Nomina ObreroAgricola'!L63,AdministracionListas!$D$1:$F$148,3,FALSE), "") -> Pla | O63: =IFERROR(VLOOKUP('Nomina ObreroAgricola'!L63,AdministracionListas!$D$1:$G$148,4,FALSE), "") -> 300 | P63: 55 | Q63: 0.3 | R63: 1 | S63: 16500 | T63: =IFERROR(IF(VLOOKUP(J63&L63&I63,'Catalogo de Labores '!L:L,1,FALSE) = "",FALSE,"PERSONA CON LABOR PERMITIDA"), "PERSONA CON LABOR NO PERMITIDA") -> PERSONA CON LABOR PERMITIDA
A64: Jurado Forero Raumir | B64: 2016-11-01 | C64: 2016-11-01 | D64: 1 | E64: 11 | F64: 2016 | G64: 1056768964 | H64: =IFERROR(VLOOKUP('Nomina ObreroAgricola'!G64,'BD operarios '!$A$2:$C$18018,2,FALSE), "") -> Diosa Huber De Jesus | I64: =IFERROR(VLOOKUP('Nomina ObreroAgricola'!G64,'BD operarios '!$A$2:$C$18018,3,FALSE),"") -> OBRERO AGRICOLA | J64: M10 | L64: 317 | M64: =IFERROR(VLOOKUP('Nomina ObreroAgricola'!L64,AdministracionListas!$D$1:$E$148,2,FALSE), "") -> Siembra cacao vega con ahoyadora 15 cm X 40 cm | N64: =IFERROR(VLOOKUP('Nomina ObreroAgricola'!L64,AdministracionListas!$D$1:$F$148,3,FALSE), "") -> Pla | O64: =IFERROR(VLOOKUP('Nomina ObreroAgricola'!L64,AdministracionListas!$D$1:$G$148,4,FALSE), "") -> 300 | P64: 55 | Q64: 0.3 | R64: 1 | S64: 16500 | T64: =IFERROR(IF(VLOOKUP(J64&L64&I64,'Catalogo de Labores '!L:L,1,FALSE) = "",FALSE,"PERSONA CON LABOR PERMITIDA"), "PERSONA CON LABOR NO PERMITIDA") -> PERSONA CON LABOR PERMITIDA
A65: Jurado Forero Raumir | B65: 2016-11-01 | C65: 2016-11-01 | D65: 1 | E65: 11 | F65: 2016 | G65: 1036130640 | H65: =IFERROR(VLOOKUP('Nomina ObreroAgricola'!G65,'BD operarios '!$A$2:$C$18018,2,FALSE), "") -> Zapata Luis Alberto | I65: =IFERROR(VLOOKUP('Nomina ObreroAgricola'!G65,'BD operarios '!$A$2:$C$18018,3,FALSE),"") -> OBRERO AGRICOLA | J65: M10 | L65: 317 | M65: =IFERROR(VLOOKUP('Nomina ObreroAgricola'!L65,AdministracionListas!$D$1:$E$148,2,FALSE), "") -> Siembra cacao vega con ahoyadora 15 cm X 40 cm | N65: =IFERROR(VLOOKUP('Nomina ObreroAgricola'!L65,AdministracionListas!$D$1:$F$148,3,FALSE), "") -> Pla | O65: =IFERROR(VLOOKUP('Nomina ObreroAgricola'!L65,AdministracionListas!$D$1:$G$148,4,FALSE), "") -> 300 | P65: 55 | Q65: 0.3 | R65: 1 | S65: 16500 | T65: =IFERROR(IF(VLOOKUP(J65&L65&I65,'Catalogo de Labores '!L:L,1,FALSE) = "",FALSE,"PERSONA CON LABOR PERMITIDA"), "PERSONA CON LABOR NO PERMITIDA") -> PERSONA CON LABOR PERMITIDA
A66: Jurado Forero Raumir | B66: 2016-11-01 | C66: 2016-11-01 | D66: =IF(ISBLANK(C66),"",DAY(C66)) -> 1 | E66: =IF(ISBLANK(C66),"",MONTH(C66)) -> 11 | F66: =IF(ISBLANK(C66),"",YEAR(C66)) -> 2016 | G66: 3133217 | H66: =IFERROR(VLOOKUP('Nomina ObreroAgricola'!G66,'BD operarios '!$A$2:$C$18018,2,FALSE), "") -> Mejia Juan Sebastian | I66: =IFERROR(VLOOKUP('Nomina ObreroAgricola'!G66,'BD operarios '!$A$2:$C$18018,3,FALSE),"") -> OBRERO AGRICOLA | J66: M10 | L66: 317 | M66: =IFERROR(VLOOKUP('Nomina ObreroAgricola'!L66,AdministracionListas!$D$1:$E$148,2,FALSE), "") -> Siembra cacao vega con ahoyadora 15 cm X 40 cm | N66: =IFERROR(VLOOKUP('Nomina ObreroAgricola'!L66,AdministracionListas!$D$1:$F$148,3,FALSE), "") -> Pla | O66: =IFERROR(VLOOKUP('Nomina ObreroAgricola'!L66,AdministracionListas!$D$1:$G$148,4,FALSE), "") -> 300 | P66: 55 | Q66: 0.3 | R66: 1 | S66: =IFERROR(IF(N66="jor",O66*Q66,O66*P66),"") -> 16500 | T66: =IFERROR(IF(VLOOKUP(J66&L66&I66,'Catalogo de Labores '!L:L,1,FALSE) = "",FALSE,"PERSONA CON LABOR PERMITIDA"), "PERSONA CON LABOR NO PERMITIDA") -> PERSONA CON LABOR PERMITIDA | U66: =IF(AND(OR(N66<>"Jor",N66<>"jor"),Q66="",ISNUMBER(L66)),"Falta jornal",IF(AND(OR(N66="Jor",N66="jor"),P66="",L66<>906,L66<>401,L66<>960,L66<>990,L66<>980,L66<>970,L66<>950,L66<>118,L66<>119),"Falta labor"," ")) -> 
A67: Jurado Forero Raumir | B67: 2016-11-01 | C67: 2016-11-01 | D67: 1 | E67: 11 | F67: 2016 | G67: 80152878 | H67: =IFERROR(VLOOKUP('Nomina ObreroAgricola'!G67,'BD operarios '!$A$2:$C$18018,2,FALSE), "") -> Rocha Castro Gener Arturo | I67: =IFERROR(VLOOKUP('Nomina ObreroAgricola'!G67,'BD operarios '!$A$2:$C$18018,3,FALSE),"") -> OBRERO AGRICOLA | J67: M10 | L67: 317 | M67: =IFERROR(VLOOKUP('Nomina ObreroAgricola'!L67,AdministracionListas!$D$1:$E$148,2,FALSE), "") -> Siembra cacao vega con ahoyadora 15 cm X 40 cm | N67: =IFERROR(VLOOKUP('Nomina ObreroAgricola'!L67,AdministracionListas!$D$1:$F$148,3,FALSE), "") -> Pla | O67: =IFERROR(VLOOKUP('Nomina ObreroAgricola'!L67,AdministracionListas!$D$1:$G$148,4,FALSE), "") -> 300 | P67: 55 | Q67: 0.3 | R67: 1 | S67: 16500 | T67: =IFERROR(IF(VLOOKUP(J67&L67&I67,'Catalogo de Labores '!L:L,1,FALSE) = "",FALSE,"PERSONA CON LABOR PERMITIDA"), "PERSONA CON LABOR NO PERMITIDA") -> PERSONA CON LABOR PERMITIDA
A68: Jurado Forero Raumir | B68: 2016-11-01 | C68: 2016-11-01 | D68: 1 | E68: 11 | F68: 2016 | G68: 1056780747 | H68: =IFERROR(VLOOKUP('Nomina ObreroAgricola'!G68,'BD operarios '!$A$2:$C$18018,2,FALSE), "") -> Muñoz Estrada Wilmer Daniel | I68: =IFERROR(VLOOKUP('Nomina ObreroAgricola'!G68,'BD operarios '!$A$2:$C$18018,3,FALSE),"") -> OBRERO AGRICOLA | J68: M10 | L68: 317 | M68: =IFERROR(VLOOKUP('Nomina ObreroAgricola'!L68,AdministracionListas!$D$1:$E$148,2,FALSE), "") -> Siembra cacao vega con ahoyadora 15 cm X 40 cm | N68: =IFERROR(VLOOKUP('Nomina ObreroAgricola'!L68,AdministracionListas!$D$1:$F$148,3,FALSE), "") -> Pla | O68: =IFERROR(VLOOKUP('Nomina ObreroAgricola'!L68,AdministracionListas!$D$1:$G$148,4,FALSE), "") -> 300 | P68: 55 | Q68: 0.3 | R68: 1 | S68: 16500 | T68: =IFERROR(IF(VLOOKUP(J68&L68&I68,'Catalogo de Labores '!L:L,1,FALSE) = "",FALSE,"PERSONA CON LABOR PERMITIDA"), "PERSONA CON LABOR NO PERMITIDA") -> PERSONA CON LABOR PERMITIDA
A69: Jurado Forero Raumir | B69: 2016-11-01 | C69: 2016-11-01 | D69: 1 | E69: 11 | F69: 2016 | G69: 1063363394 | H69: =IFERROR(VLOOKUP('Nomina ObreroAgricola'!G69,'BD operarios '!$A$2:$C$18018,2,FALSE), "") -> Polo Mendoza Reinaldo Jose | I69: =IFERROR(VLOOKUP('Nomina ObreroAgricola'!G69,'BD operarios '!$A$2:$C$18018,3,FALSE),"") -> OBRERO AGRICOLA | J69: M10 | L69: 317 | M69: =IFERROR(VLOOKUP('Nomina ObreroAgricola'!L69,AdministracionListas!$D$1:$E$148,2,FALSE), "") -> Siembra cacao vega con ahoyadora 15 cm X 40 cm | N69: =IFERROR(VLOOKUP('Nomina ObreroAgricola'!L69,AdministracionListas!$D$1:$F$148,3,FALSE), "") -> Pla | O69: =IFERROR(VLOOKUP('Nomina ObreroAgricola'!L69,AdministracionListas!$D$1:$G$148,4,FALSE), "") -> 300 | P69: 55 | Q69: 0.3 | R69: 1 | S69: 16500 | T69: =IFERROR(IF(VLOOKUP(J69&L69&I69,'Catalogo de Labores '!L:L,1,FALSE) = "",FALSE,"PERSONA CON LABOR PERMITIDA"), "PERSONA CON LABOR NO PERMITIDA") -> PERSONA CON LABOR PERMITIDA
A70: Jurado Forero Raumir | B70: 2016-11-01 | C70: 2016-11-01 | D70: 1 | E70: 11 | F70: 2016 | G70: 7252561 | H70: =IFERROR(VLOOKUP('Nomina ObreroAgricola'!G70,'BD operarios '!$A$2:$C$18018,2,FALSE), "") -> Acevedo Julio Cesar | I70: =IFERROR(VLOOKUP('Nomina ObreroAgricola'!G70,'BD operarios '!$A$2:$C$18018,3,FALSE),"") -> OBRERO AGRICOLA | J70: M10 | L70: 307 | M70: =IFERROR(VLOOKUP('Nomina ObreroAgricola'!L70,AdministracionListas!$D$1:$E$148,2,FALSE), "") -> Resiembra Cacao al Jornal | N70: =IFERROR(VLOOKUP('Nomina ObreroAgricola'!L70,AdministracionListas!$D$1:$F$148,3,FALSE), "") -> jor | O70: =IFERROR(VLOOKUP('Nomina ObreroAgricola'!L70,AdministracionListas!$D$1:$G$148,4,FALSE), "") -> 29439 | P70: 25 | Q70: 0.76 | R70: 1 | S70: 22373.64 | T70: =IFERROR(IF(VLOOKUP(J70&L70&I70,'Catalogo de Labores '!L:L,1,FALSE) = "",FALSE,"PERSONA CON LABOR PERMITIDA"), "PERSONA CON LABOR NO PERMITIDA") -> PERSONA CON LABOR PERMITIDA
A71: Jurado Forero Raumir | B71: 2016-11-01 | C71: 2016-11-01 | D71: 1 | E71: 11 | F71: 2016 | G71: 71180688 | H71: =IFERROR(VLOOKUP('Nomina ObreroAgricola'!G71,'BD operarios '!$A$2:$C$18018,2,FALSE), "") -> Garcia Sanchez Luis Anibal | I71: =IFERROR(VLOOKUP('Nomina ObreroAgricola'!G71,'BD operarios '!$A$2:$C$18018,3,FALSE),"") -> OBRERO AGRICOLA | J71: M10 | L71: 307 | M71: =IFERROR(VLOOKUP('Nomina ObreroAgricola'!L71,AdministracionListas!$D$1:$E$148,2,FALSE), "") -> Resiembra Cacao al Jornal | N71: =IFERROR(VLOOKUP('Nomina ObreroAgricola'!L71,AdministracionListas!$D$1:$F$148,3,FALSE), "") -> jor | O71: =IFERROR(VLOOKUP('Nomina ObreroAgricola'!L71,AdministracionListas!$D$1:$G$148,4,FALSE), "") -> 29439 | P71: 25 | Q71: 0.76 | R71: 1 | S71: 22373.64 | T71: =IFERROR(IF(VLOOKUP(J71&L71&I71,'Catalogo de Labores '!L:L,1,FALSE) = "",FALSE,"PERSONA CON LABOR PERMITIDA"), "PERSONA CON LABOR NO PERMITIDA") -> PERSONA CON LABOR PERMITIDA
A72: Jurado Forero Raumir | B72: 2016-11-01 | C72: 2016-11-01 | D72: 1 | E72: 11 | F72: 2016 | G72: 86069670 | H72: =IFERROR(VLOOKUP('Nomina ObreroAgricola'!G72,'BD operarios '!$A$2:$C$18018,2,FALSE), "") -> Murillo Blandon Jose Gilberto | I72: =IFERROR(VLOOKUP('Nomina ObreroAgricola'!G72,'BD operarios '!$A$2:$C$18018,3,FALSE),"") -> OBRERO AGRICOLA | J72: M10 | L72: 307 | M72: =IFERROR(VLOOKUP('Nomina ObreroAgricola'!L72,AdministracionListas!$D$1:$E$148,2,FALSE), "") -> Resiembra Cacao al Jornal | N72: =IFERROR(VLOOKUP('Nomina ObreroAgricola'!L72,AdministracionListas!$D$1:$F$148,3,FALSE), "") -> jor | O72: =IFERROR(VLOOKUP('Nomina ObreroAgricola'!L72,AdministracionListas!$D$1:$G$148,4,FALSE), "") -> 29439 | P72: 25 | Q72: 0.76 | R72: 1 | S72: 22373.64 | T72: =IFERROR(IF(VLOOKUP(J72&L72&I72,'Catalogo de Labores '!L:L,1,FALSE) = "",FALSE,"PERSONA CON LABOR PERMITIDA"), "PERSONA CON LABOR NO PERMITIDA") -> PERSONA CON LABOR PERMITIDA
A73: Jurado Forero Raumir | B73: 2016-11-01 | C73: 2016-11-01 | D73: 1 | E73: 11 | F73: 2016 | G73: 1036133595 | H73: =IFERROR(VLOOKUP('Nomina ObreroAgricola'!G73,'BD operarios '!$A$2:$C$18018,2,FALSE), "") -> Carmona Jerez Jhon Edinson | I73: =IFERROR(VLOOKUP('Nomina ObreroAgricola'!G73,'BD operarios '!$A$2:$C$18018,3,FALSE),"") -> OBRERO AGRICOLA | J73: M10 | L73: 307 | M73: =IFERROR(VLOOKUP('Nomina ObreroAgricola'!L73,AdministracionListas!$D$1:$E$148,2,FALSE), "") -> Resiembra Cacao al Jornal | N73: =IFERROR(VLOOKUP('Nomina ObreroAgricola'!L73,AdministracionListas!$D$1:$F$148,3,FALSE), "") -> jor | O73: =IFERROR(VLOOKUP('Nomina ObreroAgricola'!L73,AdministracionListas!$D$1:$G$148,4,FALSE), "") -> 29439 | P73: 25 | Q73: 0.76 | R73: 1 | S73: 22373.64 | T73: =IFERROR(IF(VLOOKUP(J73&L73&I73,'Catalogo de Labores '!L:L,1,FALSE) = "",FALSE,"PERSONA CON LABOR PERMITIDA"), "PERSONA CON LABOR NO PERMITIDA") -> PERSONA CON LABOR PERMITIDA
A74: Jurado Forero Raumir | B74: 2016-11-01 | C74: 2016-11-01 | D74: 1 | E74: 11 | F74: 2016 | G74: 1056768964 | H74: =IFERROR(VLOOKUP('Nomina ObreroAgricola'!G74,'BD operarios '!$A$2:$C$18018,2,FALSE), "") -> Diosa Huber De Jesus | I74: =IFERROR(VLOOKUP('Nomina ObreroAgricola'!G74,'BD operarios '!$A$2:$C$18018,3,FALSE),"") -> OBRERO AGRICOLA | J74: M10 | L74: 307 | M74: =IFERROR(VLOOKUP('Nomina ObreroAgricola'!L74,AdministracionListas!$D$1:$E$148,2,FALSE), "") -> Resiembra Cacao al Jornal | N74: =IFERROR(VLOOKUP('Nomina ObreroAgricola'!L74,AdministracionListas!$D$1:$F$148,3,FALSE), "") -> jor | O74: =IFERROR(VLOOKUP('Nomina ObreroAgricola'!L74,AdministracionListas!$D$1:$G$148,4,FALSE), "") -> 29439 | P74: 25 | Q74: 0.76 | R74: 1 | S74: 22373.64 | T74: =IFERROR(IF(VLOOKUP(J74&L74&I74,'Catalogo de Labores '!L:L,1,FALSE) = "",FALSE,"PERSONA CON LABOR PERMITIDA"), "PERSONA CON LABOR NO PERMITIDA") -> PERSONA CON LABOR PERMITIDA
A75: Jurado Forero Raumir | B75: 2016-11-01 | C75: 2016-11-01 | D75: 1 | E75: 11 | F75: 2016 | G75: 1036130640 | H75: =IFERROR(VLOOKUP('Nomina ObreroAgricola'!G75,'BD operarios '!$A$2:$C$18018,2,FALSE), "") -> Zapata Luis Alberto | I75: =IFERROR(VLOOKUP('Nomina ObreroAgricola'!G75,'BD operarios '!$A$2:$C$18018,3,FALSE),"") -> OBRERO AGRICOLA | J75: M10 | L75: 307 | M75: =IFERROR(VLOOKUP('Nomina ObreroAgricola'!L75,AdministracionListas!$D$1:$E$148,2,FALSE), "") -> Resiembra Cacao al Jornal | N75: =IFERROR(VLOOKUP('Nomina ObreroAgricola'!L75,AdministracionListas!$D$1:$F$148,3,FALSE), "") -> jor | O75: =IFERROR(VLOOKUP('Nomina ObreroAgricola'!L75,AdministracionListas!$D$1:$G$148,4,FALSE), "") -> 29439 | P75: 25 | Q75: 0.76 | R75: 1 | S75: 22373.64 | T75: =IFERROR(IF(VLOOKUP(J75&L75&I75,'Catalogo de Labores '!L:L,1,FALSE) = "",FALSE,"PERSONA CON LABOR PERMITIDA"), "PERSONA CON LABOR NO PERMITIDA") -> PERSONA CON LABOR PERMITIDA
A76: Jurado Forero Raumir | B76: 2016-11-01 | C76: 2016-11-01 | D76: 1 | E76: 11 | F76: 2016 | G76: 3133217 | H76: =IFERROR(VLOOKUP('Nomina ObreroAgricola'!G76,'BD operarios '!$A$2:$C$18018,2,FALSE), "") -> Mejia Juan Sebastian | I76: =IFERROR(VLOOKUP('Nomina ObreroAgricola'!G76,'BD operarios '!$A$2:$C$18018,3,FALSE),"") -> OBRERO AGRICOLA | J76: M10 | L76: 307 | M76: =IFERROR(VLOOKUP('Nomina ObreroAgricola'!L76,AdministracionListas!$D$1:$E$148,2,FALSE), "") -> Resiembra Cacao al Jornal | N76: =IFERROR(VLOOKUP('Nomina ObreroAgricola'!L76,AdministracionListas!$D$1:$F$148,3,FALSE), "") -> jor | O76: =IFERROR(VLOOKUP('Nomina ObreroAgricola'!L76,AdministracionListas!$D$1:$G$148,4,FALSE), "") -> 29439 | P76: 25 | Q76: 0.76 | R76: 1 | S76: 22373.64 | T76: =IFERROR(IF(VLOOKUP(J76&L76&I76,'Catalogo de Labores '!L:L,1,FALSE) = "",FALSE,"PERSONA CON LABOR PERMITIDA"), "PERSONA CON LABOR NO PERMITIDA") -> PERSONA CON LABOR PERMITIDA
A77: Jurado Forero Raumir | B77: 2016-11-01 | C77: 2016-11-01 | D77: 1 | E77: 11 | F77: 2016 | G77: 80152878 | H77: =IFERROR(VLOOKUP('Nomina ObreroAgricola'!G77,'BD operarios '!$A$2:$C$18018,2,FALSE), "") -> Rocha Castro Gener Arturo | I77: =IFERROR(VLOOKUP('Nomina ObreroAgricola'!G77,'BD operarios '!$A$2:$C$18018,3,FALSE),"") -> OBRERO AGRICOLA | J77: M10 | L77: 307 | M77: =IFERROR(VLOOKUP('Nomina ObreroAgricola'!L77,AdministracionListas!$D$1:$E$148,2,FALSE), "") -> Resiembra Cacao al Jornal | N77: =IFERROR(VLOOKUP('Nomina ObreroAgricola'!L77,AdministracionListas!$D$1:$F$148,3,FALSE), "") -> jor | O77: =IFERROR(VLOOKUP('Nomina ObreroAgricola'!L77,AdministracionListas!$D$1:$G$148,4,FALSE), "") -> 29439 | P77: 25 | Q77: 0.76 | R77: 1 | S77: 22373.64 | T77: =IFERROR(IF(VLOOKUP(J77&L77&I77,'Catalogo de Labores '!L:L,1,FALSE) = "",FALSE,"PERSONA CON LABOR PERMITIDA"), "PERSONA CON LABOR NO PERMITIDA") -> PERSONA CON LABOR PERMITIDA
A78: Jurado Forero Raumir | B78: 2016-11-01 | C78: 2016-11-01 | D78: 1 | E78: 11 | F78: 2016 | G78: 1056780747 | H78: =IFERROR(VLOOKUP('Nomina ObreroAgricola'!G78,'BD operarios '!$A$2:$C$18018,2,FALSE), "") -> Muñoz Estrada Wilmer Daniel | I78: =IFERROR(VLOOKUP('Nomina ObreroAgricola'!G78,'BD operarios '!$A$2:$C$18018,3,FALSE),"") -> OBRERO AGRICOLA | J78: M10 | L78: 307 | M78: =IFERROR(VLOOKUP('Nomina ObreroAgricola'!L78,AdministracionListas!$D$1:$E$148,2,FALSE), "") -> Resiembra Cacao al Jornal | N78: =IFERROR(VLOOKUP('Nomina ObreroAgricola'!L78,AdministracionListas!$D$1:$F$148,3,FALSE), "") -> jor | O78: =IFERROR(VLOOKUP('Nomina ObreroAgricola'!L78,AdministracionListas!$D$1:$G$148,4,FALSE), "") -> 29439 | P78: 25 | Q78: 0.76 | R78: 1 | S78: 22373.64 | T78: =IFERROR(IF(VLOOKUP(J78&L78&I78,'Catalogo de Labores '!L:L,1,FALSE) = "",FALSE,"PERSONA CON LABOR PERMITIDA"), "PERSONA CON LABOR NO PERMITIDA") -> PERSONA CON LABOR PERMITIDA
A79: Jurado Forero Raumir | B79: 2016-11-01 | C79: 2016-11-01 | D79: 1 | E79: 11 | F79: 2016 | G79: 1063363394 | H79: =IFERROR(VLOOKUP('Nomina ObreroAgricola'!G79,'BD operarios '!$A$2:$C$18018,2,FALSE), "") -> Polo Mendoza Reinaldo Jose | I79: =IFERROR(VLOOKUP('Nomina ObreroAgricola'!G79,'BD operarios '!$A$2:$C$18018,3,FALSE),"") -> OBRERO AGRICOLA | J79: M10 | L79: 307 | M79: =IFERROR(VLOOKUP('Nomina ObreroAgricola'!L79,AdministracionListas!$D$1:$E$148,2,FALSE), "") -> Resiembra Cacao al Jornal | N79: =IFERROR(VLOOKUP('Nomina ObreroAgricola'!L79,AdministracionListas!$D$1:$F$148,3,FALSE), "") -> jor | O79: =IFERROR(VLOOKUP('Nomina ObreroAgricola'!L79,AdministracionListas!$D$1:$G$148,4,FALSE), "") -> 29439 | P79: 25 | Q79: 0.76 | R79: 1 | S79: 22373.64 | T79: =IFERROR(IF(VLOOKUP(J79&L79&I79,'Catalogo de Labores '!L:L,1,FALSE) = "",FALSE,"PERSONA CON LABOR PERMITIDA"), "PERSONA CON LABOR NO PERMITIDA") -> PERSONA CON LABOR PERMITIDA
A80: Morales Gonzalez Donardo | B80: 2016-11-01 | C80: 2016-11-01 | D80: 1 | E80: 11 | F80: 2016 | G80: 900697835 | H80: =IFERROR(VLOOKUP('Nomina ObreroAgricola'!G80,'BD operarios '!$A$2:$C$18018,2,FALSE), "") -> Agroservir S.A.S | I80: =IFERROR(VLOOKUP('Nomina ObreroAgricola'!G80,'BD operarios '!$A$2:$C$18018,3,FALSE),"") -> CONTRATISTA | J80: M11 | L80: 317 | M80: =IFERROR(VLOOKUP('Nomina ObreroAgricola'!L80,AdministracionListas!$D$1:$E$148,2,FALSE), "") -> Siembra cacao vega con ahoyadora 15 cm X 40 cm | N80: =IFERROR(VLOOKUP('Nomina ObreroAgricola'!L80,AdministracionListas!$D$1:$F$148,3,FALSE), "") -> Pla | O80: =IFERROR(VLOOKUP('Nomina ObreroAgricola'!L80,AdministracionListas!$D$1:$G$148,4,FALSE), "") -> 300 | P80: 963 | Q80: 8.8 | R80: 1 | S80: 288900 | T80: =IFERROR(IF(VLOOKUP(J80&L80&I80,'Catalogo de Labores '!L:L,1,FALSE) = "",FALSE,"PERSONA CON LABOR PERMITIDA"), "PERSONA CON LABOR NO PERMITIDA") -> PERSONA CON LABOR PERMITIDA
A81: Morales Gonzalez Donardo | B81: 2016-11-01 | C81: 2016-11-01 | D81: 1 | E81: 11 | F81: 2016 | G81: 900697835 | H81: =IFERROR(VLOOKUP('Nomina ObreroAgricola'!G81,'BD operarios '!$A$2:$C$18018,2,FALSE), "") -> Agroservir S.A.S | I81: =IFERROR(VLOOKUP('Nomina ObreroAgricola'!G81,'BD operarios '!$A$2:$C$18018,3,FALSE),"") -> CONTRATISTA | J81: M11 | L81: 307 | M81: =IFERROR(VLOOKUP('Nomina ObreroAgricola'!L81,AdministracionListas!$D$1:$E$148,2,FALSE), "") -> Resiembra Cacao al Jornal | N81: =IFERROR(VLOOKUP('Nomina ObreroAgricola'!L81,AdministracionListas!$D$1:$F$148,3,FALSE), "") -> jor | O81: =IFERROR(VLOOKUP('Nomina ObreroAgricola'!L81,AdministracionListas!$D$1:$G$148,4,FALSE), "") -> 29439 | P81: 234 | Q81: 3.19 | R81: 1 | S81: 93910.41 | T81: =IFERROR(IF(VLOOKUP(J81&L81&I81,'Catalogo de Labores '!L:L,1,FALSE) = "",FALSE,"PERSONA CON LABOR PERMITIDA"), "PERSONA CON LABOR NO PERMITIDA") -> PERSONA CON LABOR PERMITIDA
A82: Medina Martinez Jahiby Bronson | B82: 2016-11-01 | C82: 2016-11-01 | D82: 1 | E82: 11 | F82: 2016 | G82: 3392763 | H82: =IFERROR(VLOOKUP('Nomina ObreroAgricola'!G82,'BD operarios '!$A$2:$C$18018,2,FALSE), "") -> Melo Angarita Heiber Adolfo | I82: =IFERROR(VLOOKUP('Nomina ObreroAgricola'!G82,'BD operarios '!$A$2:$C$18018,3,FALSE),"") -> OBRERO AGRICOLA | J82: M11 | L82: 307 | M82: =IFERROR(VLOOKUP('Nomina ObreroAgricola'!L82,AdministracionListas!$D$1:$E$148,2,FALSE), "") -> Resiembra Cacao al Jornal | N82: =IFERROR(VLOOKUP('Nomina ObreroAgricola'!L82,AdministracionListas!$D$1:$F$148,3,FALSE), "") -> jor | O82: =IFERROR(VLOOKUP('Nomina ObreroAgricola'!L82,AdministracionListas!$D$1:$G$148,4,FALSE), "") -> 29439 | P82: 72.3 | Q82: 0.93 | R82: 1 | S82: 27378.27 | T82: =IFERROR(IF(VLOOKUP(J82&L82&I82,'Catalogo de Labores '!L:L,1,FALSE) = "",FALSE,"PERSONA CON LABOR PERMITIDA"), "PERSONA CON LABOR NO PERMITIDA") -> PERSONA CON LABOR PERMITIDA
A83: Medina Martinez Jahiby Bronson | B83: 2016-11-01 | C83: 2016-11-01 | D83: 1 | E83: 11 | F83: 2016 | G83: 1073323990 | H83: =IFERROR(VLOOKUP('Nomina ObreroAgricola'!G83,'BD operarios '!$A$2:$C$18018,2,FALSE), "") -> Rojas Parra Andres Guillermo | I83: =IFERROR(VLOOKUP('Nomina ObreroAgricola'!G83,'BD operarios '!$A$2:$C$18018,3,FALSE),"") -> OBRERO AGRICOLA | J83: M11 | L83: 990 | M83: =IFERROR(VLOOKUP('Nomina ObreroAgricola'!L83,AdministracionListas!$D$1:$E$148,2,FALSE), "") -> Falta Injustificada | N83: =IFERROR(VLOOKUP('Nomina ObreroAgricola'!L83,AdministracionListas!$D$1:$F$148,3,FALSE), "") -> jor | O83: =IFERROR(VLOOKUP('Nomina ObreroAgricola'!L83,AdministracionListas!$D$1:$G$148,4,FALSE), "") -> 0 | P83: 1 | Q83: 0 | R83: 0 | S83: 0 | T83: =IFERROR(IF(VLOOKUP(J83&L83&I83,'Catalogo de Labores '!L:L,1,FALSE) = "",FALSE,"PERSONA CON LABOR PERMITIDA"), "PERSONA CON LABOR NO PERMITIDA") -> PERSONA CON LABOR PERMITIDA
A84: Medina Martinez Jahiby Bronson | B84: 2016-11-01 | C84: 2016-11-01 | D84: 1 | E84: 11 | F84: 2016 | G84: 2991143 | H84: =IFERROR(VLOOKUP('Nomina ObreroAgricola'!G84,'BD operarios '!$A$2:$C$18018,2,FALSE), "") -> Bernal Ayala Orlando | I84: =IFERROR(VLOOKUP('Nomina ObreroAgricola'!G84,'BD operarios '!$A$2:$C$18018,3,FALSE),"") -> OBRERO AGRICOLA | J84: M11 | L84: 980 | M84: =IFERROR(VLOOKUP('Nomina ObreroAgricola'!L84,AdministracionListas!$D$1:$E$148,2,FALSE), "") -> Licencia ARL | N84: =IFERROR(VLOOKUP('Nomina ObreroAgricola'!L84,AdministracionListas!$D$1:$F$148,3,FALSE), "") -> jor | O84: =IFERROR(VLOOKUP('Nomina ObreroAgricola'!L84,AdministracionListas!$D$1:$G$148,4,FALSE), "") -> 29439 | P84: 1 | Q84: 0 | R84: 0 | S84: 0 | T84: =IFERROR(IF(VLOOKUP(J84&L84&I84,'Catalogo de Labores '!L:L,1,FALSE) = "",FALSE,"PERSONA CON LABOR PERMITIDA"), "PERSONA CON LABOR NO PERMITIDA") -> PERSONA CON LABOR PERMITIDA
A85: Medina Martinez Jahiby Bronson | B85: 2016-11-01 | C85: 2016-11-01 | D85: 1 | E85: 11 | F85: 2016 | G85: 73015505 | H85: =IFERROR(VLOOKUP('Nomina ObreroAgricola'!G85,'BD operarios '!$A$2:$C$18018,2,FALSE), "") -> Castillo Martinez Fraycel | I85: =IFERROR(VLOOKUP('Nomina ObreroAgricola'!G85,'BD operarios '!$A$2:$C$18018,3,FALSE),"") -> OBRERO AGRICOLA | J85: M11 | L85: 307 | M85: =IFERROR(VLOOKUP('Nomina ObreroAgricola'!L85,AdministracionListas!$D$1:$E$148,2,FALSE), "") -> Resiembra Cacao al Jornal | N85: =IFERROR(VLOOKUP('Nomina ObreroAgricola'!L85,AdministracionListas!$D$1:$F$148,3,FALSE), "") -> jor | O85: =IFERROR(VLOOKUP('Nomina ObreroAgricola'!L85,AdministracionListas!$D$1:$G$148,4,FALSE), "") -> 29439 | P85: 72.3 | Q85: 0.93 | R85: 1 | S85: 27378.27 | T85: =IFERROR(IF(VLOOKUP(J85&L85&I85,'Catalogo de Labores '!L:L,1,FALSE) = "",FALSE,"PERSONA CON LABOR PERMITIDA"), "PERSONA CON LABOR NO PERMITIDA") -> PERSONA CON LABOR PERMITIDA
A86: Medina Martinez Jahiby Bronson | B86: 2016-11-01 | C86: 2016-11-01 | D86: 1 | E86: 11 | F86: 2016 | G86: 1036838011 | H86: =IFERROR(VLOOKUP('Nomina ObreroAgricola'!G86,'BD operarios '!$A$2:$C$18018,2,FALSE), "") -> Quintero Arango Norberto De Jesus | I86: =IFERROR(VLOOKUP('Nomina ObreroAgricola'!G86,'BD operarios '!$A$2:$C$18018,3,FALSE),"") -> OBRERO AGRICOLA | J86: M11 | L86: 970 | M86: =IFERROR(VLOOKUP('Nomina ObreroAgricola'!L86,AdministracionListas!$D$1:$E$148,2,FALSE), "") -> Licencia PEG | N86: =IFERROR(VLOOKUP('Nomina ObreroAgricola'!L86,AdministracionListas!$D$1:$F$148,3,FALSE), "") -> jor | O86: =IFERROR(VLOOKUP('Nomina ObreroAgricola'!L86,AdministracionListas!$D$1:$G$148,4,FALSE), "") -> 29439 | P86: 1 | Q86: 0 | R86: 0 | S86: 0 | T86: =IFERROR(IF(VLOOKUP(J86&L86&I86,'Catalogo de Labores '!L:L,1,FALSE) = "",FALSE,"PERSONA CON LABOR PERMITIDA"), "PERSONA CON LABOR NO PERMITIDA") -> PERSONA CON LABOR PERMITIDA
A87: Medina Martinez Jahiby Bronson | B87: 2016-11-01 | C87: 2016-11-01 | D87: 1 | E87: 11 | F87: 2016 | G87: 7246941 | H87: =IFERROR(VLOOKUP('Nomina ObreroAgricola'!G87,'BD operarios '!$A$2:$C$18018,2,FALSE), "") -> Valencia Jose Hermel | I87: =IFERROR(VLOOKUP('Nomina ObreroAgricola'!G87,'BD operarios '!$A$2:$C$18018,3,FALSE),"") -> OBRERO AGRICOLA | J87: M11 | L87: 307 | M87: =IFERROR(VLOOKUP('Nomina ObreroAgricola'!L87,AdministracionListas!$D$1:$E$148,2,FALSE), "") -> Resiembra Cacao al Jornal | N87: =IFERROR(VLOOKUP('Nomina ObreroAgricola'!L87,AdministracionListas!$D$1:$F$148,3,FALSE), "") -> jor | O87: =IFERROR(VLOOKUP('Nomina ObreroAgricola'!L87,AdministracionListas!$D$1:$G$148,4,FALSE), "") -> 29439 | P87: 72.3 | Q87: 0.93 | R87: 1 | S87: 27378.27 | T87: =IFERROR(IF(VLOOKUP(J87&L87&I87,'Catalogo de Labores '!L:L,1,FALSE) = "",FALSE,"PERSONA CON LABOR PERMITIDA"), "PERSONA CON LABOR NO PERMITIDA") -> PERSONA CON LABOR PERMITIDA
A88: Medina Martinez Jahiby Bronson | B88: 2016-11-01 | C88: 2016-11-01 | D88: 1 | E88: 11 | F88: 2016 | G88: 10182443 | H88: =IFERROR(VLOOKUP('Nomina ObreroAgricola'!G88,'BD operarios '!$A$2:$C$18018,2,FALSE), "") -> Charres Herrera Luis Enrique | I88: =IFERROR(VLOOKUP('Nomina ObreroAgricola'!G88,'BD operarios '!$A$2:$C$18018,3,FALSE),"") -> OBRERO AGRICOLA | J88: M11 | L88: 307 | M88: =IFERROR(VLOOKUP('Nomina ObreroAgricola'!L88,AdministracionListas!$D$1:$E$148,2,FALSE), "") -> Resiembra Cacao al Jornal | N88: =IFERROR(VLOOKUP('Nomina ObreroAgricola'!L88,AdministracionListas!$D$1:$F$148,3,FALSE), "") -> jor | O88: =IFERROR(VLOOKUP('Nomina ObreroAgricola'!L88,AdministracionListas!$D$1:$G$148,4,FALSE), "") -> 29439 | P88: 72.3 | Q88: 0.93 | R88: 1 | S88: 27378.27 | T88: =IFERROR(IF(VLOOKUP(J88&L88&I88,'Catalogo de Labores '!L:L,1,FALSE) = "",FALSE,"PERSONA CON LABOR PERMITIDA"), "PERSONA CON LABOR NO PERMITIDA") -> PERSONA CON LABOR PERMITIDA
A89: Medina Martinez Jahiby Bronson | B89: 2016-11-01 | C89: 2016-11-01 | D89: 1 | E89: 11 | F89: 2016 | G89: 1039682059 | H89: =IFERROR(VLOOKUP('Nomina ObreroAgricola'!G89,'BD operarios '!$A$2:$C$18018,2,FALSE), "") -> Lujan Moreles William | I89: =IFERROR(VLOOKUP('Nomina ObreroAgricola'!G89,'BD operarios '!$A$2:$C$18018,3,FALSE),"") -> OBRERO AGRICOLA | J89: M11 | L89: 307 | M89: =IFERROR(VLOOKUP('Nomina ObreroAgricola'!L89,AdministracionListas!$D$1:$E$148,2,FALSE), "") -> Resiembra Cacao al Jornal | N89: =IFERROR(VLOOKUP('Nomina ObreroAgricola'!L89,AdministracionListas!$D$1:$F$148,3,FALSE), "") -> jor | O89: =IFERROR(VLOOKUP('Nomina ObreroAgricola'!L89,AdministracionListas!$D$1:$G$148,4,FALSE), "") -> 29439 | P89: 56 | Q89: 0.76 | R89: 1 | S89: 22373.64 | T89: =IFERROR(IF(VLOOKUP(J89&L89&I89,'Catalogo de Labores '!L:L,1,FALSE) = "",FALSE,"PERSONA CON LABOR PERMITIDA"), "PERSONA CON LABOR NO PERMITIDA") -> PERSONA CON LABOR PERMITIDA
A90: Medina Martinez Jahiby Bronson | B90: 2016-11-01 | C90: 2016-11-01 | D90: 1 | E90: 11 | F90: 2016 | G90: 1056785098 | H90: =IFERROR(VLOOKUP('Nomina ObreroAgricola'!G90,'BD operarios '!$A$2:$C$18018,2,FALSE), "") -> Calderon Gallego Adolfo | I90: =IFERROR(VLOOKUP('Nomina ObreroAgricola'!G90,'BD operarios '!$A$2:$C$18018,3,FALSE),"") -> OBRERO AGRICOLA | J90: M11 | L90: 310 | M90: =IFERROR(VLOOKUP('Nomina ObreroAgricola'!L90,AdministracionListas!$D$1:$E$148,2,FALSE), "") -> Distribucion plantulas Cacao | N90: =IFERROR(VLOOKUP('Nomina ObreroAgricola'!L90,AdministracionListas!$D$1:$F$148,3,FALSE), "") -> jor | O90: =IFERROR(VLOOKUP('Nomina ObreroAgricola'!L90,AdministracionListas!$D$1:$G$148,4,FALSE), "") -> 33500 | P90: 503 | Q90: 1 | R90: 1 | S90: 33500 | T90: =IFERROR(IF(VLOOKUP(J90&L90&I90,'Catalogo de Labores '!L:L,1,FALSE) = "",FALSE,"PERSONA CON LABOR PERMITIDA"), "PERSONA CON LABOR NO PERMITIDA") -> PERSONA CON LABOR PERMITIDA
A91: Medina Martinez Jahiby Bronson | B91: 2016-11-01 | C91: 2016-11-01 | D91: 1 | E91: 11 | F91: 2016 | G91: 4380941 | H91: =IFERROR(VLOOKUP('Nomina ObreroAgricola'!G91,'BD operarios '!$A$2:$C$18018,2,FALSE), "") -> Martinez Oquendo Hector Jaime | I91: =IFERROR(VLOOKUP('Nomina ObreroAgricola'!G91,'BD operarios '!$A$2:$C$18018,3,FALSE),"") -> OBRERO AGRICOLA | J91: M11 | L91: 990 | M91: =IFERROR(VLOOKUP('Nomina ObreroAgricola'!L91,AdministracionListas!$D$1:$E$148,2,FALSE), "") -> Falta Injustificada | N91: =IFERROR(VLOOKUP('Nomina ObreroAgricola'!L91,AdministracionListas!$D$1:$F$148,3,FALSE), "") -> jor | O91: =IFERROR(VLOOKUP('Nomina ObreroAgricola'!L91,AdministracionListas!$D$1:$G$148,4,FALSE), "") -> 0 | P91: 1 | Q91: 0 | R91: 0 | S91: 0 | T91: =IFERROR(IF(VLOOKUP(J91&L91&I91,'Catalogo de Labores '!L:L,1,FALSE) = "",FALSE,"PERSONA CON LABOR PERMITIDA"), "PERSONA CON LABOR NO PERMITIDA") -> PERSONA CON LABOR PERMITIDA
A92: Medina Martinez Jahiby Bronson | B92: 2016-11-01 | C92: 2016-11-01 | D92: 1 | E92: 11 | F92: 2016 | G92: 3392763 | H92: =IFERROR(VLOOKUP('Nomina ObreroAgricola'!G92,'BD operarios '!$A$2:$C$18018,2,FALSE), "") -> Melo Angarita Heiber Adolfo | I92: =IFERROR(VLOOKUP('Nomina ObreroAgricola'!G92,'BD operarios '!$A$2:$C$18018,3,FALSE),"") -> OBRERO AGRICOLA | J92: M11 | L92: 317 | M92: =IFERROR(VLOOKUP('Nomina ObreroAgricola'!L92,AdministracionListas!$D$1:$E$148,2,FALSE), "") -> Siembra cacao vega con ahoyadora 15 cm X 40 cm | N92: =IFERROR(VLOOKUP('Nomina ObreroAgricola'!L92,AdministracionListas!$D$1:$F$148,3,FALSE), "") -> Pla | O92: =IFERROR(VLOOKUP('Nomina ObreroAgricola'!L92,AdministracionListas!$D$1:$G$148,4,FALSE), "") -> 300 | P92: 40.2 | Q92: 0.37 | R92: 1 | S92: 12060 | T92: =IFERROR(IF(VLOOKUP(J92&L92&I92,'Catalogo de Labores '!L:L,1,FALSE) = "",FALSE,"PERSONA CON LABOR PERMITIDA"), "PERSONA CON LABOR NO PERMITIDA") -> PERSONA CON LABOR PERMITIDA
A93: Medina Martinez Jahiby Bronson | B93: 2016-11-01 | C93: 2016-11-01 | D93: 1 | E93: 11 | F93: 2016 | G93: 73015505 | H93: =IFERROR(VLOOKUP('Nomina ObreroAgricola'!G93,'BD operarios '!$A$2:$C$18018,2,FALSE), "") -> Castillo Martinez Fraycel | I93: =IFERROR(VLOOKUP('Nomina ObreroAgricola'!G93,'BD operarios '!$A$2:$C$18018,3,FALSE),"") -> OBRERO AGRICOLA | J93: M11 | L93: 317 | M93: =IFERROR(VLOOKUP('Nomina ObreroAgricola'!L93,AdministracionListas!$D$1:$E$148,2,FALSE), "") -> Siembra cacao vega con ahoyadora 15 cm X 40 cm | N93: =IFERROR(VLOOKUP('Nomina ObreroAgricola'!L93,AdministracionListas!$D$1:$F$148,3,FALSE), "") -> Pla | O93: =IFERROR(VLOOKUP('Nomina ObreroAgricola'!L93,AdministracionListas!$D$1:$G$148,4,FALSE), "") -> 300 | P93: 40.2 | Q93: 0.37 | R93: 1 | S93: 12060 | T93: =IFERROR(IF(VLOOKUP(J93&L93&I93,'Catalogo de Labores '!L:L,1,FALSE) = "",FALSE,"PERSONA CON LABOR PERMITIDA"), "PERSONA CON LABOR NO PERMITIDA") -> PERSONA CON LABOR PERMITIDA
A94: Medina Martinez Jahiby Bronson | B94: 2016-11-01 | C94: 2016-11-01 | D94: 1 | E94: 11 | F94: 2016 | G94: 7246941 | H94: =IFERROR(VLOOKUP('Nomina ObreroAgricola'!G94,'BD operarios '!$A$2:$C$18018,2,FALSE), "") -> Valencia Jose Hermel | I94: =IFERROR(VLOOKUP('Nomina ObreroAgricola'!G94,'BD operarios '!$A$2:$C$18018,3,FALSE),"") -> OBRERO AGRICOLA | J94: M11 | L94: 317 | M94: =IFERROR(VLOOKUP('Nomina ObreroAgricola'!L94,AdministracionListas!$D$1:$E$148,2,FALSE), "") -> Siembra cacao vega con ahoyadora 15 cm X 40 cm | N94: =IFERROR(VLOOKUP('Nomina ObreroAgricola'!L94,AdministracionListas!$D$1:$F$148,3,FALSE), "") -> Pla | O94: =IFERROR(VLOOKUP('Nomina ObreroAgricola'!L94,AdministracionListas!$D$1:$G$148,4,FALSE), "") -> 300 | P94: 40.2 | Q94: 0.37 | R94: 1 | S94: 12060 | T94: =IFERROR(IF(VLOOKUP(J94&L94&I94,'Catalogo de Labores '!L:L,1,FALSE) = "",FALSE,"PERSONA CON LABOR PERMITIDA"), "PERSONA CON LABOR NO PERMITIDA") -> PERSONA CON LABOR PERMITIDA
A95: Medina Martinez Jahiby Bronson | B95: 2016-11-01 | C95: 2016-11-01 | D95: 1 | E95: 11 | F95: 2016 | G95: 10182443 | H95: =IFERROR(VLOOKUP('Nomina ObreroAgricola'!G95,'BD operarios '!$A$2:$C$18018,2,FALSE), "") -> Charres Herrera Luis Enrique | I95: =IFERROR(VLOOKUP('Nomina ObreroAgricola'!G95,'BD operarios '!$A$2:$C$18018,3,FALSE),"") -> OBRERO AGRICOLA | J95: M11 | L95: 317 | M95: =IFERROR(VLOOKUP('Nomina ObreroAgricola'!L95,AdministracionListas!$D$1:$E$148,2,FALSE), "") -> Siembra cacao vega con ahoyadora 15 cm X 40 cm | N95: =IFERROR(VLOOKUP('Nomina ObreroAgricola'!L95,AdministracionListas!$D$1:$F$148,3,FALSE), "") -> Pla | O95: =IFERROR(VLOOKUP('Nomina ObreroAgricola'!L95,AdministracionListas!$D$1:$G$148,4,FALSE), "") -> 300 | P95: 40.2 | Q95: 0.37 | R95: 1 | S95: 12060 | T95: =IFERROR(IF(VLOOKUP(J95&L95&I95,'Catalogo de Labores '!L:L,1,FALSE) = "",FALSE,"PERSONA CON LABOR PERMITIDA"), "PERSONA CON LABOR NO PERMITIDA") -> PERSONA CON LABOR PERMITIDA
A96: Gamez Mejia Jorge Armando | B96: 2016-11-01 | C96: 2016-11-01 | D96: 1 | E96: 11 | F96: 2016 | G96: 37555116 | H96: =IFERROR(VLOOKUP('Nomina ObreroAgricola'!G96,'BD operarios '!$A$2:$C$18018,2,FALSE), "") -> Meza Leon Claudia Patricia | I96: =IFERROR(VLOOKUP('Nomina ObreroAgricola'!G96,'BD operarios '!$A$2:$C$18018,3,FALSE),"") -> OBRERO AGRICOLA | J96: M12 | L96: 314 | M96: =IFERROR(VLOOKUP('Nomina ObreroAgricola'!L96,AdministracionListas!$D$1:$E$148,2,FALSE), "") -> Censo Plantacion | N96: =IFERROR(VLOOKUP('Nomina ObreroAgricola'!L96,AdministracionListas!$D$1:$F$148,3,FALSE), "") -> jor | O96: =IFERROR(VLOOKUP('Nomina ObreroAgricola'!L96,AdministracionListas!$D$1:$G$148,4,FALSE), "") -> 29439 | P96: 4802 | Q96: 1 | R96: 1 | S96: 29439 | T96: =IFERROR(IF(VLOOKUP(J96&L96&I96,'Catalogo de Labores '!L:L,1,FALSE) = "",FALSE,"PERSONA CON LABOR PERMITIDA"), "PERSONA CON LABOR NO PERMITIDA") -> PERSONA CON LABOR PERMITIDA
A97: Gamez Mejia Jorge Armando | B97: 2016-11-01 | C97: 2016-11-01 | D97: 1 | E97: 11 | F97: 2016 | G97: 1007202711 | H97: =IFERROR(VLOOKUP('Nomina ObreroAgricola'!G97,'BD operarios '!$A$2:$C$18018,2,FALSE), "") -> Contreras Giraldo Yessica Andrea | I97: =IFERROR(VLOOKUP('Nomina ObreroAgricola'!G97,'BD operarios '!$A$2:$C$18018,3,FALSE),"") -> OBRERO AGRICOLA | J97: M11 | L97: 314 | M97: =IFERROR(VLOOKUP('Nomina ObreroAgricola'!L97,AdministracionListas!$D$1:$E$148,2,FALSE), "") -> Censo Plantacion | N97: =IFERROR(VLOOKUP('Nomina ObreroAgricola'!L97,AdministracionListas!$D$1:$F$148,3,FALSE), "") -> jor | O97: =IFERROR(VLOOKUP('Nomina ObreroAgricola'!L97,AdministracionListas!$D$1:$G$148,4,FALSE), "") -> 29439 | P97: 74 | Q97: 0.6 | R97: 1 | S97: 17663.4 | T97: =IFERROR(IF(VLOOKUP(J97&L97&I97,'Catalogo de Labores '!L:L,1,FALSE) = "",FALSE,"PERSONA CON LABOR PERMITIDA"), "PERSONA CON LABOR NO PERMITIDA") -> PERSONA CON LABOR PERMITIDA
A98: Gamez Mejia Jorge Armando | B98: 2016-11-01 | C98: 2016-11-01 | D98: 1 | E98: 11 | F98: 2016 | G98: 1036220365 | H98: =IFERROR(VLOOKUP('Nomina ObreroAgricola'!G98,'BD operarios '!$A$2:$C$18018,2,FALSE), "") -> Quintero Ocampo Miladis | I98: =IFERROR(VLOOKUP('Nomina ObreroAgricola'!G98,'BD operarios '!$A$2:$C$18018,3,FALSE),"") -> OBRERO AGRICOLA | J98: M11 | L98: 314 | M98: =IFERROR(VLOOKUP('Nomina ObreroAgricola'!L98,AdministracionListas!$D$1:$E$148,2,FALSE), "") -> Censo Plantacion | N98: =IFERROR(VLOOKUP('Nomina ObreroAgricola'!L98,AdministracionListas!$D$1:$F$148,3,FALSE), "") -> jor | O98: =IFERROR(VLOOKUP('Nomina ObreroAgricola'!L98,AdministracionListas!$D$1:$G$148,4,FALSE), "") -> 29439 | P98: 74 | Q98: 0.6 | R98: 1 | S98: 17663.4 | T98: =IFERROR(IF(VLOOKUP(J98&L98&I98,'Catalogo de Labores '!L:L,1,FALSE) = "",FALSE,"PERSONA CON LABOR PERMITIDA"), "PERSONA CON LABOR NO PERMITIDA") -> PERSONA CON LABOR PERMITIDA
A99: Gamez Mejia Jorge Armando | B99: 2016-11-01 | C99: 2016-11-01 | D99: 1 | E99: 11 | F99: 2016 | G99: 1039702579 | H99: =IFERROR(VLOOKUP('Nomina ObreroAgricola'!G99,'BD operarios '!$A$2:$C$18018,2,FALSE), "") -> Gil Tobon Lili Manuela | I99: =IFERROR(VLOOKUP('Nomina ObreroAgricola'!G99,'BD operarios '!$A$2:$C$18018,3,FALSE),"") -> OBRERO AGRICOLA | J99: M12 | L99: 314 | M99: =IFERROR(VLOOKUP('Nomina ObreroAgricola'!L99,AdministracionListas!$D$1:$E$148,2,FALSE), "") -> Censo Plantacion | N99: =IFERROR(VLOOKUP('Nomina ObreroAgricola'!L99,AdministracionListas!$D$1:$F$148,3,FALSE), "") -> jor | O99: =IFERROR(VLOOKUP('Nomina ObreroAgricola'!L99,AdministracionListas!$D$1:$G$148,4,FALSE), "") -> 29439 | P99: 2502 | Q99: 1 | R99: 1 | S99: 29439 | T99: =IFERROR(IF(VLOOKUP(J99&L99&I99,'Catalogo de Labores '!L:L,1,FALSE) = "",FALSE,"PERSONA CON LABOR PERMITIDA"), "PERSONA CON LABOR NO PERMITIDA") -> PERSONA CON LABOR PERMITIDA
A100: Gamez Mejia Jorge Armando | B100: 2016-11-01 | C100: 2016-11-01 | D100: 1 | E100: 11 | F100: 2016 | G100: 1002690992 | H100: =IFERROR(VLOOKUP('Nomina ObreroAgricola'!G100,'BD operarios '!$A$2:$C$18018,2,FALSE), "") -> Vargas Giraldo Jhon Andres | I100: =IFERROR(VLOOKUP('Nomina ObreroAgricola'!G100,'BD operarios '!$A$2:$C$18018,3,FALSE),"") -> OBRERO AGRICOLA | J100: M11 | L100: 314 | M100: =IFERROR(VLOOKUP('Nomina ObreroAgricola'!L100,AdministracionListas!$D$1:$E$148,2,FALSE), "") -> Censo Plantacion | N100: =IFERROR(VLOOKUP('Nomina ObreroAgricola'!L100,AdministracionListas!$D$1:$F$148,3,FALSE), "") -> jor | O100: =IFERROR(VLOOKUP('Nomina ObreroAgricola'!L100,AdministracionListas!$D$1:$G$148,4,FALSE), "") -> 29439 | P100: 74 | Q100: 0.6 | R100: 1 | S100: 17663.4 | T100: =IFERROR(IF(VLOOKUP(J100&L100&I100,'Catalogo de Labores '!L:L,1,FALSE) = "",FALSE,"PERSONA CON LABOR PERMITIDA"), "PERSONA CON LABOR NO PERMITIDA") -> PERSONA CON LABOR PERMITIDA
A101: Gamez Mejia Jorge Armando | B101: 2016-11-01 | C101: 2016-11-01 | D101: 1 | E101: 11 | F101: 2016 | G101: 1007202711 | H101: =IFERROR(VLOOKUP('Nomina ObreroAgricola'!G101,'BD operarios '!$A$2:$C$18018,2,FALSE), "") -> Contreras Giraldo Yessica Andrea | I101: =IFERROR(VLOOKUP('Nomina ObreroAgricola'!G101,'BD operarios '!$A$2:$C$18018,3,FALSE),"") -> OBRERO AGRICOLA | J101: M12 | L101: 314 | M101: =IFERROR(VLOOKUP('Nomina ObreroAgricola'!L101,AdministracionListas!$D$1:$E$148,2,FALSE), "") -> Censo Plantacion | N101: =IFERROR(VLOOKUP('Nomina ObreroAgricola'!L101,AdministracionListas!$D$1:$F$148,3,FALSE), "") -> jor | O101: =IFERROR(VLOOKUP('Nomina ObreroAgricola'!L101,AdministracionListas!$D$1:$G$148,4,FALSE), "") -> 29439 | P101: 42 | Q101: 0.4 | R101: 1 | S101: 11775.6 | T101: =IFERROR(IF(VLOOKUP(J101&L101&I101,'Catalogo de Labores '!L:L,1,FALSE) = "",FALSE,"PERSONA CON LABOR PERMITIDA"), "PERSONA CON LABOR NO PERMITIDA") -> PERSONA CON LABOR PERMITIDA
A102: Gamez Mejia Jorge Armando | B102: 2016-11-01 | C102: 2016-11-01 | D102: 1 | E102: 11 | F102: 2016 | G102: 1036220365 | H102: =IFERROR(VLOOKUP('Nomina ObreroAgricola'!G102,'BD operarios '!$A$2:$C$18018,2,FALSE), "") -> Quintero Ocampo Miladis | I102: =IFERROR(VLOOKUP('Nomina ObreroAgricola'!G102,'BD operarios '!$A$2:$C$18018,3,FALSE),"") -> OBRERO AGRICOLA | J102: M12 | L102: 314 | M102: =IFERROR(VLOOKUP('Nomina ObreroAgricola'!L102,AdministracionListas!$D$1:$E$148,2,FALSE), "") -> Censo Plantacion | N102: =IFERROR(VLOOKUP('Nomina ObreroAgricola'!L102,AdministracionListas!$D$1:$F$148,3,FALSE), "") -> jor | O102: =IFERROR(VLOOKUP('Nomina ObreroAgricola'!L102,AdministracionListas!$D$1:$G$148,4,FALSE), "") -> 29439 | P102: 42 | Q102: 0.4 | R102: 1 | S102: 11775.6 | T102: =IFERROR(IF(VLOOKUP(J102&L102&I102,'Catalogo de Labores '!L:L,1,FALSE) = "",FALSE,"PERSONA CON LABOR PERMITIDA"), "PERSONA CON LABOR NO PERMITIDA") -> PERSONA CON LABOR PERMITIDA
A103: Gamez Mejia Jorge Armando | B103: 2016-11-01 | C103: 2016-11-01 | D103: 1 | E103: 11 | F103: 2016 | G103: 1002690992 | H103: =IFERROR(VLOOKUP('Nomina ObreroAgricola'!G103,'BD operarios '!$A$2:$C$18018,2,FALSE), "") -> Vargas Giraldo Jhon Andres | I103: =IFERROR(VLOOKUP('Nomina ObreroAgricola'!G103,'BD operarios '!$A$2:$C$18018,3,FALSE),"") -> OBRERO AGRICOLA | J103: M12 | L103: 314 | M103: =IFERROR(VLOOKUP('Nomina ObreroAgricola'!L103,AdministracionListas!$D$1:$E$148,2,FALSE), "") -> Censo Plantacion | N103: =IFERROR(VLOOKUP('Nomina ObreroAgricola'!L103,AdministracionListas!$D$1:$F$148,3,FALSE), "") -> jor | O103: =IFERROR(VLOOKUP('Nomina ObreroAgricola'!L103,AdministracionListas!$D$1:$G$148,4,FALSE), "") -> 29439 | P103: 42 | Q103: 0.4 | R103: 1 | S103: 11775.6 | T103: =IFERROR(IF(VLOOKUP(J103&L103&I103,'Catalogo de Labores '!L:L,1,FALSE) = "",FALSE,"PERSONA CON LABOR PERMITIDA"), "PERSONA CON LABOR NO PERMITIDA") -> PERSONA CON LABOR PERMITIDA
A104: Garcia Predozo Alvaro | B104: 2016-11-01 | C104: 2016-11-01 | D104: 1 | E104: 11 | F104: 2016 | G104: 1056768940 | H104: =IFERROR(VLOOKUP('Nomina ObreroAgricola'!G104,'BD operarios '!$A$2:$C$18018,2,FALSE), "") -> Alvarez Campiño John Fredy | I104: =IFERROR(VLOOKUP('Nomina ObreroAgricola'!G104,'BD operarios '!$A$2:$C$18018,3,FALSE),"") -> OBRERO AGRICOLA | J104: 301 | L104: 204 | M104: =IFERROR(VLOOKUP('Nomina ObreroAgricola'!L104,AdministracionListas!$D$1:$E$148,2,FALSE), "") -> Alistamiento de lotes | N104: =IFERROR(VLOOKUP('Nomina ObreroAgricola'!L104,AdministracionListas!$D$1:$F$148,3,FALSE), "") -> jor | O104: =IFERROR(VLOOKUP('Nomina ObreroAgricola'!L104,AdministracionListas!$D$1:$G$148,4,FALSE), "") -> 29439 | Q104: 1 | R104: 1 | S104: 29439 | T104: =IFERROR(IF(VLOOKUP(J104&L104&I104,'Catalogo de Labores '!L:L,1,FALSE) = "",FALSE,"PERSONA CON LABOR PERMITIDA"), "PERSONA CON LABOR NO PERMITIDA") -> PERSONA CON LABOR PERMITIDA | U104: Falta labor
A105: Garcia Predozo Alvaro | B105: 2016-11-01 | C105: 2016-11-01 | D105: 1 | E105: 11 | F105: 2016 | G105: 91218444 | H105: =IFERROR(VLOOKUP('Nomina ObreroAgricola'!G105,'BD operarios '!$A$2:$C$18018,2,FALSE), "") -> Rodriguez Orozco Jesus | I105: =IFERROR(VLOOKUP('Nomina ObreroAgricola'!G105,'BD operarios '!$A$2:$C$18018,3,FALSE),"") -> OBRERO AGRICOLA | J105: M11 | L105: 310 | M105: =IFERROR(VLOOKUP('Nomina ObreroAgricola'!L105,AdministracionListas!$D$1:$E$148,2,FALSE), "") -> Distribucion plantulas Cacao | N105: =IFERROR(VLOOKUP('Nomina ObreroAgricola'!L105,AdministracionListas!$D$1:$F$148,3,FALSE), "") -> jor | O105: =IFERROR(VLOOKUP('Nomina ObreroAgricola'!L105,AdministracionListas!$D$1:$G$148,4,FALSE), "") -> 33500 | P105: 503 | Q105: 1 | R105: 1 | S105: 33500 | T105: =IFERROR(IF(VLOOKUP(J105&L105&I105,'Catalogo de Labores '!L:L,1,FALSE) = "",FALSE,"PERSONA CON LABOR PERMITIDA"), "PERSONA CON LABOR NO PERMITIDA") -> PERSONA CON LABOR PERMITIDA
A106: Garcia Predozo Alvaro | B106: 2016-11-01 | C106: 2016-11-01 | D106: 1 | E106: 11 | F106: 2016 | G106: 16161306 | H106: =IFERROR(VLOOKUP('Nomina ObreroAgricola'!G106,'BD operarios '!$A$2:$C$18018,2,FALSE), "") -> Triana Castaño Jorge Eliecer | I106: =IFERROR(VLOOKUP('Nomina ObreroAgricola'!G106,'BD operarios '!$A$2:$C$18018,3,FALSE),"") -> OBRERO AGRICOLA | J106: M11 | L106: 310 | M106: =IFERROR(VLOOKUP('Nomina ObreroAgricola'!L106,AdministracionListas!$D$1:$E$148,2,FALSE), "") -> Distribucion plantulas Cacao | N106: =IFERROR(VLOOKUP('Nomina ObreroAgricola'!L106,AdministracionListas!$D$1:$F$148,3,FALSE), "") -> jor | O106: =IFERROR(VLOOKUP('Nomina ObreroAgricola'!L106,AdministracionListas!$D$1:$G$148,4,FALSE), "") -> 33500 | P106: 503 | Q106: 1 | R106: 1 | S106: 33500 | T106: =IFERROR(IF(VLOOKUP(J106&L106&I106,'Catalogo de Labores '!L:L,1,FALSE) = "",FALSE,"PERSONA CON LABOR PERMITIDA"), "PERSONA CON LABOR NO PERMITIDA") -> PERSONA CON LABOR PERMITIDA
A107: Garcia Predozo Alvaro | B107: 2016-11-01 | C107: 2016-11-01 | D107: 1 | E107: 11 | F107: 2016 | G107: 71763649 | H107: =IFERROR(VLOOKUP('Nomina ObreroAgricola'!G107,'BD operarios '!$A$2:$C$18018,2,FALSE), "") -> Florez Penagos Jesus Antonio | I107: =IFERROR(VLOOKUP('Nomina ObreroAgricola'!G107,'BD operarios '!$A$2:$C$18018,3,FALSE),"") -> OBRERO AGRICOLA | J107: M11 | L107: 310 | M107: =IFERROR(VLOOKUP('Nomina ObreroAgricola'!L107,AdministracionListas!$D$1:$E$148,2,FALSE), "") -> Distribucion plantulas Cacao | N107: =IFERROR(VLOOKUP('Nomina ObreroAgricola'!L107,AdministracionListas!$D$1:$F$148,3,FALSE), "") -> jor | O107: =IFERROR(VLOOKUP('Nomina ObreroAgricola'!L107,AdministracionListas!$D$1:$G$148,4,FALSE), "") -> 33500 | P107: 503 | Q107: 1 | R107: 1 | S107: 33500 | T107: =IFERROR(IF(VLOOKUP(J107&L107&I107,'Catalogo de Labores '!L:L,1,FALSE) = "",FALSE,"PERSONA CON LABOR PERMITIDA"), "PERSONA CON LABOR NO PERMITIDA") -> PERSONA CON LABOR PERMITIDA
A108: Garcia Predozo Alvaro | B108: 2016-11-01 | C108: 2016-11-01 | D108: 1 | E108: 11 | F108: 2016 | G108: 1099554288 | H108: =IFERROR(VLOOKUP('Nomina ObreroAgricola'!G108,'BD operarios '!$A$2:$C$18018,2,FALSE), "") -> Vargas Correa Andres Felipe | I108: =IFERROR(VLOOKUP('Nomina ObreroAgricola'!G108,'BD operarios '!$A$2:$C$18018,3,FALSE),"") -> OBRERO AGRICOLA | J108: M11 | L108: 310 | M108: =IFERROR(VLOOKUP('Nomina ObreroAgricola'!L108,AdministracionListas!$D$1:$E$148,2,FALSE), "") -> Distribucion plantulas Cacao | N108: =IFERROR(VLOOKUP('Nomina ObreroAgricola'!L108,AdministracionListas!$D$1:$F$148,3,FALSE), "") -> jor | O108: =IFERROR(VLOOKUP('Nomina ObreroAgricola'!L108,AdministracionListas!$D$1:$G$148,4,FALSE), "") -> 33500 | P108: 503 | Q108: 1 | R108: 1 | S108: 33500 | T108: =IFERROR(IF(VLOOKUP(J108&L108&I108,'Catalogo de Labores '!L:L,1,FALSE) = "",FALSE,"PERSONA CON LABOR PERMITIDA"), "PERSONA CON LABOR NO PERMITIDA") -> PERSONA CON LABOR PERMITIDA
A109: Garcia Predozo Alvaro | B109: 2016-11-01 | C109: 2016-11-01 | D109: 1 | E109: 11 | F109: 2016 | G109: 78726613 | H109: =IFERROR(VLOOKUP('Nomina ObreroAgricola'!G109,'BD operarios '!$A$2:$C$18018,2,FALSE), "") -> Conde Paternina Osvaldo Jose | I109: =IFERROR(VLOOKUP('Nomina ObreroAgricola'!G109,'BD operarios '!$A$2:$C$18018,3,FALSE),"") -> OBRERO AGRICOLA | J109: 301 | L109: 204 | M109: =IFERROR(VLOOKUP('Nomina ObreroAgricola'!L109,AdministracionListas!$D$1:$E$148,2,FALSE), "") -> Alistamiento de lotes | N109: =IFERROR(VLOOKUP('Nomina ObreroAgricola'!L109,AdministracionListas!$D$1:$F$148,3,FALSE), "") -> jor | O109: =IFERROR(VLOOKUP('Nomina ObreroAgricola'!L109,AdministracionListas!$D$1:$G$148,4,FALSE), "") -> 29439 | Q109: 1 | R109: 1 | S109: 29439 | T109: =IFERROR(IF(VLOOKUP(J109&L109&I109,'Catalogo de Labores '!L:L,1,FALSE) = "",FALSE,"PERSONA CON LABOR PERMITIDA"), "PERSONA CON LABOR NO PERMITIDA") -> PERSONA CON LABOR PERMITIDA | U109: Falta labor
A110: Garcia Predozo Alvaro | B110: 2016-11-01 | C110: 2016-11-01 | D110: 1 | E110: 11 | F110: 2016 | G110: 10168016 | H110: =IFERROR(VLOOKUP('Nomina ObreroAgricola'!G110,'BD operarios '!$A$2:$C$18018,2,FALSE), "") -> Valencia Rios Teodulo | I110: =IFERROR(VLOOKUP('Nomina ObreroAgricola'!G110,'BD operarios '!$A$2:$C$18018,3,FALSE),"") -> OBRERO AGRICOLA | J110: 301 | L110: 204 | M110: =IFERROR(VLOOKUP('Nomina ObreroAgricola'!L110,AdministracionListas!$D$1:$E$148,2,FALSE), "") -> Alistamiento de lotes | N110: =IFERROR(VLOOKUP('Nomina ObreroAgricola'!L110,AdministracionListas!$D$1:$F$148,3,FALSE), "") -> jor | O110: =IFERROR(VLOOKUP('Nomina ObreroAgricola'!L110,AdministracionListas!$D$1:$G$148,4,FALSE), "") -> 29439 | Q110: 1 | R110: 1 | S110: 29439 | T110: =IFERROR(IF(VLOOKUP(J110&L110&I110,'Catalogo de Labores '!L:L,1,FALSE) = "",FALSE,"PERSONA CON LABOR PERMITIDA"), "PERSONA CON LABOR NO PERMITIDA") -> PERSONA CON LABOR PERMITIDA | U110: Falta labor
A111: Garcia Predozo Alvaro | B111: 2016-11-01 | C111: 2016-11-01 | D111: 1 | E111: 11 | F111: 2016 | G111: 91136357 | H111: =IFERROR(VLOOKUP('Nomina ObreroAgricola'!G111,'BD operarios '!$A$2:$C$18018,2,FALSE), "") -> Guerrero Patiño Joaquin Emilio | I111: =IFERROR(VLOOKUP('Nomina ObreroAgricola'!G111,'BD operarios '!$A$2:$C$18018,3,FALSE),"") -> OBRERO AGRICOLA | J111: M11 | L111: 310 | M111: =IFERROR(VLOOKUP('Nomina ObreroAgricola'!L111,AdministracionListas!$D$1:$E$148,2,FALSE), "") -> Distribucion plantulas Cacao | N111: =IFERROR(VLOOKUP('Nomina ObreroAgricola'!L111,AdministracionListas!$D$1:$F$148,3,FALSE), "") -> jor | O111: =IFERROR(VLOOKUP('Nomina ObreroAgricola'!L111,AdministracionListas!$D$1:$G$148,4,FALSE), "") -> 33500 | P111: 503 | Q111: 1 | R111: 1 | S111: 33500 | T111: =IFERROR(IF(VLOOKUP(J111&L111&I111,'Catalogo de Labores '!L:L,1,FALSE) = "",FALSE,"PERSONA CON LABOR PERMITIDA"), "PERSONA CON LABOR NO PERMITIDA") -> PERSONA CON LABOR PERMITIDA
A112: Marin Retamoza Ruben Dario | B112: 2016-11-01 | C112: 2016-11-01 | D112: 1 | E112: 11 | F112: 2016 | G112: 1056780632 | H112: =IFERROR(VLOOKUP('Nomina ObreroAgricola'!G112,'BD operarios '!$A$2:$C$18018,2,FALSE), "") -> Manrique Quintero Juan Camilo | I112: =IFERROR(VLOOKUP('Nomina ObreroAgricola'!G112,'BD operarios '!$A$2:$C$18018,3,FALSE),"") -> OBRERO AGRICOLA | J112: M11 | L112: 310 | M112: =IFERROR(VLOOKUP('Nomina ObreroAgricola'!L112,AdministracionListas!$D$1:$E$148,2,FALSE), "") -> Distribucion plantulas Cacao | N112: =IFERROR(VLOOKUP('Nomina ObreroAgricola'!L112,AdministracionListas!$D$1:$F$148,3,FALSE), "") -> jor | O112: =IFERROR(VLOOKUP('Nomina ObreroAgricola'!L112,AdministracionListas!$D$1:$G$148,4,FALSE), "") -> 33500 | P112: 503 | Q112: 1 | R112: 1 | S112: 33500 | T112: =IFERROR(IF(VLOOKUP(J112&L112&I112,'Catalogo de Labores '!L:L,1,FALSE) = "",FALSE,"PERSONA CON LABOR PERMITIDA"), "PERSONA CON LABOR NO PERMITIDA") -> PERSONA CON LABOR PERMITIDA
A113: Marin Retamoza Ruben Dario | B113: 2016-11-01 | C113: 2016-11-01 | D113: 1 | E113: 11 | F113: 2016 | G113: 1121865476 | H113: =IFERROR(VLOOKUP('Nomina ObreroAgricola'!G113,'BD operarios '!$A$2:$C$18018,2,FALSE), "") -> Ardila Barboza Anderson Joaquin | I113: =IFERROR(VLOOKUP('Nomina ObreroAgricola'!G113,'BD operarios '!$A$2:$C$18018,3,FALSE),"") -> OBRERO AGRICOLA | J113: M11 | L113: 317 | M113: =IFERROR(VLOOKUP('Nomina ObreroAgricola'!L113,AdministracionListas!$D$1:$E$148,2,FALSE), "") -> Siembra cacao vega con ahoyadora 15 cm X 40 cm | N113: =IFERROR(VLOOKUP('Nomina ObreroAgricola'!L113,AdministracionListas!$D$1:$F$148,3,FALSE), "") -> Pla | O113: =IFERROR(VLOOKUP('Nomina ObreroAgricola'!L113,AdministracionListas!$D$1:$G$148,4,FALSE), "") -> 300 | P113: 130 | Q113: 0.8 | R113: 1 | S113: 39000 | T113: =IFERROR(IF(VLOOKUP(J113&L113&I113,'Catalogo de Labores '!L:L,1,FALSE) = "",FALSE,"PERSONA CON LABOR PERMITIDA"), "PERSONA CON LABOR NO PERMITIDA") -> PERSONA CON LABOR PERMITIDA
A114: Marin Retamoza Ruben Dario | B114: 2016-11-01 | C114: 2016-11-01 | D114: 1 | E114: 11 | F114: 2016 | G114: 16193033 | H114: =IFERROR(VLOOKUP('Nomina ObreroAgricola'!G114,'BD operarios '!$A$2:$C$18018,2,FALSE), "") -> Rondon Suarez Rigoberto | I114: =IFERROR(VLOOKUP('Nomina ObreroAgricola'!G114,'BD operarios '!$A$2:$C$18018,3,FALSE),"") -> OBRERO AGRICOLA | J114: M11 | L114: 314 | M114: =IFERROR(VLOOKUP('Nomina ObreroAgricola'!L114,AdministracionListas!$D$1:$E$148,2,FALSE), "") -> Censo Plantacion | N114: =IFERROR(VLOOKUP('Nomina ObreroAgricola'!L114,AdministracionListas!$D$1:$F$148,3,FALSE), "") -> jor | O114: =IFERROR(VLOOKUP('Nomina ObreroAgricola'!L114,AdministracionListas!$D$1:$G$148,4,FALSE), "") -> 29439 | P114: 74 | Q114: 0.5 | R114: 1 | S114: 14719.5 | T114: =IFERROR(IF(VLOOKUP(J114&L114&I114,'Catalogo de Labores '!L:L,1,FALSE) = "",FALSE,"PERSONA CON LABOR PERMITIDA"), "PERSONA CON LABOR NO PERMITIDA") -> PERSONA CON LABOR PERMITIDA
A115: Marin Retamoza Ruben Dario | B115: 2016-11-01 | C115: 2016-11-01 | D115: 1 | E115: 11 | F115: 2016 | G115: 70516204 | H115: =IFERROR(VLOOKUP('Nomina ObreroAgricola'!G115,'BD operarios '!$A$2:$C$18018,2,FALSE), "") -> Echeverri Estrada Luis Fernando | I115: =IFERROR(VLOOKUP('Nomina ObreroAgricola'!G115,'BD operarios '!$A$2:$C$18018,3,FALSE),"") -> OBRERO AGRICOLA | J115: M11 | L115: 310 | M115: =IFERROR(VLOOKUP('Nomina ObreroAgricola'!L115,AdministracionListas!$D$1:$E$148,2,FALSE), "") -> Distribucion plantulas Cacao | N115: =IFERROR(VLOOKUP('Nomina ObreroAgricola'!L115,AdministracionListas!$D$1:$F$148,3,FALSE), "") -> jor | O115: =IFERROR(VLOOKUP('Nomina ObreroAgricola'!L115,AdministracionListas!$D$1:$G$148,4,FALSE), "") -> 33500 | P115: 503 | Q115: 1 | R115: 1 | S115: 33500 | T115: =IFERROR(IF(VLOOKUP(J115&L115&I115,'Catalogo de Labores '!L:L,1,FALSE) = "",FALSE,"PERSONA CON LABOR PERMITIDA"), "PERSONA CON LABOR NO PERMITIDA") -> PERSONA CON LABOR PERMITIDA
A116: Marin Retamoza Ruben Dario | B116: 2016-11-01 | C116: 2016-11-01 | D116: 1 | E116: 11 | F116: 2016 | G116: 1001844453 | H116: =IFERROR(VLOOKUP('Nomina ObreroAgricola'!G116,'BD operarios '!$A$2:$C$18018,2,FALSE), "") -> Gutierrez Jimenez Jose Ferney | I116: =IFERROR(VLOOKUP('Nomina ObreroAgricola'!G116,'BD operarios '!$A$2:$C$18018,3,FALSE),"") -> OBRERO AGRICOLA | J116: M11 | L116: 314 | M116: =IFERROR(VLOOKUP('Nomina ObreroAgricola'!L116,AdministracionListas!$D$1:$E$148,2,FALSE), "") -> Censo Plantacion | N116: =IFERROR(VLOOKUP('Nomina ObreroAgricola'!L116,AdministracionListas!$D$1:$F$148,3,FALSE), "") -> jor | O116: =IFERROR(VLOOKUP('Nomina ObreroAgricola'!L116,AdministracionListas!$D$1:$G$148,4,FALSE), "") -> 29439 | P116: 74 | Q116: 0.5 | R116: 1 | S116: 14719.5 | T116: =IFERROR(IF(VLOOKUP(J116&L116&I116,'Catalogo de Labores '!L:L,1,FALSE) = "",FALSE,"PERSONA CON LABOR PERMITIDA"), "PERSONA CON LABOR NO PERMITIDA") -> PERSONA CON LABOR PERMITIDA
A117: Marin Retamoza Ruben Dario | B117: 2016-11-01 | C117: 2016-11-01 | D117: 1 | E117: 11 | F117: 2016 | G117: 1054562580 | H117: =IFERROR(VLOOKUP('Nomina ObreroAgricola'!G117,'BD operarios '!$A$2:$C$18018,2,FALSE), "") -> Londoño Rabe Juan David | I117: =IFERROR(VLOOKUP('Nomina ObreroAgricola'!G117,'BD operarios '!$A$2:$C$18018,3,FALSE),"") -> OBRERO AGRICOLA | J117: M11 | L117: 317 | M117: =IFERROR(VLOOKUP('Nomina ObreroAgricola'!L117,AdministracionListas!$D$1:$E$148,2,FALSE), "") -> Siembra cacao vega con ahoyadora 15 cm X 40 cm | N117: =IFERROR(VLOOKUP('Nomina ObreroAgricola'!L117,AdministracionListas!$D$1:$F$148,3,FALSE), "") -> Pla | O117: =IFERROR(VLOOKUP('Nomina ObreroAgricola'!L117,AdministracionListas!$D$1:$G$148,4,FALSE), "") -> 300 | P117: 130 | Q117: 0.8 | R117: 1 | S117: 39000 | T117: =IFERROR(IF(VLOOKUP(J117&L117&I117,'Catalogo de Labores '!L:L,1,FALSE) = "",FALSE,"PERSONA CON LABOR PERMITIDA"), "PERSONA CON LABOR NO PERMITIDA") -> PERSONA CON LABOR PERMITIDA
A118: Marin Retamoza Ruben Dario | B118: 2016-11-01 | C118: 2016-11-01 | D118: 1 | E118: 11 | F118: 2016 | G118: 1054538339 | H118: =IFERROR(VLOOKUP('Nomina ObreroAgricola'!G118,'BD operarios '!$A$2:$C$18018,2,FALSE), "") -> Gaviria Maldonado Camilo Andres | I118: =IFERROR(VLOOKUP('Nomina ObreroAgricola'!G118,'BD operarios '!$A$2:$C$18018,3,FALSE),"") -> OBRERO AGRICOLA | J118: M11 | L118: 990 | M118: =IFERROR(VLOOKUP('Nomina ObreroAgricola'!L118,AdministracionListas!$D$1:$E$148,2,FALSE), "") -> Falta Injustificada | N118: =IFERROR(VLOOKUP('Nomina ObreroAgricola'!L118,AdministracionListas!$D$1:$F$148,3,FALSE), "") -> jor | O118: =IFERROR(VLOOKUP('Nomina ObreroAgricola'!L118,AdministracionListas!$D$1:$G$148,4,FALSE), "") -> 0 | P118: 1 | Q118: 0 | R118: 0 | S118: 0 | T118: =IFERROR(IF(VLOOKUP(J118&L118&I118,'Catalogo de Labores '!L:L,1,FALSE) = "",FALSE,"PERSONA CON LABOR PERMITIDA"), "PERSONA CON LABOR NO PERMITIDA") -> PERSONA CON LABOR PERMITIDA
A119: Marin Retamoza Ruben Dario | B119: 2016-11-01 | C119: 2016-11-01 | D119: 1 | E119: 11 | F119: 2016 | G119: 1007723293 | H119: =IFERROR(VLOOKUP('Nomina ObreroAgricola'!G119,'BD operarios '!$A$2:$C$18018,2,FALSE), "") -> Mejia Martinez Daniel Fernando | I119: =IFERROR(VLOOKUP('Nomina ObreroAgricola'!G119,'BD operarios '!$A$2:$C$18018,3,FALSE),"") -> OBRERO AGRICOLA | J119: M11 | L119: 317 | M119: =IFERROR(VLOOKUP('Nomina ObreroAgricola'!L119,AdministracionListas!$D$1:$E$148,2,FALSE), "") -> Siembra cacao vega con ahoyadora 15 cm X 40 cm | N119: =IFERROR(VLOOKUP('Nomina ObreroAgricola'!L119,AdministracionListas!$D$1:$F$148,3,FALSE), "") -> Pla | O119: =IFERROR(VLOOKUP('Nomina ObreroAgricola'!L119,AdministracionListas!$D$1:$G$148,4,FALSE), "") -> 300 | P119: 130 | Q119: 0.8 | R119: 1 | S119: 39000 | T119: =IFERROR(IF(VLOOKUP(J119&L119&I119,'Catalogo de Labores '!L:L,1,FALSE) = "",FALSE,"PERSONA CON LABOR PERMITIDA"), "PERSONA CON LABOR NO PERMITIDA") -> PERSONA CON LABOR PERMITIDA
A120: Marin Retamoza Ruben Dario | B120: 2016-11-01 | C120: 2016-11-01 | D120: 1 | E120: 11 | F120: 2016 | G120: 1099552914 | H120: =IFERROR(VLOOKUP('Nomina ObreroAgricola'!G120,'BD operarios '!$A$2:$C$18018,2,FALSE), "") -> Guerrero Quiroga Duvan | I120: =IFERROR(VLOOKUP('Nomina ObreroAgricola'!G120,'BD operarios '!$A$2:$C$18018,3,FALSE),"") -> OBRERO AGRICOLA | J120: M11 | L120: 317 | M120: =IFERROR(VLOOKUP('Nomina ObreroAgricola'!L120,AdministracionListas!$D$1:$E$148,2,FALSE), "") -> Siembra cacao vega con ahoyadora 15 cm X 40 cm | N120: =IFERROR(VLOOKUP('Nomina ObreroAgricola'!L120,AdministracionListas!$D$1:$F$148,3,FALSE), "") -> Pla | O120: =IFERROR(VLOOKUP('Nomina ObreroAgricola'!L120,AdministracionListas!$D$1:$G$148,4,FALSE), "") -> 300 | P120: 130 | Q120: 0.8 | R120: 1 | S120: 39000 | T120: =IFERROR(IF(VLOOKUP(J120&L120&I120,'Catalogo de Labores '!L:L,1,FALSE) = "",FALSE,"PERSONA CON LABOR PERMITIDA"), "PERSONA CON LABOR NO PERMITIDA") -> PERSONA CON LABOR PERMITIDA
A121: Marin Retamoza Ruben Dario | B121: 2016-11-01 | C121: 2016-11-01 | D121: 1 | E121: 11 | F121: 2016 | G121: 10555246 | H121: =IFERROR(VLOOKUP('Nomina ObreroAgricola'!G121,'BD operarios '!$A$2:$C$18018,2,FALSE), "") -> Cañas Upegui Alfonso De Jesus | I121: =IFERROR(VLOOKUP('Nomina ObreroAgricola'!G121,'BD operarios '!$A$2:$C$18018,3,FALSE),"") -> OBRERO AGRICOLA | J121: M11 | L121: 310 | M121: =IFERROR(VLOOKUP('Nomina ObreroAgricola'!L121,AdministracionListas!$D$1:$E$148,2,FALSE), "") -> Distribucion plantulas Cacao | N121: =IFERROR(VLOOKUP('Nomina ObreroAgricola'!L121,AdministracionListas!$D$1:$F$148,3,FALSE), "") -> jor | O121: =IFERROR(VLOOKUP('Nomina ObreroAgricola'!L121,AdministracionListas!$D$1:$G$148,4,FALSE), "") -> 33500 | P121: 503 | Q121: 1 | R121: 1 | S121: 33500 | T121: =IFERROR(IF(VLOOKUP(J121&L121&I121,'Catalogo de Labores '!L:L,1,FALSE) = "",FALSE,"PERSONA CON LABOR PERMITIDA"), "PERSONA CON LABOR NO PERMITIDA") -> PERSONA CON LABOR PERMITIDA
A122: Marin Retamoza Ruben Dario | B122: 2016-11-01 | C122: 2016-11-01 | D122: 1 | E122: 11 | F122: 2016 | G122: 10174746 | H122: =IFERROR(VLOOKUP('Nomina ObreroAgricola'!G122,'BD operarios '!$A$2:$C$18018,2,FALSE), "") -> Betancur Luis Alfonso | I122: =IFERROR(VLOOKUP('Nomina ObreroAgricola'!G122,'BD operarios '!$A$2:$C$18018,3,FALSE),"") -> OBRERO AGRICOLA | J122: M11 | L122: 317 | M122: =IFERROR(VLOOKUP('Nomina ObreroAgricola'!L122,AdministracionListas!$D$1:$E$148,2,FALSE), "") -> Siembra cacao vega con ahoyadora 15 cm X 40 cm | N122: =IFERROR(VLOOKUP('Nomina ObreroAgricola'!L122,AdministracionListas!$D$1:$F$148,3,FALSE), "") -> Pla | O122: =IFERROR(VLOOKUP('Nomina ObreroAgricola'!L122,AdministracionListas!$D$1:$G$148,4,FALSE), "") -> 300 | P122: 130 | Q122: 0.8 | R122: 1 | S122: 39000 | T122: =IFERROR(IF(VLOOKUP(J122&L122&I122,'Catalogo de Labores '!L:L,1,FALSE) = "",FALSE,"PERSONA CON LABOR PERMITIDA"), "PERSONA CON LABOR NO PERMITIDA") -> PERSONA CON LABOR PERMITIDA
A123: Marin Retamoza Ruben Dario | B123: 2016-11-01 | C123: 2016-11-01 | D123: 1 | E123: 11 | F123: 2016 | G123: 7254896 | H123: =IFERROR(VLOOKUP('Nomina ObreroAgricola'!G123,'BD operarios '!$A$2:$C$18018,2,FALSE), "") -> Giraldo Agudelo Esteban | I123: =IFERROR(VLOOKUP('Nomina ObreroAgricola'!G123,'BD operarios '!$A$2:$C$18018,3,FALSE),"") -> OBRERO AGRICOLA | J123: M11 | L123: 317 | M123: =IFERROR(VLOOKUP('Nomina ObreroAgricola'!L123,AdministracionListas!$D$1:$E$148,2,FALSE), "") -> Siembra cacao vega con ahoyadora 15 cm X 40 cm | N123: =IFERROR(VLOOKUP('Nomina ObreroAgricola'!L123,AdministracionListas!$D$1:$F$148,3,FALSE), "") -> Pla | O123: =IFERROR(VLOOKUP('Nomina ObreroAgricola'!L123,AdministracionListas!$D$1:$G$148,4,FALSE), "") -> 300 | P123: 130 | Q123: 0.8 | R123: 1 | S123: 39000 | T123: =IFERROR(IF(VLOOKUP(J123&L123&I123,'Catalogo de Labores '!L:L,1,FALSE) = "",FALSE,"PERSONA CON LABOR PERMITIDA"), "PERSONA CON LABOR NO PERMITIDA") -> PERSONA CON LABOR PERMITIDA
A124: Marin Retamoza Ruben Dario | B124: 2016-11-01 | C124: 2016-11-01 | D124: 1 | E124: 11 | F124: 2016 | G124: 16193033 | H124: =IFERROR(VLOOKUP('Nomina ObreroAgricola'!G124,'BD operarios '!$A$2:$C$18018,2,FALSE), "") -> Rondon Suarez Rigoberto | I124: =IFERROR(VLOOKUP('Nomina ObreroAgricola'!G124,'BD operarios '!$A$2:$C$18018,3,FALSE),"") -> OBRERO AGRICOLA | J124: M12 | L124: 314 | M124: =IFERROR(VLOOKUP('Nomina ObreroAgricola'!L124,AdministracionListas!$D$1:$E$148,2,FALSE), "") -> Censo Plantacion | N124: =IFERROR(VLOOKUP('Nomina ObreroAgricola'!L124,AdministracionListas!$D$1:$F$148,3,FALSE), "") -> jor | O124: =IFERROR(VLOOKUP('Nomina ObreroAgricola'!L124,AdministracionListas!$D$1:$G$148,4,FALSE), "") -> 29439 | P124: 42 | Q124: 0.5 | R124: 1 | S124: 14719.5 | T124: =IFERROR(IF(VLOOKUP(J124&L124&I124,'Catalogo de Labores '!L:L,1,FALSE) = "",FALSE,"PERSONA CON LABOR PERMITIDA"), "PERSONA CON LABOR NO PERMITIDA") -> PERSONA CON LABOR PERMITIDA
A125: Marin Retamoza Ruben Dario | B125: 2016-11-01 | C125: 2016-11-01 | D125: 1 | E125: 11 | F125: 2016 | G125: 1001844453 | H125: =IFERROR(VLOOKUP('Nomina ObreroAgricola'!G125,'BD operarios '!$A$2:$C$18018,2,FALSE), "") -> Gutierrez Jimenez Jose Ferney | I125: =IFERROR(VLOOKUP('Nomina ObreroAgricola'!G125,'BD operarios '!$A$2:$C$18018,3,FALSE),"") -> OBRERO AGRICOLA | J125: M12 | L125: 314 | M125: =IFERROR(VLOOKUP('Nomina ObreroAgricola'!L125,AdministracionListas!$D$1:$E$148,2,FALSE), "") -> Censo Plantacion | N125: =IFERROR(VLOOKUP('Nomina ObreroAgricola'!L125,AdministracionListas!$D$1:$F$148,3,FALSE), "") -> jor | O125: =IFERROR(VLOOKUP('Nomina ObreroAgricola'!L125,AdministracionListas!$D$1:$G$148,4,FALSE), "") -> 29439 | P125: 42 | Q125: 0.5 | R125: 1 | S125: 14719.5 | T125: =IFERROR(IF(VLOOKUP(J125&L125&I125,'Catalogo de Labores '!L:L,1,FALSE) = "",FALSE,"PERSONA CON LABOR PERMITIDA"), "PERSONA CON LABOR NO PERMITIDA") -> PERSONA CON LABOR PERMITIDA
A126: Marin Retamoza Ruben Dario | B126: 2016-11-01 | C126: 2016-11-01 | D126: 1 | E126: 11 | F126: 2016 | G126: 1121865476 | H126: =IFERROR(VLOOKUP('Nomina ObreroAgricola'!G126,'BD operarios '!$A$2:$C$18018,2,FALSE), "") -> Ardila Barboza Anderson Joaquin | I126: =IFERROR(VLOOKUP('Nomina ObreroAgricola'!G126,'BD operarios '!$A$2:$C$18018,3,FALSE),"") -> OBRERO AGRICOLA | J126: M11 | L126: 307 | M126: =IFERROR(VLOOKUP('Nomina ObreroAgricola'!L126,AdministracionListas!$D$1:$E$148,2,FALSE), "") -> Resiembra Cacao al Jornal | N126: =IFERROR(VLOOKUP('Nomina ObreroAgricola'!L126,AdministracionListas!$D$1:$F$148,3,FALSE), "") -> jor | O126: =IFERROR(VLOOKUP('Nomina ObreroAgricola'!L126,AdministracionListas!$D$1:$G$148,4,FALSE), "") -> 29439 | P126: 32 | Q126: 0.44 | R126: 1 | S126: 12953.16 | T126: =IFERROR(IF(VLOOKUP(J126&L126&I126,'Catalogo de Labores '!L:L,1,FALSE) = "",FALSE,"PERSONA CON LABOR PERMITIDA"), "PERSONA CON LABOR NO PERMITIDA") -> PERSONA CON LABOR PERMITIDA
A127: Marin Retamoza Ruben Dario | B127: 2016-11-01 | C127: 2016-11-01 | D127: 1 | E127: 11 | F127: 2016 | G127: 1054562580 | H127: =IFERROR(VLOOKUP('Nomina ObreroAgricola'!G127,'BD operarios '!$A$2:$C$18018,2,FALSE), "") -> Londoño Rabe Juan David | I127: =IFERROR(VLOOKUP('Nomina ObreroAgricola'!G127,'BD operarios '!$A$2:$C$18018,3,FALSE),"") -> OBRERO AGRICOLA | J127: M11 | L127: 307 | M127: =IFERROR(VLOOKUP('Nomina ObreroAgricola'!L127,AdministracionListas!$D$1:$E$148,2,FALSE), "") -> Resiembra Cacao al Jornal | N127: =IFERROR(VLOOKUP('Nomina ObreroAgricola'!L127,AdministracionListas!$D$1:$F$148,3,FALSE), "") -> jor | O127: =IFERROR(VLOOKUP('Nomina ObreroAgricola'!L127,AdministracionListas!$D$1:$G$148,4,FALSE), "") -> 29439 | P127: 32 | Q127: 0.44 | R127: 1 | S127: 12953.16 | T127: =IFERROR(IF(VLOOKUP(J127&L127&I127,'Catalogo de Labores '!L:L,1,FALSE) = "",FALSE,"PERSONA CON LABOR PERMITIDA"), "PERSONA CON LABOR NO PERMITIDA") -> PERSONA CON LABOR PERMITIDA
A128: Marin Retamoza Ruben Dario | B128: 2016-11-01 | C128: 2016-11-01 | D128: 1 | E128: 11 | F128: 2016 | G128: 1007723293 | H128: =IFERROR(VLOOKUP('Nomina ObreroAgricola'!G128,'BD operarios '!$A$2:$C$18018,2,FALSE), "") -> Mejia Martinez Daniel Fernando | I128: =IFERROR(VLOOKUP('Nomina ObreroAgricola'!G128,'BD operarios '!$A$2:$C$18018,3,FALSE),"") -> OBRERO AGRICOLA | J128: M11 | L128: 307 | M128: =IFERROR(VLOOKUP('Nomina ObreroAgricola'!L128,AdministracionListas!$D$1:$E$148,2,FALSE), "") -> Resiembra Cacao al Jornal | N128: =IFERROR(VLOOKUP('Nomina ObreroAgricola'!L128,AdministracionListas!$D$1:$F$148,3,FALSE), "") -> jor | O128: =IFERROR(VLOOKUP('Nomina ObreroAgricola'!L128,AdministracionListas!$D$1:$G$148,4,FALSE), "") -> 29439 | P128: 32 | Q128: 0.44 | R128: 1 | S128: 12953.16 | T128: =IFERROR(IF(VLOOKUP(J128&L128&I128,'Catalogo de Labores '!L:L,1,FALSE) = "",FALSE,"PERSONA CON LABOR PERMITIDA"), "PERSONA CON LABOR NO PERMITIDA") -> PERSONA CON LABOR PERMITIDA
A129: Marin Retamoza Ruben Dario | B129: 2016-11-01 | C129: 2016-11-01 | D129: 1 | E129: 11 | F129: 2016 | G129: 1099552914 | H129: =IFERROR(VLOOKUP('Nomina ObreroAgricola'!G129,'BD operarios '!$A$2:$C$18018,2,FALSE), "") -> Guerrero Quiroga Duvan | I129: =IFERROR(VLOOKUP('Nomina ObreroAgricola'!G129,'BD operarios '!$A$2:$C$18018,3,FALSE),"") -> OBRERO AGRICOLA | J129: M11 | L129: 307 | M129: =IFERROR(VLOOKUP('Nomina ObreroAgricola'!L129,AdministracionListas!$D$1:$E$148,2,FALSE), "") -> Resiembra Cacao al Jornal | N129: =IFERROR(VLOOKUP('Nomina ObreroAgricola'!L129,AdministracionListas!$D$1:$F$148,3,FALSE), "") -> jor | O129: =IFERROR(VLOOKUP('Nomina ObreroAgricola'!L129,AdministracionListas!$D$1:$G$148,4,FALSE), "") -> 29439 | P129: 32 | Q129: 0.44 | R129: 1 | S129: 12953.16 | T129: =IFERROR(IF(VLOOKUP(J129&L129&I129,'Catalogo de Labores '!L:L,1,FALSE) = "",FALSE,"PERSONA CON LABOR PERMITIDA"), "PERSONA CON LABOR NO PERMITIDA") -> PERSONA CON LABOR PERMITIDA
A130: Marin Retamoza Ruben Dario | B130: 2016-11-01 | C130: 2016-11-01 | D130: =IF(ISBLANK(C130),"",DAY(C130)) -> 1 | E130: =IF(ISBLANK(C130),"",MONTH(C130)) -> 11 | F130: =IF(ISBLANK(C130),"",YEAR(C130)) -> 2016 | G130: 10174746 | H130: =IFERROR(VLOOKUP('Nomina ObreroAgricola'!G130,'BD operarios '!$A$2:$C$18018,2,FALSE), "") -> Betancur Luis Alfonso | I130: =IFERROR(VLOOKUP('Nomina ObreroAgricola'!G130,'BD operarios '!$A$2:$C$18018,3,FALSE),"") -> OBRERO AGRICOLA | J130: M11 | L130: 307 | M130: =IFERROR(VLOOKUP('Nomina ObreroAgricola'!L130,AdministracionListas!$D$1:$E$148,2,FALSE), "") -> Resiembra Cacao al Jornal | N130: =IFERROR(VLOOKUP('Nomina ObreroAgricola'!L130,AdministracionListas!$D$1:$F$148,3,FALSE), "") -> jor | O130: =IFERROR(VLOOKUP('Nomina ObreroAgricola'!L130,AdministracionListas!$D$1:$G$148,4,FALSE), "") -> 29439 | P130: 32 | Q130: 0.44 | R130: 1 | S130: =IFERROR(IF(N130="jor",O130*Q130,O130*P130),"") -> 12953.16 | T130: =IFERROR(IF(VLOOKUP(J130&L130&I130,'Catalogo de Labores '!L:L,1,FALSE) = "",FALSE,"PERSONA CON LABOR PERMITIDA"), "PERSONA CON LABOR NO PERMITIDA") -> PERSONA CON LABOR PERMITIDA | U130: =IF(AND(OR(N130<>"Jor",N130<>"jor"),Q130="",ISNUMBER(L130)),"Falta jornal",IF(AND(OR(N130="Jor",N130="jor"),P130="",L130<>906,L130<>401,L130<>960,L130<>990,L130<>980,L130<>970,L130<>950,L130<>118,L130<>119),"Falta labor"," ")) -> 
A131: Marin Retamoza Ruben Dario | B131: 2016-11-01 | C131: 2016-11-01 | D131: 1 | E131: 11 | F131: 2016 | G131: 7254896 | H131: =IFERROR(VLOOKUP('Nomina ObreroAgricola'!G131,'BD operarios '!$A$2:$C$18018,2,FALSE), "") -> Giraldo Agudelo Esteban | I131: =IFERROR(VLOOKUP('Nomina ObreroAgricola'!G131,'BD operarios '!$A$2:$C$18018,3,FALSE),"") -> OBRERO AGRICOLA | J131: M11 | L131: 307 | M131: =IFERROR(VLOOKUP('Nomina ObreroAgricola'!L131,AdministracionListas!$D$1:$E$148,2,FALSE), "") -> Resiembra Cacao al Jornal | N131: =IFERROR(VLOOKUP('Nomina ObreroAgricola'!L131,AdministracionListas!$D$1:$F$148,3,FALSE), "") -> jor | O131: =IFERROR(VLOOKUP('Nomina ObreroAgricola'!L131,AdministracionListas!$D$1:$G$148,4,FALSE), "") -> 29439 | P131: 32 | Q131: 0.44 | R131: 1 | S131: 12953.16 | T131: =IFERROR(IF(VLOOKUP(J131&L131&I131,'Catalogo de Labores '!L:L,1,FALSE) = "",FALSE,"PERSONA CON LABOR PERMITIDA"), "PERSONA CON LABOR NO PERMITIDA") -> PERSONA CON LABOR PERMITIDA
A132: Sanchez Silvara Yurani Viviana | B132: 2016-11-01 | C132: 2016-11-01 | D132: 1 | E132: 11 | F132: 2016 | G132: 1102119182 | H132: =IFERROR(VLOOKUP('Nomina ObreroAgricola'!G132,'BD operarios '!$A$2:$C$18018,2,FALSE), "") -> Lobo Florez Jose Francisco | I132: =IFERROR(VLOOKUP('Nomina ObreroAgricola'!G132,'BD operarios '!$A$2:$C$18018,3,FALSE),"") -> OBRERO AGRICOLA | J132: M11 | L132: 412 | M132: =IFERROR(VLOOKUP('Nomina ObreroAgricola'!L132,AdministracionListas!$D$1:$E$148,2,FALSE), "") -> Despatrone en campo | N132: =IFERROR(VLOOKUP('Nomina ObreroAgricola'!L132,AdministracionListas!$D$1:$F$148,3,FALSE), "") -> Pla | O132: =IFERROR(VLOOKUP('Nomina ObreroAgricola'!L132,AdministracionListas!$D$1:$G$148,4,FALSE), "") -> 30 | P132: 641 | Q132: 1 | R132: 1 | S132: 19230 | T132: =IFERROR(IF(VLOOKUP(J132&L132&I132,'Catalogo de Labores '!L:L,1,FALSE) = "",FALSE,"PERSONA CON LABOR PERMITIDA"), "PERSONA CON LABOR NO PERMITIDA") -> PERSONA CON LABOR PERMITIDA
A133: Sanchez Silvara Yurani Viviana | B133: 2016-11-01 | C133: 2016-11-01 | D133: 1 | E133: 11 | F133: 2016 | G133: 63255134 | H133: =IFERROR(VLOOKUP('Nomina ObreroAgricola'!G133,'BD operarios '!$A$2:$C$18018,2,FALSE), "") -> Herrera Marin Ilda Fatima | I133: =IFERROR(VLOOKUP('Nomina ObreroAgricola'!G133,'BD operarios '!$A$2:$C$18018,3,FALSE),"") -> OBRERO AGRICOLA | J133: 701 | L133: 113 | M133: =IFERROR(VLOOKUP('Nomina ObreroAgricola'!L133,AdministracionListas!$D$1:$E$148,2,FALSE), "") -> Clasificacion de Plantulas | N133: =IFERROR(VLOOKUP('Nomina ObreroAgricola'!L133,AdministracionListas!$D$1:$F$148,3,FALSE), "") -> pla | O133: =IFERROR(VLOOKUP('Nomina ObreroAgricola'!L133,AdministracionListas!$D$1:$G$148,4,FALSE), "") -> 17 | P133: 1750 | Q133: 1 | R133: 1 | S133: 29750 | T133: =IFERROR(IF(VLOOKUP(J133&L133&I133,'Catalogo de Labores '!L:L,1,FALSE) = "",FALSE,"PERSONA CON LABOR PERMITIDA"), "PERSONA CON LABOR NO PERMITIDA") -> PERSONA CON LABOR PERMITIDA
A134: Sanchez Silvara Yurani Viviana | B134: 2016-11-01 | C134: 2016-11-01 | D134: 1 | E134: 11 | F134: 2016 | G134: 1039694172 | H134: =IFERROR(VLOOKUP('Nomina ObreroAgricola'!G134,'BD operarios '!$A$2:$C$18018,2,FALSE), "") -> Calderon Perez Jeider Orley | I134: =IFERROR(VLOOKUP('Nomina ObreroAgricola'!G134,'BD operarios '!$A$2:$C$18018,3,FALSE),"") -> OBRERO AGRICOLA | J134: 701 | L134: 990 | M134: =IFERROR(VLOOKUP('Nomina ObreroAgricola'!L134,AdministracionListas!$D$1:$E$148,2,FALSE), "") -> Falta Injustificada | N134: =IFERROR(VLOOKUP('Nomina ObreroAgricola'!L134,AdministracionListas!$D$1:$F$148,3,FALSE), "") -> jor | O134: =IFERROR(VLOOKUP('Nomina ObreroAgricola'!L134,AdministracionListas!$D$1:$G$148,4,FALSE), "") -> 0 | P134: 1 | Q134: 0 | R134: 0 | S134: 0 | T134: =IFERROR(IF(VLOOKUP(J134&L134&I134,'Catalogo de Labores '!L:L,1,FALSE) = "",FALSE,"PERSONA CON LABOR PERMITIDA"), "PERSONA CON LABOR NO PERMITIDA") -> PERSONA CON LABOR PERMITIDA
A135: Sanchez Silvara Yurani Viviana | B135: 2016-11-01 | C135: 2016-11-01 | D135: 1 | E135: 11 | F135: 2016 | G135: 1056771676 | H135: =IFERROR(VLOOKUP('Nomina ObreroAgricola'!G135,'BD operarios '!$A$2:$C$18018,2,FALSE), "") -> Garcia Ramirez Luz Omaira | I135: =IFERROR(VLOOKUP('Nomina ObreroAgricola'!G135,'BD operarios '!$A$2:$C$18018,3,FALSE),"") -> OBRERO AGRICOLA | J135: M11 | L135: 412 | M135: =IFERROR(VLOOKUP('Nomina ObreroAgricola'!L135,AdministracionListas!$D$1:$E$148,2,FALSE), "") -> Despatrone en campo | N135: =IFERROR(VLOOKUP('Nomina ObreroAgricola'!L135,AdministracionListas!$D$1:$F$148,3,FALSE), "") -> Pla | O135: =IFERROR(VLOOKUP('Nomina ObreroAgricola'!L135,AdministracionListas!$D$1:$G$148,4,FALSE), "") -> 30 | P135: 609 | Q135: 0.5 | R135: 1 | S135: 18270 | T135: =IFERROR(IF(VLOOKUP(J135&L135&I135,'Catalogo de Labores '!L:L,1,FALSE) = "",FALSE,"PERSONA CON LABOR PERMITIDA"), "PERSONA CON LABOR NO PERMITIDA") -> PERSONA CON LABOR PERMITIDA
A136: Sanchez Silvara Yurani Viviana | B136: 2016-11-01 | C136: 2016-11-01 | D136: 1 | E136: 11 | F136: 2016 | G136: 1001443513 | H136: =IFERROR(VLOOKUP('Nomina ObreroAgricola'!G136,'BD operarios '!$A$2:$C$18018,2,FALSE), "") -> Gil Quintero Yesica Fernanda | I136: =IFERROR(VLOOKUP('Nomina ObreroAgricola'!G136,'BD operarios '!$A$2:$C$18018,3,FALSE),"") -> OBRERO AGRICOLA | J136: M11 | L136: 314 | M136: =IFERROR(VLOOKUP('Nomina ObreroAgricola'!L136,AdministracionListas!$D$1:$E$148,2,FALSE), "") -> Censo Plantacion | N136: =IFERROR(VLOOKUP('Nomina ObreroAgricola'!L136,AdministracionListas!$D$1:$F$148,3,FALSE), "") -> jor | O136: =IFERROR(VLOOKUP('Nomina ObreroAgricola'!L136,AdministracionListas!$D$1:$G$148,4,FALSE), "") -> 29439 | P136: 74 | Q136: 1 | R136: 1 | S136: 29439 | T136: =IFERROR(IF(VLOOKUP(J136&L136&I136,'Catalogo de Labores '!L:L,1,FALSE) = "",FALSE,"PERSONA CON LABOR PERMITIDA"), "PERSONA CON LABOR NO PERMITIDA") -> PERSONA CON LABOR PERMITIDA
A137: Sanchez Silvara Yurani Viviana | B137: 2016-11-01 | C137: 2016-11-01 | D137: 1 | E137: 11 | F137: 2016 | G137: 63254756 | H137: =IFERROR(VLOOKUP('Nomina ObreroAgricola'!G137,'BD operarios '!$A$2:$C$18018,2,FALSE), "") -> Quevedo Sulviana Fabiola | I137: =IFERROR(VLOOKUP('Nomina ObreroAgricola'!G137,'BD operarios '!$A$2:$C$18018,3,FALSE),"") -> OBRERO AGRICOLA | J137: M11 | L137: 314 | M137: =IFERROR(VLOOKUP('Nomina ObreroAgricola'!L137,AdministracionListas!$D$1:$E$148,2,FALSE), "") -> Censo Plantacion | N137: =IFERROR(VLOOKUP('Nomina ObreroAgricola'!L137,AdministracionListas!$D$1:$F$148,3,FALSE), "") -> jor | O137: =IFERROR(VLOOKUP('Nomina ObreroAgricola'!L137,AdministracionListas!$D$1:$G$148,4,FALSE), "") -> 29439 | P137: 74 | Q137: 1 | R137: 1 | S137: 29439 | T137: =IFERROR(IF(VLOOKUP(J137&L137&I137,'Catalogo de Labores '!L:L,1,FALSE) = "",FALSE,"PERSONA CON LABOR PERMITIDA"), "PERSONA CON LABOR NO PERMITIDA") -> PERSONA CON LABOR PERMITIDA
A138: Sanchez Silvara Yurani Viviana | B138: 2016-11-01 | C138: 2016-11-01 | D138: 1 | E138: 11 | F138: 2016 | G138: 46645694 | H138: =IFERROR(VLOOKUP('Nomina ObreroAgricola'!G138,'BD operarios '!$A$2:$C$18018,2,FALSE), "") -> Giraldo Jimenez Liceth | I138: =IFERROR(VLOOKUP('Nomina ObreroAgricola'!G138,'BD operarios '!$A$2:$C$18018,3,FALSE),"") -> OBRERO AGRICOLA | J138: 701 | L138: 113 | M138: =IFERROR(VLOOKUP('Nomina ObreroAgricola'!L138,AdministracionListas!$D$1:$E$148,2,FALSE), "") -> Clasificacion de Plantulas | N138: =IFERROR(VLOOKUP('Nomina ObreroAgricola'!L138,AdministracionListas!$D$1:$F$148,3,FALSE), "") -> pla | O138: =IFERROR(VLOOKUP('Nomina ObreroAgricola'!L138,AdministracionListas!$D$1:$G$148,4,FALSE), "") -> 17 | P138: 1750 | Q138: 1 | R138: 1 | S138: 29750 | T138: =IFERROR(IF(VLOOKUP(J138&L138&I138,'Catalogo de Labores '!L:L,1,FALSE) = "",FALSE,"PERSONA CON LABOR PERMITIDA"), "PERSONA CON LABOR NO PERMITIDA") -> PERSONA CON LABOR PERMITIDA
A139: Sanchez Silvara Yurani Viviana | B139: 2016-11-01 | C139: 2016-11-01 | D139: 1 | E139: 11 | F139: 2016 | G139: 1099550513 | H139: =IFERROR(VLOOKUP('Nomina ObreroAgricola'!G139,'BD operarios '!$A$2:$C$18018,2,FALSE), "") -> Franco Diaz Jhon fredy | I139: =IFERROR(VLOOKUP('Nomina ObreroAgricola'!G139,'BD operarios '!$A$2:$C$18018,3,FALSE),"") -> OBRERO AGRICOLA | J139: 701 | L139: 990 | M139: =IFERROR(VLOOKUP('Nomina ObreroAgricola'!L139,AdministracionListas!$D$1:$E$148,2,FALSE), "") -> Falta Injustificada | N139: =IFERROR(VLOOKUP('Nomina ObreroAgricola'!L139,AdministracionListas!$D$1:$F$148,3,FALSE), "") -> jor | O139: =IFERROR(VLOOKUP('Nomina ObreroAgricola'!L139,AdministracionListas!$D$1:$G$148,4,FALSE), "") -> 0 | P139: 1 | Q139: 0 | R139: 0 | S139: 0 | T139: =IFERROR(IF(VLOOKUP(J139&L139&I139,'Catalogo de Labores '!L:L,1,FALSE) = "",FALSE,"PERSONA CON LABOR PERMITIDA"), "PERSONA CON LABOR NO PERMITIDA") -> PERSONA CON LABOR PERMITIDA
A140: Sanchez Silvara Yurani Viviana | B140: 2016-11-01 | C140: 2016-11-01 | D140: 1 | E140: 11 | F140: 2016 | G140: 3524636 | H140: =IFERROR(VLOOKUP('Nomina ObreroAgricola'!G140,'BD operarios '!$A$2:$C$18018,2,FALSE), "") -> Torres Arismendi Orlando de Jesús | I140: =IFERROR(VLOOKUP('Nomina ObreroAgricola'!G140,'BD operarios '!$A$2:$C$18018,3,FALSE),"") -> OBRERO AGRICOLA | J140: 701 | L140: 118 | M140: =IFERROR(VLOOKUP('Nomina ObreroAgricola'!L140,AdministracionListas!$D$1:$E$148,2,FALSE), "") -> Mantenimiento infraestructura de vivero | N140: =IFERROR(VLOOKUP('Nomina ObreroAgricola'!L140,AdministracionListas!$D$1:$F$148,3,FALSE), "") -> jor | O140: =IFERROR(VLOOKUP('Nomina ObreroAgricola'!L140,AdministracionListas!$D$1:$G$148,4,FALSE), "") -> 30000 | Q140: 1 | R140: 1 | S140: 30000 | T140: =IFERROR(IF(VLOOKUP(J140&L140&I140,'Catalogo de Labores '!L:L,1,FALSE) = "",FALSE,"PERSONA CON LABOR PERMITIDA"), "PERSONA CON LABOR NO PERMITIDA") -> PERSONA CON LABOR PERMITIDA
A141: Sanchez Silvara Yurani Viviana | B141: 2016-11-01 | C141: 2016-11-01 | D141: 1 | E141: 11 | F141: 2016 | G141: 1001444964 | H141: =IFERROR(VLOOKUP('Nomina ObreroAgricola'!G141,'BD operarios '!$A$2:$C$18018,2,FALSE), "") -> Muriel Palacio Andres Yamid | I141: =IFERROR(VLOOKUP('Nomina ObreroAgricola'!G141,'BD operarios '!$A$2:$C$18018,3,FALSE),"") -> OBRERO AGRICOLA | J141: 701 | L141: 990 | M141: =IFERROR(VLOOKUP('Nomina ObreroAgricola'!L141,AdministracionListas!$D$1:$E$148,2,FALSE), "") -> Falta Injustificada | N141: =IFERROR(VLOOKUP('Nomina ObreroAgricola'!L141,AdministracionListas!$D$1:$F$148,3,FALSE), "") -> jor | O141: =IFERROR(VLOOKUP('Nomina ObreroAgricola'!L141,AdministracionListas!$D$1:$G$148,4,FALSE), "") -> 0 | P141: 1 | Q141: 0 | R141: 0 | S141: 0 | T141: =IFERROR(IF(VLOOKUP(J141&L141&I141,'Catalogo de Labores '!L:L,1,FALSE) = "",FALSE,"PERSONA CON LABOR PERMITIDA"), "PERSONA CON LABOR NO PERMITIDA") -> PERSONA CON LABOR PERMITIDA
A142: Sanchez Silvara Yurani Viviana | B142: 2016-11-01 | C142: 2016-11-01 | D142: 1 | E142: 11 | F142: 2016 | G142: 16015713 | H142: =IFERROR(VLOOKUP('Nomina ObreroAgricola'!G142,'BD operarios '!$A$2:$C$18018,2,FALSE), "") -> Garcia Lozano Edinson | I142: =IFERROR(VLOOKUP('Nomina ObreroAgricola'!G142,'BD operarios '!$A$2:$C$18018,3,FALSE),"") -> OBRERO AGRICOLA | J142: M11 | L142: 412 | M142: =IFERROR(VLOOKUP('Nomina ObreroAgricola'!L142,AdministracionListas!$D$1:$E$148,2,FALSE), "") -> Despatrone en campo | N142: =IFERROR(VLOOKUP('Nomina ObreroAgricola'!L142,AdministracionListas!$D$1:$F$148,3,FALSE), "") -> Pla | O142: =IFERROR(VLOOKUP('Nomina ObreroAgricola'!L142,AdministracionListas!$D$1:$G$148,4,FALSE), "") -> 30 | P142: 652 | Q142: 0.5 | R142: 1 | S142: 19560 | T142: =IFERROR(IF(VLOOKUP(J142&L142&I142,'Catalogo de Labores '!L:L,1,FALSE) = "",FALSE,"PERSONA CON LABOR PERMITIDA"), "PERSONA CON LABOR NO PERMITIDA") -> PERSONA CON LABOR PERMITIDA
A143: Sanchez Silvara Yurani Viviana | B143: 2016-11-01 | C143: 2016-11-01 | D143: 1 | E143: 11 | F143: 2016 | G143: 46645547 | H143: =IFERROR(VLOOKUP('Nomina ObreroAgricola'!G143,'BD operarios '!$A$2:$C$18018,2,FALSE), "") -> Suarez Quinchia Marta Cecilia | I143: =IFERROR(VLOOKUP('Nomina ObreroAgricola'!G143,'BD operarios '!$A$2:$C$18018,3,FALSE),"") -> OBRERO AGRICOLA | J143: 701 | L143: 104 | M143: =IFERROR(VLOOKUP('Nomina ObreroAgricola'!L143,AdministracionListas!$D$1:$E$148,2,FALSE), "") -> Basico vivero | N143: =IFERROR(VLOOKUP('Nomina ObreroAgricola'!L143,AdministracionListas!$D$1:$F$148,3,FALSE), "") -> jor | O143: =IFERROR(VLOOKUP('Nomina ObreroAgricola'!L143,AdministracionListas!$D$1:$G$148,4,FALSE), "") -> 29454 | P143: 741 | Q143: 1 | R143: 1 | S143: 29454 | T143: =IFERROR(IF(VLOOKUP(J143&L143&I143,'Catalogo de Labores '!L:L,1,FALSE) = "",FALSE,"PERSONA CON LABOR PERMITIDA"), "PERSONA CON LABOR NO PERMITIDA") -> PERSONA CON LABOR PERMITIDA
A144: Sanchez Silvara Yurani Viviana | B144: 2016-11-01 | C144: 2016-11-01 | D144: 1 | E144: 11 | F144: 2016 | G144: 63255135 | H144: =IFERROR(VLOOKUP('Nomina ObreroAgricola'!G144,'BD operarios '!$A$2:$C$18018,2,FALSE), "") -> Jaramillo Vargas Ana Isabel | I144: =IFERROR(VLOOKUP('Nomina ObreroAgricola'!G144,'BD operarios '!$A$2:$C$18018,3,FALSE),"") -> OBRERO AGRICOLA | J144: M11 | L144: 412 | M144: =IFERROR(VLOOKUP('Nomina ObreroAgricola'!L144,AdministracionListas!$D$1:$E$148,2,FALSE), "") -> Despatrone en campo | N144: =IFERROR(VLOOKUP('Nomina ObreroAgricola'!L144,AdministracionListas!$D$1:$F$148,3,FALSE), "") -> Pla | O144: =IFERROR(VLOOKUP('Nomina ObreroAgricola'!L144,AdministracionListas!$D$1:$G$148,4,FALSE), "") -> 30 | P144: 540 | Q144: 0.4 | R144: 1 | S144: 16200 | T144: =IFERROR(IF(VLOOKUP(J144&L144&I144,'Catalogo de Labores '!L:L,1,FALSE) = "",FALSE,"PERSONA CON LABOR PERMITIDA"), "PERSONA CON LABOR NO PERMITIDA") -> PERSONA CON LABOR PERMITIDA
A145: Sanchez Silvara Yurani Viviana | B145: 2016-11-01 | C145: 2016-11-01 | D145: 1 | E145: 11 | F145: 2016 | G145: 42152982 | H145: =IFERROR(VLOOKUP('Nomina ObreroAgricola'!G145,'BD operarios '!$A$2:$C$18018,2,FALSE), "") -> Sanchez Castrillon Beyanit | I145: =IFERROR(VLOOKUP('Nomina ObreroAgricola'!G145,'BD operarios '!$A$2:$C$18018,3,FALSE),"") -> OBRERO AGRICOLA | J145: M11 | L145: 314 | M145: =IFERROR(VLOOKUP('Nomina ObreroAgricola'!L145,AdministracionListas!$D$1:$E$148,2,FALSE), "") -> Censo Plantacion | N145: =IFERROR(VLOOKUP('Nomina ObreroAgricola'!L145,AdministracionListas!$D$1:$F$148,3,FALSE), "") -> jor | O145: =IFERROR(VLOOKUP('Nomina ObreroAgricola'!L145,AdministracionListas!$D$1:$G$148,4,FALSE), "") -> 29439 | P145: 74 | Q145: 0.5 | R145: 1 | S145: 14719.5 | T145: =IFERROR(IF(VLOOKUP(J145&L145&I145,'Catalogo de Labores '!L:L,1,FALSE) = "",FALSE,"PERSONA CON LABOR PERMITIDA"), "PERSONA CON LABOR NO PERMITIDA") -> PERSONA CON LABOR PERMITIDA
A146: Sanchez Silvara Yurani Viviana | B146: 2016-11-01 | C146: 2016-11-01 | D146: 1 | E146: 11 | F146: 2016 | G146: 30342194 | H146: =IFERROR(VLOOKUP('Nomina ObreroAgricola'!G146,'BD operarios '!$A$2:$C$18018,2,FALSE), "") -> Garcia Berenice | I146: =IFERROR(VLOOKUP('Nomina ObreroAgricola'!G146,'BD operarios '!$A$2:$C$18018,3,FALSE),"") -> OBRERO AGRICOLA | J146: 701 | L146: 980 | M146: =IFERROR(VLOOKUP('Nomina ObreroAgricola'!L146,AdministracionListas!$D$1:$E$148,2,FALSE), "") -> Licencia ARL | N146: =IFERROR(VLOOKUP('Nomina ObreroAgricola'!L146,AdministracionListas!$D$1:$F$148,3,FALSE), "") -> jor | O146: =IFERROR(VLOOKUP('Nomina ObreroAgricola'!L146,AdministracionListas!$D$1:$G$148,4,FALSE), "") -> 29439 | P146: 1 | Q146: 0 | R146: 0 | S146: 0 | T146: =IFERROR(IF(VLOOKUP(J146&L146&I146,'Catalogo de Labores '!L:L,1,FALSE) = "",FALSE,"PERSONA CON LABOR PERMITIDA"), "PERSONA CON LABOR NO PERMITIDA") -> PERSONA CON LABOR PERMITIDA
A147: Sanchez Silvara Yurani Viviana | B147: 2016-11-01 | C147: 2016-11-01 | D147: 1 | E147: 11 | F147: 2016 | G147: 1056771676 | H147: =IFERROR(VLOOKUP('Nomina ObreroAgricola'!G147,'BD operarios '!$A$2:$C$18018,2,FALSE), "") -> Garcia Ramirez Luz Omaira | I147: =IFERROR(VLOOKUP('Nomina ObreroAgricola'!G147,'BD operarios '!$A$2:$C$18018,3,FALSE),"") -> OBRERO AGRICOLA | J147: M11 | L147: 314 | M147: =IFERROR(VLOOKUP('Nomina ObreroAgricola'!L147,AdministracionListas!$D$1:$E$148,2,FALSE), "") -> Censo Plantacion | N147: =IFERROR(VLOOKUP('Nomina ObreroAgricola'!L147,AdministracionListas!$D$1:$F$148,3,FALSE), "") -> jor | O147: =IFERROR(VLOOKUP('Nomina ObreroAgricola'!L147,AdministracionListas!$D$1:$G$148,4,FALSE), "") -> 29439 | P147: 74 | Q147: 0.5 | R147: 1 | S147: 14719.5 | T147: =IFERROR(IF(VLOOKUP(J147&L147&I147,'Catalogo de Labores '!L:L,1,FALSE) = "",FALSE,"PERSONA CON LABOR PERMITIDA"), "PERSONA CON LABOR NO PERMITIDA") -> PERSONA CON LABOR PERMITIDA
A148: Sanchez Silvara Yurani Viviana | B148: 2016-11-01 | C148: 2016-11-01 | D148: 1 | E148: 11 | F148: 2016 | G148: 1102119182 | H148: =IFERROR(VLOOKUP('Nomina ObreroAgricola'!G148,'BD operarios '!$A$2:$C$18018,2,FALSE), "") -> Lobo Florez Jose Francisco | I148: =IFERROR(VLOOKUP('Nomina ObreroAgricola'!G148,'BD operarios '!$A$2:$C$18018,3,FALSE),"") -> OBRERO AGRICOLA | J148: M11 | L148: 314 | M148: =IFERROR(VLOOKUP('Nomina ObreroAgricola'!L148,AdministracionListas!$D$1:$E$148,2,FALSE), "") -> Censo Plantacion | N148: =IFERROR(VLOOKUP('Nomina ObreroAgricola'!L148,AdministracionListas!$D$1:$F$148,3,FALSE), "") -> jor | O148: =IFERROR(VLOOKUP('Nomina ObreroAgricola'!L148,AdministracionListas!$D$1:$G$148,4,FALSE), "") -> 29439 | P148: 74 | Q148: 0.5 | R148: 1 | S148: 14719.5 | T148: =IFERROR(IF(VLOOKUP(J148&L148&I148,'Catalogo de Labores '!L:L,1,FALSE) = "",FALSE,"PERSONA CON LABOR PERMITIDA"), "PERSONA CON LABOR NO PERMITIDA") -> PERSONA CON LABOR PERMITIDA
A149: Sanchez Silvara Yurani Viviana | B149: 2016-11-01 | C149: 2016-11-01 | D149: 1 | E149: 11 | F149: 2016 | G149: 16015713 | H149: =IFERROR(VLOOKUP('Nomina ObreroAgricola'!G149,'BD operarios '!$A$2:$C$18018,2,FALSE), "") -> Garcia Lozano Edinson | I149: =IFERROR(VLOOKUP('Nomina ObreroAgricola'!G149,'BD operarios '!$A$2:$C$18018,3,FALSE),"") -> OBRERO AGRICOLA | J149: M11 | L149: 314 | M149: =IFERROR(VLOOKUP('Nomina ObreroAgricola'!L149,AdministracionListas!$D$1:$E$148,2,FALSE), "") -> Censo Plantacion | N149: =IFERROR(VLOOKUP('Nomina ObreroAgricola'!L149,AdministracionListas!$D$1:$F$148,3,FALSE), "") -> jor | O149: =IFERROR(VLOOKUP('Nomina ObreroAgricola'!L149,AdministracionListas!$D$1:$G$148,4,FALSE), "") -> 29439 | P149: 74 | Q149: 0.5 | R149: 1 | S149: 14719.5 | T149: =IFERROR(IF(VLOOKUP(J149&L149&I149,'Catalogo de Labores '!L:L,1,FALSE) = "",FALSE,"PERSONA CON LABOR PERMITIDA"), "PERSONA CON LABOR NO PERMITIDA") -> PERSONA CON LABOR PERMITIDA
A150: Sanchez Silvara Yurani Viviana | B150: 2016-11-01 | C150: 2016-11-01 | D150: 1 | E150: 11 | F150: 2016 | G150: 63255135 | H150: =IFERROR(VLOOKUP('Nomina ObreroAgricola'!G150,'BD operarios '!$A$2:$C$18018,2,FALSE), "") -> Jaramillo Vargas Ana Isabel | I150: =IFERROR(VLOOKUP('Nomina ObreroAgricola'!G150,'BD operarios '!$A$2:$C$18018,3,FALSE),"") -> OBRERO AGRICOLA | J150: M11 | L150: 314 | M150: =IFERROR(VLOOKUP('Nomina ObreroAgricola'!L150,AdministracionListas!$D$1:$E$148,2,FALSE), "") -> Censo Plantacion | N150: =IFERROR(VLOOKUP('Nomina ObreroAgricola'!L150,AdministracionListas!$D$1:$F$148,3,FALSE), "") -> jor | O150: =IFERROR(VLOOKUP('Nomina ObreroAgricola'!L150,AdministracionListas!$D$1:$G$148,4,FALSE), "") -> 29439 | P150: 74 | Q150: 0.5 | R150: 1 | S150: 14719.5 | T150: =IFERROR(IF(VLOOKUP(J150&L150&I150,'Catalogo de Labores '!L:L,1,FALSE) = "",FALSE,"PERSONA CON LABOR PERMITIDA"), "PERSONA CON LABOR NO PERMITIDA") -> PERSONA CON LABOR PERMITIDA
A151: Grisales Ordoñez Nestor Mario | B151: 2016-11-01 | C151: 2016-11-01 | D151: 1 | E151: 11 | F151: 2016 | G151: 7251095 | H151: =IFERROR(VLOOKUP('Nomina ObreroAgricola'!G151,'BD operarios '!$A$2:$C$18018,2,FALSE), "") -> Monsalve Cardenas Octavio | I151: =IFERROR(VLOOKUP('Nomina ObreroAgricola'!G151,'BD operarios '!$A$2:$C$18018,3,FALSE),"") -> OBRERO AGRICOLA | J151: M11 | L151: 309 | M151: =IFERROR(VLOOKUP('Nomina ObreroAgricola'!L151,AdministracionListas!$D$1:$E$148,2,FALSE), "") -> Cargue plantulas Cacao | N151: =IFERROR(VLOOKUP('Nomina ObreroAgricola'!L151,AdministracionListas!$D$1:$F$148,3,FALSE), "") -> jor | O151: =IFERROR(VLOOKUP('Nomina ObreroAgricola'!L151,AdministracionListas!$D$1:$G$148,4,FALSE), "") -> 33500 | P151: 597 | Q151: 1.1 | R151: 1 | S151: 36850 | T151: =IFERROR(IF(VLOOKUP(J151&L151&I151,'Catalogo de Labores '!L:L,1,FALSE) = "",FALSE,"PERSONA CON LABOR PERMITIDA"), "PERSONA CON LABOR NO PERMITIDA") -> PERSONA CON LABOR PERMITIDA
A152: Grisales Ordoñez Nestor Mario | B152: 2016-11-01 | C152: 2016-11-01 | D152: 1 | E152: 11 | F152: 2016 | G152: 1216718170 | H152: =IFERROR(VLOOKUP('Nomina ObreroAgricola'!G152,'BD operarios '!$A$2:$C$18018,2,FALSE), "") -> Osorio Fandiño Cristian Alexander | I152: =IFERROR(VLOOKUP('Nomina ObreroAgricola'!G152,'BD operarios '!$A$2:$C$18018,3,FALSE),"") -> OBRERO AGRICOLA | J152: M11 | L152: 309 | M152: =IFERROR(VLOOKUP('Nomina ObreroAgricola'!L152,AdministracionListas!$D$1:$E$148,2,FALSE), "") -> Cargue plantulas Cacao | N152: =IFERROR(VLOOKUP('Nomina ObreroAgricola'!L152,AdministracionListas!$D$1:$F$148,3,FALSE), "") -> jor | O152: =IFERROR(VLOOKUP('Nomina ObreroAgricola'!L152,AdministracionListas!$D$1:$G$148,4,FALSE), "") -> 33500 | P152: 597 | Q152: 1 | R152: 1 | S152: 33500 | T152: =IFERROR(IF(VLOOKUP(J152&L152&I152,'Catalogo de Labores '!L:L,1,FALSE) = "",FALSE,"PERSONA CON LABOR PERMITIDA"), "PERSONA CON LABOR NO PERMITIDA") -> PERSONA CON LABOR PERMITIDA
A153: Grisales Ordoñez Nestor Mario | B153: 2016-11-01 | C153: 2016-11-01 | D153: 1 | E153: 11 | F153: 2016 | G153: 46646570 | H153: =IFERROR(VLOOKUP('Nomina ObreroAgricola'!G153,'BD operarios '!$A$2:$C$18018,2,FALSE), "") -> Beltran Castañeda Luz Miryan | I153: =IFERROR(VLOOKUP('Nomina ObreroAgricola'!G153,'BD operarios '!$A$2:$C$18018,3,FALSE),"") -> OBRERO AGRICOLA | J153: M11 | L153: 309 | M153: =IFERROR(VLOOKUP('Nomina ObreroAgricola'!L153,AdministracionListas!$D$1:$E$148,2,FALSE), "") -> Cargue plantulas Cacao | N153: =IFERROR(VLOOKUP('Nomina ObreroAgricola'!L153,AdministracionListas!$D$1:$F$148,3,FALSE), "") -> jor | O153: =IFERROR(VLOOKUP('Nomina ObreroAgricola'!L153,AdministracionListas!$D$1:$G$148,4,FALSE), "") -> 33500 | P153: 597 | Q153: 1 | R153: 1 | S153: 33500 | T153: =IFERROR(IF(VLOOKUP(J153&L153&I153,'Catalogo de Labores '!L:L,1,FALSE) = "",FALSE,"PERSONA CON LABOR PERMITIDA"), "PERSONA CON LABOR NO PERMITIDA") -> PERSONA CON LABOR PERMITIDA
A154: Grisales Ordoñez Nestor Mario | B154: 2016-11-01 | C154: 2016-11-01 | D154: 1 | E154: 11 | F154: 2016 | G154: 1099546606 | H154: =IFERROR(VLOOKUP('Nomina ObreroAgricola'!G154,'BD operarios '!$A$2:$C$18018,2,FALSE), "") -> Cañas Becerra Patricia | I154: =IFERROR(VLOOKUP('Nomina ObreroAgricola'!G154,'BD operarios '!$A$2:$C$18018,3,FALSE),"") -> OBRERO AGRICOLA | J154: M11 | L154: 309 | M154: =IFERROR(VLOOKUP('Nomina ObreroAgricola'!L154,AdministracionListas!$D$1:$E$148,2,FALSE), "") -> Cargue plantulas Cacao | N154: =IFERROR(VLOOKUP('Nomina ObreroAgricola'!L154,AdministracionListas!$D$1:$F$148,3,FALSE), "") -> jor | O154: =IFERROR(VLOOKUP('Nomina ObreroAgricola'!L154,AdministracionListas!$D$1:$G$148,4,FALSE), "") -> 33500 | P154: 597 | Q154: 1 | R154: 1 | S154: 33500 | T154: =IFERROR(IF(VLOOKUP(J154&L154&I154,'Catalogo de Labores '!L:L,1,FALSE) = "",FALSE,"PERSONA CON LABOR PERMITIDA"), "PERSONA CON LABOR NO PERMITIDA") -> PERSONA CON LABOR PERMITIDA
A155: Grisales Ordoñez Nestor Mario | B155: 2016-11-01 | C155: 2016-11-01 | D155: 1 | E155: 11 | F155: 2016 | G155: 1054549800 | H155: =IFERROR(VLOOKUP('Nomina ObreroAgricola'!G155,'BD operarios '!$A$2:$C$18018,2,FALSE), "") -> Rendon Alarcón Jhon Edinson | I155: =IFERROR(VLOOKUP('Nomina ObreroAgricola'!G155,'BD operarios '!$A$2:$C$18018,3,FALSE),"") -> OBRERO AGRICOLA | J155: M11 | L155: 309 | M155: =IFERROR(VLOOKUP('Nomina ObreroAgricola'!L155,AdministracionListas!$D$1:$E$148,2,FALSE), "") -> Cargue plantulas Cacao | N155: =IFERROR(VLOOKUP('Nomina ObreroAgricola'!L155,AdministracionListas!$D$1:$F$148,3,FALSE), "") -> jor | O155: =IFERROR(VLOOKUP('Nomina ObreroAgricola'!L155,AdministracionListas!$D$1:$G$148,4,FALSE), "") -> 33500 | P155: 597 | Q155: 1 | R155: 1 | S155: 33500 | T155: =IFERROR(IF(VLOOKUP(J155&L155&I155,'Catalogo de Labores '!L:L,1,FALSE) = "",FALSE,"PERSONA CON LABOR PERMITIDA"), "PERSONA CON LABOR NO PERMITIDA") -> PERSONA CON LABOR PERMITIDA
A156: Grisales Ordoñez Nestor Mario | B156: 2016-11-01 | C156: 2016-11-01 | D156: 1 | E156: 11 | F156: 2016 | G156: 79669905 | H156: =IFERROR(VLOOKUP('Nomina ObreroAgricola'!G156,'BD operarios '!$A$2:$C$18018,2,FALSE), "") -> Linares Triviño Miguel Antonio | I156: =IFERROR(VLOOKUP('Nomina ObreroAgricola'!G156,'BD operarios '!$A$2:$C$18018,3,FALSE),"") -> OBRERO AGRICOLA | J156: M11 | L156: 309 | M156: =IFERROR(VLOOKUP('Nomina ObreroAgricola'!L156,AdministracionListas!$D$1:$E$148,2,FALSE), "") -> Cargue plantulas Cacao | N156: =IFERROR(VLOOKUP('Nomina ObreroAgricola'!L156,AdministracionListas!$D$1:$F$148,3,FALSE), "") -> jor | O156: =IFERROR(VLOOKUP('Nomina ObreroAgricola'!L156,AdministracionListas!$D$1:$G$148,4,FALSE), "") -> 33500 | P156: 597 | Q156: 1 | R156: 1 | S156: 33500 | T156: =IFERROR(IF(VLOOKUP(J156&L156&I156,'Catalogo de Labores '!L:L,1,FALSE) = "",FALSE,"PERSONA CON LABOR PERMITIDA"), "PERSONA CON LABOR NO PERMITIDA") -> PERSONA CON LABOR PERMITIDA
A157: Grisales Ordoñez Nestor Mario | B157: 2016-11-01 | C157: 2016-11-01 | D157: 1 | E157: 11 | F157: 2016 | G157: 98484511 | H157: =IFERROR(VLOOKUP('Nomina ObreroAgricola'!G157,'BD operarios '!$A$2:$C$18018,2,FALSE), "") -> Osorio Garcia Leonardo De Jesus | I157: =IFERROR(VLOOKUP('Nomina ObreroAgricola'!G157,'BD operarios '!$A$2:$C$18018,3,FALSE),"") -> OBRERO AGRICOLA | J157: M11 | L157: 309 | M157: =IFERROR(VLOOKUP('Nomina ObreroAgricola'!L157,AdministracionListas!$D$1:$E$148,2,FALSE), "") -> Cargue plantulas Cacao | N157: =IFERROR(VLOOKUP('Nomina ObreroAgricola'!L157,AdministracionListas!$D$1:$F$148,3,FALSE), "") -> jor | O157: =IFERROR(VLOOKUP('Nomina ObreroAgricola'!L157,AdministracionListas!$D$1:$G$148,4,FALSE), "") -> 33500 | P157: 597 | Q157: 1 | R157: 1 | S157: 33500 | T157: =IFERROR(IF(VLOOKUP(J157&L157&I157,'Catalogo de Labores '!L:L,1,FALSE) = "",FALSE,"PERSONA CON LABOR PERMITIDA"), "PERSONA CON LABOR NO PERMITIDA") -> PERSONA CON LABOR PERMITIDA
A158: Grisales Ordoñez Nestor Mario | B158: 2016-11-01 | C158: 2016-11-01 | D158: 1 | E158: 11 | F158: 2016 | G158: 1054568129 | H158: =IFERROR(VLOOKUP('Nomina ObreroAgricola'!G158,'BD operarios '!$A$2:$C$18018,2,FALSE), "") -> Quevedo Gomez Jonatan Bonifacio | I158: =IFERROR(VLOOKUP('Nomina ObreroAgricola'!G158,'BD operarios '!$A$2:$C$18018,3,FALSE),"") -> OBRERO AGRICOLA | J158: M11 | L158: 970 | M158: =IFERROR(VLOOKUP('Nomina ObreroAgricola'!L158,AdministracionListas!$D$1:$E$148,2,FALSE), "") -> Licencia PEG | N158: =IFERROR(VLOOKUP('Nomina ObreroAgricola'!L158,AdministracionListas!$D$1:$F$148,3,FALSE), "") -> jor | O158: =IFERROR(VLOOKUP('Nomina ObreroAgricola'!L158,AdministracionListas!$D$1:$G$148,4,FALSE), "") -> 29439 | P158: 1 | Q158: 0 | R158: 0 | S158: 0 | T158: =IFERROR(IF(VLOOKUP(J158&L158&I158,'Catalogo de Labores '!L:L,1,FALSE) = "",FALSE,"PERSONA CON LABOR PERMITIDA"), "PERSONA CON LABOR NO PERMITIDA") -> PERSONA CON LABOR PERMITIDA
A159: Grisales Ordoñez Nestor Mario | B159: 2016-11-01 | C159: 2016-11-01 | D159: 1 | E159: 11 | F159: 2016 | G159: 79762211 | H159: =IFERROR(VLOOKUP('Nomina ObreroAgricola'!G159,'BD operarios '!$A$2:$C$18018,2,FALSE), "") -> Martinez Jaramillo Jose Silverio | I159: =IFERROR(VLOOKUP('Nomina ObreroAgricola'!G159,'BD operarios '!$A$2:$C$18018,3,FALSE),"") -> OBRERO AGRICOLA | J159: M11 | L159: 309 | M159: =IFERROR(VLOOKUP('Nomina ObreroAgricola'!L159,AdministracionListas!$D$1:$E$148,2,FALSE), "") -> Cargue plantulas Cacao | N159: =IFERROR(VLOOKUP('Nomina ObreroAgricola'!L159,AdministracionListas!$D$1:$F$148,3,FALSE), "") -> jor | O159: =IFERROR(VLOOKUP('Nomina ObreroAgricola'!L159,AdministracionListas!$D$1:$G$148,4,FALSE), "") -> 33500 | P159: 597 | Q159: 1 | R159: 1 | S159: 33500 | T159: =IFERROR(IF(VLOOKUP(J159&L159&I159,'Catalogo de Labores '!L:L,1,FALSE) = "",FALSE,"PERSONA CON LABOR PERMITIDA"), "PERSONA CON LABOR NO PERMITIDA") -> PERSONA CON LABOR PERMITIDA
A160: Grisales Ordoñez Nestor Mario | B160: 2016-11-01 | C160: 2016-11-01 | D160: 1 | E160: 11 | F160: 2016 | G160: 91134637 | H160: =IFERROR(VLOOKUP('Nomina ObreroAgricola'!G160,'BD operarios '!$A$2:$C$18018,2,FALSE), "") -> Gaitan Vastos Jose Antonio | I160: =IFERROR(VLOOKUP('Nomina ObreroAgricola'!G160,'BD operarios '!$A$2:$C$18018,3,FALSE),"") -> OBRERO AGRICOLA | J160: M11 | L160: 309 | M160: =IFERROR(VLOOKUP('Nomina ObreroAgricola'!L160,AdministracionListas!$D$1:$E$148,2,FALSE), "") -> Cargue plantulas Cacao | N160: =IFERROR(VLOOKUP('Nomina ObreroAgricola'!L160,AdministracionListas!$D$1:$F$148,3,FALSE), "") -> jor | O160: =IFERROR(VLOOKUP('Nomina ObreroAgricola'!L160,AdministracionListas!$D$1:$G$148,4,FALSE), "") -> 33500 | P160: 597 | Q160: 1 | R160: 1 | S160: 33500 | T160: =IFERROR(IF(VLOOKUP(J160&L160&I160,'Catalogo de Labores '!L:L,1,FALSE) = "",FALSE,"PERSONA CON LABOR PERMITIDA"), "PERSONA CON LABOR NO PERMITIDA") -> PERSONA CON LABOR PERMITIDA
A161: Grisales Ordoñez Nestor Mario | B161: 2016-11-01 | C161: 2016-11-01 | D161: 1 | E161: 11 | F161: 2016 | G161: 1056772819 | H161: =IFERROR(VLOOKUP('Nomina ObreroAgricola'!G161,'BD operarios '!$A$2:$C$18018,2,FALSE), "") -> Montoya Velez Cristian Camilo | I161: =IFERROR(VLOOKUP('Nomina ObreroAgricola'!G161,'BD operarios '!$A$2:$C$18018,3,FALSE),"") -> OBRERO AGRICOLA | J161: M11 | L161: 309 | M161: =IFERROR(VLOOKUP('Nomina ObreroAgricola'!L161,AdministracionListas!$D$1:$E$148,2,FALSE), "") -> Cargue plantulas Cacao | N161: =IFERROR(VLOOKUP('Nomina ObreroAgricola'!L161,AdministracionListas!$D$1:$F$148,3,FALSE), "") -> jor | O161: =IFERROR(VLOOKUP('Nomina ObreroAgricola'!L161,AdministracionListas!$D$1:$G$148,4,FALSE), "") -> 33500 | P161: 597 | Q161: 1 | R161: 1 | S161: 33500 | T161: =IFERROR(IF(VLOOKUP(J161&L161&I161,'Catalogo de Labores '!L:L,1,FALSE) = "",FALSE,"PERSONA CON LABOR PERMITIDA"), "PERSONA CON LABOR NO PERMITIDA") -> PERSONA CON LABOR PERMITIDA
A162: Grisales Ordoñez Nestor Mario | B162: 2016-11-01 | C162: 2016-11-01 | D162: 1 | E162: 11 | F162: 2016 | G162: 1079233161 | H162: =IFERROR(VLOOKUP('Nomina ObreroAgricola'!G162,'BD operarios '!$A$2:$C$18018,2,FALSE), "") -> Ospina Giraldo Angie Liceth | I162: =IFERROR(VLOOKUP('Nomina ObreroAgricola'!G162,'BD operarios '!$A$2:$C$18018,3,FALSE),"") -> OBRERO AGRICOLA | J162: M11 | L162: 309 | M162: =IFERROR(VLOOKUP('Nomina ObreroAgricola'!L162,AdministracionListas!$D$1:$E$148,2,FALSE), "") -> Cargue plantulas Cacao | N162: =IFERROR(VLOOKUP('Nomina ObreroAgricola'!L162,AdministracionListas!$D$1:$F$148,3,FALSE), "") -> jor | O162: =IFERROR(VLOOKUP('Nomina ObreroAgricola'!L162,AdministracionListas!$D$1:$G$148,4,FALSE), "") -> 33500 | P162: 597 | Q162: 1 | R162: 1 | S162: 33500 | T162: =IFERROR(IF(VLOOKUP(J162&L162&I162,'Catalogo de Labores '!L:L,1,FALSE) = "",FALSE,"PERSONA CON LABOR PERMITIDA"), "PERSONA CON LABOR NO PERMITIDA") -> PERSONA CON LABOR PERMITIDA
A163: Grisales Ordoñez Nestor Mario | B163: 2016-11-01 | C163: 2016-11-01 | D163: 1 | E163: 11 | F163: 2016 | G163: 1056781886 | H163: =IFERROR(VLOOKUP('Nomina ObreroAgricola'!G163,'BD operarios '!$A$2:$C$18018,2,FALSE), "") -> Calderon Gallego James Yail | I163: =IFERROR(VLOOKUP('Nomina ObreroAgricola'!G163,'BD operarios '!$A$2:$C$18018,3,FALSE),"") -> OBRERO AGRICOLA | J163: M11 | L163: 309 | M163: =IFERROR(VLOOKUP('Nomina ObreroAgricola'!L163,AdministracionListas!$D$1:$E$148,2,FALSE), "") -> Cargue plantulas Cacao | N163: =IFERROR(VLOOKUP('Nomina ObreroAgricola'!L163,AdministracionListas!$D$1:$F$148,3,FALSE), "") -> jor | O163: =IFERROR(VLOOKUP('Nomina ObreroAgricola'!L163,AdministracionListas!$D$1:$G$148,4,FALSE), "") -> 33500 | P163: 597 | Q163: 1.1 | R163: 1 | S163: 36850 | T163: =IFERROR(IF(VLOOKUP(J163&L163&I163,'Catalogo de Labores '!L:L,1,FALSE) = "",FALSE,"PERSONA CON LABOR PERMITIDA"), "PERSONA CON LABOR NO PERMITIDA") -> PERSONA CON LABOR PERMITIDA
A164: Grisales Ordoñez Nestor Mario | B164: 2016-11-01 | C164: 2016-11-01 | D164: 1 | E164: 11 | F164: 2016 | G164: 20830891 | H164: =IFERROR(VLOOKUP('Nomina ObreroAgricola'!G164,'BD operarios '!$A$2:$C$18018,2,FALSE), "") -> Cardona Franco Maria Carlina | I164: =IFERROR(VLOOKUP('Nomina ObreroAgricola'!G164,'BD operarios '!$A$2:$C$18018,3,FALSE),"") -> OBRERO AGRICOLA | J164: M11 | L164: 309 | M164: =IFERROR(VLOOKUP('Nomina ObreroAgricola'!L164,AdministracionListas!$D$1:$E$148,2,FALSE), "") -> Cargue plantulas Cacao | N164: =IFERROR(VLOOKUP('Nomina ObreroAgricola'!L164,AdministracionListas!$D$1:$F$148,3,FALSE), "") -> jor | O164: =IFERROR(VLOOKUP('Nomina ObreroAgricola'!L164,AdministracionListas!$D$1:$G$148,4,FALSE), "") -> 33500 | P164: 597 | Q164: 1 | R164: 1 | S164: 33500 | T164: =IFERROR(IF(VLOOKUP(J164&L164&I164,'Catalogo de Labores '!L:L,1,FALSE) = "",FALSE,"PERSONA CON LABOR PERMITIDA"), "PERSONA CON LABOR NO PERMITIDA") -> PERSONA CON LABOR PERMITIDA
A165: Grisales Ordoñez Nestor Mario | B165: 2016-11-01 | C165: 2016-11-01 | D165: 1 | E165: 11 | F165: 2016 | G165: 1056776173 | H165: =IFERROR(VLOOKUP('Nomina ObreroAgricola'!G165,'BD operarios '!$A$2:$C$18018,2,FALSE), "") -> Calderon Gallego Mauricio | I165: =IFERROR(VLOOKUP('Nomina ObreroAgricola'!G165,'BD operarios '!$A$2:$C$18018,3,FALSE),"") -> OBRERO AGRICOLA | J165: M11 | L165: 309 | M165: =IFERROR(VLOOKUP('Nomina ObreroAgricola'!L165,AdministracionListas!$D$1:$E$148,2,FALSE), "") -> Cargue plantulas Cacao | N165: =IFERROR(VLOOKUP('Nomina ObreroAgricola'!L165,AdministracionListas!$D$1:$F$148,3,FALSE), "") -> jor | O165: =IFERROR(VLOOKUP('Nomina ObreroAgricola'!L165,AdministracionListas!$D$1:$G$148,4,FALSE), "") -> 33500 | P165: 597 | Q165: 1.1 | R165: 1 | S165: 36850 | T165: =IFERROR(IF(VLOOKUP(J165&L165&I165,'Catalogo de Labores '!L:L,1,FALSE) = "",FALSE,"PERSONA CON LABOR PERMITIDA"), "PERSONA CON LABOR NO PERMITIDA") -> PERSONA CON LABOR PERMITIDA
A166: Grisales Ordoñez Nestor Mario | B166: 2016-11-01 | C166: 2016-11-01 | D166: 1 | E166: 11 | F166: 2016 | G166: 1110494501 | H166: =IFERROR(VLOOKUP('Nomina ObreroAgricola'!G166,'BD operarios '!$A$2:$C$18018,2,FALSE), "") -> Castro Mendieta Jeisson Fabian | I166: =IFERROR(VLOOKUP('Nomina ObreroAgricola'!G166,'BD operarios '!$A$2:$C$18018,3,FALSE),"") -> OBRERO AGRICOLA | J166: M11 | L166: 990 | M166: =IFERROR(VLOOKUP('Nomina ObreroAgricola'!L166,AdministracionListas!$D$1:$E$148,2,FALSE), "") -> Falta Injustificada | N166: =IFERROR(VLOOKUP('Nomina ObreroAgricola'!L166,AdministracionListas!$D$1:$F$148,3,FALSE), "") -> jor | O166: =IFERROR(VLOOKUP('Nomina ObreroAgricola'!L166,AdministracionListas!$D$1:$G$148,4,FALSE), "") -> 0 | P166: 1 | Q166: 0 | R166: 0 | S166: 0 | T166: =IFERROR(IF(VLOOKUP(J166&L166&I166,'Catalogo de Labores '!L:L,1,FALSE) = "",FALSE,"PERSONA CON LABOR PERMITIDA"), "PERSONA CON LABOR NO PERMITIDA") -> PERSONA CON LABOR PERMITIDA
A167: Grisales Ordoñez Nestor Mario | B167: 2016-11-01 | C167: 2016-11-01 | D167: 1 | E167: 11 | F167: 2016 | G167: 79829910 | H167: =IFERROR(VLOOKUP('Nomina ObreroAgricola'!G167,'BD operarios '!$A$2:$C$18018,2,FALSE), "") -> Murcia Velasquez Luis Hedinson | I167: =IFERROR(VLOOKUP('Nomina ObreroAgricola'!G167,'BD operarios '!$A$2:$C$18018,3,FALSE),"") -> OBRERO AGRICOLA | J167: M11 | L167: 309 | M167: =IFERROR(VLOOKUP('Nomina ObreroAgricola'!L167,AdministracionListas!$D$1:$E$148,2,FALSE), "") -> Cargue plantulas Cacao | N167: =IFERROR(VLOOKUP('Nomina ObreroAgricola'!L167,AdministracionListas!$D$1:$F$148,3,FALSE), "") -> jor | O167: =IFERROR(VLOOKUP('Nomina ObreroAgricola'!L167,AdministracionListas!$D$1:$G$148,4,FALSE), "") -> 33500 | P167: 597 | Q167: 1 | R167: 1 | S167: 33500 | T167: =IFERROR(IF(VLOOKUP(J167&L167&I167,'Catalogo de Labores '!L:L,1,FALSE) = "",FALSE,"PERSONA CON LABOR PERMITIDA"), "PERSONA CON LABOR NO PERMITIDA") -> PERSONA CON LABOR PERMITIDA
A168: Grisales Ordoñez Nestor Mario | B168: 2016-11-01 | C168: 2016-11-01 | D168: 1 | E168: 11 | F168: 2016 | G168: 59682204 | H168: =IFERROR(VLOOKUP('Nomina ObreroAgricola'!G168,'BD operarios '!$A$2:$C$18018,2,FALSE), "") -> Beltran Castañeda Mercedes | I168: =IFERROR(VLOOKUP('Nomina ObreroAgricola'!G168,'BD operarios '!$A$2:$C$18018,3,FALSE),"") -> OBRERO AGRICOLA | J168: M11 | L168: 960 | M168: =IFERROR(VLOOKUP('Nomina ObreroAgricola'!L168,AdministracionListas!$D$1:$E$148,2,FALSE), "") -> Licencia No Remunerada | N168: =IFERROR(VLOOKUP('Nomina ObreroAgricola'!L168,AdministracionListas!$D$1:$F$148,3,FALSE), "") -> jor | O168: =IFERROR(VLOOKUP('Nomina ObreroAgricola'!L168,AdministracionListas!$D$1:$G$148,4,FALSE), "") -> 0 | P168: 1 | Q168: 0 | R168: 0 | S168: 0 | T168: =IFERROR(IF(VLOOKUP(J168&L168&I168,'Catalogo de Labores '!L:L,1,FALSE) = "",FALSE,"PERSONA CON LABOR PERMITIDA"), "PERSONA CON LABOR NO PERMITIDA") -> PERSONA CON LABOR PERMITIDA
A169: Grisales Ordoñez Nestor Mario | B169: 2016-11-01 | C169: 2016-11-01 | D169: 1 | E169: 11 | F169: 2016 | G169: 1038385101 | H169: =IFERROR(VLOOKUP('Nomina ObreroAgricola'!G169,'BD operarios '!$A$2:$C$18018,2,FALSE), "") -> Saldarriaga Nieto Juan Gabriel | I169: =IFERROR(VLOOKUP('Nomina ObreroAgricola'!G169,'BD operarios '!$A$2:$C$18018,3,FALSE),"") -> OBRERO AGRICOLA | J169: M11 | L169: 309 | M169: =IFERROR(VLOOKUP('Nomina ObreroAgricola'!L169,AdministracionListas!$D$1:$E$148,2,FALSE), "") -> Cargue plantulas Cacao | N169: =IFERROR(VLOOKUP('Nomina ObreroAgricola'!L169,AdministracionListas!$D$1:$F$148,3,FALSE), "") -> jor | O169: =IFERROR(VLOOKUP('Nomina ObreroAgricola'!L169,AdministracionListas!$D$1:$G$148,4,FALSE), "") -> 33500 | P169: 597 | Q169: 1.1 | R169: 1 | S169: 36850 | T169: =IFERROR(IF(VLOOKUP(J169&L169&I169,'Catalogo de Labores '!L:L,1,FALSE) = "",FALSE,"PERSONA CON LABOR PERMITIDA"), "PERSONA CON LABOR NO PERMITIDA") -> PERSONA CON LABOR PERMITIDA
A170: Roldan Zanabria Oscar Daniel | B170: 2016-11-01 | C170: 2016-11-01 | D170: 1 | E170: 11 | F170: 2016 | G170: 1056785800 | H170: =IFERROR(VLOOKUP('Nomina ObreroAgricola'!G170,'BD operarios '!$A$2:$C$18018,2,FALSE), "") -> Mosquera Cardozo Eller Isaac | I170: =IFERROR(VLOOKUP('Nomina ObreroAgricola'!G170,'BD operarios '!$A$2:$C$18018,3,FALSE),"") -> OBRERO AGRICOLA | J170: M19 | L170: 201 | M170: =IFERROR(VLOOKUP('Nomina ObreroAgricola'!L170,AdministracionListas!$D$1:$E$148,2,FALSE), "") -> Zanjeo | N170: =IFERROR(VLOOKUP('Nomina ObreroAgricola'!L170,AdministracionListas!$D$1:$F$148,3,FALSE), "") -> ml | O170: =IFERROR(VLOOKUP('Nomina ObreroAgricola'!L170,AdministracionListas!$D$1:$G$148,4,FALSE), "") -> 1000 | P170: 26.8 | Q170: 1 | R170: 1 | S170: 26800 | T170: =IFERROR(IF(VLOOKUP(J170&L170&I170,'Catalogo de Labores '!L:L,1,FALSE) = "",FALSE,"PERSONA CON LABOR PERMITIDA"), "PERSONA CON LABOR NO PERMITIDA") -> PERSONA CON LABOR PERMITIDA
A171: Roldan Zanabria Oscar Daniel | B171: 2016-11-01 | C171: 2016-11-01 | D171: 1 | E171: 11 | F171: 2016 | G171: 82361240 | H171: =IFERROR(VLOOKUP('Nomina ObreroAgricola'!G171,'BD operarios '!$A$2:$C$18018,2,FALSE), "") -> Copete Mosquera Juan Jose | I171: =IFERROR(VLOOKUP('Nomina ObreroAgricola'!G171,'BD operarios '!$A$2:$C$18018,3,FALSE),"") -> OBRERO AGRICOLA | J171: M19 | L171: 201 | M171: =IFERROR(VLOOKUP('Nomina ObreroAgricola'!L171,AdministracionListas!$D$1:$E$148,2,FALSE), "") -> Zanjeo | N171: =IFERROR(VLOOKUP('Nomina ObreroAgricola'!L171,AdministracionListas!$D$1:$F$148,3,FALSE), "") -> ml | O171: =IFERROR(VLOOKUP('Nomina ObreroAgricola'!L171,AdministracionListas!$D$1:$G$148,4,FALSE), "") -> 1000 | P171: 118.2 | Q171: 1 | R171: 1 | S171: 118200 | T171: =IFERROR(IF(VLOOKUP(J171&L171&I171,'Catalogo de Labores '!L:L,1,FALSE) = "",FALSE,"PERSONA CON LABOR PERMITIDA"), "PERSONA CON LABOR NO PERMITIDA") -> PERSONA CON LABOR PERMITIDA
A172: Roldan Zanabria Oscar Daniel | B172: 2016-11-01 | C172: 2016-11-01 | D172: 1 | E172: 11 | F172: 2016 | G172: 1007061248 | H172: =IFERROR(VLOOKUP('Nomina ObreroAgricola'!G172,'BD operarios '!$A$2:$C$18018,2,FALSE), "") -> Perea Mosquera Juan Pastor | I172: =IFERROR(VLOOKUP('Nomina ObreroAgricola'!G172,'BD operarios '!$A$2:$C$18018,3,FALSE),"") -> OBRERO AGRICOLA | J172: M21 | L172: 201 | M172: =IFERROR(VLOOKUP('Nomina ObreroAgricola'!L172,AdministracionListas!$D$1:$E$148,2,FALSE), "") -> Zanjeo | N172: =IFERROR(VLOOKUP('Nomina ObreroAgricola'!L172,AdministracionListas!$D$1:$F$148,3,FALSE), "") -> ml | O172: =IFERROR(VLOOKUP('Nomina ObreroAgricola'!L172,AdministracionListas!$D$1:$G$148,4,FALSE), "") -> 1000 | P172: 114.6 | Q172: 1 | R172: 1 | S172: 114600 | T172: =IFERROR(IF(VLOOKUP(J172&L172&I172,'Catalogo de Labores '!L:L,1,FALSE) = "",FALSE,"PERSONA CON LABOR PERMITIDA"), "PERSONA CON LABOR NO PERMITIDA") -> PERSONA CON LABOR PERMITIDA
A173: Roldan Zanabria Oscar Daniel | B173: 2016-11-01 | C173: 2016-11-01 | D173: 1 | E173: 11 | F173: 2016 | G173: 1039684467 | H173: =IFERROR(VLOOKUP('Nomina ObreroAgricola'!G173,'BD operarios '!$A$2:$C$18018,2,FALSE), "") -> Perea Benitez Albin Antonio | I173: =IFERROR(VLOOKUP('Nomina ObreroAgricola'!G173,'BD operarios '!$A$2:$C$18018,3,FALSE),"") -> OBRERO AGRICOLA | J173: M21 | L173: 201 | M173: =IFERROR(VLOOKUP('Nomina ObreroAgricola'!L173,AdministracionListas!$D$1:$E$148,2,FALSE), "") -> Zanjeo | N173: =IFERROR(VLOOKUP('Nomina ObreroAgricola'!L173,AdministracionListas!$D$1:$F$148,3,FALSE), "") -> ml | O173: =IFERROR(VLOOKUP('Nomina ObreroAgricola'!L173,AdministracionListas!$D$1:$G$148,4,FALSE), "") -> 1000 | P173: 98.2 | Q173: 1 | R173: 1 | S173: 98200 | T173: =IFERROR(IF(VLOOKUP(J173&L173&I173,'Catalogo de Labores '!L:L,1,FALSE) = "",FALSE,"PERSONA CON LABOR PERMITIDA"), "PERSONA CON LABOR NO PERMITIDA") -> PERSONA CON LABOR PERMITIDA
A174: Roldan Zanabria Oscar Daniel | B174: 2016-11-01 | C174: 2016-11-01 | D174: 1 | E174: 11 | F174: 2016 | G174: 82360309 | H174: =IFERROR(VLOOKUP('Nomina ObreroAgricola'!G174,'BD operarios '!$A$2:$C$18018,2,FALSE), "") -> Mosquera Copete Jose Octavio | I174: =IFERROR(VLOOKUP('Nomina ObreroAgricola'!G174,'BD operarios '!$A$2:$C$18018,3,FALSE),"") -> OBRERO AGRICOLA | J174: M21 | L174: 970 | M174: =IFERROR(VLOOKUP('Nomina ObreroAgricola'!L174,AdministracionListas!$D$1:$E$148,2,FALSE), "") -> Licencia PEG | N174: =IFERROR(VLOOKUP('Nomina ObreroAgricola'!L174,AdministracionListas!$D$1:$F$148,3,FALSE), "") -> jor | O174: =IFERROR(VLOOKUP('Nomina ObreroAgricola'!L174,AdministracionListas!$D$1:$G$148,4,FALSE), "") -> 29439 | P174: 1 | Q174: 0 | R174: 0 | S174: 0 | T174: =IFERROR(IF(VLOOKUP(J174&L174&I174,'Catalogo de Labores '!L:L,1,FALSE) = "",FALSE,"PERSONA CON LABOR PERMITIDA"), "PERSONA CON LABOR NO PERMITIDA") -> PERSONA CON LABOR PERMITIDA
A175: Roldan Zanabria Oscar Daniel | B175: 2016-11-01 | C175: 2016-11-01 | D175: 1 | E175: 11 | F175: 2016 | G175: 7248249 | H175: =IFERROR(VLOOKUP('Nomina ObreroAgricola'!G175,'BD operarios '!$A$2:$C$18018,2,FALSE), "") -> Mosquera Murillo Jorge Eliecer | I175: =IFERROR(VLOOKUP('Nomina ObreroAgricola'!G175,'BD operarios '!$A$2:$C$18018,3,FALSE),"") -> OBRERO AGRICOLA | J175: M12 | L175: 201 | M175: =IFERROR(VLOOKUP('Nomina ObreroAgricola'!L175,AdministracionListas!$D$1:$E$148,2,FALSE), "") -> Zanjeo | N175: =IFERROR(VLOOKUP('Nomina ObreroAgricola'!L175,AdministracionListas!$D$1:$F$148,3,FALSE), "") -> ml | O175: =IFERROR(VLOOKUP('Nomina ObreroAgricola'!L175,AdministracionListas!$D$1:$G$148,4,FALSE), "") -> 1000 | P175: 82.2 | Q175: 1 | R175: 1 | S175: 82200 | T175: =IFERROR(IF(VLOOKUP(J175&L175&I175,'Catalogo de Labores '!L:L,1,FALSE) = "",FALSE,"PERSONA CON LABOR PERMITIDA"), "PERSONA CON LABOR NO PERMITIDA") -> PERSONA CON LABOR PERMITIDA
A176: Roldan Zanabria Oscar Daniel | B176: 2016-11-01 | C176: 2016-11-01 | D176: 1 | E176: 11 | F176: 2016 | G176: 1056771892 | H176: =IFERROR(VLOOKUP('Nomina ObreroAgricola'!G176,'BD operarios '!$A$2:$C$18018,2,FALSE), "") -> Lloreda Machado Oscar Alexander | I176: =IFERROR(VLOOKUP('Nomina ObreroAgricola'!G176,'BD operarios '!$A$2:$C$18018,3,FALSE),"") -> OBRERO AGRICOLA | J176: M19 | L176: 201 | M176: =IFERROR(VLOOKUP('Nomina ObreroAgricola'!L176,AdministracionListas!$D$1:$E$148,2,FALSE), "") -> Zanjeo | N176: =IFERROR(VLOOKUP('Nomina ObreroAgricola'!L176,AdministracionListas!$D$1:$F$148,3,FALSE), "") -> ml | O176: =IFERROR(VLOOKUP('Nomina ObreroAgricola'!L176,AdministracionListas!$D$1:$G$148,4,FALSE), "") -> 1000 | P176: 98.4 | Q176: 1 | R176: 1 | S176: 98400 | T176: =IFERROR(IF(VLOOKUP(J176&L176&I176,'Catalogo de Labores '!L:L,1,FALSE) = "",FALSE,"PERSONA CON LABOR PERMITIDA"), "PERSONA CON LABOR NO PERMITIDA") -> PERSONA CON LABOR PERMITIDA
A177: Roldan Zanabria Oscar Daniel | B177: 2016-11-01 | C177: 2016-11-01 | D177: 1 | E177: 11 | F177: 2016 | G177: 7247627 | H177: =IFERROR(VLOOKUP('Nomina ObreroAgricola'!G177,'BD operarios '!$A$2:$C$18018,2,FALSE), "") -> Mosquera Sanchez Jose Moises | I177: =IFERROR(VLOOKUP('Nomina ObreroAgricola'!G177,'BD operarios '!$A$2:$C$18018,3,FALSE),"") -> OBRERO AGRICOLA | J177: M19 | L177: 201 | M177: =IFERROR(VLOOKUP('Nomina ObreroAgricola'!L177,AdministracionListas!$D$1:$E$148,2,FALSE), "") -> Zanjeo | N177: =IFERROR(VLOOKUP('Nomina ObreroAgricola'!L177,AdministracionListas!$D$1:$F$148,3,FALSE), "") -> ml | O177: =IFERROR(VLOOKUP('Nomina ObreroAgricola'!L177,AdministracionListas!$D$1:$G$148,4,FALSE), "") -> 1000 | P177: 106.4 | Q177: 1 | R177: 1 | S177: 106400 | T177: =IFERROR(IF(VLOOKUP(J177&L177&I177,'Catalogo de Labores '!L:L,1,FALSE) = "",FALSE,"PERSONA CON LABOR PERMITIDA"), "PERSONA CON LABOR NO PERMITIDA") -> PERSONA CON LABOR PERMITIDA
A178: Roldan Zanabria Oscar Daniel | B178: 2016-11-01 | C178: 2016-11-01 | D178: 1 | E178: 11 | F178: 2016 | G178: 82362995 | H178: =IFERROR(VLOOKUP('Nomina ObreroAgricola'!G178,'BD operarios '!$A$2:$C$18018,2,FALSE), "") -> Mosquera Mosquera Ivan | I178: =IFERROR(VLOOKUP('Nomina ObreroAgricola'!G178,'BD operarios '!$A$2:$C$18018,3,FALSE),"") -> OBRERO AGRICOLA | J178: M21 | L178: 201 | M178: =IFERROR(VLOOKUP('Nomina ObreroAgricola'!L178,AdministracionListas!$D$1:$E$148,2,FALSE), "") -> Zanjeo | N178: =IFERROR(VLOOKUP('Nomina ObreroAgricola'!L178,AdministracionListas!$D$1:$F$148,3,FALSE), "") -> ml | O178: =IFERROR(VLOOKUP('Nomina ObreroAgricola'!L178,AdministracionListas!$D$1:$G$148,4,FALSE), "") -> 1000 | P178: 108.1 | Q178: 1 | R178: 1 | S178: 108100 | T178: =IFERROR(IF(VLOOKUP(J178&L178&I178,'Catalogo de Labores '!L:L,1,FALSE) = "",FALSE,"PERSONA CON LABOR PERMITIDA"), "PERSONA CON LABOR NO PERMITIDA") -> PERSONA CON LABOR PERMITIDA
A179: Roldan Zanabria Oscar Daniel | B179: 2016-11-01 | C179: 2016-11-01 | D179: 1 | E179: 11 | F179: 2016 | G179: 7246500 | H179: =IFERROR(VLOOKUP('Nomina ObreroAgricola'!G179,'BD operarios '!$A$2:$C$18018,2,FALSE), "") -> Sanchez Benitez Gonzalo | I179: =IFERROR(VLOOKUP('Nomina ObreroAgricola'!G179,'BD operarios '!$A$2:$C$18018,3,FALSE),"") -> OBRERO AGRICOLA | J179: M19 | L179: 201 | M179: =IFERROR(VLOOKUP('Nomina ObreroAgricola'!L179,AdministracionListas!$D$1:$E$148,2,FALSE), "") -> Zanjeo | N179: =IFERROR(VLOOKUP('Nomina ObreroAgricola'!L179,AdministracionListas!$D$1:$F$148,3,FALSE), "") -> ml | O179: =IFERROR(VLOOKUP('Nomina ObreroAgricola'!L179,AdministracionListas!$D$1:$G$148,4,FALSE), "") -> 1000 | P179: 95.3 | Q179: 1 | R179: 1 | S179: 95300 | T179: =IFERROR(IF(VLOOKUP(J179&L179&I179,'Catalogo de Labores '!L:L,1,FALSE) = "",FALSE,"PERSONA CON LABOR PERMITIDA"), "PERSONA CON LABOR NO PERMITIDA") -> PERSONA CON LABOR PERMITIDA
A180: Roldan Zanabria Oscar Daniel | B180: 2016-11-01 | C180: 2016-11-01 | D180: 1 | E180: 11 | F180: 2016 | G180: 7246425 | H180: =IFERROR(VLOOKUP('Nomina ObreroAgricola'!G180,'BD operarios '!$A$2:$C$18018,2,FALSE), "") -> Mosquera Mosquera Cruz Emiro | I180: =IFERROR(VLOOKUP('Nomina ObreroAgricola'!G180,'BD operarios '!$A$2:$C$18018,3,FALSE),"") -> OBRERO AGRICOLA | J180: M12 | L180: 201 | M180: =IFERROR(VLOOKUP('Nomina ObreroAgricola'!L180,AdministracionListas!$D$1:$E$148,2,FALSE), "") -> Zanjeo | N180: =IFERROR(VLOOKUP('Nomina ObreroAgricola'!L180,AdministracionListas!$D$1:$F$148,3,FALSE), "") -> ml | O180: =IFERROR(VLOOKUP('Nomina ObreroAgricola'!L180,AdministracionListas!$D$1:$G$148,4,FALSE), "") -> 1000 | P180: 74.9 | Q180: 1 | R180: 1 | S180: 74900 | T180: =IFERROR(IF(VLOOKUP(J180&L180&I180,'Catalogo de Labores '!L:L,1,FALSE) = "",FALSE,"PERSONA CON LABOR PERMITIDA"), "PERSONA CON LABOR NO PERMITIDA") -> PERSONA CON LABOR PERMITIDA
A181: Beltran Caceres Jose Adenis | B181: 2016-11-01 | C181: 2016-11-01 | D181: 1 | E181: 11 | F181: 2016 | G181: 71798908 | H181: =IFERROR(VLOOKUP('Nomina ObreroAgricola'!G181,'BD operarios '!$A$2:$C$18018,2,FALSE), "") -> Morales Moreno Humberto | I181: =IFERROR(VLOOKUP('Nomina ObreroAgricola'!G181,'BD operarios '!$A$2:$C$18018,3,FALSE),"") -> OBRERO AGRICOLA | J181: M11 | L181: 310 | M181: =IFERROR(VLOOKUP('Nomina ObreroAgricola'!L181,AdministracionListas!$D$1:$E$148,2,FALSE), "") -> Distribucion plantulas Cacao | N181: =IFERROR(VLOOKUP('Nomina ObreroAgricola'!L181,AdministracionListas!$D$1:$F$148,3,FALSE), "") -> jor | O181: =IFERROR(VLOOKUP('Nomina ObreroAgricola'!L181,AdministracionListas!$D$1:$G$148,4,FALSE), "") -> 33500 | P181: 503 | Q181: 1 | R181: 1 | S181: 33500 | T181: =IFERROR(IF(VLOOKUP(J181&L181&I181,'Catalogo de Labores '!L:L,1,FALSE) = "",FALSE,"PERSONA CON LABOR PERMITIDA"), "PERSONA CON LABOR NO PERMITIDA") -> PERSONA CON LABOR PERMITIDA
A182: Beltran Caceres Jose Adenis | B182: 2016-11-01 | C182: 2016-11-01 | D182: 1 | E182: 11 | F182: 2016 | G182: 30390223 | H182: =IFERROR(VLOOKUP('Nomina ObreroAgricola'!G182,'BD operarios '!$A$2:$C$18018,2,FALSE), "") -> Polanco Garcia Yoly | I182: =IFERROR(VLOOKUP('Nomina ObreroAgricola'!G182,'BD operarios '!$A$2:$C$18018,3,FALSE),"") -> OBRERO AGRICOLA | J182: M11 | L182: 960 | M182: =IFERROR(VLOOKUP('Nomina ObreroAgricola'!L182,AdministracionListas!$D$1:$E$148,2,FALSE), "") -> Licencia No Remunerada | N182: =IFERROR(VLOOKUP('Nomina ObreroAgricola'!L182,AdministracionListas!$D$1:$F$148,3,FALSE), "") -> jor | O182: =IFERROR(VLOOKUP('Nomina ObreroAgricola'!L182,AdministracionListas!$D$1:$G$148,4,FALSE), "") -> 0 | P182: 1 | Q182: 0 | R182: 0 | S182: 0 | T182: =IFERROR(IF(VLOOKUP(J182&L182&I182,'Catalogo de Labores '!L:L,1,FALSE) = "",FALSE,"PERSONA CON LABOR PERMITIDA"), "PERSONA CON LABOR NO PERMITIDA") -> PERSONA CON LABOR PERMITIDA
A183: Beltran Caceres Jose Adenis | B183: 2016-11-01 | C183: 2016-11-01 | D183: 1 | E183: 11 | F183: 2016 | G183: 24716669 | H183: =IFERROR(VLOOKUP('Nomina ObreroAgricola'!G183,'BD operarios '!$A$2:$C$18018,2,FALSE), "") -> Cardona Arango Mariela | I183: =IFERROR(VLOOKUP('Nomina ObreroAgricola'!G183,'BD operarios '!$A$2:$C$18018,3,FALSE),"") -> OBRERO AGRICOLA | J183: M11 | L183: 990 | M183: =IFERROR(VLOOKUP('Nomina ObreroAgricola'!L183,AdministracionListas!$D$1:$E$148,2,FALSE), "") -> Falta Injustificada | N183: =IFERROR(VLOOKUP('Nomina ObreroAgricola'!L183,AdministracionListas!$D$1:$F$148,3,FALSE), "") -> jor | O183: =IFERROR(VLOOKUP('Nomina ObreroAgricola'!L183,AdministracionListas!$D$1:$G$148,4,FALSE), "") -> 0 | P183: 1 | Q183: 0 | R183: 0 | S183: 0 | T183: =IFERROR(IF(VLOOKUP(J183&L183&I183,'Catalogo de Labores '!L:L,1,FALSE) = "",FALSE,"PERSONA CON LABOR PERMITIDA"), "PERSONA CON LABOR NO PERMITIDA") -> PERSONA CON LABOR PERMITIDA
A184: Beltran Caceres Jose Adenis | B184: 2016-11-01 | C184: 2016-11-01 | D184: 1 | E184: 11 | F184: 2016 | G184: 11052363 | H184: =IFERROR(VLOOKUP('Nomina ObreroAgricola'!G184,'BD operarios '!$A$2:$C$18018,2,FALSE), "") -> Herrera Rodriguez Jimy Rafael | I184: =IFERROR(VLOOKUP('Nomina ObreroAgricola'!G184,'BD operarios '!$A$2:$C$18018,3,FALSE),"") -> OBRERO AGRICOLA | J184: M11 | L184: 310 | M184: =IFERROR(VLOOKUP('Nomina ObreroAgricola'!L184,AdministracionListas!$D$1:$E$148,2,FALSE), "") -> Distribucion plantulas Cacao | N184: =IFERROR(VLOOKUP('Nomina ObreroAgricola'!L184,AdministracionListas!$D$1:$F$148,3,FALSE), "") -> jor | O184: =IFERROR(VLOOKUP('Nomina ObreroAgricola'!L184,AdministracionListas!$D$1:$G$148,4,FALSE), "") -> 33500 | P184: 503 | Q184: 1 | R184: 1 | S184: 33500 | T184: =IFERROR(IF(VLOOKUP(J184&L184&I184,'Catalogo de Labores '!L:L,1,FALSE) = "",FALSE,"PERSONA CON LABOR PERMITIDA"), "PERSONA CON LABOR NO PERMITIDA") -> PERSONA CON LABOR PERMITIDA
A185: Beltran Caceres Jose Adenis | B185: 2016-11-01 | C185: 2016-11-01 | D185: 1 | E185: 11 | F185: 2016 | G185: 46647755 | H185: =IFERROR(VLOOKUP('Nomina ObreroAgricola'!G185,'BD operarios '!$A$2:$C$18018,2,FALSE), "") -> Castrillon Otalvaro Luz Arelis | I185: =IFERROR(VLOOKUP('Nomina ObreroAgricola'!G185,'BD operarios '!$A$2:$C$18018,3,FALSE),"") -> OBRERO AGRICOLA | J185: M11 | L185: 990 | M185: =IFERROR(VLOOKUP('Nomina ObreroAgricola'!L185,AdministracionListas!$D$1:$E$148,2,FALSE), "") -> Falta Injustificada | N185: =IFERROR(VLOOKUP('Nomina ObreroAgricola'!L185,AdministracionListas!$D$1:$F$148,3,FALSE), "") -> jor | O185: =IFERROR(VLOOKUP('Nomina ObreroAgricola'!L185,AdministracionListas!$D$1:$G$148,4,FALSE), "") -> 0 | P185: 1 | Q185: 0 | R185: 0 | S185: 0 | T185: =IFERROR(IF(VLOOKUP(J185&L185&I185,'Catalogo de Labores '!L:L,1,FALSE) = "",FALSE,"PERSONA CON LABOR PERMITIDA"), "PERSONA CON LABOR NO PERMITIDA") -> PERSONA CON LABOR PERMITIDA
A186: Beltran Caceres Jose Adenis | B186: 2016-11-01 | C186: 2016-11-01 | D186: 1 | E186: 11 | F186: 2016 | G186: 7252221 | H186: =IFERROR(VLOOKUP('Nomina ObreroAgricola'!G186,'BD operarios '!$A$2:$C$18018,2,FALSE), "") -> Pulido Leon Elias | I186: =IFERROR(VLOOKUP('Nomina ObreroAgricola'!G186,'BD operarios '!$A$2:$C$18018,3,FALSE),"") -> OBRERO AGRICOLA | J186: M11 | L186: 990 | M186: =IFERROR(VLOOKUP('Nomina ObreroAgricola'!L186,AdministracionListas!$D$1:$E$148,2,FALSE), "") -> Falta Injustificada | N186: =IFERROR(VLOOKUP('Nomina ObreroAgricola'!L186,AdministracionListas!$D$1:$F$148,3,FALSE), "") -> jor | O186: =IFERROR(VLOOKUP('Nomina ObreroAgricola'!L186,AdministracionListas!$D$1:$G$148,4,FALSE), "") -> 0 | P186: 1 | Q186: 0 | R186: 0 | S186: 0 | T186: =IFERROR(IF(VLOOKUP(J186&L186&I186,'Catalogo de Labores '!L:L,1,FALSE) = "",FALSE,"PERSONA CON LABOR PERMITIDA"), "PERSONA CON LABOR NO PERMITIDA") -> PERSONA CON LABOR PERMITIDA
A187: Beltran Caceres Jose Adenis | B187: 2016-11-01 | C187: 2016-11-01 | D187: 1 | E187: 11 | F187: 2016 | G187: 1054564180 | H187: =IFERROR(VLOOKUP('Nomina ObreroAgricola'!G187,'BD operarios '!$A$2:$C$18018,2,FALSE), "") -> Pavas Salazar Wilmer Alexander | I187: =IFERROR(VLOOKUP('Nomina ObreroAgricola'!G187,'BD operarios '!$A$2:$C$18018,3,FALSE),"") -> OBRERO AGRICOLA | J187: M11 | L187: 310 | M187: =IFERROR(VLOOKUP('Nomina ObreroAgricola'!L187,AdministracionListas!$D$1:$E$148,2,FALSE), "") -> Distribucion plantulas Cacao | N187: =IFERROR(VLOOKUP('Nomina ObreroAgricola'!L187,AdministracionListas!$D$1:$F$148,3,FALSE), "") -> jor | O187: =IFERROR(VLOOKUP('Nomina ObreroAgricola'!L187,AdministracionListas!$D$1:$G$148,4,FALSE), "") -> 33500 | P187: 503 | Q187: 1 | R187: 1 | S187: 33500 | T187: =IFERROR(IF(VLOOKUP(J187&L187&I187,'Catalogo de Labores '!L:L,1,FALSE) = "",FALSE,"PERSONA CON LABOR PERMITIDA"), "PERSONA CON LABOR NO PERMITIDA") -> PERSONA CON LABOR PERMITIDA
A188: Beltran Caceres Jose Adenis | B188: 2016-11-01 | C188: 2016-11-01 | D188: 1 | E188: 11 | F188: 2016 | G188: 1036130302 | H188: =IFERROR(VLOOKUP('Nomina ObreroAgricola'!G188,'BD operarios '!$A$2:$C$18018,2,FALSE), "") -> Garcia Giraldo David Humberto | I188: =IFERROR(VLOOKUP('Nomina ObreroAgricola'!G188,'BD operarios '!$A$2:$C$18018,3,FALSE),"") -> OBRERO AGRICOLA | J188: M11 | L188: 310 | M188: =IFERROR(VLOOKUP('Nomina ObreroAgricola'!L188,AdministracionListas!$D$1:$E$148,2,FALSE), "") -> Distribucion plantulas Cacao | N188: =IFERROR(VLOOKUP('Nomina ObreroAgricola'!L188,AdministracionListas!$D$1:$F$148,3,FALSE), "") -> jor | O188: =IFERROR(VLOOKUP('Nomina ObreroAgricola'!L188,AdministracionListas!$D$1:$G$148,4,FALSE), "") -> 33500 | P188: 503 | Q188: 1 | R188: 1 | S188: 33500 | T188: =IFERROR(IF(VLOOKUP(J188&L188&I188,'Catalogo de Labores '!L:L,1,FALSE) = "",FALSE,"PERSONA CON LABOR PERMITIDA"), "PERSONA CON LABOR NO PERMITIDA") -> PERSONA CON LABOR PERMITIDA
A189: Beltran Caceres Jose Adenis | B189: 2016-11-01 | C189: 2016-11-01 | D189: 1 | E189: 11 | F189: 2016 | G189: 7254310 | H189: =IFERROR(VLOOKUP('Nomina ObreroAgricola'!G189,'BD operarios '!$A$2:$C$18018,2,FALSE), "") -> Mahecha Bonilla Faver Fabian | I189: =IFERROR(VLOOKUP('Nomina ObreroAgricola'!G189,'BD operarios '!$A$2:$C$18018,3,FALSE),"") -> OBRERO AGRICOLA | J189: M11 | L189: 312 | M189: =IFERROR(VLOOKUP('Nomina ObreroAgricola'!L189,AdministracionListas!$D$1:$E$148,2,FALSE), "") -> Distribucion insumos | N189: =IFERROR(VLOOKUP('Nomina ObreroAgricola'!L189,AdministracionListas!$D$1:$F$148,3,FALSE), "") -> jor | O189: =IFERROR(VLOOKUP('Nomina ObreroAgricola'!L189,AdministracionListas!$D$1:$G$148,4,FALSE), "") -> 33500 | P189: 16651 | Q189: 1 | R189: 1 | S189: 33500 | T189: =IFERROR(IF(VLOOKUP(J189&L189&I189,'Catalogo de Labores '!L:L,1,FALSE) = "",FALSE,"PERSONA CON LABOR PERMITIDA"), "PERSONA CON LABOR NO PERMITIDA") -> PERSONA CON LABOR PERMITIDA
A190: Beltran Caceres Jose Adenis | B190: 2016-11-01 | C190: 2016-11-01 | D190: 1 | E190: 11 | F190: 2016 | G190: 1054550362 | H190: =IFERROR(VLOOKUP('Nomina ObreroAgricola'!G190,'BD operarios '!$A$2:$C$18018,2,FALSE), "") -> Garcia Delgado Angel David | I190: =IFERROR(VLOOKUP('Nomina ObreroAgricola'!G190,'BD operarios '!$A$2:$C$18018,3,FALSE),"") -> OBRERO AGRICOLA | J190: M11 | L190: 310 | M190: =IFERROR(VLOOKUP('Nomina ObreroAgricola'!L190,AdministracionListas!$D$1:$E$148,2,FALSE), "") -> Distribucion plantulas Cacao | N190: =IFERROR(VLOOKUP('Nomina ObreroAgricola'!L190,AdministracionListas!$D$1:$F$148,3,FALSE), "") -> jor | O190: =IFERROR(VLOOKUP('Nomina ObreroAgricola'!L190,AdministracionListas!$D$1:$G$148,4,FALSE), "") -> 33500 | P190: 503 | Q190: 1 | R190: 1 | S190: 33500 | T190: =IFERROR(IF(VLOOKUP(J190&L190&I190,'Catalogo de Labores '!L:L,1,FALSE) = "",FALSE,"PERSONA CON LABOR PERMITIDA"), "PERSONA CON LABOR NO PERMITIDA") -> PERSONA CON LABOR PERMITIDA
A191: Beltran Caceres Jose Adenis | B191: 2016-11-01 | C191: 2016-11-01 | D191: 1 | E191: 11 | F191: 2016 | G191: 1099552850 | H191: =IFERROR(VLOOKUP('Nomina ObreroAgricola'!G191,'BD operarios '!$A$2:$C$18018,2,FALSE), "") -> Muñoz Estrada Diego Javier | I191: =IFERROR(VLOOKUP('Nomina ObreroAgricola'!G191,'BD operarios '!$A$2:$C$18018,3,FALSE),"") -> OBRERO AGRICOLA | J191: M11 | L191: 310 | M191: =IFERROR(VLOOKUP('Nomina ObreroAgricola'!L191,AdministracionListas!$D$1:$E$148,2,FALSE), "") -> Distribucion plantulas Cacao | N191: =IFERROR(VLOOKUP('Nomina ObreroAgricola'!L191,AdministracionListas!$D$1:$F$148,3,FALSE), "") -> jor | O191: =IFERROR(VLOOKUP('Nomina ObreroAgricola'!L191,AdministracionListas!$D$1:$G$148,4,FALSE), "") -> 33500 | P191: 503 | Q191: 1 | R191: 1 | S191: 33500 | T191: =IFERROR(IF(VLOOKUP(J191&L191&I191,'Catalogo de Labores '!L:L,1,FALSE) = "",FALSE,"PERSONA CON LABOR PERMITIDA"), "PERSONA CON LABOR NO PERMITIDA") -> PERSONA CON LABOR PERMITIDA
A192: Beltran Caceres Jose Adenis | B192: 2016-11-01 | C192: 2016-11-01 | D192: 1 | E192: 11 | F192: 2016 | G192: 1054539769 | H192: =IFERROR(VLOOKUP('Nomina ObreroAgricola'!G192,'BD operarios '!$A$2:$C$18018,2,FALSE), "") -> Padilla Robayo Edwin Fernando | I192: =IFERROR(VLOOKUP('Nomina ObreroAgricola'!G192,'BD operarios '!$A$2:$C$18018,3,FALSE),"") -> OBRERO AGRICOLA | J192: M11 | L192: 310 | M192: =IFERROR(VLOOKUP('Nomina ObreroAgricola'!L192,AdministracionListas!$D$1:$E$148,2,FALSE), "") -> Distribucion plantulas Cacao | N192: =IFERROR(VLOOKUP('Nomina ObreroAgricola'!L192,AdministracionListas!$D$1:$F$148,3,FALSE), "") -> jor | O192: =IFERROR(VLOOKUP('Nomina ObreroAgricola'!L192,AdministracionListas!$D$1:$G$148,4,FALSE), "") -> 33500 | P192: 503 | Q192: 1 | R192: 1 | S192: 33500 | T192: =IFERROR(IF(VLOOKUP(J192&L192&I192,'Catalogo de Labores '!L:L,1,FALSE) = "",FALSE,"PERSONA CON LABOR PERMITIDA"), "PERSONA CON LABOR NO PERMITIDA") -> PERSONA CON LABOR PERMITIDA
A193: Beltran Caceres Jose Adenis | B193: 2016-11-01 | C193: 2016-11-01 | D193: 1 | E193: 11 | F193: 2016 | G193: 1036133418 | H193: =IFERROR(VLOOKUP('Nomina ObreroAgricola'!G193,'BD operarios '!$A$2:$C$18018,2,FALSE), "") -> Soto Guerra Cristhian Alexis | I193: =IFERROR(VLOOKUP('Nomina ObreroAgricola'!G193,'BD operarios '!$A$2:$C$18018,3,FALSE),"") -> OBRERO AGRICOLA | J193: M11 | L193: 310 | M193: =IFERROR(VLOOKUP('Nomina ObreroAgricola'!L193,AdministracionListas!$D$1:$E$148,2,FALSE), "") -> Distribucion plantulas Cacao | N193: =IFERROR(VLOOKUP('Nomina ObreroAgricola'!L193,AdministracionListas!$D$1:$F$148,3,FALSE), "") -> jor | O193: =IFERROR(VLOOKUP('Nomina ObreroAgricola'!L193,AdministracionListas!$D$1:$G$148,4,FALSE), "") -> 33500 | P193: 503 | Q193: 1 | R193: 1 | S193: 33500 | T193: =IFERROR(IF(VLOOKUP(J193&L193&I193,'Catalogo de Labores '!L:L,1,FALSE) = "",FALSE,"PERSONA CON LABOR PERMITIDA"), "PERSONA CON LABOR NO PERMITIDA") -> PERSONA CON LABOR PERMITIDA
A194: Beltran Caceres Jose Adenis | B194: 2016-11-01 | C194: 2016-11-01 | D194: =IF(ISBLANK(C194),"",DAY(C194)) -> 1 | E194: =IF(ISBLANK(C194),"",MONTH(C194)) -> 11 | F194: =IF(ISBLANK(C194),"",YEAR(C194)) -> 2016 | G194: 46648776 | H194: =IFERROR(VLOOKUP('Nomina ObreroAgricola'!G194,'BD operarios '!$A$2:$C$18018,2,FALSE), "") -> Ospitia Bejarano Isaura | I194: =IFERROR(VLOOKUP('Nomina ObreroAgricola'!G194,'BD operarios '!$A$2:$C$18018,3,FALSE),"") -> OBRERO AGRICOLA | J194: M11 | L194: 310 | M194: =IFERROR(VLOOKUP('Nomina ObreroAgricola'!L194,AdministracionListas!$D$1:$E$148,2,FALSE), "") -> Distribucion plantulas Cacao | N194: =IFERROR(VLOOKUP('Nomina ObreroAgricola'!L194,AdministracionListas!$D$1:$F$148,3,FALSE), "") -> jor | O194: =IFERROR(VLOOKUP('Nomina ObreroAgricola'!L194,AdministracionListas!$D$1:$G$148,4,FALSE), "") -> 33500 | P194: 504 | Q194: 1 | R194: 1 | S194: =IFERROR(IF(N194="jor",O194*Q194,O194*P194),"") -> 33500 | T194: =IFERROR(IF(VLOOKUP(J194&L194&I194,'Catalogo de Labores '!L:L,1,FALSE) = "",FALSE,"PERSONA CON LABOR PERMITIDA"), "PERSONA CON LABOR NO PERMITIDA") -> PERSONA CON LABOR PERMITIDA | U194: =IF(AND(OR(N194<>"Jor",N194<>"jor"),Q194="",ISNUMBER(L194)),"Falta jornal",IF(AND(OR(N194="Jor",N194="jor"),P194="",L194<>906,L194<>401,L194<>960,L194<>990,L194<>980,L194<>970,L194<>950,L194<>118,L194<>119),"Falta labor"," ")) -> 
A195: Beltran Caceres Jose Adenis | B195: 2016-11-01 | C195: 2016-11-01 | D195: 1 | E195: 11 | F195: 2016 | G195: 1001443441 | H195: =IFERROR(VLOOKUP('Nomina ObreroAgricola'!G195,'BD operarios '!$A$2:$C$18018,2,FALSE), "") -> Henao Castrillón Deicy Milena | I195: =IFERROR(VLOOKUP('Nomina ObreroAgricola'!G195,'BD operarios '!$A$2:$C$18018,3,FALSE),"") -> OBRERO AGRICOLA | J195: M11 | L195: 990 | M195: =IFERROR(VLOOKUP('Nomina ObreroAgricola'!L195,AdministracionListas!$D$1:$E$148,2,FALSE), "") -> Falta Injustificada | N195: =IFERROR(VLOOKUP('Nomina ObreroAgricola'!L195,AdministracionListas!$D$1:$F$148,3,FALSE), "") -> jor | O195: =IFERROR(VLOOKUP('Nomina ObreroAgricola'!L195,AdministracionListas!$D$1:$G$148,4,FALSE), "") -> 0 | P195: 1 | Q195: 0 | R195: 0 | S195: 0 | T195: =IFERROR(IF(VLOOKUP(J195&L195&I195,'Catalogo de Labores '!L:L,1,FALSE) = "",FALSE,"PERSONA CON LABOR PERMITIDA"), "PERSONA CON LABOR NO PERMITIDA") -> PERSONA CON LABOR PERMITIDA
A196: Beltran Caceres Jose Adenis | B196: 2016-11-01 | C196: 2016-11-01 | D196: 1 | E196: 11 | F196: 2016 | G196: 1056773332 | H196: =IFERROR(VLOOKUP('Nomina ObreroAgricola'!G196,'BD operarios '!$A$2:$C$18018,2,FALSE), "") -> Murillo Arango Jose Joani | I196: =IFERROR(VLOOKUP('Nomina ObreroAgricola'!G196,'BD operarios '!$A$2:$C$18018,3,FALSE),"") -> OBRERO AGRICOLA | J196: M11 | L196: 990 | M196: =IFERROR(VLOOKUP('Nomina ObreroAgricola'!L196,AdministracionListas!$D$1:$E$148,2,FALSE), "") -> Falta Injustificada | N196: =IFERROR(VLOOKUP('Nomina ObreroAgricola'!L196,AdministracionListas!$D$1:$F$148,3,FALSE), "") -> jor | O196: =IFERROR(VLOOKUP('Nomina ObreroAgricola'!L196,AdministracionListas!$D$1:$G$148,4,FALSE), "") -> 0 | P196: 1 | Q196: 0 | R196: 0 | S196: 0 | T196: =IFERROR(IF(VLOOKUP(J196&L196&I196,'Catalogo de Labores '!L:L,1,FALSE) = "",FALSE,"PERSONA CON LABOR PERMITIDA"), "PERSONA CON LABOR NO PERMITIDA") -> PERSONA CON LABOR PERMITIDA
A197: Beltran Caceres Jose Adenis | B197: 2016-11-01 | C197: 2016-11-01 | D197: 1 | E197: 11 | F197: 2016 | G197: 91134881 | H197: =IFERROR(VLOOKUP('Nomina ObreroAgricola'!G197,'BD operarios '!$A$2:$C$18018,2,FALSE), "") -> Simanca Gonzalez John Jairo | I197: =IFERROR(VLOOKUP('Nomina ObreroAgricola'!G197,'BD operarios '!$A$2:$C$18018,3,FALSE),"") -> OBRERO AGRICOLA | J197: M11 | L197: 990 | M197: =IFERROR(VLOOKUP('Nomina ObreroAgricola'!L197,AdministracionListas!$D$1:$E$148,2,FALSE), "") -> Falta Injustificada | N197: =IFERROR(VLOOKUP('Nomina ObreroAgricola'!L197,AdministracionListas!$D$1:$F$148,3,FALSE), "") -> jor | O197: =IFERROR(VLOOKUP('Nomina ObreroAgricola'!L197,AdministracionListas!$D$1:$G$148,4,FALSE), "") -> 0 | P197: 1 | Q197: 0 | R197: 0 | S197: 0 | T197: =IFERROR(IF(VLOOKUP(J197&L197&I197,'Catalogo de Labores '!L:L,1,FALSE) = "",FALSE,"PERSONA CON LABOR PERMITIDA"), "PERSONA CON LABOR NO PERMITIDA") -> PERSONA CON LABOR PERMITIDA
A198: Beltran Caceres Jose Adenis | B198: 2016-11-01 | C198: 2016-11-01 | D198: 1 | E198: 11 | F198: 2016 | G198: 71452035 | H198: =IFERROR(VLOOKUP('Nomina ObreroAgricola'!G198,'BD operarios '!$A$2:$C$18018,2,FALSE), "") -> Osorio Garcia Arcenio De Jesus | I198: =IFERROR(VLOOKUP('Nomina ObreroAgricola'!G198,'BD operarios '!$A$2:$C$18018,3,FALSE),"") -> OBRERO AGRICOLA | J198: M11 | L198: 310 | M198: =IFERROR(VLOOKUP('Nomina ObreroAgricola'!L198,AdministracionListas!$D$1:$E$148,2,FALSE), "") -> Distribucion plantulas Cacao | N198: =IFERROR(VLOOKUP('Nomina ObreroAgricola'!L198,AdministracionListas!$D$1:$F$148,3,FALSE), "") -> jor | O198: =IFERROR(VLOOKUP('Nomina ObreroAgricola'!L198,AdministracionListas!$D$1:$G$148,4,FALSE), "") -> 33500 | P198: 503 | Q198: 1 | R198: 1 | S198: 33500 | T198: =IFERROR(IF(VLOOKUP(J198&L198&I198,'Catalogo de Labores '!L:L,1,FALSE) = "",FALSE,"PERSONA CON LABOR PERMITIDA"), "PERSONA CON LABOR NO PERMITIDA") -> PERSONA CON LABOR PERMITIDA
A199: Beltran Caceres Jose Adenis | B199: 2016-11-01 | C199: 2016-11-01 | D199: 1 | E199: 11 | F199: 2016 | G199: 1056776423 | H199: =IFERROR(VLOOKUP('Nomina ObreroAgricola'!G199,'BD operarios '!$A$2:$C$18018,2,FALSE), "") -> Garcia Agudelo Jessica Yinela | I199: =IFERROR(VLOOKUP('Nomina ObreroAgricola'!G199,'BD operarios '!$A$2:$C$18018,3,FALSE),"") -> OBRERO AGRICOLA | J199: M11 | L199: 314 | M199: =IFERROR(VLOOKUP('Nomina ObreroAgricola'!L199,AdministracionListas!$D$1:$E$148,2,FALSE), "") -> Censo Plantacion | N199: =IFERROR(VLOOKUP('Nomina ObreroAgricola'!L199,AdministracionListas!$D$1:$F$148,3,FALSE), "") -> jor | O199: =IFERROR(VLOOKUP('Nomina ObreroAgricola'!L199,AdministracionListas!$D$1:$G$148,4,FALSE), "") -> 29439 | P199: 4456 | Q199: 1 | R199: 1 | S199: 29439 | T199: =IFERROR(IF(VLOOKUP(J199&L199&I199,'Catalogo de Labores '!L:L,1,FALSE) = "",FALSE,"PERSONA CON LABOR PERMITIDA"), "PERSONA CON LABOR NO PERMITIDA") -> PERSONA CON LABOR PERMITIDA
A200: Herrera Gutierrez Jehinsson Javier | B200: 2016-11-01 | C200: 2016-11-01 | D200: 1 | E200: 11 | F200: 2016 | G200: 1054560495 | H200: =IFERROR(VLOOKUP('Nomina ObreroAgricola'!G200,'BD operarios '!$A$2:$C$18018,2,FALSE), "") -> Rico Cabezas Elianis Marcela | I200: =IFERROR(VLOOKUP('Nomina ObreroAgricola'!G200,'BD operarios '!$A$2:$C$18018,3,FALSE),"") -> OBRERO AGRICOLA | J200: 301 | L200: 990 | M200: =IFERROR(VLOOKUP('Nomina ObreroAgricola'!L200,AdministracionListas!$D$1:$E$148,2,FALSE), "") -> Falta Injustificada | N200: =IFERROR(VLOOKUP('Nomina ObreroAgricola'!L200,AdministracionListas!$D$1:$F$148,3,FALSE), "") -> jor | O200: =IFERROR(VLOOKUP('Nomina ObreroAgricola'!L200,AdministracionListas!$D$1:$G$148,4,FALSE), "") -> 0 | P200: 1 | Q200: 0 | R200: 0 | S200: 0 | T200: =IFERROR(IF(VLOOKUP(J200&L200&I200,'Catalogo de Labores '!L:L,1,FALSE) = "",FALSE,"PERSONA CON LABOR PERMITIDA"), "PERSONA CON LABOR NO PERMITIDA") -> PERSONA CON LABOR PERMITIDA
... 4300 more rows

Sheet Nomina CercasyLinderos
A1: Supervisor | B1: Dia Nombre | C1: Fecha | D1: Día | E1: Mes | F1: Año | G1: Cedula | H1: Nombre | I1: Cargo | J1: Lote -CC | K1: Labor Cod | L1: Labor Nomb | M1: Unidad de pago | N1: Tarifa | O1: Cantidad Labor | P1: Cantidad Jornal | Q1: Asistencia | R1: Subtotal | S1: Verificación | U1: Diligenciar la fecha a digitar:
A2: Gil Guerra Arley De Jesus | B2: 2016-11-01 | C2: 2016-11-01 | D2: =IF(ISBLANK(C2),"",DAY(C2)) -> 1 | E2: =IF(ISBLANK(C2),"",MONTH(C2)) -> 11 | F2: =IF(ISBLANK(C2),"",YEAR(C2)) -> 2016 | G2: 1099545443 | H2: =IFERROR(VLOOKUP('Nomina CercasyLinderos'!G2,'BD operarios '!$A$4:$C$18018,2,FALSE), "") -> Duran Contreras Daniel De Jesus | I2: =IFERROR(VLOOKUP('Nomina CercasyLinderos'!G2,'BD operarios '!$A$2:$C$18018,3,FALSE), "") -> ALAMBRADOR | J2: 4055 | K2: 915 | L2: =IFERROR(VLOOKUP('Nomina CercasyLinderos'!K2,AdministracionListas!$D$1:$E$148,2,FALSE), "") -> Alambrada en firme 4 hilos | M2: =IFERROR(VLOOKUP('Nomina CercasyLinderos'!K2,AdministracionListas!$D$1:$F$148,3,FALSE), "") -> Pos | N2: =IFERROR(VLOOKUP('Nomina CercasyLinderos'!K2,AdministracionListas!$D$1:$G$148,4,FALSE), "") -> 3750 | O2: 0 | P2: 1 | Q2: 1 | R2: =IFERROR(IF(M2="jor",N2*P2,N2*O2),"") -> 0 | S2: =IFERROR(IF(VLOOKUP(J2&K2&I2,'Catalogo de Labores '!L:L,1,FALSE) = "",FALSE,"PERSONA CON LABOR PERMITIDA"), "PERSONA CON LABOR NO PERMITIDA") -> PERSONA CON LABOR PERMITIDA | T2: =IF(AND(OR(M2<>"Jor",M2<>"jor"),P2="",ISNUMBER(K2)),"Falta jornal",IF(AND(OR(M2="Jor",M2="jor"),O2="",K2<>906,K2<>401,K2<>960,K2<>990,K2<>980,K2<>970,K2<>950),"Falta labor"," ")) ->  | U2: Fecha a digitar | V2: 2016-11-30
A3: Gil Guerra Arley De Jesus | B3: 2016-11-01 | C3: 2016-11-01 | D3: 1 | E3: 11 | F3: 2016 | G3: 77143508 | H3: =IFERROR(VLOOKUP('Nomina CercasyLinderos'!G3,'BD operarios '!$A$4:$C$18018,2,FALSE), "") -> Fragozo Rico Juan | I3: =IFERROR(VLOOKUP('Nomina CercasyLinderos'!G3,'BD operarios '!$A$2:$C$18018,3,FALSE), "") -> ALAMBRADOR | J3: 4055 | K3: 915 | L3: =IFERROR(VLOOKUP('Nomina CercasyLinderos'!K3,AdministracionListas!$D$1:$E$148,2,FALSE), "") -> Alambrada en firme 4 hilos | M3: =IFERROR(VLOOKUP('Nomina CercasyLinderos'!K3,AdministracionListas!$D$1:$F$148,3,FALSE), "") -> Pos | N3: =IFERROR(VLOOKUP('Nomina CercasyLinderos'!K3,AdministracionListas!$D$1:$G$148,4,FALSE), "") -> 3750 | O3: 15 | P3: 0.5 | Q3: 1 | R3: 56250 | S3: =IFERROR(IF(VLOOKUP(J3&K3&I3,'Catalogo de Labores '!L:L,1,FALSE) = "",FALSE,"PERSONA CON LABOR PERMITIDA"), "PERSONA CON LABOR NO PERMITIDA") -> PERSONA CON LABOR PERMITIDA | T3: =IF(AND(OR(M3<>"Jor",M3<>"jor"),P3="",ISNUMBER(K3)),"Falta jornal",IF(AND(OR(M3="Jor",M3="jor"),O3="",K3<>906,K3<>401,K3<>960,K3<>990,K3<>980,K3<>970,K3<>950),"Falta labor"," ")) ->  | U3: Dia a digitar | V3: =+V2 -> 2016-11-30
A4: Gil Guerra Arley De Jesus | B4: 2016-11-01 | C4: 2016-11-01 | D4: 1 | E4: 11 | F4: 2016 | G4: 7249393 | H4: =IFERROR(VLOOKUP('Nomina CercasyLinderos'!G4,'BD operarios '!$A$4:$C$18018,2,FALSE), "") -> Carmona Tamayo Jorge Ivan | I4: =IFERROR(VLOOKUP('Nomina CercasyLinderos'!G4,'BD operarios '!$A$2:$C$18018,3,FALSE), "") -> ALAMBRADOR | J4: 4055 | K4: 915 | L4: =IFERROR(VLOOKUP('Nomina CercasyLinderos'!K4,AdministracionListas!$D$1:$E$148,2,FALSE), "") -> Alambrada en firme 4 hilos | M4: =IFERROR(VLOOKUP('Nomina CercasyLinderos'!K4,AdministracionListas!$D$1:$F$148,3,FALSE), "") -> Pos | N4: =IFERROR(VLOOKUP('Nomina CercasyLinderos'!K4,AdministracionListas!$D$1:$G$148,4,FALSE), "") -> 3750 | O4: 0 | P4: 1 | Q4: 1 | R4: 0 | S4: =IFERROR(IF(VLOOKUP(J4&K4&I4,'Catalogo de Labores '!L:L,1,FALSE) = "",FALSE,"PERSONA CON LABOR PERMITIDA"), "PERSONA CON LABOR NO PERMITIDA") -> PERSONA CON LABOR PERMITIDA
A5: Gil Guerra Arley De Jesus | B5: 2016-11-01 | C5: 2016-11-01 | D5: 1 | E5: 11 | F5: 2016 | G5: 739760 | H5: =IFERROR(VLOOKUP('Nomina CercasyLinderos'!G5,'BD operarios '!$A$4:$C$18018,2,FALSE), "") -> Mejia Ocampo Jaime De Jesus | I5: =IFERROR(VLOOKUP('Nomina CercasyLinderos'!G5,'BD operarios '!$A$2:$C$18018,3,FALSE), "") -> ALAMBRADOR | J5: 4055 | K5: 917 | L5: =IFERROR(VLOOKUP('Nomina CercasyLinderos'!K5,AdministracionListas!$D$1:$E$148,2,FALSE), "") -> Elaboración portón de madera X 4 metros | M5: =IFERROR(VLOOKUP('Nomina CercasyLinderos'!K5,AdministracionListas!$D$1:$F$148,3,FALSE), "") -> Por | N5: =IFERROR(VLOOKUP('Nomina CercasyLinderos'!K5,AdministracionListas!$D$1:$G$148,4,FALSE), "") -> 850000 | O5: 0.1 | P5: 1 | Q5: 1 | R5: 85000 | S5: =IFERROR(IF(VLOOKUP(J5&K5&I5,'Catalogo de Labores '!L:L,1,FALSE) = "",FALSE,"PERSONA CON LABOR PERMITIDA"), "PERSONA CON LABOR NO PERMITIDA") -> PERSONA CON LABOR PERMITIDA
A6: Gil Guerra Arley De Jesus | B6: 2016-11-01 | C6: 2016-11-01 | D6: 1 | E6: 11 | F6: 2016 | G6: 7251502 | H6: =IFERROR(VLOOKUP('Nomina CercasyLinderos'!G6,'BD operarios '!$A$4:$C$18018,2,FALSE), "") -> Gil Guerra Juan Crisostomo | I6: =IFERROR(VLOOKUP('Nomina CercasyLinderos'!G6,'BD operarios '!$A$2:$C$18018,3,FALSE), "") -> ALAMBRADOR | J6: 4055 | K6: 915 | L6: =IFERROR(VLOOKUP('Nomina CercasyLinderos'!K6,AdministracionListas!$D$1:$E$148,2,FALSE), "") -> Alambrada en firme 4 hilos | M6: =IFERROR(VLOOKUP('Nomina CercasyLinderos'!K6,AdministracionListas!$D$1:$F$148,3,FALSE), "") -> Pos | N6: =IFERROR(VLOOKUP('Nomina CercasyLinderos'!K6,AdministracionListas!$D$1:$G$148,4,FALSE), "") -> 3750 | O6: 0 | P6: 1 | Q6: 1 | R6: 0 | S6: =IFERROR(IF(VLOOKUP(J6&K6&I6,'Catalogo de Labores '!L:L,1,FALSE) = "",FALSE,"PERSONA CON LABOR PERMITIDA"), "PERSONA CON LABOR NO PERMITIDA") -> PERSONA CON LABOR PERMITIDA
A7: Gil Guerra Arley De Jesus | B7: 2016-11-01 | C7: 2016-11-01 | D7: 1 | E7: 11 | F7: 2016 | G7: 10201472 | H7: =IFERROR(VLOOKUP('Nomina CercasyLinderos'!G7,'BD operarios '!$A$4:$C$18018,2,FALSE), "") -> Hernandez Ramon Antonio | I7: =IFERROR(VLOOKUP('Nomina CercasyLinderos'!G7,'BD operarios '!$A$2:$C$18018,3,FALSE), "") -> ALAMBRADOR | J7: 4055 | K7: 916 | L7: =IFERROR(VLOOKUP('Nomina CercasyLinderos'!K7,AdministracionListas!$D$1:$E$148,2,FALSE), "") -> Desalambrado | M7: =IFERROR(VLOOKUP('Nomina CercasyLinderos'!K7,AdministracionListas!$D$1:$F$148,3,FALSE), "") -> Pos | N7: =IFERROR(VLOOKUP('Nomina CercasyLinderos'!K7,AdministracionListas!$D$1:$G$148,4,FALSE), "") -> 1000 | O7: 39 | P7: 1 | Q7: 1 | R7: 39000 | S7: =IFERROR(IF(VLOOKUP(J7&K7&I7,'Catalogo de Labores '!L:L,1,FALSE) = "",FALSE,"PERSONA CON LABOR PERMITIDA"), "PERSONA CON LABOR NO PERMITIDA") -> PERSONA CON LABOR PERMITIDA
A8: Gil Guerra Arley De Jesus | B8: 2016-11-01 | C8: 2016-11-01 | D8: 1 | E8: 11 | F8: 2016 | G8: 77143508 | H8: =IFERROR(VLOOKUP('Nomina CercasyLinderos'!G8,'BD operarios '!$A$4:$C$18018,2,FALSE), "") -> Fragozo Rico Juan | I8: =IFERROR(VLOOKUP('Nomina CercasyLinderos'!G8,'BD operarios '!$A$2:$C$18018,3,FALSE), "") -> ALAMBRADOR | J8: 4055 | K8: 916 | L8: =IFERROR(VLOOKUP('Nomina CercasyLinderos'!K8,AdministracionListas!$D$1:$E$148,2,FALSE), "") -> Desalambrado | M8: =IFERROR(VLOOKUP('Nomina CercasyLinderos'!K8,AdministracionListas!$D$1:$F$148,3,FALSE), "") -> Pos | N8: =IFERROR(VLOOKUP('Nomina CercasyLinderos'!K8,AdministracionListas!$D$1:$G$148,4,FALSE), "") -> 1000 | O8: 66 | P8: 0.5 | Q8: 1 | R8: 66000 | S8: =IFERROR(IF(VLOOKUP(J8&K8&I8,'Catalogo de Labores '!L:L,1,FALSE) = "",FALSE,"PERSONA CON LABOR PERMITIDA"), "PERSONA CON LABOR NO PERMITIDA") -> PERSONA CON LABOR PERMITIDA
A9: Gil Guerra Arley De Jesus | B9: 2016-11-02 | C9: 2016-11-02 | D9: 2 | E9: 11 | F9: 2016 | G9: 1099545443 | H9: =IFERROR(VLOOKUP('Nomina CercasyLinderos'!G9,'BD operarios '!$A$4:$C$18018,2,FALSE), "") -> Duran Contreras Daniel De Jesus | I9: =IFERROR(VLOOKUP('Nomina CercasyLinderos'!G9,'BD operarios '!$A$2:$C$18018,3,FALSE), "") -> ALAMBRADOR | J9: 4055 | K9: 915 | L9: =IFERROR(VLOOKUP('Nomina CercasyLinderos'!K9,AdministracionListas!$D$1:$E$148,2,FALSE), "") -> Alambrada en firme 4 hilos | M9: =IFERROR(VLOOKUP('Nomina CercasyLinderos'!K9,AdministracionListas!$D$1:$F$148,3,FALSE), "") -> Pos | N9: =IFERROR(VLOOKUP('Nomina CercasyLinderos'!K9,AdministracionListas!$D$1:$G$148,4,FALSE), "") -> 3750 | O9: 25 | P9: 1 | Q9: 1 | R9: 93750 | S9: =IFERROR(IF(VLOOKUP(J9&K9&I9,'Catalogo de Labores '!L:L,1,FALSE) = "",FALSE,"PERSONA CON LABOR PERMITIDA"), "PERSONA CON LABOR NO PERMITIDA") -> PERSONA CON LABOR PERMITIDA
A10: Gil Guerra Arley De Jesus | B10: 2016-11-02 | C10: 2016-11-02 | D10: 2 | E10: 11 | F10: 2016 | G10: 77143508 | H10: =IFERROR(VLOOKUP('Nomina CercasyLinderos'!G10,'BD operarios '!$A$4:$C$18018,2,FALSE), "") -> Fragozo Rico Juan | I10: =IFERROR(VLOOKUP('Nomina CercasyLinderos'!G10,'BD operarios '!$A$2:$C$18018,3,FALSE), "") -> ALAMBRADOR | J10: 4055 | K10: 915 | L10: =IFERROR(VLOOKUP('Nomina CercasyLinderos'!K10,AdministracionListas!$D$1:$E$148,2,FALSE), "") -> Alambrada en firme 4 hilos | M10: =IFERROR(VLOOKUP('Nomina CercasyLinderos'!K10,AdministracionListas!$D$1:$F$148,3,FALSE), "") -> Pos | N10: =IFERROR(VLOOKUP('Nomina CercasyLinderos'!K10,AdministracionListas!$D$1:$G$148,4,FALSE), "") -> 3750 | O10: 30 | P10: 1 | Q10: 1 | R10: 112500 | S10: =IFERROR(IF(VLOOKUP(J10&K10&I10,'Catalogo de Labores '!L:L,1,FALSE) = "",FALSE,"PERSONA CON LABOR PERMITIDA"), "PERSONA CON LABOR NO PERMITIDA") -> PERSONA CON LABOR PERMITIDA
A11: Gil Guerra Arley De Jesus | B11: 2016-11-02 | C11: 2016-11-02 | D11: 2 | E11: 11 | F11: 2016 | G11: 7249393 | H11: =IFERROR(VLOOKUP('Nomina CercasyLinderos'!G11,'BD operarios '!$A$4:$C$18018,2,FALSE), "") -> Carmona Tamayo Jorge Ivan | I11: =IFERROR(VLOOKUP('Nomina CercasyLinderos'!G11,'BD operarios '!$A$2:$C$18018,3,FALSE), "") -> ALAMBRADOR | J11: 4055 | K11: 915 | L11: =IFERROR(VLOOKUP('Nomina CercasyLinderos'!K11,AdministracionListas!$D$1:$E$148,2,FALSE), "") -> Alambrada en firme 4 hilos | M11: =IFERROR(VLOOKUP('Nomina CercasyLinderos'!K11,AdministracionListas!$D$1:$F$148,3,FALSE), "") -> Pos | N11: =IFERROR(VLOOKUP('Nomina CercasyLinderos'!K11,AdministracionListas!$D$1:$G$148,4,FALSE), "") -> 3750 | O11: 10 | P11: 1 | Q11: 1 | R11: 37500 | S11: =IFERROR(IF(VLOOKUP(J11&K11&I11,'Catalogo de Labores '!L:L,1,FALSE) = "",FALSE,"PERSONA CON LABOR PERMITIDA"), "PERSONA CON LABOR NO PERMITIDA") -> PERSONA CON LABOR PERMITIDA
A12: Gil Guerra Arley De Jesus | B12: 2016-11-02 | C12: 2016-11-02 | D12: 2 | E12: 11 | F12: 2016 | G12: 739760 | H12: =IFERROR(VLOOKUP('Nomina CercasyLinderos'!G12,'BD operarios '!$A$4:$C$18018,2,FALSE), "") -> Mejia Ocampo Jaime De Jesus | I12: =IFERROR(VLOOKUP('Nomina CercasyLinderos'!G12,'BD operarios '!$A$2:$C$18018,3,FALSE), "") -> ALAMBRADOR | J12: 4055 | K12: 917 | L12: =IFERROR(VLOOKUP('Nomina CercasyLinderos'!K12,AdministracionListas!$D$1:$E$148,2,FALSE), "") -> Elaboración portón de madera X 4 metros | M12: =IFERROR(VLOOKUP('Nomina CercasyLinderos'!K12,AdministracionListas!$D$1:$F$148,3,FALSE), "") -> Por | N12: =IFERROR(VLOOKUP('Nomina CercasyLinderos'!K12,AdministracionListas!$D$1:$G$148,4,FALSE), "") -> 850000 | O12: 0.1 | P12: 1 | Q12: 1 | R12: 85000 | S12: =IFERROR(IF(VLOOKUP(J12&K12&I12,'Catalogo de Labores '!L:L,1,FALSE) = "",FALSE,"PERSONA CON LABOR PERMITIDA"), "PERSONA CON LABOR NO PERMITIDA") -> PERSONA CON LABOR PERMITIDA
A13: Gil Guerra Arley De Jesus | B13: 2016-11-02 | C13: 2016-11-02 | D13: 2 | E13: 11 | F13: 2016 | G13: 7251502 | H13: =IFERROR(VLOOKUP('Nomina CercasyLinderos'!G13,'BD operarios '!$A$4:$C$18018,2,FALSE), "") -> Gil Guerra Juan Crisostomo | I13: =IFERROR(VLOOKUP('Nomina CercasyLinderos'!G13,'BD operarios '!$A$2:$C$18018,3,FALSE), "") -> ALAMBRADOR | J13: 4055 | K13: 915 | L13: =IFERROR(VLOOKUP('Nomina CercasyLinderos'!K13,AdministracionListas!$D$1:$E$148,2,FALSE), "") -> Alambrada en firme 4 hilos | M13: =IFERROR(VLOOKUP('Nomina CercasyLinderos'!K13,AdministracionListas!$D$1:$F$148,3,FALSE), "") -> Pos | N13: =IFERROR(VLOOKUP('Nomina CercasyLinderos'!K13,AdministracionListas!$D$1:$G$148,4,FALSE), "") -> 3750 | O13: 10 | P13: 1 | Q13: 1 | R13: 37500 | S13: =IFERROR(IF(VLOOKUP(J13&K13&I13,'Catalogo de Labores '!L:L,1,FALSE) = "",FALSE,"PERSONA CON LABOR PERMITIDA"), "PERSONA CON LABOR NO PERMITIDA") -> PERSONA CON LABOR PERMITIDA
A14: Gil Guerra Arley De Jesus | B14: 2016-11-02 | C14: 2016-11-02 | D14: 2 | E14: 11 | F14: 2016 | G14: 10201472 | H14: =IFERROR(VLOOKUP('Nomina CercasyLinderos'!G14,'BD operarios '!$A$4:$C$18018,2,FALSE), "") -> Hernandez Ramon Antonio | I14: =IFERROR(VLOOKUP('Nomina CercasyLinderos'!G14,'BD operarios '!$A$2:$C$18018,3,FALSE), "") -> ALAMBRADOR | J14: 4055 | K14: 990 | L14: =IFERROR(VLOOKUP('Nomina CercasyLinderos'!K14,AdministracionListas!$D$1:$E$148,2,FALSE), "") -> Falta Injustificada | M14: =IFERROR(VLOOKUP('Nomina CercasyLinderos'!K14,AdministracionListas!$D$1:$F$148,3,FALSE), "") -> jor | N14: =IFERROR(VLOOKUP('Nomina CercasyLinderos'!K14,AdministracionListas!$D$1:$G$148,4,FALSE), "") -> 0 | O14: 1 | P14: 0 | Q14: 0 | R14: 0 | S14: =IFERROR(IF(VLOOKUP(J14&K14&I14,'Catalogo de Labores '!L:L,1,FALSE) = "",FALSE,"PERSONA CON LABOR PERMITIDA"), "PERSONA CON LABOR NO PERMITIDA") -> PERSONA CON LABOR PERMITIDA
A15: Gil Guerra Arley De Jesus | B15: 2016-11-03 | C15: 2016-11-03 | D15: 3 | E15: 11 | F15: 2016 | G15: 1099545443 | H15: =IFERROR(VLOOKUP('Nomina CercasyLinderos'!G15,'BD operarios '!$A$4:$C$18018,2,FALSE), "") -> Duran Contreras Daniel De Jesus | I15: =IFERROR(VLOOKUP('Nomina CercasyLinderos'!G15,'BD operarios '!$A$2:$C$18018,3,FALSE), "") -> ALAMBRADOR | J15: 4055 | K15: 915 | L15: =IFERROR(VLOOKUP('Nomina CercasyLinderos'!K15,AdministracionListas!$D$1:$E$148,2,FALSE), "") -> Alambrada en firme 4 hilos | M15: =IFERROR(VLOOKUP('Nomina CercasyLinderos'!K15,AdministracionListas!$D$1:$F$148,3,FALSE), "") -> Pos | N15: =IFERROR(VLOOKUP('Nomina CercasyLinderos'!K15,AdministracionListas!$D$1:$G$148,4,FALSE), "") -> 3750 | O15: 15 | P15: 1 | Q15: 1 | R15: 56250 | S15: =IFERROR(IF(VLOOKUP(J15&K15&I15,'Catalogo de Labores '!L:L,1,FALSE) = "",FALSE,"PERSONA CON LABOR PERMITIDA"), "PERSONA CON LABOR NO PERMITIDA") -> PERSONA CON LABOR PERMITIDA
A16: Gil Guerra Arley De Jesus | B16: 2016-11-03 | C16: 2016-11-03 | D16: 3 | E16: 11 | F16: 2016 | G16: 77143508 | H16: =IFERROR(VLOOKUP('Nomina CercasyLinderos'!G16,'BD operarios '!$A$4:$C$18018,2,FALSE), "") -> Fragozo Rico Juan | I16: =IFERROR(VLOOKUP('Nomina CercasyLinderos'!G16,'BD operarios '!$A$2:$C$18018,3,FALSE), "") -> ALAMBRADOR | J16: 4055 | K16: 915 | L16: =IFERROR(VLOOKUP('Nomina CercasyLinderos'!K16,AdministracionListas!$D$1:$E$148,2,FALSE), "") -> Alambrada en firme 4 hilos | M16: =IFERROR(VLOOKUP('Nomina CercasyLinderos'!K16,AdministracionListas!$D$1:$F$148,3,FALSE), "") -> Pos | N16: =IFERROR(VLOOKUP('Nomina CercasyLinderos'!K16,AdministracionListas!$D$1:$G$148,4,FALSE), "") -> 3750 | O16: 35 | P16: 1 | Q16: 1 | R16: 131250 | S16: =IFERROR(IF(VLOOKUP(J16&K16&I16,'Catalogo de Labores '!L:L,1,FALSE) = "",FALSE,"PERSONA CON LABOR PERMITIDA"), "PERSONA CON LABOR NO PERMITIDA") -> PERSONA CON LABOR PERMITIDA
A17: Gil Guerra Arley De Jesus | B17: 2016-11-03 | C17: 2016-11-03 | D17: 3 | E17: 11 | F17: 2016 | G17: 7249393 | H17: =IFERROR(VLOOKUP('Nomina CercasyLinderos'!G17,'BD operarios '!$A$4:$C$18018,2,FALSE), "") -> Carmona Tamayo Jorge Ivan | I17: =IFERROR(VLOOKUP('Nomina CercasyLinderos'!G17,'BD operarios '!$A$2:$C$18018,3,FALSE), "") -> ALAMBRADOR | J17: 4055 | K17: 916 | L17: =IFERROR(VLOOKUP('Nomina CercasyLinderos'!K17,AdministracionListas!$D$1:$E$148,2,FALSE), "") -> Desalambrado | M17: =IFERROR(VLOOKUP('Nomina CercasyLinderos'!K17,AdministracionListas!$D$1:$F$148,3,FALSE), "") -> Pos | N17: =IFERROR(VLOOKUP('Nomina CercasyLinderos'!K17,AdministracionListas!$D$1:$G$148,4,FALSE), "") -> 1000 | O17: 40 | P17: 1 | Q17: 1 | R17: 40000 | S17: =IFERROR(IF(VLOOKUP(J17&K17&I17,'Catalogo de Labores '!L:L,1,FALSE) = "",FALSE,"PERSONA CON LABOR PERMITIDA"), "PERSONA CON LABOR NO PERMITIDA") -> PERSONA CON LABOR PERMITIDA
A18: Gil Guerra Arley De Jesus | B18: 2016-11-03 | C18: 2016-11-03 | D18: 3 | E18: 11 | F18: 2016 | G18: 739760 | H18: =IFERROR(VLOOKUP('Nomina CercasyLinderos'!G18,'BD operarios '!$A$4:$C$18018,2,FALSE), "") -> Mejia Ocampo Jaime De Jesus | I18: =IFERROR(VLOOKUP('Nomina CercasyLinderos'!G18,'BD operarios '!$A$2:$C$18018,3,FALSE), "") -> ALAMBRADOR | J18: 4055 | K18: 917 | L18: =IFERROR(VLOOKUP('Nomina CercasyLinderos'!K18,AdministracionListas!$D$1:$E$148,2,FALSE), "") -> Elaboración portón de madera X 4 metros | M18: =IFERROR(VLOOKUP('Nomina CercasyLinderos'!K18,AdministracionListas!$D$1:$F$148,3,FALSE), "") -> Por | N18: =IFERROR(VLOOKUP('Nomina CercasyLinderos'!K18,AdministracionListas!$D$1:$G$148,4,FALSE), "") -> 850000 | O18: 0.1 | P18: 1 | Q18: 1 | R18: 85000 | S18: =IFERROR(IF(VLOOKUP(J18&K18&I18,'Catalogo de Labores '!L:L,1,FALSE) = "",FALSE,"PERSONA CON LABOR PERMITIDA"), "PERSONA CON LABOR NO PERMITIDA") -> PERSONA CON LABOR PERMITIDA
A19: Gil Guerra Arley De Jesus | B19: 2016-11-03 | C19: 2016-11-03 | D19: 3 | E19: 11 | F19: 2016 | G19: 7251502 | H19: =IFERROR(VLOOKUP('Nomina CercasyLinderos'!G19,'BD operarios '!$A$4:$C$18018,2,FALSE), "") -> Gil Guerra Juan Crisostomo | I19: =IFERROR(VLOOKUP('Nomina CercasyLinderos'!G19,'BD operarios '!$A$2:$C$18018,3,FALSE), "") -> ALAMBRADOR | J19: 4055 | K19: 916 | L19: =IFERROR(VLOOKUP('Nomina CercasyLinderos'!K19,AdministracionListas!$D$1:$E$148,2,FALSE), "") -> Desalambrado | M19: =IFERROR(VLOOKUP('Nomina CercasyLinderos'!K19,AdministracionListas!$D$1:$F$148,3,FALSE), "") -> Pos | N19: =IFERROR(VLOOKUP('Nomina CercasyLinderos'!K19,AdministracionListas!$D$1:$G$148,4,FALSE), "") -> 1000 | O19: 40 | P19: 1 | Q19: 1 | R19: 40000 | S19: =IFERROR(IF(VLOOKUP(J19&K19&I19,'Catalogo de Labores '!L:L,1,FALSE) = "",FALSE,"PERSONA CON LABOR PERMITIDA"), "PERSONA CON LABOR NO PERMITIDA") -> PERSONA CON LABOR PERMITIDA
A20: Gil Guerra Arley De Jesus | B20: 2016-11-03 | C20: 2016-11-03 | D20: 3 | E20: 11 | F20: 2016 | G20: 10201472 | H20: =IFERROR(VLOOKUP('Nomina CercasyLinderos'!G20,'BD operarios '!$A$4:$C$18018,2,FALSE), "") -> Hernandez Ramon Antonio | I20: =IFERROR(VLOOKUP('Nomina CercasyLinderos'!G20,'BD operarios '!$A$2:$C$18018,3,FALSE), "") -> ALAMBRADOR | J20: 4055 | K20: 915 | L20: =IFERROR(VLOOKUP('Nomina CercasyLinderos'!K20,AdministracionListas!$D$1:$E$148,2,FALSE), "") -> Alambrada en firme 4 hilos | M20: =IFERROR(VLOOKUP('Nomina CercasyLinderos'!K20,AdministracionListas!$D$1:$F$148,3,FALSE), "") -> Pos | N20: =IFERROR(VLOOKUP('Nomina CercasyLinderos'!K20,AdministracionListas!$D$1:$G$148,4,FALSE), "") -> 3750 | O20: 35 | P20: 1 | Q20: 1 | R20: 131250 | S20: =IFERROR(IF(VLOOKUP(J20&K20&I20,'Catalogo de Labores '!L:L,1,FALSE) = "",FALSE,"PERSONA CON LABOR PERMITIDA"), "PERSONA CON LABOR NO PERMITIDA") -> PERSONA CON LABOR PERMITIDA
A21: Gil Guerra Arley De Jesus | B21: 2016-11-04 | C21: 2016-11-04 | D21: 4 | E21: 11 | F21: 2016 | G21: 1099545443 | H21: =IFERROR(VLOOKUP('Nomina CercasyLinderos'!G21,'BD operarios '!$A$4:$C$18018,2,FALSE), "") -> Duran Contreras Daniel De Jesus | I21: =IFERROR(VLOOKUP('Nomina CercasyLinderos'!G21,'BD operarios '!$A$2:$C$18018,3,FALSE), "") -> ALAMBRADOR | J21: 4055 | K21: 915 | L21: =IFERROR(VLOOKUP('Nomina CercasyLinderos'!K21,AdministracionListas!$D$1:$E$148,2,FALSE), "") -> Alambrada en firme 4 hilos | M21: =IFERROR(VLOOKUP('Nomina CercasyLinderos'!K21,AdministracionListas!$D$1:$F$148,3,FALSE), "") -> Pos | N21: =IFERROR(VLOOKUP('Nomina CercasyLinderos'!K21,AdministracionListas!$D$1:$G$148,4,FALSE), "") -> 3750 | O21: 20 | P21: 1 | Q21: 1 | R21: 75000 | S21: =IFERROR(IF(VLOOKUP(J21&K21&I21,'Catalogo de Labores '!L:L,1,FALSE) = "",FALSE,"PERSONA CON LABOR PERMITIDA"), "PERSONA CON LABOR NO PERMITIDA") -> PERSONA CON LABOR PERMITIDA
A22: Gil Guerra Arley De Jesus | B22: 2016-11-04 | C22: 2016-11-04 | D22: 4 | E22: 11 | F22: 2016 | G22: 77143508 | H22: =IFERROR(VLOOKUP('Nomina CercasyLinderos'!G22,'BD operarios '!$A$4:$C$18018,2,FALSE), "") -> Fragozo Rico Juan | I22: =IFERROR(VLOOKUP('Nomina CercasyLinderos'!G22,'BD operarios '!$A$2:$C$18018,3,FALSE), "") -> ALAMBRADOR | J22: 4055 | K22: 915 | L22: =IFERROR(VLOOKUP('Nomina CercasyLinderos'!K22,AdministracionListas!$D$1:$E$148,2,FALSE), "") -> Alambrada en firme 4 hilos | M22: =IFERROR(VLOOKUP('Nomina CercasyLinderos'!K22,AdministracionListas!$D$1:$F$148,3,FALSE), "") -> Pos | N22: =IFERROR(VLOOKUP('Nomina CercasyLinderos'!K22,AdministracionListas!$D$1:$G$148,4,FALSE), "") -> 3750 | O22: 20 | P22: 1 | Q22: 1 | R22: 75000 | S22: =IFERROR(IF(VLOOKUP(J22&K22&I22,'Catalogo de Labores '!L:L,1,FALSE) = "",FALSE,"PERSONA CON LABOR PERMITIDA"), "PERSONA CON LABOR NO PERMITIDA") -> PERSONA CON LABOR PERMITIDA
A23: Gil Guerra Arley De Jesus | B23: 2016-11-04 | C23: 2016-11-04 | D23: 4 | E23: 11 | F23: 2016 | G23: 7249393 | H23: =IFERROR(VLOOKUP('Nomina CercasyLinderos'!G23,'BD operarios '!$A$4:$C$18018,2,FALSE), "") -> Carmona Tamayo Jorge Ivan | I23: =IFERROR(VLOOKUP('Nomina CercasyLinderos'!G23,'BD operarios '!$A$2:$C$18018,3,FALSE), "") -> ALAMBRADOR | J23: 4055 | K23: 915 | L23: =IFERROR(VLOOKUP('Nomina CercasyLinderos'!K23,AdministracionListas!$D$1:$E$148,2,FALSE), "") -> Alambrada en firme 4 hilos | M23: =IFERROR(VLOOKUP('Nomina CercasyLinderos'!K23,AdministracionListas!$D$1:$F$148,3,FALSE), "") -> Pos | N23: =IFERROR(VLOOKUP('Nomina CercasyLinderos'!K23,AdministracionListas!$D$1:$G$148,4,FALSE), "") -> 3750 | O23: 22 | P23: 0.5 | Q23: 1 | R23: 82500 | S23: =IFERROR(IF(VLOOKUP(J23&K23&I23,'Catalogo de Labores '!L:L,1,FALSE) = "",FALSE,"PERSONA CON LABOR PERMITIDA"), "PERSONA CON LABOR NO PERMITIDA") -> PERSONA CON LABOR PERMITIDA
A24: Gil Guerra Arley De Jesus | B24: 2016-11-04 | C24: 2016-11-04 | D24: 4 | E24: 11 | F24: 2016 | G24: 739760 | H24: =IFERROR(VLOOKUP('Nomina CercasyLinderos'!G24,'BD operarios '!$A$4:$C$18018,2,FALSE), "") -> Mejia Ocampo Jaime De Jesus | I24: =IFERROR(VLOOKUP('Nomina CercasyLinderos'!G24,'BD operarios '!$A$2:$C$18018,3,FALSE), "") -> ALAMBRADOR | J24: 4055 | K24: 917 | L24: =IFERROR(VLOOKUP('Nomina CercasyLinderos'!K24,AdministracionListas!$D$1:$E$148,2,FALSE), "") -> Elaboración portón de madera X 4 metros | M24: =IFERROR(VLOOKUP('Nomina CercasyLinderos'!K24,AdministracionListas!$D$1:$F$148,3,FALSE), "") -> Por | N24: =IFERROR(VLOOKUP('Nomina CercasyLinderos'!K24,AdministracionListas!$D$1:$G$148,4,FALSE), "") -> 850000 | O24: 0.1 | P24: 1 | Q24: 1 | R24: 85000 | S24: =IFERROR(IF(VLOOKUP(J24&K24&I24,'Catalogo de Labores '!L:L,1,FALSE) = "",FALSE,"PERSONA CON LABOR PERMITIDA"), "PERSONA CON LABOR NO PERMITIDA") -> PERSONA CON LABOR PERMITIDA
A25: Gil Guerra Arley De Jesus | B25: 2016-11-04 | C25: 2016-11-04 | D25: 4 | E25: 11 | F25: 2016 | G25: 7251502 | H25: =IFERROR(VLOOKUP('Nomina CercasyLinderos'!G25,'BD operarios '!$A$4:$C$18018,2,FALSE), "") -> Gil Guerra Juan Crisostomo | I25: =IFERROR(VLOOKUP('Nomina CercasyLinderos'!G25,'BD operarios '!$A$2:$C$18018,3,FALSE), "") -> ALAMBRADOR | J25: 4055 | K25: 915 | L25: =IFERROR(VLOOKUP('Nomina CercasyLinderos'!K25,AdministracionListas!$D$1:$E$148,2,FALSE), "") -> Alambrada en firme 4 hilos | M25: =IFERROR(VLOOKUP('Nomina CercasyLinderos'!K25,AdministracionListas!$D$1:$F$148,3,FALSE), "") -> Pos | N25: =IFERROR(VLOOKUP('Nomina CercasyLinderos'!K25,AdministracionListas!$D$1:$G$148,4,FALSE), "") -> 3750 | O25: 22 | P25: 0.5 | Q25: 1 | R25: 82500 | S25: =IFERROR(IF(VLOOKUP(J25&K25&I25,'Catalogo de Labores '!L:L,1,FALSE) = "",FALSE,"PERSONA CON LABOR PERMITIDA"), "PERSONA CON LABOR NO PERMITIDA") -> PERSONA CON LABOR PERMITIDA
A26: Gil Guerra Arley De Jesus | B26: 2016-11-04 | C26: 2016-11-04 | D26: 4 | E26: 11 | F26: 2016 | G26: 10201472 | H26: =IFERROR(VLOOKUP('Nomina CercasyLinderos'!G26,'BD operarios '!$A$4:$C$18018,2,FALSE), "") -> Hernandez Ramon Antonio | I26: =IFERROR(VLOOKUP('Nomina CercasyLinderos'!G26,'BD operarios '!$A$2:$C$18018,3,FALSE), "") -> ALAMBRADOR | J26: 4055 | K26: 915 | L26: =IFERROR(VLOOKUP('Nomina CercasyLinderos'!K26,AdministracionListas!$D$1:$E$148,2,FALSE), "") -> Alambrada en firme 4 hilos | M26: =IFERROR(VLOOKUP('Nomina CercasyLinderos'!K26,AdministracionListas!$D$1:$F$148,3,FALSE), "") -> Pos | N26: =IFERROR(VLOOKUP('Nomina CercasyLinderos'!K26,AdministracionListas!$D$1:$G$148,4,FALSE), "") -> 3750 | O26: 20 | P26: 0.5 | Q26: 1 | R26: 75000 | S26: =IFERROR(IF(VLOOKUP(J26&K26&I26,'Catalogo de Labores '!L:L,1,FALSE) = "",FALSE,"PERSONA CON LABOR PERMITIDA"), "PERSONA CON LABOR NO PERMITIDA") -> PERSONA CON LABOR PERMITIDA
A27: Gil Guerra Arley De Jesus | B27: 2016-11-04 | C27: 2016-11-04 | D27: 4 | E27: 11 | F27: 2016 | G27: 7249393 | H27: =IFERROR(VLOOKUP('Nomina CercasyLinderos'!G27,'BD operarios '!$A$4:$C$18018,2,FALSE), "") -> Carmona Tamayo Jorge Ivan | I27: =IFERROR(VLOOKUP('Nomina CercasyLinderos'!G27,'BD operarios '!$A$2:$C$18018,3,FALSE), "") -> ALAMBRADOR | J27: 4055 | K27: 916 | L27: =IFERROR(VLOOKUP('Nomina CercasyLinderos'!K27,AdministracionListas!$D$1:$E$148,2,FALSE), "") -> Desalambrado | M27: =IFERROR(VLOOKUP('Nomina CercasyLinderos'!K27,AdministracionListas!$D$1:$F$148,3,FALSE), "") -> Pos | N27: =IFERROR(VLOOKUP('Nomina CercasyLinderos'!K27,AdministracionListas!$D$1:$G$148,4,FALSE), "") -> 1000 | O27: 30 | P27: 0.5 | Q27: 1 | R27: 30000 | S27: =IFERROR(IF(VLOOKUP(J27&K27&I27,'Catalogo de Labores '!L:L,1,FALSE) = "",FALSE,"PERSONA CON LABOR PERMITIDA"), "PERSONA CON LABOR NO PERMITIDA") -> PERSONA CON LABOR PERMITIDA
A28: Gil Guerra Arley De Jesus | B28: 2016-11-04 | C28: 2016-11-04 | D28: 4 | E28: 11 | F28: 2016 | G28: 7251502 | H28: =IFERROR(VLOOKUP('Nomina CercasyLinderos'!G28,'BD operarios '!$A$4:$C$18018,2,FALSE), "") -> Gil Guerra Juan Crisostomo | I28: =IFERROR(VLOOKUP('Nomina CercasyLinderos'!G28,'BD operarios '!$A$2:$C$18018,3,FALSE), "") -> ALAMBRADOR | J28: 4055 | K28: 916 | L28: =IFERROR(VLOOKUP('Nomina CercasyLinderos'!K28,AdministracionListas!$D$1:$E$148,2,FALSE), "") -> Desalambrado | M28: =IFERROR(VLOOKUP('Nomina CercasyLinderos'!K28,AdministracionListas!$D$1:$F$148,3,FALSE), "") -> Pos | N28: =IFERROR(VLOOKUP('Nomina CercasyLinderos'!K28,AdministracionListas!$D$1:$G$148,4,FALSE), "") -> 1000 | O28: 30 | P28: 0.5 | Q28: 1 | R28: 30000 | S28: =IFERROR(IF(VLOOKUP(J28&K28&I28,'Catalogo de Labores '!L:L,1,FALSE) = "",FALSE,"PERSONA CON LABOR PERMITIDA"), "PERSONA CON LABOR NO PERMITIDA") -> PERSONA CON LABOR PERMITIDA
A29: Gil Guerra Arley De Jesus | B29: 2016-11-04 | C29: 2016-11-04 | D29: 4 | E29: 11 | F29: 2016 | G29: 10201472 | H29: =IFERROR(VLOOKUP('Nomina CercasyLinderos'!G29,'BD operarios '!$A$4:$C$18018,2,FALSE), "") -> Hernandez Ramon Antonio | I29: =IFERROR(VLOOKUP('Nomina CercasyLinderos'!G29,'BD operarios '!$A$2:$C$18018,3,FALSE), "") -> ALAMBRADOR | J29: 4055 | K29: 916 | L29: =IFERROR(VLOOKUP('Nomina CercasyLinderos'!K29,AdministracionListas!$D$1:$E$148,2,FALSE), "") -> Desalambrado | M29: =IFERROR(VLOOKUP('Nomina CercasyLinderos'!K29,AdministracionListas!$D$1:$F$148,3,FALSE), "") -> Pos | N29: =IFERROR(VLOOKUP('Nomina CercasyLinderos'!K29,AdministracionListas!$D$1:$G$148,4,FALSE), "") -> 1000 | O29: 50 | P29: 0.5 | Q29: 1 | R29: 50000 | S29: =IFERROR(IF(VLOOKUP(J29&K29&I29,'Catalogo de Labores '!L:L,1,FALSE) = "",FALSE,"PERSONA CON LABOR PERMITIDA"), "PERSONA CON LABOR NO PERMITIDA") -> PERSONA CON LABOR PERMITIDA
A30: Gil Guerra Arley De Jesus | B30: 2016-11-08 | C30: 2016-11-08 | D30: 8 | E30: 11 | F30: 2016 | G30: 1099545443 | H30: =IFERROR(VLOOKUP('Nomina CercasyLinderos'!G30,'BD operarios '!$A$4:$C$18018,2,FALSE), "") -> Duran Contreras Daniel De Jesus | I30: =IFERROR(VLOOKUP('Nomina CercasyLinderos'!G30,'BD operarios '!$A$2:$C$18018,3,FALSE), "") -> ALAMBRADOR | J30: 4055 | K30: 915 | L30: =IFERROR(VLOOKUP('Nomina CercasyLinderos'!K30,AdministracionListas!$D$1:$E$148,2,FALSE), "") -> Alambrada en firme 4 hilos | M30: =IFERROR(VLOOKUP('Nomina CercasyLinderos'!K30,AdministracionListas!$D$1:$F$148,3,FALSE), "") -> Pos | N30: =IFERROR(VLOOKUP('Nomina CercasyLinderos'!K30,AdministracionListas!$D$1:$G$148,4,FALSE), "") -> 3750 | O30: 50 | P30: 1 | Q30: 1 | R30: 187500 | S30: =IFERROR(IF(VLOOKUP(J30&K30&I30,'Catalogo de Labores '!L:L,1,FALSE) = "",FALSE,"PERSONA CON LABOR PERMITIDA"), "PERSONA CON LABOR NO PERMITIDA") -> PERSONA CON LABOR PERMITIDA
A31: Gil Guerra Arley De Jesus | B31: 2016-11-08 | C31: 2016-11-08 | D31: 8 | E31: 11 | F31: 2016 | G31: 77143508 | H31: =IFERROR(VLOOKUP('Nomina CercasyLinderos'!G31,'BD operarios '!$A$4:$C$18018,2,FALSE), "") -> Fragozo Rico Juan | I31: =IFERROR(VLOOKUP('Nomina CercasyLinderos'!G31,'BD operarios '!$A$2:$C$18018,3,FALSE), "") -> ALAMBRADOR | J31: 4055 | K31: 915 | L31: =IFERROR(VLOOKUP('Nomina CercasyLinderos'!K31,AdministracionListas!$D$1:$E$148,2,FALSE), "") -> Alambrada en firme 4 hilos | M31: =IFERROR(VLOOKUP('Nomina CercasyLinderos'!K31,AdministracionListas!$D$1:$F$148,3,FALSE), "") -> Pos | N31: =IFERROR(VLOOKUP('Nomina CercasyLinderos'!K31,AdministracionListas!$D$1:$G$148,4,FALSE), "") -> 3750 | O31: 0 | P31: 1 | Q31: 1 | R31: 0 | S31: =IFERROR(IF(VLOOKUP(J31&K31&I31,'Catalogo de Labores '!L:L,1,FALSE) = "",FALSE,"PERSONA CON LABOR PERMITIDA"), "PERSONA CON LABOR NO PERMITIDA") -> PERSONA CON LABOR PERMITIDA
A32: Gil Guerra Arley De Jesus | B32: 2016-11-08 | C32: 2016-11-08 | D32: 8 | E32: 11 | F32: 2016 | G32: 7249393 | H32: =IFERROR(VLOOKUP('Nomina CercasyLinderos'!G32,'BD operarios '!$A$4:$C$18018,2,FALSE), "") -> Carmona Tamayo Jorge Ivan | I32: =IFERROR(VLOOKUP('Nomina CercasyLinderos'!G32,'BD operarios '!$A$2:$C$18018,3,FALSE), "") -> ALAMBRADOR | J32: 4055 | K32: 915 | L32: =IFERROR(VLOOKUP('Nomina CercasyLinderos'!K32,AdministracionListas!$D$1:$E$148,2,FALSE), "") -> Alambrada en firme 4 hilos | M32: =IFERROR(VLOOKUP('Nomina CercasyLinderos'!K32,AdministracionListas!$D$1:$F$148,3,FALSE), "") -> Pos | N32: =IFERROR(VLOOKUP('Nomina CercasyLinderos'!K32,AdministracionListas!$D$1:$G$148,4,FALSE), "") -> 3750 | O32: 0 | P32: 1 | Q32: 1 | R32: 0 | S32: =IFERROR(IF(VLOOKUP(J32&K32&I32,'Catalogo de Labores '!L:L,1,FALSE) = "",FALSE,"PERSONA CON LABOR PERMITIDA"), "PERSONA CON LABOR NO PERMITIDA") -> PERSONA CON LABOR PERMITIDA
A33: Gil Guerra Arley De Jesus | B33: 2016-11-08 | C33: 2016-11-08 | D33: 8 | E33: 11 | F33: 2016 | G33: 739760 | H33: =IFERROR(VLOOKUP('Nomina CercasyLinderos'!G33,'BD operarios '!$A$4:$C$18018,2,FALSE), "") -> Mejia Ocampo Jaime De Jesus | I33: =IFERROR(VLOOKUP('Nomina CercasyLinderos'!G33,'BD operarios '!$A$2:$C$18018,3,FALSE), "") -> ALAMBRADOR | J33: 4055 | K33: 917 | L33: =IFERROR(VLOOKUP('Nomina CercasyLinderos'!K33,AdministracionListas!$D$1:$E$148,2,FALSE), "") -> Elaboración portón de madera X 4 metros | M33: =IFERROR(VLOOKUP('Nomina CercasyLinderos'!K33,AdministracionListas!$D$1:$F$148,3,FALSE), "") -> Por | N33: =IFERROR(VLOOKUP('Nomina CercasyLinderos'!K33,AdministracionListas!$D$1:$G$148,4,FALSE), "") -> 850000 | O33: 0.1 | P33: 1 | Q33: 1 | R33: 85000 | S33: =IFERROR(IF(VLOOKUP(J33&K33&I33,'Catalogo de Labores '!L:L,1,FALSE) = "",FALSE,"PERSONA CON LABOR PERMITIDA"), "PERSONA CON LABOR NO PERMITIDA") -> PERSONA CON LABOR PERMITIDA
A34: Gil Guerra Arley De Jesus | B34: 2016-11-08 | C34: 2016-11-08 | D34: 8 | E34: 11 | F34: 2016 | G34: 7251502 | H34: =IFERROR(VLOOKUP('Nomina CercasyLinderos'!G34,'BD operarios '!$A$4:$C$18018,2,FALSE), "") -> Gil Guerra Juan Crisostomo | I34: =IFERROR(VLOOKUP('Nomina CercasyLinderos'!G34,'BD operarios '!$A$2:$C$18018,3,FALSE), "") -> ALAMBRADOR | J34: 4055 | K34: 915 | L34: =IFERROR(VLOOKUP('Nomina CercasyLinderos'!K34,AdministracionListas!$D$1:$E$148,2,FALSE), "") -> Alambrada en firme 4 hilos | M34: =IFERROR(VLOOKUP('Nomina CercasyLinderos'!K34,AdministracionListas!$D$1:$F$148,3,FALSE), "") -> Pos | N34: =IFERROR(VLOOKUP('Nomina CercasyLinderos'!K34,AdministracionListas!$D$1:$G$148,4,FALSE), "") -> 3750 | O34: 0 | P34: 1 | Q34: 1 | R34: 0 | S34: =IFERROR(IF(VLOOKUP(J34&K34&I34,'Catalogo de Labores '!L:L,1,FALSE) = "",FALSE,"PERSONA CON LABOR PERMITIDA"), "PERSONA CON LABOR NO PERMITIDA") -> PERSONA CON LABOR PERMITIDA
A35: Gil Guerra Arley De Jesus | B35: 2016-11-08 | C35: 2016-11-08 | D35: 8 | E35: 11 | F35: 2016 | G35: 10201472 | H35: =IFERROR(VLOOKUP('Nomina CercasyLinderos'!G35,'BD operarios '!$A$4:$C$18018,2,FALSE), "") -> Hernandez Ramon Antonio | I35: =IFERROR(VLOOKUP('Nomina CercasyLinderos'!G35,'BD operarios '!$A$2:$C$18018,3,FALSE), "") -> ALAMBRADOR | J35: 4055 | K35: 915 | L35: =IFERROR(VLOOKUP('Nomina CercasyLinderos'!K35,AdministracionListas!$D$1:$E$148,2,FALSE), "") -> Alambrada en firme 4 hilos | M35: =IFERROR(VLOOKUP('Nomina CercasyLinderos'!K35,AdministracionListas!$D$1:$F$148,3,FALSE), "") -> Pos | N35: =IFERROR(VLOOKUP('Nomina CercasyLinderos'!K35,AdministracionListas!$D$1:$G$148,4,FALSE), "") -> 3750 | O35: 16 | P35: 0.5 | Q35: 1 | R35: 60000 | S35: =IFERROR(IF(VLOOKUP(J35&K35&I35,'Catalogo de Labores '!L:L,1,FALSE) = "",FALSE,"PERSONA CON LABOR PERMITIDA"), "PERSONA CON LABOR NO PERMITIDA") -> PERSONA CON LABOR PERMITIDA
A36: Gil Guerra Arley De Jesus | B36: 2016-11-08 | C36: 2016-11-08 | D36: 8 | E36: 11 | F36: 2016 | G36: 10201472 | H36: =IFERROR(VLOOKUP('Nomina CercasyLinderos'!G36,'BD operarios '!$A$4:$C$18018,2,FALSE), "") -> Hernandez Ramon Antonio | I36: =IFERROR(VLOOKUP('Nomina CercasyLinderos'!G36,'BD operarios '!$A$2:$C$18018,3,FALSE), "") -> ALAMBRADOR | J36: 4055 | K36: 916 | L36: =IFERROR(VLOOKUP('Nomina CercasyLinderos'!K36,AdministracionListas!$D$1:$E$148,2,FALSE), "") -> Desalambrado | M36: =IFERROR(VLOOKUP('Nomina CercasyLinderos'!K36,AdministracionListas!$D$1:$F$148,3,FALSE), "") -> Pos | N36: =IFERROR(VLOOKUP('Nomina CercasyLinderos'!K36,AdministracionListas!$D$1:$G$148,4,FALSE), "") -> 1000 | O36: 24 | P36: 0.5 | Q36: 1 | R36: 24000 | S36: =IFERROR(IF(VLOOKUP(J36&K36&I36,'Catalogo de Labores '!L:L,1,FALSE) = "",FALSE,"PERSONA CON LABOR PERMITIDA"), "PERSONA CON LABOR NO PERMITIDA") -> PERSONA CON LABOR PERMITIDA
A37: Gil Guerra Arley De Jesus | B37: 2016-11-09 | C37: 2016-11-09 | D37: 9 | E37: 11 | F37: 2016 | G37: 1099545443 | H37: =IFERROR(VLOOKUP('Nomina CercasyLinderos'!G37,'BD operarios '!$A$4:$C$18018,2,FALSE), "") -> Duran Contreras Daniel De Jesus | I37: =IFERROR(VLOOKUP('Nomina CercasyLinderos'!G37,'BD operarios '!$A$2:$C$18018,3,FALSE), "") -> ALAMBRADOR | J37: 4055 | K37: 916 | L37: =IFERROR(VLOOKUP('Nomina CercasyLinderos'!K37,AdministracionListas!$D$1:$E$148,2,FALSE), "") -> Desalambrado | M37: =IFERROR(VLOOKUP('Nomina CercasyLinderos'!K37,AdministracionListas!$D$1:$F$148,3,FALSE), "") -> Pos | N37: =IFERROR(VLOOKUP('Nomina CercasyLinderos'!K37,AdministracionListas!$D$1:$G$148,4,FALSE), "") -> 1000 | O37: 71 | P37: 1 | Q37: 1 | R37: 71000 | S37: =IFERROR(IF(VLOOKUP(J37&K37&I37,'Catalogo de Labores '!L:L,1,FALSE) = "",FALSE,"PERSONA CON LABOR PERMITIDA"), "PERSONA CON LABOR NO PERMITIDA") -> PERSONA CON LABOR PERMITIDA
A38: Gil Guerra Arley De Jesus | B38: 2016-11-09 | C38: 2016-11-09 | D38: 9 | E38: 11 | F38: 2016 | G38: 77143508 | H38: =IFERROR(VLOOKUP('Nomina CercasyLinderos'!G38,'BD operarios '!$A$4:$C$18018,2,FALSE), "") -> Fragozo Rico Juan | I38: =IFERROR(VLOOKUP('Nomina CercasyLinderos'!G38,'BD operarios '!$A$2:$C$18018,3,FALSE), "") -> ALAMBRADOR | J38: 4055 | K38: 915 | L38: =IFERROR(VLOOKUP('Nomina CercasyLinderos'!K38,AdministracionListas!$D$1:$E$148,2,FALSE), "") -> Alambrada en firme 4 hilos | M38: =IFERROR(VLOOKUP('Nomina CercasyLinderos'!K38,AdministracionListas!$D$1:$F$148,3,FALSE), "") -> Pos | N38: =IFERROR(VLOOKUP('Nomina CercasyLinderos'!K38,AdministracionListas!$D$1:$G$148,4,FALSE), "") -> 3750 | O38: 15 | P38: 0.5 | Q38: 1 | R38: 56250 | S38: =IFERROR(IF(VLOOKUP(J38&K38&I38,'Catalogo de Labores '!L:L,1,FALSE) = "",FALSE,"PERSONA CON LABOR PERMITIDA"), "PERSONA CON LABOR NO PERMITIDA") -> PERSONA CON LABOR PERMITIDA
A39: Gil Guerra Arley De Jesus | B39: 2016-11-09 | C39: 2016-11-09 | D39: 9 | E39: 11 | F39: 2016 | G39: 7249393 | H39: =IFERROR(VLOOKUP('Nomina CercasyLinderos'!G39,'BD operarios '!$A$4:$C$18018,2,FALSE), "") -> Carmona Tamayo Jorge Ivan | I39: =IFERROR(VLOOKUP('Nomina CercasyLinderos'!G39,'BD operarios '!$A$2:$C$18018,3,FALSE), "") -> ALAMBRADOR | J39: 4055 | K39: 915 | L39: =IFERROR(VLOOKUP('Nomina CercasyLinderos'!K39,AdministracionListas!$D$1:$E$148,2,FALSE), "") -> Alambrada en firme 4 hilos | M39: =IFERROR(VLOOKUP('Nomina CercasyLinderos'!K39,AdministracionListas!$D$1:$F$148,3,FALSE), "") -> Pos | N39: =IFERROR(VLOOKUP('Nomina CercasyLinderos'!K39,AdministracionListas!$D$1:$G$148,4,FALSE), "") -> 3750 | O39: 10 | P39: 0.5 | Q39: 1 | R39: 37500 | S39: =IFERROR(IF(VLOOKUP(J39&K39&I39,'Catalogo de Labores '!L:L,1,FALSE) = "",FALSE,"PERSONA CON LABOR PERMITIDA"), "PERSONA CON LABOR NO PERMITIDA") -> PERSONA CON LABOR PERMITIDA
A40: Gil Guerra Arley De Jesus | B40: 2016-11-09 | C40: 2016-11-09 | D40: 9 | E40: 11 | F40: 2016 | G40: 739760 | H40: =IFERROR(VLOOKUP('Nomina CercasyLinderos'!G40,'BD operarios '!$A$4:$C$18018,2,FALSE), "") -> Mejia Ocampo Jaime De Jesus | I40: =IFERROR(VLOOKUP('Nomina CercasyLinderos'!G40,'BD operarios '!$A$2:$C$18018,3,FALSE), "") -> ALAMBRADOR | J40: 4055 | K40: 917 | L40: =IFERROR(VLOOKUP('Nomina CercasyLinderos'!K40,AdministracionListas!$D$1:$E$148,2,FALSE), "") -> Elaboración portón de madera X 4 metros | M40: =IFERROR(VLOOKUP('Nomina CercasyLinderos'!K40,AdministracionListas!$D$1:$F$148,3,FALSE), "") -> Por | N40: =IFERROR(VLOOKUP('Nomina CercasyLinderos'!K40,AdministracionListas!$D$1:$G$148,4,FALSE), "") -> 850000 | O40: 0.1 | P40: 1 | Q40: 1 | R40: 85000 | S40: =IFERROR(IF(VLOOKUP(J40&K40&I40,'Catalogo de Labores '!L:L,1,FALSE) = "",FALSE,"PERSONA CON LABOR PERMITIDA"), "PERSONA CON LABOR NO PERMITIDA") -> PERSONA CON LABOR PERMITIDA
A41: Gil Guerra Arley De Jesus | B41: 2016-11-09 | C41: 2016-11-09 | D41: 9 | E41: 11 | F41: 2016 | G41: 7251502 | H41: =IFERROR(VLOOKUP('Nomina CercasyLinderos'!G41,'BD operarios '!$A$4:$C$18018,2,FALSE), "") -> Gil Guerra Juan Crisostomo | I41: =IFERROR(VLOOKUP('Nomina CercasyLinderos'!G41,'BD operarios '!$A$2:$C$18018,3,FALSE), "") -> ALAMBRADOR | J41: 4055 | K41: 915 | L41: =IFERROR(VLOOKUP('Nomina CercasyLinderos'!K41,AdministracionListas!$D$1:$E$148,2,FALSE), "") -> Alambrada en firme 4 hilos | M41: =IFERROR(VLOOKUP('Nomina CercasyLinderos'!K41,AdministracionListas!$D$1:$F$148,3,FALSE), "") -> Pos | N41: =IFERROR(VLOOKUP('Nomina CercasyLinderos'!K41,AdministracionListas!$D$1:$G$148,4,FALSE), "") -> 3750 | O41: 10 | P41: 0.5 | Q41: 1 | R41: 37500 | S41: =IFERROR(IF(VLOOKUP(J41&K41&I41,'Catalogo de Labores '!L:L,1,FALSE) = "",FALSE,"PERSONA CON LABOR PERMITIDA"), "PERSONA CON LABOR NO PERMITIDA") -> PERSONA CON LABOR PERMITIDA
A42: Gil Guerra Arley De Jesus | B42: 2016-11-09 | C42: 2016-11-09 | D42: 9 | E42: 11 | F42: 2016 | G42: 10201472 | H42: =IFERROR(VLOOKUP('Nomina CercasyLinderos'!G42,'BD operarios '!$A$4:$C$18018,2,FALSE), "") -> Hernandez Ramon Antonio | I42: =IFERROR(VLOOKUP('Nomina CercasyLinderos'!G42,'BD operarios '!$A$2:$C$18018,3,FALSE), "") -> ALAMBRADOR | J42: 4055 | K42: 915 | L42: =IFERROR(VLOOKUP('Nomina CercasyLinderos'!K42,AdministracionListas!$D$1:$E$148,2,FALSE), "") -> Alambrada en firme 4 hilos | M42: =IFERROR(VLOOKUP('Nomina CercasyLinderos'!K42,AdministracionListas!$D$1:$F$148,3,FALSE), "") -> Pos | N42: =IFERROR(VLOOKUP('Nomina CercasyLinderos'!K42,AdministracionListas!$D$1:$G$148,4,FALSE), "") -> 3750 | O42: 30 | P42: 1 | Q42: 1 | R42: 112500 | S42: =IFERROR(IF(VLOOKUP(J42&K42&I42,'Catalogo de Labores '!L:L,1,FALSE) = "",FALSE,"PERSONA CON LABOR PERMITIDA"), "PERSONA CON LABOR NO PERMITIDA") -> PERSONA CON LABOR PERMITIDA
A43: Gil Guerra Arley De Jesus | B43: 2016-11-09 | C43: 2016-11-09 | D43: 9 | E43: 11 | F43: 2016 | G43: 77143508 | H43: =IFERROR(VLOOKUP('Nomina CercasyLinderos'!G43,'BD operarios '!$A$4:$C$18018,2,FALSE), "") -> Fragozo Rico Juan | I43: =IFERROR(VLOOKUP('Nomina CercasyLinderos'!G43,'BD operarios '!$A$2:$C$18018,3,FALSE), "") -> ALAMBRADOR | J43: 4055 | K43: 916 | L43: =IFERROR(VLOOKUP('Nomina CercasyLinderos'!K43,AdministracionListas!$D$1:$E$148,2,FALSE), "") -> Desalambrado | M43: =IFERROR(VLOOKUP('Nomina CercasyLinderos'!K43,AdministracionListas!$D$1:$F$148,3,FALSE), "") -> Pos | N43: =IFERROR(VLOOKUP('Nomina CercasyLinderos'!K43,AdministracionListas!$D$1:$G$148,4,FALSE), "") -> 1000 | O43: 33 | P43: 0.5 | Q43: 1 | R43: 33000 | S43: =IFERROR(IF(VLOOKUP(J43&K43&I43,'Catalogo de Labores '!L:L,1,FALSE) = "",FALSE,"PERSONA CON LABOR PERMITIDA"), "PERSONA CON LABOR NO PERMITIDA") -> PERSONA CON LABOR PERMITIDA
A44: Gil Guerra Arley De Jesus | B44: 2016-11-09 | C44: 2016-11-09 | D44: 9 | E44: 11 | F44: 2016 | G44: 7249393 | H44: =IFERROR(VLOOKUP('Nomina CercasyLinderos'!G44,'BD operarios '!$A$4:$C$18018,2,FALSE), "") -> Carmona Tamayo Jorge Ivan | I44: =IFERROR(VLOOKUP('Nomina CercasyLinderos'!G44,'BD operarios '!$A$2:$C$18018,3,FALSE), "") -> ALAMBRADOR | J44: 4055 | K44: 916 | L44: =IFERROR(VLOOKUP('Nomina CercasyLinderos'!K44,AdministracionListas!$D$1:$E$148,2,FALSE), "") -> Desalambrado | M44: =IFERROR(VLOOKUP('Nomina CercasyLinderos'!K44,AdministracionListas!$D$1:$F$148,3,FALSE), "") -> Pos | N44: =IFERROR(VLOOKUP('Nomina CercasyLinderos'!K44,AdministracionListas!$D$1:$G$148,4,FALSE), "") -> 1000 | O44: 23 | P44: 0.5 | Q44: 1 | R44: 23000 | S44: =IFERROR(IF(VLOOKUP(J44&K44&I44,'Catalogo de Labores '!L:L,1,FALSE) = "",FALSE,"PERSONA CON LABOR PERMITIDA"), "PERSONA CON LABOR NO PERMITIDA") -> PERSONA CON LABOR PERMITIDA
A45: Gil Guerra Arley De Jesus | B45: 2016-11-09 | C45: 2016-11-09 | D45: 9 | E45: 11 | F45: 2016 | G45: 7251502 | H45: =IFERROR(VLOOKUP('Nomina CercasyLinderos'!G45,'BD operarios '!$A$4:$C$18018,2,FALSE), "") -> Gil Guerra Juan Crisostomo | I45: =IFERROR(VLOOKUP('Nomina CercasyLinderos'!G45,'BD operarios '!$A$2:$C$18018,3,FALSE), "") -> ALAMBRADOR | J45: 4055 | K45: 916 | L45: =IFERROR(VLOOKUP('Nomina CercasyLinderos'!K45,AdministracionListas!$D$1:$E$148,2,FALSE), "") -> Desalambrado | M45: =IFERROR(VLOOKUP('Nomina CercasyLinderos'!K45,AdministracionListas!$D$1:$F$148,3,FALSE), "") -> Pos | N45: =IFERROR(VLOOKUP('Nomina CercasyLinderos'!K45,AdministracionListas!$D$1:$G$148,4,FALSE), "") -> 1000 | O45: 23 | P45: 0.5 | Q45: 1 | R45: 23000 | S45: =IFERROR(IF(VLOOKUP(J45&K45&I45,'Catalogo de Labores '!L:L,1,FALSE) = "",FALSE,"PERSONA CON LABOR PERMITIDA"), "PERSONA CON LABOR NO PERMITIDA") -> PERSONA CON LABOR PERMITIDA
A46: Gil Guerra Arley De Jesus | B46: 2016-11-10 | C46: 2016-11-10 | D46: 10 | E46: 11 | F46: 2016 | G46: 1099545443 | H46: =IFERROR(VLOOKUP('Nomina CercasyLinderos'!G46,'BD operarios '!$A$4:$C$18018,2,FALSE), "") -> Duran Contreras Daniel De Jesus | I46: =IFERROR(VLOOKUP('Nomina CercasyLinderos'!G46,'BD operarios '!$A$2:$C$18018,3,FALSE), "") -> ALAMBRADOR | J46: 4055 | K46: 916 | L46: =IFERROR(VLOOKUP('Nomina CercasyLinderos'!K46,AdministracionListas!$D$1:$E$148,2,FALSE), "") -> Desalambrado | M46: =IFERROR(VLOOKUP('Nomina CercasyLinderos'!K46,AdministracionListas!$D$1:$F$148,3,FALSE), "") -> Pos | N46: =IFERROR(VLOOKUP('Nomina CercasyLinderos'!K46,AdministracionListas!$D$1:$G$148,4,FALSE), "") -> 1000 | O46: 114 | P46: 1 | Q46: 1 | R46: 114000 | S46: =IFERROR(IF(VLOOKUP(J46&K46&I46,'Catalogo de Labores '!L:L,1,FALSE) = "",FALSE,"PERSONA CON LABOR PERMITIDA"), "PERSONA CON LABOR NO PERMITIDA") -> PERSONA CON LABOR PERMITIDA
A47: Gil Guerra Arley De Jesus | B47: 2016-11-10 | C47: 2016-11-10 | D47: 10 | E47: 11 | F47: 2016 | G47: 77143508 | H47: =IFERROR(VLOOKUP('Nomina CercasyLinderos'!G47,'BD operarios '!$A$4:$C$18018,2,FALSE), "") -> Fragozo Rico Juan | I47: =IFERROR(VLOOKUP('Nomina CercasyLinderos'!G47,'BD operarios '!$A$2:$C$18018,3,FALSE), "") -> ALAMBRADOR | J47: 4055 | K47: 915 | L47: =IFERROR(VLOOKUP('Nomina CercasyLinderos'!K47,AdministracionListas!$D$1:$E$148,2,FALSE), "") -> Alambrada en firme 4 hilos | M47: =IFERROR(VLOOKUP('Nomina CercasyLinderos'!K47,AdministracionListas!$D$1:$F$148,3,FALSE), "") -> Pos | N47: =IFERROR(VLOOKUP('Nomina CercasyLinderos'!K47,AdministracionListas!$D$1:$G$148,4,FALSE), "") -> 3750 | O47: 20 | P47: 1 | Q47: 1 | R47: 75000 | S47: =IFERROR(IF(VLOOKUP(J47&K47&I47,'Catalogo de Labores '!L:L,1,FALSE) = "",FALSE,"PERSONA CON LABOR PERMITIDA"), "PERSONA CON LABOR NO PERMITIDA") -> PERSONA CON LABOR PERMITIDA
A48: Gil Guerra Arley De Jesus | B48: 2016-11-10 | C48: 2016-11-10 | D48: 10 | E48: 11 | F48: 2016 | G48: 7249393 | H48: =IFERROR(VLOOKUP('Nomina CercasyLinderos'!G48,'BD operarios '!$A$4:$C$18018,2,FALSE), "") -> Carmona Tamayo Jorge Ivan | I48: =IFERROR(VLOOKUP('Nomina CercasyLinderos'!G48,'BD operarios '!$A$2:$C$18018,3,FALSE), "") -> ALAMBRADOR | J48: 4055 | K48: 915 | L48: =IFERROR(VLOOKUP('Nomina CercasyLinderos'!K48,AdministracionListas!$D$1:$E$148,2,FALSE), "") -> Alambrada en firme 4 hilos | M48: =IFERROR(VLOOKUP('Nomina CercasyLinderos'!K48,AdministracionListas!$D$1:$F$148,3,FALSE), "") -> Pos | N48: =IFERROR(VLOOKUP('Nomina CercasyLinderos'!K48,AdministracionListas!$D$1:$G$148,4,FALSE), "") -> 3750 | O48: 15 | P48: 0.5 | Q48: 1 | R48: 56250 | S48: =IFERROR(IF(VLOOKUP(J48&K48&I48,'Catalogo de Labores '!L:L,1,FALSE) = "",FALSE,"PERSONA CON LABOR PERMITIDA"), "PERSONA CON LABOR NO PERMITIDA") -> PERSONA CON LABOR PERMITIDA
A49: Gil Guerra Arley De Jesus | B49: 2016-11-10 | C49: 2016-11-10 | D49: 10 | E49: 11 | F49: 2016 | G49: 739760 | H49: =IFERROR(VLOOKUP('Nomina CercasyLinderos'!G49,'BD operarios '!$A$4:$C$18018,2,FALSE), "") -> Mejia Ocampo Jaime De Jesus | I49: =IFERROR(VLOOKUP('Nomina CercasyLinderos'!G49,'BD operarios '!$A$2:$C$18018,3,FALSE), "") -> ALAMBRADOR | J49: 4055 | K49: 917 | L49: =IFERROR(VLOOKUP('Nomina CercasyLinderos'!K49,AdministracionListas!$D$1:$E$148,2,FALSE), "") -> Elaboración portón de madera X 4 metros | M49: =IFERROR(VLOOKUP('Nomina CercasyLinderos'!K49,AdministracionListas!$D$1:$F$148,3,FALSE), "") -> Por | N49: =IFERROR(VLOOKUP('Nomina CercasyLinderos'!K49,AdministracionListas!$D$1:$G$148,4,FALSE), "") -> 850000 | O49: 0.1 | P49: 1 | Q49: 1 | R49: 85000 | S49: =IFERROR(IF(VLOOKUP(J49&K49&I49,'Catalogo de Labores '!L:L,1,FALSE) = "",FALSE,"PERSONA CON LABOR PERMITIDA"), "PERSONA CON LABOR NO PERMITIDA") -> PERSONA CON LABOR PERMITIDA
A50: Gil Guerra Arley De Jesus | B50: 2016-11-10 | C50: 2016-11-10 | D50: 10 | E50: 11 | F50: 2016 | G50: 7251502 | H50: =IFERROR(VLOOKUP('Nomina CercasyLinderos'!G50,'BD operarios '!$A$4:$C$18018,2,FALSE), "") -> Gil Guerra Juan Crisostomo | I50: =IFERROR(VLOOKUP('Nomina CercasyLinderos'!G50,'BD operarios '!$A$2:$C$18018,3,FALSE), "") -> ALAMBRADOR | J50: 4055 | K50: 915 | L50: =IFERROR(VLOOKUP('Nomina CercasyLinderos'!K50,AdministracionListas!$D$1:$E$148,2,FALSE), "") -> Alambrada en firme 4 hilos | M50: =IFERROR(VLOOKUP('Nomina CercasyLinderos'!K50,AdministracionListas!$D$1:$F$148,3,FALSE), "") -> Pos | N50: =IFERROR(VLOOKUP('Nomina CercasyLinderos'!K50,AdministracionListas!$D$1:$G$148,4,FALSE), "") -> 3750 | O50: 15 | P50: 0.5 | Q50: 1 | R50: 56250 | S50: =IFERROR(IF(VLOOKUP(J50&K50&I50,'Catalogo de Labores '!L:L,1,FALSE) = "",FALSE,"PERSONA CON LABOR PERMITIDA"), "PERSONA CON LABOR NO PERMITIDA") -> PERSONA CON LABOR PERMITIDA
A51: Gil Guerra Arley De Jesus | B51: 2016-11-10 | C51: 2016-11-10 | D51: 10 | E51: 11 | F51: 2016 | G51: 10201472 | H51: =IFERROR(VLOOKUP('Nomina CercasyLinderos'!G51,'BD operarios '!$A$4:$C$18018,2,FALSE), "") -> Hernandez Ramon Antonio | I51: =IFERROR(VLOOKUP('Nomina CercasyLinderos'!G51,'BD operarios '!$A$2:$C$18018,3,FALSE), "") -> ALAMBRADOR | J51: 4055 | K51: 915 | L51: =IFERROR(VLOOKUP('Nomina CercasyLinderos'!K51,AdministracionListas!$D$1:$E$148,2,FALSE), "") -> Alambrada en firme 4 hilos | M51: =IFERROR(VLOOKUP('Nomina CercasyLinderos'!K51,AdministracionListas!$D$1:$F$148,3,FALSE), "") -> Pos | N51: =IFERROR(VLOOKUP('Nomina CercasyLinderos'!K51,AdministracionListas!$D$1:$G$148,4,FALSE), "") -> 3750 | O51: 15 | P51: 1 | Q51: 1 | R51: 56250 | S51: =IFERROR(IF(VLOOKUP(J51&K51&I51,'Catalogo de Labores '!L:L,1,FALSE) = "",FALSE,"PERSONA CON LABOR PERMITIDA"), "PERSONA CON LABOR NO PERMITIDA") -> PERSONA CON LABOR PERMITIDA
A52: Gil Guerra Arley De Jesus | B52: 2016-11-10 | C52: 2016-11-10 | D52: 10 | E52: 11 | F52: 2016 | G52: 7249393 | H52: =IFERROR(VLOOKUP('Nomina CercasyLinderos'!G52,'BD operarios '!$A$4:$C$18018,2,FALSE), "") -> Carmona Tamayo Jorge Ivan | I52: =IFERROR(VLOOKUP('Nomina CercasyLinderos'!G52,'BD operarios '!$A$2:$C$18018,3,FALSE), "") -> ALAMBRADOR | J52: 4055 | K52: 916 | L52: =IFERROR(VLOOKUP('Nomina CercasyLinderos'!K52,AdministracionListas!$D$1:$E$148,2,FALSE), "") -> Desalambrado | M52: =IFERROR(VLOOKUP('Nomina CercasyLinderos'!K52,AdministracionListas!$D$1:$F$148,3,FALSE), "") -> Pos | N52: =IFERROR(VLOOKUP('Nomina CercasyLinderos'!K52,AdministracionListas!$D$1:$G$148,4,FALSE), "") -> 1000 | O52: 25 | P52: 0.5 | Q52: 1 | R52: 25000 | S52: =IFERROR(IF(VLOOKUP(J52&K52&I52,'Catalogo de Labores '!L:L,1,FALSE) = "",FALSE,"PERSONA CON LABOR PERMITIDA"), "PERSONA CON LABOR NO PERMITIDA") -> PERSONA CON LABOR PERMITIDA
A53: Gil Guerra Arley De Jesus | B53: 2016-11-10 | C53: 2016-11-10 | D53: 10 | E53: 11 | F53: 2016 | G53: 7251502 | H53: =IFERROR(VLOOKUP('Nomina CercasyLinderos'!G53,'BD operarios '!$A$4:$C$18018,2,FALSE), "") -> Gil Guerra Juan Crisostomo | I53: =IFERROR(VLOOKUP('Nomina CercasyLinderos'!G53,'BD operarios '!$A$2:$C$18018,3,FALSE), "") -> ALAMBRADOR | J53: 4055 | K53: 916 | L53: =IFERROR(VLOOKUP('Nomina CercasyLinderos'!K53,AdministracionListas!$D$1:$E$148,2,FALSE), "") -> Desalambrado | M53: =IFERROR(VLOOKUP('Nomina CercasyLinderos'!K53,AdministracionListas!$D$1:$F$148,3,FALSE), "") -> Pos | N53: =IFERROR(VLOOKUP('Nomina CercasyLinderos'!K53,AdministracionListas!$D$1:$G$148,4,FALSE), "") -> 1000 | O53: 25 | P53: 0.5 | Q53: 1 | R53: 25000 | S53: =IFERROR(IF(VLOOKUP(J53&K53&I53,'Catalogo de Labores '!L:L,1,FALSE) = "",FALSE,"PERSONA CON LABOR PERMITIDA"), "PERSONA CON LABOR NO PERMITIDA") -> PERSONA CON LABOR PERMITIDA
A54: Gil Guerra Arley De Jesus | B54: 2016-11-10 | C54: 2016-11-10 | D54: 10 | E54: 11 | F54: 2016 | G54: 10201472 | H54: =IFERROR(VLOOKUP('Nomina CercasyLinderos'!G54,'BD operarios '!$A$4:$C$18018,2,FALSE), "") -> Hernandez Ramon Antonio | I54: =IFERROR(VLOOKUP('Nomina CercasyLinderos'!G54,'BD operarios '!$A$2:$C$18018,3,FALSE), "") -> ALAMBRADOR | J54: 4055 | K54: 916 | L54: =IFERROR(VLOOKUP('Nomina CercasyLinderos'!K54,AdministracionListas!$D$1:$E$148,2,FALSE), "") -> Desalambrado | M54: =IFERROR(VLOOKUP('Nomina CercasyLinderos'!K54,AdministracionListas!$D$1:$F$148,3,FALSE), "") -> Pos | N54: =IFERROR(VLOOKUP('Nomina CercasyLinderos'!K54,AdministracionListas!$D$1:$G$148,4,FALSE), "") -> 1000 | O54: 33 | P54: 0.5 | Q54: 1 | R54: 33000 | S54: =IFERROR(IF(VLOOKUP(J54&K54&I54,'Catalogo de Labores '!L:L,1,FALSE) = "",FALSE,"PERSONA CON LABOR PERMITIDA"), "PERSONA CON LABOR NO PERMITIDA") -> PERSONA CON LABOR PERMITIDA
A55: Gil Guerra Arley De Jesus | B55: 2016-11-11 | C55: 2016-11-11 | D55: 11 | E55: 11 | F55: 2016 | G55: 1099545443 | H55: =IFERROR(VLOOKUP('Nomina CercasyLinderos'!G55,'BD operarios '!$A$4:$C$18018,2,FALSE), "") -> Duran Contreras Daniel De Jesus | I55: =IFERROR(VLOOKUP('Nomina CercasyLinderos'!G55,'BD operarios '!$A$2:$C$18018,3,FALSE), "") -> ALAMBRADOR | J55: 4055 | K55: 915 | L55: =IFERROR(VLOOKUP('Nomina CercasyLinderos'!K55,AdministracionListas!$D$1:$E$148,2,FALSE), "") -> Alambrada en firme 4 hilos | M55: =IFERROR(VLOOKUP('Nomina CercasyLinderos'!K55,AdministracionListas!$D$1:$F$148,3,FALSE), "") -> Pos | N55: =IFERROR(VLOOKUP('Nomina CercasyLinderos'!K55,AdministracionListas!$D$1:$G$148,4,FALSE), "") -> 3750 | O55: 0 | P55: 1 | Q55: 1 | R55: 0 | S55: =IFERROR(IF(VLOOKUP(J55&K55&I55,'Catalogo de Labores '!L:L,1,FALSE) = "",FALSE,"PERSONA CON LABOR PERMITIDA"), "PERSONA CON LABOR NO PERMITIDA") -> PERSONA CON LABOR PERMITIDA
A56: Gil Guerra Arley De Jesus | B56: 2016-11-11 | C56: 2016-11-11 | D56: 11 | E56: 11 | F56: 2016 | G56: 77143508 | H56: =IFERROR(VLOOKUP('Nomina CercasyLinderos'!G56,'BD operarios '!$A$4:$C$18018,2,FALSE), "") -> Fragozo Rico Juan | I56: =IFERROR(VLOOKUP('Nomina CercasyLinderos'!G56,'BD operarios '!$A$2:$C$18018,3,FALSE), "") -> ALAMBRADOR | J56: 4055 | K56: 915 | L56: =IFERROR(VLOOKUP('Nomina CercasyLinderos'!K56,AdministracionListas!$D$1:$E$148,2,FALSE), "") -> Alambrada en firme 4 hilos | M56: =IFERROR(VLOOKUP('Nomina CercasyLinderos'!K56,AdministracionListas!$D$1:$F$148,3,FALSE), "") -> Pos | N56: =IFERROR(VLOOKUP('Nomina CercasyLinderos'!K56,AdministracionListas!$D$1:$G$148,4,FALSE), "") -> 3750 | O56: 25 | P56: 1 | Q56: 1 | R56: 93750 | S56: =IFERROR(IF(VLOOKUP(J56&K56&I56,'Catalogo de Labores '!L:L,1,FALSE) = "",FALSE,"PERSONA CON LABOR PERMITIDA"), "PERSONA CON LABOR NO PERMITIDA") -> PERSONA CON LABOR PERMITIDA
A57: Gil Guerra Arley De Jesus | B57: 2016-11-11 | C57: 2016-11-11 | D57: 11 | E57: 11 | F57: 2016 | G57: 7249393 | H57: =IFERROR(VLOOKUP('Nomina CercasyLinderos'!G57,'BD operarios '!$A$4:$C$18018,2,FALSE), "") -> Carmona Tamayo Jorge Ivan | I57: =IFERROR(VLOOKUP('Nomina CercasyLinderos'!G57,'BD operarios '!$A$2:$C$18018,3,FALSE), "") -> ALAMBRADOR | J57: 4055 | K57: 915 | L57: =IFERROR(VLOOKUP('Nomina CercasyLinderos'!K57,AdministracionListas!$D$1:$E$148,2,FALSE), "") -> Alambrada en firme 4 hilos | M57: =IFERROR(VLOOKUP('Nomina CercasyLinderos'!K57,AdministracionListas!$D$1:$F$148,3,FALSE), "") -> Pos | N57: =IFERROR(VLOOKUP('Nomina CercasyLinderos'!K57,AdministracionListas!$D$1:$G$148,4,FALSE), "") -> 3750 | O57: 12 | P57: 0.5 | Q57: 1 | R57: 45000 | S57: =IFERROR(IF(VLOOKUP(J57&K57&I57,'Catalogo de Labores '!L:L,1,FALSE) = "",FALSE,"PERSONA CON LABOR PERMITIDA"), "PERSONA CON LABOR NO PERMITIDA") -> PERSONA CON LABOR PERMITIDA
A58: Gil Guerra Arley De Jesus | B58: 2016-11-11 | C58: 2016-11-11 | D58: 11 | E58: 11 | F58: 2016 | G58: 739760 | H58: =IFERROR(VLOOKUP('Nomina CercasyLinderos'!G58,'BD operarios '!$A$4:$C$18018,2,FALSE), "") -> Mejia Ocampo Jaime De Jesus | I58: =IFERROR(VLOOKUP('Nomina CercasyLinderos'!G58,'BD operarios '!$A$2:$C$18018,3,FALSE), "") -> ALAMBRADOR | J58: 4055 | K58: 917 | L58: =IFERROR(VLOOKUP('Nomina CercasyLinderos'!K58,AdministracionListas!$D$1:$E$148,2,FALSE), "") -> Elaboración portón de madera X 4 metros | M58: =IFERROR(VLOOKUP('Nomina CercasyLinderos'!K58,AdministracionListas!$D$1:$F$148,3,FALSE), "") -> Por | N58: =IFERROR(VLOOKUP('Nomina CercasyLinderos'!K58,AdministracionListas!$D$1:$G$148,4,FALSE), "") -> 850000 | O58: 0.1 | P58: 1 | Q58: 1 | R58: 85000 | S58: =IFERROR(IF(VLOOKUP(J58&K58&I58,'Catalogo de Labores '!L:L,1,FALSE) = "",FALSE,"PERSONA CON LABOR PERMITIDA"), "PERSONA CON LABOR NO PERMITIDA") -> PERSONA CON LABOR PERMITIDA
A59: Gil Guerra Arley De Jesus | B59: 2016-11-11 | C59: 2016-11-11 | D59: 11 | E59: 11 | F59: 2016 | G59: 7251502 | H59: =IFERROR(VLOOKUP('Nomina CercasyLinderos'!G59,'BD operarios '!$A$4:$C$18018,2,FALSE), "") -> Gil Guerra Juan Crisostomo | I59: =IFERROR(VLOOKUP('Nomina CercasyLinderos'!G59,'BD operarios '!$A$2:$C$18018,3,FALSE), "") -> ALAMBRADOR | J59: 4055 | K59: 915 | L59: =IFERROR(VLOOKUP('Nomina CercasyLinderos'!K59,AdministracionListas!$D$1:$E$148,2,FALSE), "") -> Alambrada en firme 4 hilos | M59: =IFERROR(VLOOKUP('Nomina CercasyLinderos'!K59,AdministracionListas!$D$1:$F$148,3,FALSE), "") -> Pos | N59: =IFERROR(VLOOKUP('Nomina CercasyLinderos'!K59,AdministracionListas!$D$1:$G$148,4,FALSE), "") -> 3750 | O59: 12 | P59: 0.5 | Q59: 1 | R59: 45000 | S59: =IFERROR(IF(VLOOKUP(J59&K59&I59,'Catalogo de Labores '!L:L,1,FALSE) = "",FALSE,"PERSONA CON LABOR PERMITIDA"), "PERSONA CON LABOR NO PERMITIDA") -> PERSONA CON LABOR PERMITIDA
A60: Gil Guerra Arley De Jesus | B60: 2016-11-11 | C60: 2016-11-11 | D60: 11 | E60: 11 | F60: 2016 | G60: 10201472 | H60: =IFERROR(VLOOKUP('Nomina CercasyLinderos'!G60,'BD operarios '!$A$4:$C$18018,2,FALSE), "") -> Hernandez Ramon Antonio | I60: =IFERROR(VLOOKUP('Nomina CercasyLinderos'!G60,'BD operarios '!$A$2:$C$18018,3,FALSE), "") -> ALAMBRADOR | J60: 4055 | K60: 916 | L60: =IFERROR(VLOOKUP('Nomina CercasyLinderos'!K60,AdministracionListas!$D$1:$E$148,2,FALSE), "") -> Desalambrado | M60: =IFERROR(VLOOKUP('Nomina CercasyLinderos'!K60,AdministracionListas!$D$1:$F$148,3,FALSE), "") -> Pos | N60: =IFERROR(VLOOKUP('Nomina CercasyLinderos'!K60,AdministracionListas!$D$1:$G$148,4,FALSE), "") -> 1000 | O60: 41 | P60: 1 | Q60: 1 | R60: 41000 | S60: =IFERROR(IF(VLOOKUP(J60&K60&I60,'Catalogo de Labores '!L:L,1,FALSE) = "",FALSE,"PERSONA CON LABOR PERMITIDA"), "PERSONA CON LABOR NO PERMITIDA") -> PERSONA CON LABOR PERMITIDA
A61: Gil Guerra Arley De Jesus | B61: 2016-11-11 | C61: 2016-11-11 | D61: 11 | E61: 11 | F61: 2016 | G61: 7249393 | H61: =IFERROR(VLOOKUP('Nomina CercasyLinderos'!G61,'BD operarios '!$A$4:$C$18018,2,FALSE), "") -> Carmona Tamayo Jorge Ivan | I61: =IFERROR(VLOOKUP('Nomina CercasyLinderos'!G61,'BD operarios '!$A$2:$C$18018,3,FALSE), "") -> ALAMBRADOR | J61: 4055 | K61: 916 | L61: =IFERROR(VLOOKUP('Nomina CercasyLinderos'!K61,AdministracionListas!$D$1:$E$148,2,FALSE), "") -> Desalambrado | M61: =IFERROR(VLOOKUP('Nomina CercasyLinderos'!K61,AdministracionListas!$D$1:$F$148,3,FALSE), "") -> Pos | N61: =IFERROR(VLOOKUP('Nomina CercasyLinderos'!K61,AdministracionListas!$D$1:$G$148,4,FALSE), "") -> 1000 | O61: 10 | P61: 0.5 | Q61: 1 | R61: 10000 | S61: =IFERROR(IF(VLOOKUP(J61&K61&I61,'Catalogo de Labores '!L:L,1,FALSE) = "",FALSE,"PERSONA CON LABOR PERMITIDA"), "PERSONA CON LABOR NO PERMITIDA") -> PERSONA CON LABOR PERMITIDA
A62: Gil Guerra Arley De Jesus | B62: 2016-11-11 | C62: 2016-11-11 | D62: 11 | E62: 11 | F62: 2016 | G62: 7251502 | H62: =IFERROR(VLOOKUP('Nomina CercasyLinderos'!G62,'BD operarios '!$A$4:$C$18018,2,FALSE), "") -> Gil Guerra Juan Crisostomo | I62: =IFERROR(VLOOKUP('Nomina CercasyLinderos'!G62,'BD operarios '!$A$2:$C$18018,3,FALSE), "") -> ALAMBRADOR | J62: 4055 | K62: 916 | L62: =IFERROR(VLOOKUP('Nomina CercasyLinderos'!K62,AdministracionListas!$D$1:$E$148,2,FALSE), "") -> Desalambrado | M62: =IFERROR(VLOOKUP('Nomina CercasyLinderos'!K62,AdministracionListas!$D$1:$F$148,3,FALSE), "") -> Pos | N62: =IFERROR(VLOOKUP('Nomina CercasyLinderos'!K62,AdministracionListas!$D$1:$G$148,4,FALSE), "") -> 1000 | O62: 10 | P62: 0.5 | Q62: 1 | R62: 10000 | S62: =IFERROR(IF(VLOOKUP(J62&K62&I62,'Catalogo de Labores '!L:L,1,FALSE) = "",FALSE,"PERSONA CON LABOR PERMITIDA"), "PERSONA CON LABOR NO PERMITIDA") -> PERSONA CON LABOR PERMITIDA
A63: Gil Guerra Arley De Jesus | B63: 2016-11-12 | C63: 2016-11-12 | D63: 12 | E63: 11 | F63: 2016 | G63: 1099545443 | H63: =IFERROR(VLOOKUP('Nomina CercasyLinderos'!G63,'BD operarios '!$A$4:$C$18018,2,FALSE), "") -> Duran Contreras Daniel De Jesus | I63: =IFERROR(VLOOKUP('Nomina CercasyLinderos'!G63,'BD operarios '!$A$2:$C$18018,3,FALSE), "") -> ALAMBRADOR | J63: 4055 | K63: 915 | L63: =IFERROR(VLOOKUP('Nomina CercasyLinderos'!K63,AdministracionListas!$D$1:$E$148,2,FALSE), "") -> Alambrada en firme 4 hilos | M63: =IFERROR(VLOOKUP('Nomina CercasyLinderos'!K63,AdministracionListas!$D$1:$F$148,3,FALSE), "") -> Pos | N63: =IFERROR(VLOOKUP('Nomina CercasyLinderos'!K63,AdministracionListas!$D$1:$G$148,4,FALSE), "") -> 3750 | O63: 20 | P63: 1 | Q63: 1 | R63: 75000 | S63: =IFERROR(IF(VLOOKUP(J63&K63&I63,'Catalogo de Labores '!L:L,1,FALSE) = "",FALSE,"PERSONA CON LABOR PERMITIDA"), "PERSONA CON LABOR NO PERMITIDA") -> PERSONA CON LABOR PERMITIDA
A64: Gil Guerra Arley De Jesus | B64: 2016-11-12 | C64: 2016-11-12 | D64: 12 | E64: 11 | F64: 2016 | G64: 77143508 | H64: =IFERROR(VLOOKUP('Nomina CercasyLinderos'!G64,'BD operarios '!$A$4:$C$18018,2,FALSE), "") -> Fragozo Rico Juan | I64: =IFERROR(VLOOKUP('Nomina CercasyLinderos'!G64,'BD operarios '!$A$2:$C$18018,3,FALSE), "") -> ALAMBRADOR | J64: 4055 | K64: 915 | L64: =IFERROR(VLOOKUP('Nomina CercasyLinderos'!K64,AdministracionListas!$D$1:$E$148,2,FALSE), "") -> Alambrada en firme 4 hilos | M64: =IFERROR(VLOOKUP('Nomina CercasyLinderos'!K64,AdministracionListas!$D$1:$F$148,3,FALSE), "") -> Pos | N64: =IFERROR(VLOOKUP('Nomina CercasyLinderos'!K64,AdministracionListas!$D$1:$G$148,4,FALSE), "") -> 3750 | O64: 25 | P64: 1 | Q64: 1 | R64: 93750 | S64: =IFERROR(IF(VLOOKUP(J64&K64&I64,'Catalogo de Labores '!L:L,1,FALSE) = "",FALSE,"PERSONA CON LABOR PERMITIDA"), "PERSONA CON LABOR NO PERMITIDA") -> PERSONA CON LABOR PERMITIDA
A65: Gil Guerra Arley De Jesus | B65: 2016-11-12 | C65: 2016-11-12 | D65: 12 | E65: 11 | F65: 2016 | G65: 7249393 | H65: =IFERROR(VLOOKUP('Nomina CercasyLinderos'!G65,'BD operarios '!$A$4:$C$18018,2,FALSE), "") -> Carmona Tamayo Jorge Ivan | I65: =IFERROR(VLOOKUP('Nomina CercasyLinderos'!G65,'BD operarios '!$A$2:$C$18018,3,FALSE), "") -> ALAMBRADOR | J65: 4055 | K65: 915 | L65: =IFERROR(VLOOKUP('Nomina CercasyLinderos'!K65,AdministracionListas!$D$1:$E$148,2,FALSE), "") -> Alambrada en firme 4 hilos | M65: =IFERROR(VLOOKUP('Nomina CercasyLinderos'!K65,AdministracionListas!$D$1:$F$148,3,FALSE), "") -> Pos | N65: =IFERROR(VLOOKUP('Nomina CercasyLinderos'!K65,AdministracionListas!$D$1:$G$148,4,FALSE), "") -> 3750 | O65: 0 | P65: 1 | Q65: 1 | R65: 0 | S65: =IFERROR(IF(VLOOKUP(J65&K65&I65,'Catalogo de Labores '!L:L,1,FALSE) = "",FALSE,"PERSONA CON LABOR PERMITIDA"), "PERSONA CON LABOR NO PERMITIDA") -> PERSONA CON LABOR PERMITIDA
A66: Gil Guerra Arley De Jesus | B66: 2016-11-12 | C66: 2016-11-12 | D66: =IF(ISBLANK(C66),"",DAY(C66)) -> 12 | E66: =IF(ISBLANK(C66),"",MONTH(C66)) -> 11 | F66: =IF(ISBLANK(C66),"",YEAR(C66)) -> 2016 | G66: 739760 | H66: =IFERROR(VLOOKUP('Nomina CercasyLinderos'!G66,'BD operarios '!$A$4:$C$18018,2,FALSE), "") -> Mejia Ocampo Jaime De Jesus | I66: =IFERROR(VLOOKUP('Nomina CercasyLinderos'!G66,'BD operarios '!$A$2:$C$18018,3,FALSE), "") -> ALAMBRADOR | J66: 4055 | K66: 917 | L66: =IFERROR(VLOOKUP('Nomina CercasyLinderos'!K66,AdministracionListas!$D$1:$E$148,2,FALSE), "") -> Elaboración portón de madera X 4 metros | M66: =IFERROR(VLOOKUP('Nomina CercasyLinderos'!K66,AdministracionListas!$D$1:$F$148,3,FALSE), "") -> Por | N66: =IFERROR(VLOOKUP('Nomina CercasyLinderos'!K66,AdministracionListas!$D$1:$G$148,4,FALSE), "") -> 850000 | O66: 0.1 | P66: 1 | Q66: 1 | R66: =IFERROR(IF(M66="jor",N66*P66,N66*O66),"") -> 85000 | S66: =IFERROR(IF(VLOOKUP(J66&K66&I66,'Catalogo de Labores '!L:L,1,FALSE) = "",FALSE,"PERSONA CON LABOR PERMITIDA"), "PERSONA CON LABOR NO PERMITIDA") -> PERSONA CON LABOR PERMITIDA
A67: Gil Guerra Arley De Jesus | B67: 2016-11-12 | C67: 2016-11-12 | D67: 12 | E67: 11 | F67: 2016 | G67: 7251502 | H67: =IFERROR(VLOOKUP('Nomina CercasyLinderos'!G67,'BD operarios '!$A$4:$C$18018,2,FALSE), "") -> Gil Guerra Juan Crisostomo | I67: =IFERROR(VLOOKUP('Nomina CercasyLinderos'!G67,'BD operarios '!$A$2:$C$18018,3,FALSE), "") -> ALAMBRADOR | J67: 4055 | K67: 915 | L67: =IFERROR(VLOOKUP('Nomina CercasyLinderos'!K67,AdministracionListas!$D$1:$E$148,2,FALSE), "") -> Alambrada en firme 4 hilos | M67: =IFERROR(VLOOKUP('Nomina CercasyLinderos'!K67,AdministracionListas!$D$1:$F$148,3,FALSE), "") -> Pos | N67: =IFERROR(VLOOKUP('Nomina CercasyLinderos'!K67,AdministracionListas!$D$1:$G$148,4,FALSE), "") -> 3750 | O67: 0 | P67: 1 | Q67: 1 | R67: 0 | S67: =IFERROR(IF(VLOOKUP(J67&K67&I67,'Catalogo de Labores '!L:L,1,FALSE) = "",FALSE,"PERSONA CON LABOR PERMITIDA"), "PERSONA CON LABOR NO PERMITIDA") -> PERSONA CON LABOR PERMITIDA | T67: =IF(AND(OR(M67<>"Jor",M67<>"jor"),P67="",ISNUMBER(K67)),"Falta jornal",IF(AND(OR(M67="Jor",M67="jor"),O67="",K67<>906,K67<>401,K67<>960,K67<>990,K67<>980,K67<>970,K67<>950),"Falta labor"," ")) -> 
A68: Gil Guerra Arley De Jesus | B68: 2016-11-12 | C68: 2016-11-12 | D68: 12 | E68: 11 | F68: 2016 | G68: 10201472 | H68: =IFERROR(VLOOKUP('Nomina CercasyLinderos'!G68,'BD operarios '!$A$4:$C$18018,2,FALSE), "") -> Hernandez Ramon Antonio | I68: =IFERROR(VLOOKUP('Nomina CercasyLinderos'!G68,'BD operarios '!$A$2:$C$18018,3,FALSE), "") -> ALAMBRADOR | J68: 4055 | K68: 915 | L68: =IFERROR(VLOOKUP('Nomina CercasyLinderos'!K68,AdministracionListas!$D$1:$E$148,2,FALSE), "") -> Alambrada en firme 4 hilos | M68: =IFERROR(VLOOKUP('Nomina CercasyLinderos'!K68,AdministracionListas!$D$1:$F$148,3,FALSE), "") -> Pos | N68: =IFERROR(VLOOKUP('Nomina CercasyLinderos'!K68,AdministracionListas!$D$1:$G$148,4,FALSE), "") -> 3750 | O68: 43 | P68: 1 | Q68: 1 | R68: 161250 | S68: =IFERROR(IF(VLOOKUP(J68&K68&I68,'Catalogo de Labores '!L:L,1,FALSE) = "",FALSE,"PERSONA CON LABOR PERMITIDA"), "PERSONA CON LABOR NO PERMITIDA") -> PERSONA CON LABOR PERMITIDA
A69: Gil Guerra Arley De Jesus | B69: 2016-11-15 | C69: 2016-11-15 | D69: 15 | E69: 11 | F69: 2016 | G69: 1099545443 | H69: =IFERROR(VLOOKUP('Nomina CercasyLinderos'!G69,'BD operarios '!$A$4:$C$18018,2,FALSE), "") -> Duran Contreras Daniel De Jesus | I69: =IFERROR(VLOOKUP('Nomina CercasyLinderos'!G69,'BD operarios '!$A$2:$C$18018,3,FALSE), "") -> ALAMBRADOR | J69: 4055 | K69: 915 | L69: =IFERROR(VLOOKUP('Nomina CercasyLinderos'!K69,AdministracionListas!$D$1:$E$148,2,FALSE), "") -> Alambrada en firme 4 hilos | M69: =IFERROR(VLOOKUP('Nomina CercasyLinderos'!K69,AdministracionListas!$D$1:$F$148,3,FALSE), "") -> Pos | N69: =IFERROR(VLOOKUP('Nomina CercasyLinderos'!K69,AdministracionListas!$D$1:$G$148,4,FALSE), "") -> 3750 | O69: 40 | P69: 1 | Q69: 1 | R69: 150000 | S69: =IFERROR(IF(VLOOKUP(J69&K69&I69,'Catalogo de Labores '!L:L,1,FALSE) = "",FALSE,"PERSONA CON LABOR PERMITIDA"), "PERSONA CON LABOR NO PERMITIDA") -> PERSONA CON LABOR PERMITIDA
A70: Gil Guerra Arley De Jesus | B70: 2016-11-15 | C70: 2016-11-15 | D70: 15 | E70: 11 | F70: 2016 | G70: 77143508 | H70: =IFERROR(VLOOKUP('Nomina CercasyLinderos'!G70,'BD operarios '!$A$4:$C$18018,2,FALSE), "") -> Fragozo Rico Juan | I70: =IFERROR(VLOOKUP('Nomina CercasyLinderos'!G70,'BD operarios '!$A$2:$C$18018,3,FALSE), "") -> ALAMBRADOR | J70: 4055 | K70: 915 | L70: =IFERROR(VLOOKUP('Nomina CercasyLinderos'!K70,AdministracionListas!$D$1:$E$148,2,FALSE), "") -> Alambrada en firme 4 hilos | M70: =IFERROR(VLOOKUP('Nomina CercasyLinderos'!K70,AdministracionListas!$D$1:$F$148,3,FALSE), "") -> Pos | N70: =IFERROR(VLOOKUP('Nomina CercasyLinderos'!K70,AdministracionListas!$D$1:$G$148,4,FALSE), "") -> 3750 | O70: 40 | P70: 1 | Q70: 1 | R70: 150000 | S70: =IFERROR(IF(VLOOKUP(J70&K70&I70,'Catalogo de Labores '!L:L,1,FALSE) = "",FALSE,"PERSONA CON LABOR PERMITIDA"), "PERSONA CON LABOR NO PERMITIDA") -> PERSONA CON LABOR PERMITIDA
A71: Gil Guerra Arley De Jesus | B71: 2016-11-15 | C71: 2016-11-15 | D71: 15 | E71: 11 | F71: 2016 | G71: 7249393 | H71: =IFERROR(VLOOKUP('Nomina CercasyLinderos'!G71,'BD operarios '!$A$4:$C$18018,2,FALSE), "") -> Carmona Tamayo Jorge Ivan | I71: =IFERROR(VLOOKUP('Nomina CercasyLinderos'!G71,'BD operarios '!$A$2:$C$18018,3,FALSE), "") -> ALAMBRADOR | J71: 4055 | K71: 916 | L71: =IFERROR(VLOOKUP('Nomina CercasyLinderos'!K71,AdministracionListas!$D$1:$E$148,2,FALSE), "") -> Desalambrado | M71: =IFERROR(VLOOKUP('Nomina CercasyLinderos'!K71,AdministracionListas!$D$1:$F$148,3,FALSE), "") -> Pos | N71: =IFERROR(VLOOKUP('Nomina CercasyLinderos'!K71,AdministracionListas!$D$1:$G$148,4,FALSE), "") -> 1000 | O71: 189 | P71: 1 | Q71: 1 | R71: 189000 | S71: =IFERROR(IF(VLOOKUP(J71&K71&I71,'Catalogo de Labores '!L:L,1,FALSE) = "",FALSE,"PERSONA CON LABOR PERMITIDA"), "PERSONA CON LABOR NO PERMITIDA") -> PERSONA CON LABOR PERMITIDA
A72: Gil Guerra Arley De Jesus | B72: 2016-11-15 | C72: 2016-11-15 | D72: 15 | E72: 11 | F72: 2016 | G72: 739760 | H72: =IFERROR(VLOOKUP('Nomina CercasyLinderos'!G72,'BD operarios '!$A$4:$C$18018,2,FALSE), "") -> Mejia Ocampo Jaime De Jesus | I72: =IFERROR(VLOOKUP('Nomina CercasyLinderos'!G72,'BD operarios '!$A$2:$C$18018,3,FALSE), "") -> ALAMBRADOR | J72: 4055 | K72: 917 | L72: =IFERROR(VLOOKUP('Nomina CercasyLinderos'!K72,AdministracionListas!$D$1:$E$148,2,FALSE), "") -> Elaboración portón de madera X 4 metros | M72: =IFERROR(VLOOKUP('Nomina CercasyLinderos'!K72,AdministracionListas!$D$1:$F$148,3,FALSE), "") -> Por | N72: =IFERROR(VLOOKUP('Nomina CercasyLinderos'!K72,AdministracionListas!$D$1:$G$148,4,FALSE), "") -> 850000 | O72: 0.1 | P72: 1 | Q72: 1 | R72: 85000 | S72: =IFERROR(IF(VLOOKUP(J72&K72&I72,'Catalogo de Labores '!L:L,1,FALSE) = "",FALSE,"PERSONA CON LABOR PERMITIDA"), "PERSONA CON LABOR NO PERMITIDA") -> PERSONA CON LABOR PERMITIDA
A73: Gil Guerra Arley De Jesus | B73: 2016-11-15 | C73: 2016-11-15 | D73: 15 | E73: 11 | F73: 2016 | G73: 7251502 | H73: =IFERROR(VLOOKUP('Nomina CercasyLinderos'!G73,'BD operarios '!$A$4:$C$18018,2,FALSE), "") -> Gil Guerra Juan Crisostomo | I73: =IFERROR(VLOOKUP('Nomina CercasyLinderos'!G73,'BD operarios '!$A$2:$C$18018,3,FALSE), "") -> ALAMBRADOR | J73: 4055 | K73: 916 | L73: =IFERROR(VLOOKUP('Nomina CercasyLinderos'!K73,AdministracionListas!$D$1:$E$148,2,FALSE), "") -> Desalambrado | M73: =IFERROR(VLOOKUP('Nomina CercasyLinderos'!K73,AdministracionListas!$D$1:$F$148,3,FALSE), "") -> Pos | N73: =IFERROR(VLOOKUP('Nomina CercasyLinderos'!K73,AdministracionListas!$D$1:$G$148,4,FALSE), "") -> 1000 | O73: 189 | P73: 1 | Q73: 1 | R73: 189000 | S73: =IFERROR(IF(VLOOKUP(J73&K73&I73,'Catalogo de Labores '!L:L,1,FALSE) = "",FALSE,"PERSONA CON LABOR PERMITIDA"), "PERSONA CON LABOR NO PERMITIDA") -> PERSONA CON LABOR PERMITIDA
A74: Gil Guerra Arley De Jesus | B74: 2016-11-15 | C74: 2016-11-15 | D74: 15 | E74: 11 | F74: 2016 | G74: 10201472 | H74: =IFERROR(VLOOKUP('Nomina CercasyLinderos'!G74,'BD operarios '!$A$4:$C$18018,2,FALSE), "") -> Hernandez Ramon Antonio | I74: =IFERROR(VLOOKUP('Nomina CercasyLinderos'!G74,'BD operarios '!$A$2:$C$18018,3,FALSE), "") -> ALAMBRADOR | J74: 4055 | K74: 960 | L74: =IFERROR(VLOOKUP('Nomina CercasyLinderos'!K74,AdministracionListas!$D$1:$E$148,2,FALSE), "") -> Licencia No Remunerada | M74: =IFERROR(VLOOKUP('Nomina CercasyLinderos'!K74,AdministracionListas!$D$1:$F$148,3,FALSE), "") -> jor | N74: =IFERROR(VLOOKUP('Nomina CercasyLinderos'!K74,AdministracionListas!$D$1:$G$148,4,FALSE), "") -> 0 | O74: 1 | P74: 0 | Q74: 0 | R74: 0 | S74: =IFERROR(IF(VLOOKUP(J74&K74&I74,'Catalogo de Labores '!L:L,1,FALSE) = "",FALSE,"PERSONA CON LABOR PERMITIDA"), "PERSONA CON LABOR NO PERMITIDA") -> PERSONA CON LABOR PERMITIDA
A75: Gil Guerra Arley De Jesus | B75: 2016-11-16 | C75: 2016-11-16 | D75: 16 | E75: 11 | F75: 2016 | G75: 1099545443 | H75: =IFERROR(VLOOKUP('Nomina CercasyLinderos'!G75,'BD operarios '!$A$4:$C$18018,2,FALSE), "") -> Duran Contreras Daniel De Jesus | I75: =IFERROR(VLOOKUP('Nomina CercasyLinderos'!G75,'BD operarios '!$A$2:$C$18018,3,FALSE), "") -> ALAMBRADOR | J75: 4055 | K75: 915 | L75: =IFERROR(VLOOKUP('Nomina CercasyLinderos'!K75,AdministracionListas!$D$1:$E$148,2,FALSE), "") -> Alambrada en firme 4 hilos | M75: =IFERROR(VLOOKUP('Nomina CercasyLinderos'!K75,AdministracionListas!$D$1:$F$148,3,FALSE), "") -> Pos | N75: =IFERROR(VLOOKUP('Nomina CercasyLinderos'!K75,AdministracionListas!$D$1:$G$148,4,FALSE), "") -> 3750 | O75: 30 | P75: 1 | Q75: 1 | R75: 112500 | S75: =IFERROR(IF(VLOOKUP(J75&K75&I75,'Catalogo de Labores '!L:L,1,FALSE) = "",FALSE,"PERSONA CON LABOR PERMITIDA"), "PERSONA CON LABOR NO PERMITIDA") -> PERSONA CON LABOR PERMITIDA
A76: Gil Guerra Arley De Jesus | B76: 2016-11-16 | C76: 2016-11-16 | D76: 16 | E76: 11 | F76: 2016 | G76: 77143508 | H76: =IFERROR(VLOOKUP('Nomina CercasyLinderos'!G76,'BD operarios '!$A$4:$C$18018,2,FALSE), "") -> Fragozo Rico Juan | I76: =IFERROR(VLOOKUP('Nomina CercasyLinderos'!G76,'BD operarios '!$A$2:$C$18018,3,FALSE), "") -> ALAMBRADOR | J76: 4055 | K76: 915 | L76: =IFERROR(VLOOKUP('Nomina CercasyLinderos'!K76,AdministracionListas!$D$1:$E$148,2,FALSE), "") -> Alambrada en firme 4 hilos | M76: =IFERROR(VLOOKUP('Nomina CercasyLinderos'!K76,AdministracionListas!$D$1:$F$148,3,FALSE), "") -> Pos | N76: =IFERROR(VLOOKUP('Nomina CercasyLinderos'!K76,AdministracionListas!$D$1:$G$148,4,FALSE), "") -> 3750 | O76: 30 | P76: 1 | Q76: 1 | R76: 112500 | S76: =IFERROR(IF(VLOOKUP(J76&K76&I76,'Catalogo de Labores '!L:L,1,FALSE) = "",FALSE,"PERSONA CON LABOR PERMITIDA"), "PERSONA CON LABOR NO PERMITIDA") -> PERSONA CON LABOR PERMITIDA
A77: Gil Guerra Arley De Jesus | B77: 2016-11-16 | C77: 2016-11-16 | D77: 16 | E77: 11 | F77: 2016 | G77: 7249393 | H77: =IFERROR(VLOOKUP('Nomina CercasyLinderos'!G77,'BD operarios '!$A$4:$C$18018,2,FALSE), "") -> Carmona Tamayo Jorge Ivan | I77: =IFERROR(VLOOKUP('Nomina CercasyLinderos'!G77,'BD operarios '!$A$2:$C$18018,3,FALSE), "") -> ALAMBRADOR | J77: 4055 | K77: 915 | L77: =IFERROR(VLOOKUP('Nomina CercasyLinderos'!K77,AdministracionListas!$D$1:$E$148,2,FALSE), "") -> Alambrada en firme 4 hilos | M77: =IFERROR(VLOOKUP('Nomina CercasyLinderos'!K77,AdministracionListas!$D$1:$F$148,3,FALSE), "") -> Pos | N77: =IFERROR(VLOOKUP('Nomina CercasyLinderos'!K77,AdministracionListas!$D$1:$G$148,4,FALSE), "") -> 3750 | O77: 10 | P77: 1 | Q77: 1 | R77: 37500 | S77: =IFERROR(IF(VLOOKUP(J77&K77&I77,'Catalogo de Labores '!L:L,1,FALSE) = "",FALSE,"PERSONA CON LABOR PERMITIDA"), "PERSONA CON LABOR NO PERMITIDA") -> PERSONA CON LABOR PERMITIDA
A78: Gil Guerra Arley De Jesus | B78: 2016-11-16 | C78: 2016-11-16 | D78: 16 | E78: 11 | F78: 2016 | G78: 739760 | H78: =IFERROR(VLOOKUP('Nomina CercasyLinderos'!G78,'BD operarios '!$A$4:$C$18018,2,FALSE), "") -> Mejia Ocampo Jaime De Jesus | I78: =IFERROR(VLOOKUP('Nomina CercasyLinderos'!G78,'BD operarios '!$A$2:$C$18018,3,FALSE), "") -> ALAMBRADOR | J78: 4055 | K78: 917 | L78: =IFERROR(VLOOKUP('Nomina CercasyLinderos'!K78,AdministracionListas!$D$1:$E$148,2,FALSE), "") -> Elaboración portón de madera X 4 metros | M78: =IFERROR(VLOOKUP('Nomina CercasyLinderos'!K78,AdministracionListas!$D$1:$F$148,3,FALSE), "") -> Por | N78: =IFERROR(VLOOKUP('Nomina CercasyLinderos'!K78,AdministracionListas!$D$1:$G$148,4,FALSE), "") -> 850000 | O78: 0.1 | P78: 1 | Q78: 1 | R78: 85000 | S78: =IFERROR(IF(VLOOKUP(J78&K78&I78,'Catalogo de Labores '!L:L,1,FALSE) = "",FALSE,"PERSONA CON LABOR PERMITIDA"), "PERSONA CON LABOR NO PERMITIDA") -> PERSONA CON LABOR PERMITIDA
A79: Gil Guerra Arley De Jesus | B79: 2016-11-16 | C79: 2016-11-16 | D79: 16 | E79: 11 | F79: 2016 | G79: 7251502 | H79: =IFERROR(VLOOKUP('Nomina CercasyLinderos'!G79,'BD operarios '!$A$4:$C$18018,2,FALSE), "") -> Gil Guerra Juan Crisostomo | I79: =IFERROR(VLOOKUP('Nomina CercasyLinderos'!G79,'BD operarios '!$A$2:$C$18018,3,FALSE), "") -> ALAMBRADOR | J79: 4055 | K79: 915 | L79: =IFERROR(VLOOKUP('Nomina CercasyLinderos'!K79,AdministracionListas!$D$1:$E$148,2,FALSE), "") -> Alambrada en firme 4 hilos | M79: =IFERROR(VLOOKUP('Nomina CercasyLinderos'!K79,AdministracionListas!$D$1:$F$148,3,FALSE), "") -> Pos | N79: =IFERROR(VLOOKUP('Nomina CercasyLinderos'!K79,AdministracionListas!$D$1:$G$148,4,FALSE), "") -> 3750 | O79: 10 | P79: 1 | Q79: 1 | R79: 37500 | S79: =IFERROR(IF(VLOOKUP(J79&K79&I79,'Catalogo de Labores '!L:L,1,FALSE) = "",FALSE,"PERSONA CON LABOR PERMITIDA"), "PERSONA CON LABOR NO PERMITIDA") -> PERSONA CON LABOR PERMITIDA
A80: Gil Guerra Arley De Jesus | B80: 2016-11-16 | C80: 2016-11-16 | D80: 16 | E80: 11 | F80: 2016 | G80: 10201472 | H80: =IFERROR(VLOOKUP('Nomina CercasyLinderos'!G80,'BD operarios '!$A$4:$C$18018,2,FALSE), "") -> Hernandez Ramon Antonio | I80: =IFERROR(VLOOKUP('Nomina CercasyLinderos'!G80,'BD operarios '!$A$2:$C$18018,3,FALSE), "") -> ALAMBRADOR | J80: 4055 | K80: 915 | L80: =IFERROR(VLOOKUP('Nomina CercasyLinderos'!K80,AdministracionListas!$D$1:$E$148,2,FALSE), "") -> Alambrada en firme 4 hilos | M80: =IFERROR(VLOOKUP('Nomina CercasyLinderos'!K80,AdministracionListas!$D$1:$F$148,3,FALSE), "") -> Pos | N80: =IFERROR(VLOOKUP('Nomina CercasyLinderos'!K80,AdministracionListas!$D$1:$G$148,4,FALSE), "") -> 3750 | O80: 0 | P80: 1 | Q80: 1 | R80: 0 | S80: =IFERROR(IF(VLOOKUP(J80&K80&I80,'Catalogo de Labores '!L:L,1,FALSE) = "",FALSE,"PERSONA CON LABOR PERMITIDA"), "PERSONA CON LABOR NO PERMITIDA") -> PERSONA CON LABOR PERMITIDA
